Workbook

Sheet Portada

Sheet Notas Precios

Sheet INFORME AUTOMATICO (hidden)
B1: " PEGAR LOS GRUPOS DE LA RECOLECCION "
F2: PROVEEDORES SIN REPETIR | G2: 381
B3: CODIGO GRUPO | C3: GRUPO DE INSUMOS | D3: CANTIDAD DE PROVEEDORES (TOTAL) | F3: PROVEEDORES POR GRUPOS | G3: =SUM(D:D) -> 675
B4: 1114 | C4: ACCESORIOS HD PARA REDES DE ACUEDUCTO | D4: =COUNTIF('LISTA TOTAL PROVEEDORES'!$B$3:$B$9960,'INFORME AUTOMATICO'!B4) -> 11 | F4: REGISTROS PROVEEDORES VIEJOS | G4: =+G3-G6 -> 507
B5: 1161 | C5: ACTIVIDADES A TODO COSTO | D5: =COUNTIF('LISTA TOTAL PROVEEDORES'!$B$3:$B$9960,'INFORME AUTOMATICO'!B5) -> 34
B6: 1102 | C6: AGREGADOS PÉTREOS, BASES Y SUBBASES GRANULARES | D6: =COUNTIF('LISTA TOTAL PROVEEDORES'!$B$3:$B$9960,'INFORME AUTOMATICO'!B6) -> 22 | F6: REGISTROS PROVEEDORES NUEVOS | G6: =SUM('LISTA TOTAL PROVEEDORES'!M:M) -> 168
B7: 1147 | C7: ARBOLES-GRAMAS-VEGETACIÓN Y PLANTACIÓN PAISAJÍSTIC | D7: =COUNTIF('LISTA TOTAL PROVEEDORES'!$B$3:$B$9960,'INFORME AUTOMATICO'!B7) -> 3
B8: 1127 | C8: BORDILLOS Y LOSETAS | D8: =COUNTIF('LISTA TOTAL PROVEEDORES'!$B$3:$B$9960,'INFORME AUTOMATICO'!B8) -> 12
B9: 1121 | C9: CABLES Y ACCESORIOS ELECTRICOS | D9: =COUNTIF('LISTA TOTAL PROVEEDORES'!$B$3:$B$9960,'INFORME AUTOMATICO'!B9) -> 32
B10: 1227 | C10: CANAL DE DRENAJE | D10: =COUNTIF('LISTA TOTAL PROVEEDORES'!$B$3:$B$9960,'INFORME AUTOMATICO'!B10) -> 2
B11: 1195 | C11: CARPINTERÍA METÁLICA | D11: =COUNTIF('LISTA TOTAL PROVEEDORES'!$B$3:$B$9960,'INFORME AUTOMATICO'!B11) -> 2
B12: 1130 | C12: COMBUSTIBLES Y LUBRICANTES | D12: =COUNTIF('LISTA TOTAL PROVEEDORES'!$B$3:$B$9960,'INFORME AUTOMATICO'!B12) -> 1
B13: 1103 | C13: CONCRETOS Y MORTEROS PREMEZCLADOS | D13: =COUNTIF('LISTA TOTAL PROVEEDORES'!$B$3:$B$9960,'INFORME AUTOMATICO'!B13) -> 9
B14: 1168 | C14: CONSULTORIA | D14: =COUNTIF('LISTA TOTAL PROVEEDORES'!$B$3:$B$9960,'INFORME AUTOMATICO'!B14) -> 2
B15: 1200 | C15: CUBIERTA - CIELO RASO - CORTASOL TIPO TRANSMILENIO | D15: =COUNTIF('LISTA TOTAL PROVEEDORES'!$B$3:$B$9960,'INFORME AUTOMATICO'!B15) -> 8
B16: 1194 | C16: DESMONTE Y TRASLADOS DE ELEMENTOS METÁLICOS | D16: =COUNTIF('LISTA TOTAL PROVEEDORES'!$B$3:$B$9960,'INFORME AUTOMATICO'!B16) -> 2
B17: 1148 | C17: DOTACIÓN (EPP) Y EQUIP. Y HERRAM. SEGUR. INDUSTR. | D17: =COUNTIF('LISTA TOTAL PROVEEDORES'!$B$3:$B$9960,'INFORME AUTOMATICO'!B17) -> 17
B18: 1111 | C18: DUCTOS PVC - ELECTRICOS/TELEFONICOS TIPO TDP-DB-EB | D18: =COUNTIF('LISTA TOTAL PROVEEDORES'!$B$3:$B$9960,'INFORME AUTOMATICO'!B18) -> 5
B19: 1104 | C19: EMULSIONES Y MEZCLAS ASFÁLTICAS | D19: =COUNTIF('LISTA TOTAL PROVEEDORES'!$B$3:$B$9960,'INFORME AUTOMATICO'!B19) -> 9
B20: 1210 | C20: ENSAYO CAMPO - SOLDADURAS | D20: =COUNTIF('LISTA TOTAL PROVEEDORES'!$B$3:$B$9960,'INFORME AUTOMATICO'!B20) -> 5
B21: 1223 | C21: ENSAYO CAMPO - DIAGNOSTICO DE PAVIMENTOS | D21: =COUNTIF('LISTA TOTAL PROVEEDORES'!$B$3:$B$9960,'INFORME AUTOMATICO'!B21) -> 11
B22: 1172 | C22: ENSAYO CAMPO - ELEMENTOS ESTRUCTURALES CONCRETO | D22: =COUNTIF('LISTA TOTAL PROVEEDORES'!$B$3:$B$9960,'INFORME AUTOMATICO'!B22) -> 10
B23: 1224 | C23: ENSAYO CAMPO -RECUBRIMIENTO ESTRUCTURA METÁLICA | D23: =COUNTIF('LISTA TOTAL PROVEEDORES'!$B$3:$B$9960,'INFORME AUTOMATICO'!B23) -> 4
B24: 1211 | C24: ENSAYO LABORATORIO - ABRASIVO | D24: =COUNTIF('LISTA TOTAL PROVEEDORES'!$B$3:$B$9960,'INFORME AUTOMATICO'!B24) -> 3
B25: 1213 | C25: ENSAYO LABORATORIO - ACERO ESTRUCTURAL | D25: =COUNTIF('LISTA TOTAL PROVEEDORES'!$B$3:$B$9960,'INFORME AUTOMATICO'!B25) -> 4
B26: 1212 | C26: ENSAYO LABORATORIO - ACERO REFUERZO Y PRETENSADO | D26: =COUNTIF('LISTA TOTAL PROVEEDORES'!$B$3:$B$9960,'INFORME AUTOMATICO'!B26) -> 4
B27: 1171 | C27: ENSAYO LABORATORIO - AGREGADOS PETREOS | D27: =COUNTIF('LISTA TOTAL PROVEEDORES'!$B$3:$B$9960,'INFORME AUTOMATICO'!B27) -> 16
B28: 1228 | C28: ENSAYO LABORATORIO - AGREGADOS PROVENIENTES DE RCD | D28: =COUNTIF('LISTA TOTAL PROVEEDORES'!$B$3:$B$9960,'INFORME AUTOMATICO'!B28) -> 3
B29: 1183 | C29: ENSAYO LABORATORIO - AIRE | D29: =COUNTIF('LISTA TOTAL PROVEEDORES'!$B$3:$B$9960,'INFORME AUTOMATICO'!B29) -> 7
B30: 1214 | C30: ENSAYO LABORATORIO - ALUMINIO | D30: =COUNTIF('LISTA TOTAL PROVEEDORES'!$B$3:$B$9960,'INFORME AUTOMATICO'!B30) -> 3
B31: 1177 | C31: ENSAYO LABORATORIO - ANÁLISIS DE AGUAS | D31: =COUNTIF('LISTA TOTAL PROVEEDORES'!$B$3:$B$9960,'INFORME AUTOMATICO'!B31) -> 10
B32: 1169 | C32: ENSAYO LABORATORIO - CEMENTOS HIDRÁULICOS | D32: =COUNTIF('LISTA TOTAL PROVEEDORES'!$B$3:$B$9960,'INFORME AUTOMATICO'!B32) -> 11
B33: 1181 | C33: ENSAYO LABORATORIO - COMPONENTE DE ESPACIO PÚBLICO | D33: =COUNTIF('LISTA TOTAL PROVEEDORES'!$B$3:$B$9960,'INFORME AUTOMATICO'!B33) -> 11
B34: 1215 | C34: ENSAYO LABORATORIO - CONCRETO PRETENSADO | D34: =COUNTIF('LISTA TOTAL PROVEEDORES'!$B$3:$B$9960,'INFORME AUTOMATICO'!B34) -> 3
B35: 1174 | C35: ENSAYO LABORATORIO - CONCRETOS HIDRÁULICOS | D35: =COUNTIF('LISTA TOTAL PROVEEDORES'!$B$3:$B$9960,'INFORME AUTOMATICO'!B35) -> 10
B36: 1182 | C36: ENSAYO LABORATORIO - GEOTEXTILES | D36: =COUNTIF('LISTA TOTAL PROVEEDORES'!$B$3:$B$9960,'INFORME AUTOMATICO'!B36) -> 6
B37: 1175 | C37: ENSAYO LABORATORIO - MATERIALES BITUMINOSOS | D37: =COUNTIF('LISTA TOTAL PROVEEDORES'!$B$3:$B$9960,'INFORME AUTOMATICO'!B37) -> 9
B38: 1176 | C38: ENSAYO LABORATORIO - MEZCLAS ASFALTICAS | D38: =COUNTIF('LISTA TOTAL PROVEEDORES'!$B$3:$B$9960,'INFORME AUTOMATICO'!B38) -> 15
B39: 1218 | C39: ENSAYO LABORATORIO - NEOPRENO | D39: =COUNTIF('LISTA TOTAL PROVEEDORES'!$B$3:$B$9960,'INFORME AUTOMATICO'!B39) -> 3
B40: 1207 | C40: ENSAYO LABORATORIO - PERFORACIONES | D40: =COUNTIF('LISTA TOTAL PROVEEDORES'!$B$3:$B$9960,'INFORME AUTOMATICO'!B40) -> 4
B41: 1219 | C41: ENSAYO LABORATORIO - PERNOS | D41: =COUNTIF('LISTA TOTAL PROVEEDORES'!$B$3:$B$9960,'INFORME AUTOMATICO'!B41) -> 3
B42: 1220 | C42: ENSAYO LABORATORIO - PINTURA | D42: =COUNTIF('LISTA TOTAL PROVEEDORES'!$B$3:$B$9960,'INFORME AUTOMATICO'!B42) -> 5
B43: 1221 | C43: ENSAYO LABORATORIO - PLÁSTICO RÍGIDO | D43: =COUNTIF('LISTA TOTAL PROVEEDORES'!$B$3:$B$9960,'INFORME AUTOMATICO'!B43) -> 5
B44: 1178 | C44: ENSAYO LABORATORIO - ROCA | D44: =COUNTIF('LISTA TOTAL PROVEEDORES'!$B$3:$B$9960,'INFORME AUTOMATICO'!B44) -> 9
B45: 1203 | C45: ENSAYO LABORATORIO - RUIDO | D45: =COUNTIF('LISTA TOTAL PROVEEDORES'!$B$3:$B$9960,'INFORME AUTOMATICO'!B45) -> 6
B46: 1170 | C46: ENSAYO LABORATORIO - SUELOS | D46: =COUNTIF('LISTA TOTAL PROVEEDORES'!$B$3:$B$9960,'INFORME AUTOMATICO'!B46) -> 23
B47: 1116 | C47: EQUIPO LIVIANO Y HERRAMIENTAS | D47: =COUNTIF('LISTA TOTAL PROVEEDORES'!$B$3:$B$9960,'INFORME AUTOMATICO'!B47) -> 4
B48: 1115 | C48: EQUIPO PESADO | D48: =COUNTIF('LISTA TOTAL PROVEEDORES'!$B$3:$B$9960,'INFORME AUTOMATICO'!B48) -> 14
B49: 1146 | C49: ESTRUCTURAS EN ACERO | D49: =COUNTIF('LISTA TOTAL PROVEEDORES'!$B$3:$B$9960,'INFORME AUTOMATICO'!B49) -> 13
B50: 1158 | C50: EXÁMENES MÉDICOS | D50: =COUNTIF('LISTA TOTAL PROVEEDORES'!$B$3:$B$9960,'INFORME AUTOMATICO'!B50) -> 3
B51: 1134 | C51: FORMALETAS, ANDAMIOS Y ACCESORIOS | D51: =COUNTIF('LISTA TOTAL PROVEEDORES'!$B$3:$B$9960,'INFORME AUTOMATICO'!B51) -> 8
B52: 1123 | C52: GEOSINTETICOS | D52: =COUNTIF('LISTA TOTAL PROVEEDORES'!$B$3:$B$9960,'INFORME AUTOMATICO'!B52) -> 12
B53: 1198 | C53: GESTIÓN SOCIAL ELEMENTOS DE IDENTIFICACIÓN EN OBRA | D53: =COUNTIF('LISTA TOTAL PROVEEDORES'!$B$3:$B$9960,'INFORME AUTOMATICO'!B53) -> 1
B54: 1167 | C54: GESTIÓN SOCIAL ELEMENTOS DE PUBLICIDAD | D54: =COUNTIF('LISTA TOTAL PROVEEDORES'!$B$3:$B$9960,'INFORME AUTOMATICO'!B54) -> 6
B55: 1125 | C55: LADRILLOS, BLOQUES Y ADOQUINES | D55: =COUNTIF('LISTA TOTAL PROVEEDORES'!$B$3:$B$9960,'INFORME AUTOMATICO'!B55) -> 9
B56: 1208 | C56: LEVANTAMIENTO TOPOGRÁFICO | D56: =COUNTIF('LISTA TOTAL PROVEEDORES'!$B$3:$B$9960,'INFORME AUTOMATICO'!B56) -> 1
B57: 1133 | C57: MADERAS | D57: =COUNTIF('LISTA TOTAL PROVEEDORES'!$B$3:$B$9960,'INFORME AUTOMATICO'!B57) -> 3
B58: 1122 | C58: MALLAS Y ACEROS PARA REFUERZO | D58: =COUNTIF('LISTA TOTAL PROVEEDORES'!$B$3:$B$9960,'INFORME AUTOMATICO'!B58) -> 8
B59: 1139 | C59: MARCOS, TAPAS, REJILLAS, HERRAJES Y CAJILLAS | D59: =COUNTIF('LISTA TOTAL PROVEEDORES'!$B$3:$B$9960,'INFORME AUTOMATICO'!B59) -> 7
B60: 1206 | C60: MATERIALES BÁSICOS | D60: =COUNTIF('LISTA TOTAL PROVEEDORES'!$B$3:$B$9960,'INFORME AUTOMATICO'!B60) -> 3
B61: 1137 | C61: MATERIALES DE FERRETERÍA Y OTROS | D61: =COUNTIF('LISTA TOTAL PROVEEDORES'!$B$3:$B$9960,'INFORME AUTOMATICO'!B61) -> 28
B62: 1196 | C62: MOBILIARIO METÁLICO TIPO TRANSMILENIO | D62: =COUNTIF('LISTA TOTAL PROVEEDORES'!$B$3:$B$9960,'INFORME AUTOMATICO'!B62) -> 1
B63: 1126 | C63: MOBILIARIO URBANO Y DE PARQUES | D63: =COUNTIF('LISTA TOTAL PROVEEDORES'!$B$3:$B$9960,'INFORME AUTOMATICO'!B63) -> 5
B64: 1156 | C64: MUEBLES - EQUIPOS Y ELEMENTOS OFICINA | D64: =COUNTIF('LISTA TOTAL PROVEEDORES'!$B$3:$B$9960,'INFORME AUTOMATICO'!B64) -> 15
B65: 1205 | C65: NEOPRENOS | D65: =COUNTIF('LISTA TOTAL PROVEEDORES'!$B$3:$B$9960,'INFORME AUTOMATICO'!B65) -> 5
B66: 1129 | C66: PINTURAS | D66: =COUNTIF('LISTA TOTAL PROVEEDORES'!$B$3:$B$9960,'INFORME AUTOMATICO'!B66) -> 21
B67: 1188 | C67: PISOS (CONVENCIONALES Y TIPO TRANSMILENIO) | D67: =COUNTIF('LISTA TOTAL PROVEEDORES'!$B$3:$B$9960,'INFORME AUTOMATICO'!B67) -> 6
B68: 1120 | C68: POSTES Y ALUMBRADO PUBLICO | D68: =COUNTIF('LISTA TOTAL PROVEEDORES'!$B$3:$B$9960,'INFORME AUTOMATICO'!B68) -> 16
B69: 1117 | C69: POZOS Y COMPONENTES - ALCANTARILLADO | D69: =COUNTIF('LISTA TOTAL PROVEEDORES'!$B$3:$B$9960,'INFORME AUTOMATICO'!B69) -> 6
B70: 1201 | C70: PRODUCTOS QUÍMICOS - PESTICIDAS - FITOSANITARIOS | D70: =COUNTIF('LISTA TOTAL PROVEEDORES'!$B$3:$B$9960,'INFORME AUTOMATICO'!B70) -> 8
B71: 1192 | C71: PROYECTO ESPECÍFICO | D71: =COUNTIF('LISTA TOTAL PROVEEDORES'!$B$3:$B$9960,'INFORME AUTOMATICO'!B71) -> 2
B72: 1124 | C72: SELLANTES-IMPERMEABILIZANTES Y ADITIVOS CONCRETOS | D72: =COUNTIF('LISTA TOTAL PROVEEDORES'!$B$3:$B$9960,'INFORME AUTOMATICO'!B72) -> 15
B73: 1166 | C73: SEMAFORIZACION | D73: =COUNTIF('LISTA TOTAL PROVEEDORES'!$B$3:$B$9960,'INFORME AUTOMATICO'!B73) -> 5
B74: 1128 | C74: SEÑALES, BARRERAS Y DEMARCACIÓN VIAL | D74: =COUNTIF('LISTA TOTAL PROVEEDORES'!$B$3:$B$9960,'INFORME AUTOMATICO'!B74) -> 12
B75: 1197 | C75: SERV. DIAGNÓSTICO-INSPECCIÓN REDES HIDROSANITARIAS | D75: =COUNTIF('LISTA TOTAL PROVEEDORES'!$B$3:$B$9960,'INFORME AUTOMATICO'!B75) -> 1
B76: 1204 | C76: SISTEMAS CONTRA INCENDIO | D76: =COUNTIF('LISTA TOTAL PROVEEDORES'!$B$3:$B$9960,'INFORME AUTOMATICO'!B76) -> 7
B77: 1140 | C77: SOLDADURA Y PEGANTES | D77: =COUNTIF('LISTA TOTAL PROVEEDORES'!$B$3:$B$9960,'INFORME AUTOMATICO'!B77) -> 13
B78: 1118 | C78: SUMIDEROS Y COMPONENTES | D78: =COUNTIF('LISTA TOTAL PROVEEDORES'!$B$3:$B$9960,'INFORME AUTOMATICO'!B78) -> 1
B79: 182 | C79: TRANSPORTES DE MATERIALES Y ACARREOS | D79: =COUNTIF('LISTA TOTAL PROVEEDORES'!$B$3:$B$9960,'INFORME AUTOMATICO'!B79) -> 7
B80: 1154 | C80: TUBERÍA Y ACCESORIOS ACERO AL CARBÓN | D80: =COUNTIF('LISTA TOTAL PROVEEDORES'!$B$3:$B$9960,'INFORME AUTOMATICO'!B80) -> 2
B81: 1113 | C81: TUBERÍA Y ACCESORIOS CONDUIT GALVANIZADAS | D81: =COUNTIF('LISTA TOTAL PROVEEDORES'!$B$3:$B$9960,'INFORME AUTOMATICO'!B81) -> 7
B82: 1105 | C82: TUBERÍA Y ACCESORIOS DE CONCRETO | D82: =COUNTIF('LISTA TOTAL PROVEEDORES'!$B$3:$B$9960,'INFORME AUTOMATICO'!B82) -> 1
B83: 1109 | C83: TUBERÍA Y ACCESORIOS DE PVC PARA ALCANTARILLADO | D83: =COUNTIF('LISTA TOTAL PROVEEDORES'!$B$3:$B$9960,'INFORME AUTOMATICO'!B83) -> 10
B84: 1162 | C84: TUBERÍA Y ACCESORIOS EN ACERO | D84: =COUNTIF('LISTA TOTAL PROVEEDORES'!$B$3:$B$9960,'INFORME AUTOMATICO'!B84) -> 4
B85: 1159 | C85: TUBERIA Y ACCESORIOS EN ACERO GALVANIZADO | D85: =COUNTIF('LISTA TOTAL PROVEEDORES'!$B$3:$B$9960,'INFORME AUTOMATICO'!B85) -> 5
B86: 1153 | C86: TUBERÍA Y ACCESORIOS EN GRP | D86: =COUNTIF('LISTA TOTAL PROVEEDORES'!$B$3:$B$9960,'INFORME AUTOMATICO'!B86) -> 2
B87: 1193 | C87: TUBERÍA Y ACCESORIOS EN POLIETILENO | D87: =COUNTIF('LISTA TOTAL PROVEEDORES'!$B$3:$B$9960,'INFORME AUTOMATICO'!B87) -> 1
B88: 1107 | C88: TUBERIAS DE PVC - ACUEDUCTO | D88: =COUNTIF('LISTA TOTAL PROVEEDORES'!$B$3:$B$9960,'INFORME AUTOMATICO'!B88) -> 3

Sheet PT2 INFORME (hidden)
A1: PROVEEDORES | I1: NUEVOS PROVEEDORES | K1: =SUM(F3:F383) -> 152
A2: 2019-I | C2: 2019-II | I2: PROVEEDORES ANTIGUOS | K2: =+K3-K1 -> 229
A3: 4GA SAS Agregados de calidad | B3: 0 | C3: 4GA SAS Agregados de calidad | D3: =VLOOKUP(C3,$A$3:$B$355,2,FALSE) -> 0 | F3: =IFERROR(D3,1) -> 0 | I3: PROVEEDORES 2019-II | K3: =COUNTA(C3:C383) -> 381
A4: AB SEÑALIZACIÓN | B4: 0 | C4: AB SEÑALIZACIÓN | D4: =VLOOKUP(C4,$A$3:$B$355,2,FALSE) -> 0 | F4: =IFERROR(D4,1) -> 0
A5: ABC TRANSFORMADORES E INGENIERIA ELECTROMECÁNICA | B5: 0 | C5: ABC TRANSFORMADORES E INGENIERIA ELECTROMECÁNICA | D5: 0 | F5: 0
A6: ACCESA | B6: 0 | C6: ACABADOS ARQUITECTONICOS ROWCAST | F6: 1
A7: ACCESORIOS Y ACABADOS SAS | B7: 0 | C7: ACCESORIOS Y ACABADOS SAS | D7: 0 | F7: 0
A8: ACERAS & SARDINELES DE COLOMBIA | B8: 0 | C8: ACERAS & SARDINELES DE COLOMBIA | D8: 0 | F8: 0
A9: ACEROS PENSILVANIA S.A.S. | B9: 0 | C9: ACO SOLUCIONES DE DRENAJE SAS | D9: 0 | F9: 0
A10: ACO SOLUCIONES DE DRENAJE SAS | B10: 0 | C10: ACONSTRUCTORAS.COM | D10: 0 | F10: 0
A11: ACONSTRUCTORAS.COM | B11: 0 | C11: ACUATUBOS | F11: 1
A12: ADL DRYWALL | B12: 0 | C12: AGQ LABS | D12: 0 | F12: 0
A13: ADRENALINA SAFETY VIRTUAL STORE | B13: 0 | C13: AGREGADOS LA ROCA SAS | F13: 1
A14: AFM DOTACIONES | B14: 0 | C14: ALFA CO SAS | F14: 1
A15: AGQ LABS | B15: 0 | C15: ALFAGRES S.A. | D15: 0 | F15: 0
A16: AGREGADOS ARENAS Y GRAVAS SAS | B16: 0 | C16: ALMACÉN CANAIMA | D16: 0 | F16: 0
A17: AGREGADOS EL VINCULO SAS | B17: 0 | C17: ALMACENES ALKOSTO | D17: 0 | F17: 0
A18: AGREGADOS, ARENAS Y GRAVAS SAS | B18: 0 | C18: ALMACENES EXITO | D18: 0 | F18: 0
A19: AGROFÁCIL | B19: 0 | C19: ALMACENES FALABELLA | D19: 0 | F19: 0
A20: ALFAGRES S.A. | B20: 0 | C20: ALMACENES JUMBO | D20: 0 | F20: 0
A21: ALMACÉN CANAIMA | B21: 0 | C21: ALMACENES KTRONIX | D21: 0 | F21: 0
A22: ALMACEN ENTRE MAYORISTAS | B22: 0 | C22: ALMASA S.A. | D22: 0 | F22: 0
A23: ALMACEN INDUSTRIAL DE TORNILLOS LTDA | B23: 0 | C23: ALQUILER DE CARPAS BOGOTA | F23: 1
A24: ALMACEN SIGMONSHOP | B24: 0 | C24: ALQUILER DE COMPUTADORES S.A.S. | D24: 0 | F24: 0
A25: ALMACENES ALKOSTO | B25: 0 | C25: ALUMINIOS, ACEROS Y VIDRIOS S.A.S | F25: 1
A26: ALMACENES EXITO | B26: 0 | C26: AMVAR WORLD SAS | D26: 0 | F26: 0
A27: ALMACENES FALABELLA | B27: 0 | C27: ANALQUIM LTDA | D27: 0 | F27: 0
A28: ALMACENES JUMBO | B28: 0 | C28: ANDAMIOS ANDINO | F28: 1
A29: ALMACENES KTRONIX | B29: 0 | C29: ANDAMIOS R&S LTDA | D29: 0 | F29: 0
A30: ALMASA S.A. | B30: 0 | C30: ANDIMALLAS & ANDIMETALES | F30: 1
A31: ALQUILER DE COMPUTADORES S.A.S. | B31: 0 | C31: ANPATEC | D31: 0 | F31: 0
A32: AMVAR WORLD SAS | B32: 0 | C32: APOLO AVA | D32: 0 | F32: 0
A33: ANALQUIM LTDA | B33: 0 | C33: APSA SAS | D33: 0 | F33: 0
A34: ANDAMIOS R&S LTDA | B34: 0 | C34: ARCILLAS DE COLOMBIA S.A. | D34: 0 | F34: 0
A35: ANDES TV | B35: 0 | C35: ARCILLAS DE LA SABANA | D35: 0 | F35: 0
A36: ANPATEC | B36: 0 | C36: ARENAS Y AGREGADOS IVONE SAS | D36: 0 | F36: 0
A37: APOLO AVA | B37: 0 | C37: ARENAS Y TRITURADOS SANTA FE SAS | F37: 1
A38: APSA SAS | B38: 0 | C38: ARGOS | F38: 1
A39: ARCILLAS DE COLOMBIA S.A. | B39: 0 | C39: ARKA | F39: 1
A40: ARCILLAS DE LA SABANA | B40: 0 | C40: ARTEPIEDRA SAS | F40: 1
A41: ARENAS Y AGREGADOS IVONE SAS | B41: 0 | C41: Ascor | F41: 1
A42: ASOCRETO | B42: 0 | C42: ASMINCOL SAS | F42: 1
A43: ASTROEQUIPOS S.A. | B43: 0 | C43: ASOCRETO | D43: 0 | F43: 0
A44: ATLAS LIMITED SAS | B44: 0 | C44: ASTROEQUIPOS S.A. | D44: 0 | F44: 0
A45: AUROS | B45: 0 | C45: ATLAS LIMITED SAS | D45: 0 | F45: 0
A46: AUTO GRUAS LA SEXTA | B46: 0 | C46: AUROS | D46: 0 | F46: 0
A47: B.M.G | B47: 0 | C47: AUTO GRUAS LA SEXTA | D47: 0 | F47: 0
A48: B.M.G. TRANSPORTE DE AGUA POTABLE E. U. | B48: 0 | C48: AW ELECTRONICA SAS | F48: 1
A49: BAC Engineering Consultancy Group S.A.S. | B49: 0 | C49: B.M.G | D49: 0 | F49: 0
A50: Baños Portatiles SAS | B50: 0 | C50: B.M.G. TRANSPORTE DE AGUA POTABLE E. U. | D50: 0 | F50: 0
A51: BARNES DE COLOMBIA S.A. | B51: 0 | C51: BAC Engineering Consultancy Group S.A.S. | D51: 0 | F51: 0
A52: BCD SAS | B52: 0 | C52: BARNES DE COLOMBIA S.A. | D52: 0 | F52: 0
A53: BELLTEC HERRAMIENTAS Y EQUIPOS | B53: 0 | C53: BCD SAS | D53: 0 | F53: 0
A54: BELPLASTICOS | B54: 0 | C54: BEL PLASTICOS | F54: 1
A55: BIOFRACTAL ARQUITECTURA LIVIANA | B55: 0 | C55: BELTEC | F55: 1
A56: BIOQUILAB | B56: 0 | C56: Bermudez Ingeniería y Geotecnia SAS | F56: 1
A57: BORNA DESDE 1984 | B57: 0 | C57: BIGTRONICA | F57: 1
A58: CABLES Y GUAYAS ALGOFER | B58: 0 | C58: BIOFRACTAL ARQUITECTURA LIVIANA | D58: 0 | F58: 0
A59: CAELCA | B59: 0 | C59: BIOQUILAB | D59: 0 | F59: 0
A60: CANECAS DE RECICLAJE | B60: 0 | C60: BORNA | F60: 1
A61: CANECAS URBANAS | B61: 0 | C61: BORNA DESDE 1984 | D61: 0 | F61: 0
A62: CANECAS.COM | B62: 0 | C62: BRAILLE INTERNATIONAL | F62: 1
A63: CARPAS E INGENIERÍA | B63: 0 | C63: CABLES Y GUAYAS ALGOFER | D63: 0 | F63: 0
A64: CEB IMPORTADORA SAS | B64: 0 | C64: CACHICAMOWEB | F64: 1
A65: CEBA – PRODUCTOS Y SERVICIOS VETERINARIOS | B65: 0 | C65: CAELCA | D65: 0 | F65: 0
A66: CEI ELECTRICA INTERNACIONAL SAS | B66: 0 | C66: CAJAFORZADA.COM | F66: 1
A67: CELTA | B67: 0 | C67: CAMELECO SAS | F67: 1
A68: CEMENTOS ARGOS - AGREGADOS PETREOS | B68: 0 | C68: CARLOS JULIO SAMACÁ GACHARNÁ | D68: =VLOOKUP(C68,$A$3:$B$355,2,FALSE) ->  | F68: =IFERROR(D68,1) -> 1
A69: CEMEX DE COLOMBIA S.A. | B69: 0 | C69: CARPAS E INGENIERÍA | D69: 0 | F69: 0
A70: CENTELSA | B70: 0 | C70: CARPAS Y TARIMAS | F70: 1
A71: CENTRAL DE DOTACIONES LTDA | B71: 0 | C71: CARULLA | F71: 1
A72: CENTRAL DE SUMINISTROS - GSPATH | B72: 0 | C72: CEBA | F72: 1
A73: CENTRO COPIAS FELIPE | B73: 0 | C73: CELTA | D73: 0 | F73: 0
A74: CERAMICA ITALIA | B74: 0 | C74: CEMEX DE COLOMBIA S.A. | D74: 0 | F74: 0
A75: CHEMILAB | B75: 0 | C75: CENDIATRA | F75: 1
A76: CIDEMAT - U. Antioquia | B76: 0 | C76: CENTELSA | D76: 0 | F76: 0
A77: CIELO RASOS & DIVISIONES | B77: 0 | C77: CENTRAL DE DOTACIONES LTDA | D77: 0 | F77: 0
A78: CIELOS RASOS & DIVISIONES | B78: 0 | C78: CENTRIACEROS H A | F78: 1
A79: CIMA | B79: 0 | C79: CEPLASS | F79: 1
A80: COLEMPLAST LTDA | B80: 0 | C80: CHARLIXON ROBLES CRUZ | F80: 1
A81: COLPEATON SAS | B81: 0 | C81: CHEMILAB | D81: 0 | F81: 0
A82: COMERCIAL PAPELERA | B82: 0 | C82: CICLOMAT SAS | F82: 1
A83: COMERCIALIZADORA GOYJUL S.A.S | B83: 0 | C83: CIDEMAT - U. Antioquia | D83: 0 | F83: 0
A84: COMERCIALIZADORA GOYJUL SAS | B84: 0 | C84: CIELO RASOS & DIVISIONES | D84: 0 | F84: 0
A85: COMERCIALIZADORA IMPERIO | B85: 0 | C85: CIELOS RASOS & DIVISIONES | D85: 0 | F85: 0
A86: COMFAMA | B86: 0 | C86: CIELOS RASOS Y DIVISIONES & CIA. LTDA. | F86: 1
A87: COMPAÑÍA DE TRABAJOS URBANOS S.A.S | B87: 0 | C87: CIMA | D87: 0 | F87: 0
A88: COMPAÑÍA ELÉCTRICA LTDA | B88: 0 | C88: CINELECO.COM | F88: 1
A89: COMPAÑÍA MINERA NACIONAL LTDA | B89: 0 | C89: CIVALCO LTDA | F89: 1
A90: COMPAÑÍA PAPELERA NACIONAL ABASTECE.COM.CO | B90: 0 | C90: COLGRASS SAS | F90: 1
A91: CONCRELAB | B91: 0 | C91: COMERCIALIZADORA GOYJUL S.A.S | D91: 0 | F91: 0
A92: CONCRELAB SAS | B92: 0 | C92: COMERCIALIZADORA GOYJUL SAS | D92: 0 | F92: 0
A93: Concreservicios S.A.S. | B93: 0 | C93: COMERCIALIZADORA IMPERIO | D93: 0 | F93: 0
A94: CONCRESERVICIOS SAS | B94: 0 | C94: COMPAÑÍA DE CONSULTORÍA AMBIENTAL | F94: 1
A95: CONCRETCOL CONCRETO ESTAMPADO DE COLOMBIA | B95: 0 | C95: COMPAÑÍA ELÉCTRICA LTDA | D95: 0 | F95: 0
A96: CONCRETERA TREMIX SAS | B96: 0 | C96: COMSECOL SAS | F96: 1
A97: CONCRETOS ARGOS S.A. | B97: 0 | C97: CONCRELAB | D97: 0 | F97: 0
A98: CORONA | B98: 0 | C98: CONCRESCOL LTDA. | F98: 1
A99: CORPACERO | B99: 0 | C99: Concreservicios S.A.S. | D99: 0 | F99: 0
A100: CORPORACIÓN AUTÓNOMA REGIONAL DE CUNDINAMARCA - CAR | B100: 0 | C100: CONCRETERA TREMIX SAS | D100: 0 | F100: 0
A101: CORTEACEROS S.A.S | B101: 0 | C101: CONCRETO ESTAMPADO DE COLOMBIA | F101: 1
A102: COVAL | B102: 0 | C102: CONCRETOS ARGOS S.A. | D102: 0 | F102: 0
A103: COVAL COMERCIAL S. A. | B103: 0 | C103: CONDUSTRIAL | F103: 1
A104: CREAR SEÑALIZACION | B104: 0 | C104: CONSTRITURAR SAS | F104: 1
A105: CRUZ ROJA COLONBIANA | B105: 0 | C105: CONSTRUGROUP VIAL S.A.S | F105: 1
A106: CU CONECTORES | B106: 0 | C106: CONSTRUMATERIALES | F106: 1
A107: DECORCERÁMICA | B107: 0 | C107: COPCO INGENIERIA | F107: 1
A108: DEKO | B108: 0 | C108: CORONA | D108: 0 | F108: 0
A109: DISATEC | B109: 0 | C109: CORPACERO | D109: 0 | F109: 0
A110: DISELEC LTDA | B110: 0 | C110: CORPORACIÓN AUTÓNOMA REGIONAL DE CUNDINAMARCA - CAR | D110: 0 | F110: 0
A111: DISTRIBUCIONES IMAGEN BOGOTÁ | B111: 0 | C111: Corporación para la investigación de la Corrosion | F111: 1
A112: DISTRIBUCIONES Y DOTACIONES R.A.C | B112: 0 | C112: Corporación para la investigación de la Corrosion (Universidad UIS) | F112: 1
A113: DISTRIBUIDORA TODO ASEO | B113: 0 | C113: CORTEACEROS S.A.S | D113: 0 | F113: 0
A114: DOBLE A INGENIERIA S.A. | B114: 0 | C114: COVAL | D114: 0 | F114: 0
A115: DOTA FUERTE | B115: 0 | C115: COVAL COMERCIAL S. A. | D115: 0 | F115: 0
A116: DOTACIONES CALDERON SAS | B116: 0 | C116: CREAR SEÑALIZACION | D116: 0 | F116: 0
A117: DOTACIONES ONLINE | B117: 0 | C117: CRUZ ROJA COLONBIANA | D117: 0 | F117: 0
A118: DROMOS PAVIMENTOS S.A. | B118: 0 | C118: CU CONECTORES | D118: 0 | F118: 0
A119: DURMAN COLOMBIA S.A. | B119: 0 | C119: DECOGOLD ESPACIOS, S.A.S. | F119: 1
A120: DYA INSUMOS FERRETEROS SAS | B120: 0 | C120: DEPOSITO DE MADERAS VILLA BOYACA | F120: 1
A121: DYCON MATERIALES ELÉCTRICOS | B121: 0 | C121: DHEGEL S.A.S. | F121: 1
A122: DYNATEST COLOMBIA S.A.S. | B122: 0 | C122: DIESCON | F122: 1
A123: EASY | B123: 0 | C123: DIMACRO EMC LTDA | F123: 1
A124: ECHEVERRY ENSAYOS SAS | B124: 0 | C124: DIMCO INGENIEROS | F124: 1
A125: ECHEVERRY INGENIERIA Y ENSAYOS SAS | B125: 0 | C125: DIMCO INGENIEROS LTDA | F125: 1
A126: ECONOMIZADORES.NET | B126: 0 | C126: DISEPILMEGAPRESS | F126: 1
A127: ECOPRADOS SOLUCIONES AMBIENTALES | B127: 0 | C127: DISTRIBUCIONES IMAGEN BOGOTÁ | D127: 0 | F127: 0
A128: EDELCO | B128: 0 | C128: DISTRIBUIDORA EYCOS | F128: 1
A129: EIMPSA | B129: 0 | C129: DISTRIBUIDORA HEIMDAL SAS | F129: 1
A130: EL CONDOR PREFABRICADOS | B130: 0 | C130: DISTRIBUIDORA TODO ASEO | D130: 0 | F130: 0
A131: EL CONDOR PREFABRICADOS S.A.S. | B131: 0 | C131: DOBLE A INGENIERIA S.A. | D131: 0 | F131: 0
A132: ELECTRICOS JS | B132: 0 | C132: DOTACIONES CALDERON SAS | D132: =VLOOKUP(C132,$A$3:$B$355,2,FALSE) -> 0 | F132: =IFERROR(D132,1) -> 0
A133: ELECTROMANFER | B133: 0 | C133: DOTACIONES ONLINE | D133: 0 | F133: 0
A134: ELECTROPINTAMOS | B134: 0 | C134: DROMOS PAVIMENTOS S.A. | D134: 0 | F134: 0
A135: ELEMENTOS PREFABRICADOS DE CONCRETO EL PRECON | B135: 0 | C135: DURMAN COLOMBIA S.A. | D135: 0 | F135: 0
A136: EMPRESA DE ACUEDUCTO Y ALCANTARILLADO DE BOGOTÁ | B136: 0 | C136: DYCON MATERIALES ELÉCTRICOS | D136: 0 | F136: 0
A137: ENZIPAN LABORATORIOS S.A. | B137: 0 | C137: DYNATEST COLOMBIA S.A.S. | D137: 0 | F137: 0
A138: EQUINORTE | B138: 0 | C138: EASY | D138: 0 | F138: 0
A139: ESCOBAR Y MARTÍNEZ SAS | B139: 0 | C139: ECHEVERRY ENSAYOS SAS | D139: 0 | F139: 0
A140: ESCUELA COLOMBIANA DE INGENIERIA | B140: 0 | C140: ECHEVERRY INGENIERIA Y ENSAYOS SAS | D140: 0 | F140: 0
A141: ESCUELA COLOMBIANA DE INGENIERIA JULIO GARAVITO | B141: 0 | C141: ECOLSEN | F141: 1
A142: ESTAHL INGENIERÍA SAS | B142: 0 | C142: ECONOMIZADORES.NET | D142: 0 | F142: 0
A143: EZ STREET ASFALTO | B143: 0 | C143: ECOPRADOS SOLUCIONES AMBIENTALES | D143: 0 | F143: 0
A144: FABRIURBANOS | B144: 0 | C144: EDELCO | D144: 0 | F144: 0
A145: FANNY I. TEQUIA Y CIA SAS | B145: 0 | C145: EL CONDOR PREFABRICADOS | D145: 0 | F145: 0
A146: FERCON | B146: 0 | C146: ELECTROHIDRAULICAS S.A. | F146: 1
A147: FERREMETÁLICAS COLOMBIA | B147: 0 | C147: ELECTROPINTAMOS | D147: 0 | F147: 0
A148: FERRETERIA MEGACOL | B148: 0 | C148: EMPRESA DE ACUEDUCTO Y ALCANTARILLADO DE BOGOTÁ | D148: 0 | F148: 0
A149: FERRETERIA RHINO | B149: 0 | C149: ENZIPAN LABORATORIOS S.A. | D149: 0 | F149: 0
A150: FERRETERÍA SAMIR | B150: 0 | C150: EQUIPOS Y CONTROLES INDUSTRIALES SA - ECI | F150: 1
A151: FERRETERIA TÉCNICA | B151: 0 | C151: ESCOBAR Y MARTÍNEZ SAS | D151: 0 | F151: 0
A152: FERRETERIA TÉCNICA | B152: 0 | C152: ESCUELA COLOMBIANA DE INGENIERIA | D152: 0 | F152: 0
A153: FERRICENTRO | B153: 0 | C153: ESCUELA COLOMBIANA DE INGENIERIA JULIO GARAVITO | D153: 0 | F153: 0
A154: FERRICENTROS S.A. | B154: 0 | C154: ESTAHL INGENIERÍA SAS | D154: 0 | F154: 0
A155: FIGMALLAS SAS | B155: 0 | C155: EZ STREET ASFALTO | D155: 0 | F155: 0
A156: FIGURADOS Y MALLAS | B156: 0 | C156: FABRIURBANOS | D156: 0 | F156: 0
A157: FORMAS DE CONCRETO LTDA | B157: 0 | C157: FANNY I. TEQUIA Y CIA SAS | D157: 0 | F157: 0
A158: Gama Dotaciones | B158: 0 | C158: FELIX TORRES Y CIA | F158: 1
A159: GAVAR. Soluciones en recubrimientos | B159: 0 | C159: FELIX TORRES Y CIA | F159: 1
A160: GECAB COLOMBIA | B160: 0 | C160: FENUSA | F160: 1
A161: GECOLSA - CAT RENTAL STORE | B161: 0 | C161: FERCON | D161: 0 | F161: 0
A162: GEOMATRIX Soluciones de Alta Tenacidad | B162: 0 | C162: FERREACUEDUCTOS | F162: 1
A163: GEOSISTEMAS PAVCO | B163: 0 | C163: FERRESTAR DE COLOMBIA | F163: 1
A164: GERFOR | B164: 0 | C164: FERRETERÍA CANAIMA | F164: 1
A165: GIM INGENIERIA ELÉCTRICA LTDA | B165: 0 | C165: FERRETERIA MEGACOL | D165: 0 | F165: 0
A166: GRABADO Y CORTE LASER BOGOTA | B166: 0 | C166: Ferreteria Rincon & Cia. S.A (Ferrinco) | F166: 1
A167: GRAVILLERA ALBANIA S.A. | B167: 0 | C167: FERRETERÍA SAMIR | D167: 0 | F167: 0
A168: GRECO | B168: 0 | C168: FERRICENTRO | D168: 0 | F168: 0
A169: GRIVAL | B169: 0 | C169: FERRISTORE | F169: 1
A170: GRIVAL SA | B170: 0 | C170: FIBRIT S.A. PREFABRICADOS EN CONCRETO Y CEMENTO | F170: 1
A171: GRUAS, EQUIPOS Y TRANSPORTES FENIX SAS | B171: 0 | C171: FIGUCENTRO LTDA | F171: 1
A172: GRUPO MASHALI | B172: 0 | C172: FIGURADOS Y MALLAS | D172: 0 | F172: 0
A173: GRUPO VIKINGO | B173: 0 | C173: FORMAS ELECTRICAS | F173: 1
A174: HACEB | B174: 0 | C174: G&S SOLUCIONES DE INGENIERÍA | F174: 1
A175: HB SADELEC Estructuras Metálicas | B175: 0 | C175: GAMA DOTACIONES | D175: 0 | F175: 0
A176: HELBERT Y CIA | B176: 0 | C176: GECOLSA - CAT RENTAL STORE | D176: 0 | F176: 0
A177: HERLOZ SUMINISTROS | B177: 0 | C177: GEOMATRIX Soluciones de Alta Tenacidad | D177: 0 | F177: 0
A178: HERNANDO OROZCO Y CIA | B178: 0 | C178: GEOSINTÉTICOS SAS | F178: 1
A179: HIDROEQUIPO | B179: 0 | C179: GERFOR | D179: 0 | F179: 0
A180: HIERROS Y CONCRETOS S.A.S. | B180: 0 | C180: GRABADO Y CORTE LASER BOGOTA | D180: 0 | F180: 0
A181: HOME ELEMENTS | B181: 0 | C181: GRAVILLERA ALBANIA S.A. | D181: 0 | F181: 0
A182: HOMECENTER | B182: 0 | C182: GRECO | D182: 0 | F182: 0
A183: HOMESENTRY | B183: 0 | C183: GREENHECK | F183: 1
A184: HORMIGON ANDINO S.A. | B184: 0 | C184: GRICOL | F184: 1
A185: ICIPC | B185: 0 | C185: GRUPO VIKINGO | D185: 0 | F185: 0
A186: IDEAS PIXEL | B186: 0 | C186: G-VIAL - Señalización y Seguridad Vial | F186: 1
A187: IE INTERNACIONAL DE ELÉCTRICOS | B187: 0 | C187: HACEB | D187: 0 | F187: 0
A188: IMPRIMASCOL | B188: 0 | C188: HB SADELEC Estructuras Metálicas | D188: 0 | F188: 0
A189: INCOLMALLAS S.A. | B189: 0 | C189: HELBERT Y CIA | D189: 0 | F189: 0
A190: INCOMINERIA S.A.S. | B190: 0 | C190: HERLOZ SUMINISTROS | D190: 0 | F190: 0
A191: INDUSTRIA MILITAR - INDUMIL | B191: 0 | C191: HERMA SOLUCIONES | F191: 1
A192: INDUSTRIA MILITAR – INDUMIL | B192: 0 | C192: HIDROEQUIPO | D192: 0 | F192: 0
A193: INETEL | B193: 0 | C193: HIDROESFERA SA | F193: 1
A194: INGENIERÍA AMBIENTAL Y SANITARIA DE COLOMBIA - IASCOL S.A.S | B194: 0 | C194: HIDROPROTECCIÓN DE COLOMBIA | F194: 1
A195: INGENIERIA DE ESTRUCTURAS Y MATERIALES LTDA. INGEYMA LTDA | B195: 0 | C195: HIERROS Y CONCRETOS S.A.S. | D195: 0 | F195: 0
A196: INGENIERIA Y SEÑALIZACION SEÑALVIAL SAS | B196: 0 | C196: HOME ELEMENTS | D196: =VLOOKUP(C196,$A$3:$B$355,2,FALSE) -> 0 | F196: =IFERROR(D196,1) -> 0
A197: INGENIEROS GF SAS | B197: 0 | C197: HOMECENTER | D197: 0 | F197: 0
A198: INGEYMA | B198: 0 | C198: HORMIGON ANDINO | F198: 1
A199: INSERCOR SAS | B199: 0 | C199: I+D Gestion | F199: 1
A200: INSPEQ INGENIERIA LTDA | B200: 0 | C200: ICEIN INGENIEROS CONSTRUCTORES SAS | F200: 1
... 183 more rows

Sheet grupos (hidden)
A1: Grupos Nuevos - BASE CONSTRUPLAN 2019 - I
A2: fecha de verificacion | B2: 2019-06-28
A4: Codigo | B4: Nombre | C4: UM | D4: Precio | F4: Fecha | H4: Proveedor | I4: CREAR LOS QUE NO EXISTEN | J4: BORRAR PQ YA NO EXISTE
A5: 1114 | B5: ACCESORIOS HD PARA REDES DE ACUEDUCTO | I5: =VLOOKUP(A5,'BD VIEJA'!$B$3:$B$10000,1,FALSE) -> 1114 | J5: =VLOOKUP(A5,'LISTA TOTAL PROVEEDORES'!$B$3:$B$9961,1,FALSE) -> 1114
A6: 1161 | B6: ACTIVIDADES A TODO COSTO | I6: =VLOOKUP(A6,'BD VIEJA'!$B$3:$B$10000,1,FALSE) -> 1161 | J6: =VLOOKUP(A6,'LISTA TOTAL PROVEEDORES'!$B$3:$B$9961,1,FALSE) -> 1161
A7: 1102 | B7: AGREGADOS PÉTREOS, BASES Y SUBBASES GRANULARES | I7: =VLOOKUP(A7,'BD VIEJA'!$B$3:$B$10000,1,FALSE) -> 1102 | J7: =VLOOKUP(A7,'LISTA TOTAL PROVEEDORES'!$B$3:$B$9961,1,FALSE) -> 1102
A8: 1157 | B8: ALQUILER | I8: =VLOOKUP(A8,'BD VIEJA'!$B$3:$B$10000,1,FALSE) ->  | J8: =VLOOKUP(A8,'LISTA TOTAL PROVEEDORES'!$B$3:$B$9961,1,FALSE) -> 
A9: 1147 | B9: ARBOLES-GRAMAS-VEGETACIÓN Y PLANTACIÓN PAISAJÍSTIC | I9: =VLOOKUP(A9,'BD VIEJA'!$B$3:$B$10000,1,FALSE) -> 1147 | J9: =VLOOKUP(A9,'LISTA TOTAL PROVEEDORES'!$B$3:$B$9961,1,FALSE) -> 1147
A10: 1127 | B10: BORDILLOS Y LOSETAS | I10: =VLOOKUP(A10,'BD VIEJA'!$B$3:$B$10000,1,FALSE) -> 1127 | J10: =VLOOKUP(A10,'LISTA TOTAL PROVEEDORES'!$B$3:$B$9961,1,FALSE) -> 1127
A11: 1121 | B11: CABLES Y ACCESORIOS ELECTRICOS | I11: =VLOOKUP(A11,'BD VIEJA'!$B$3:$B$10000,1,FALSE) -> 1121 | J11: =VLOOKUP(A11,'LISTA TOTAL PROVEEDORES'!$B$3:$B$9961,1,FALSE) -> 1121
A12: 1195 | B12: CARPINTERÍA METÁLICA | I12: =VLOOKUP(A12,'BD VIEJA'!$B$3:$B$10000,1,FALSE) -> 1195 | J12: =VLOOKUP(A12,'LISTA TOTAL PROVEEDORES'!$B$3:$B$9961,1,FALSE) -> 1195
A13: 1130 | B13: COMBUSTIBLES Y LUBRICANTES | I13: =VLOOKUP(A13,'BD VIEJA'!$B$3:$B$10000,1,FALSE) -> 1130 | J13: =VLOOKUP(A13,'LISTA TOTAL PROVEEDORES'!$B$3:$B$9961,1,FALSE) -> 1130
A14: 1103 | B14: CONCRETOS Y MORTEROS PREMEZCLADOS | I14: =VLOOKUP(A14,'BD VIEJA'!$B$3:$B$10000,1,FALSE) -> 1103 | J14: =VLOOKUP(A14,'LISTA TOTAL PROVEEDORES'!$B$3:$B$9961,1,FALSE) -> 1103
A15: 1168 | B15: CONSULTORIA | I15: =VLOOKUP(A15,'BD VIEJA'!$B$3:$B$10000,1,FALSE) -> 1168 | J15: =VLOOKUP(A15,'LISTA TOTAL PROVEEDORES'!$B$3:$B$9961,1,FALSE) -> 1168
A16: 1200 | B16: CUBIERTA - CIELO RASO - CORTASOL TIPO TRANSMILENIO | I16: =VLOOKUP(A16,'BD VIEJA'!$B$3:$B$10000,1,FALSE) -> 1200 | J16: =VLOOKUP(A16,'LISTA TOTAL PROVEEDORES'!$B$3:$B$9961,1,FALSE) -> 1200
A17: 1194 | B17: DESMONTE Y TRASLADOS DE ELEMENTOS METÁLICOS | I17: =VLOOKUP(A17,'BD VIEJA'!$B$3:$B$10000,1,FALSE) -> 1194 | J17: =VLOOKUP(A17,'LISTA TOTAL PROVEEDORES'!$B$3:$B$9961,1,FALSE) -> 1194
A18: 1148 | B18: DOTACIÓN (EPP) Y EQUIP. Y HERRAM. SEGUR. INDUSTR. | I18: =VLOOKUP(A18,'BD VIEJA'!$B$3:$B$10000,1,FALSE) -> 1148 | J18: =VLOOKUP(A18,'LISTA TOTAL PROVEEDORES'!$B$3:$B$9961,1,FALSE) -> 1148
A19: 1111 | B19: DUCTOS PVC - ELECTRICOS/TELEFONICOS TIPO TDP-DB-EB | I19: =VLOOKUP(A19,'BD VIEJA'!$B$3:$B$10000,1,FALSE) -> 1111 | J19: =VLOOKUP(A19,'LISTA TOTAL PROVEEDORES'!$B$3:$B$9961,1,FALSE) -> 1111
A20: 1104 | B20: EMULSIONES Y MEZCLAS ASFÁLTICAS | I20: =VLOOKUP(A20,'BD VIEJA'!$B$3:$B$10000,1,FALSE) -> 1104 | J20: =VLOOKUP(A20,'LISTA TOTAL PROVEEDORES'!$B$3:$B$9961,1,FALSE) -> 1104
A21: 1223 | B21: ENSAYO DE CAMPO - DIAGNOSTICO DE PAVIMENTOS | I21: =VLOOKUP(A21,'BD VIEJA'!$B$3:$B$10000,1,FALSE) ->  | J21: =VLOOKUP(A21,'LISTA TOTAL PROVEEDORES'!$B$3:$B$9961,1,FALSE) -> 1223
A22: 1225 | B22: ENSAYO DE CAMPO - SOLDADURAS | I22: =VLOOKUP(A22,'BD VIEJA'!$B$3:$B$10000,1,FALSE) ->  | J22: =VLOOKUP(A22,'LISTA TOTAL PROVEEDORES'!$B$3:$B$9961,1,FALSE) -> 
A23: 1224 | B23: ENSAYO DE CAMPO -RECUBRIMIENTO ESTRUCTURA METÁLICA | I23: =VLOOKUP(A23,'BD VIEJA'!$B$3:$B$10000,1,FALSE) ->  | J23: =VLOOKUP(A23,'LISTA TOTAL PROVEEDORES'!$B$3:$B$9961,1,FALSE) -> 1224
A24: 1172 | B24: ENSAYO DIAGNOSTICO ELEMENTO ESTRUCTURALES CONCRETO | I24: =VLOOKUP(A24,'BD VIEJA'!$B$3:$B$10000,1,FALSE) ->  | J24: =VLOOKUP(A24,'LISTA TOTAL PROVEEDORES'!$B$3:$B$9961,1,FALSE) -> 1172
A25: 1211 | B25: ENSAYO LABORATORIO - ABRASIVO | I25: =VLOOKUP(A25,'BD VIEJA'!$B$3:$B$10000,1,FALSE) ->  | J25: =VLOOKUP(A25,'LISTA TOTAL PROVEEDORES'!$B$3:$B$9961,1,FALSE) -> 1211
A26: 1213 | B26: ENSAYO LABORATORIO - ACERO ESTRUCTURAL | I26: =VLOOKUP(A26,'BD VIEJA'!$B$3:$B$10000,1,FALSE) ->  | J26: =VLOOKUP(A26,'LISTA TOTAL PROVEEDORES'!$B$3:$B$9961,1,FALSE) -> 1213
A27: 1212 | B27: ENSAYO LABORATORIO - ACERO REFUERZO Y PRETENSADO | I27: =VLOOKUP(A27,'BD VIEJA'!$B$3:$B$10000,1,FALSE) ->  | J27: =VLOOKUP(A27,'LISTA TOTAL PROVEEDORES'!$B$3:$B$9961,1,FALSE) -> 1212
A28: 1171 | B28: ENSAYO LABORATORIO - AGREGADOS PETREOS | I28: =VLOOKUP(A28,'BD VIEJA'!$B$3:$B$10000,1,FALSE) ->  | J28: =VLOOKUP(A28,'LISTA TOTAL PROVEEDORES'!$B$3:$B$9961,1,FALSE) -> 1171
A29: 1183 | B29: ENSAYO LABORATORIO - AIRE | I29: =VLOOKUP(A29,'BD VIEJA'!$B$3:$B$10000,1,FALSE) ->  | J29: =VLOOKUP(A29,'LISTA TOTAL PROVEEDORES'!$B$3:$B$9961,1,FALSE) -> 1183
A30: 1214 | B30: ENSAYO LABORATORIO - ALUMINIO | I30: =VLOOKUP(A30,'BD VIEJA'!$B$3:$B$10000,1,FALSE) ->  | J30: =VLOOKUP(A30,'LISTA TOTAL PROVEEDORES'!$B$3:$B$9961,1,FALSE) -> 1214
A31: 1177 | B31: ENSAYO LABORATORIO - ANÁLISIS DE AGUAS | I31: =VLOOKUP(A31,'BD VIEJA'!$B$3:$B$10000,1,FALSE) ->  | J31: =VLOOKUP(A31,'LISTA TOTAL PROVEEDORES'!$B$3:$B$9961,1,FALSE) -> 1177
A32: 1169 | B32: ENSAYO LABORATORIO - CEMENTOS HIDRÁULICOS | I32: =VLOOKUP(A32,'BD VIEJA'!$B$3:$B$10000,1,FALSE) ->  | J32: =VLOOKUP(A32,'LISTA TOTAL PROVEEDORES'!$B$3:$B$9961,1,FALSE) -> 1169
A33: 1181 | B33: ENSAYO LABORATORIO - COMPONENTE DE ESPACIO PÚBLICO | I33: =VLOOKUP(A33,'BD VIEJA'!$B$3:$B$10000,1,FALSE) ->  | J33: =VLOOKUP(A33,'LISTA TOTAL PROVEEDORES'!$B$3:$B$9961,1,FALSE) -> 1181
A34: 1215 | B34: ENSAYO LABORATORIO - CONCRETO PRETENSADO | I34: =VLOOKUP(A34,'BD VIEJA'!$B$3:$B$10000,1,FALSE) ->  | J34: =VLOOKUP(A34,'LISTA TOTAL PROVEEDORES'!$B$3:$B$9961,1,FALSE) -> 1215
A35: 1174 | B35: ENSAYO LABORATORIO - CONCRETOS HIDRÁULICOS | I35: =VLOOKUP(A35,'BD VIEJA'!$B$3:$B$10000,1,FALSE) ->  | J35: =VLOOKUP(A35,'LISTA TOTAL PROVEEDORES'!$B$3:$B$9961,1,FALSE) -> 1174
A36: 1173 | B36: ENSAYO LABORATORIO - DIAGNOSTICO DE PAVIMENTOS | I36: =VLOOKUP(A36,'BD VIEJA'!$B$3:$B$10000,1,FALSE) ->  | J36: =VLOOKUP(A36,'LISTA TOTAL PROVEEDORES'!$B$3:$B$9961,1,FALSE) -> 
A37: 1182 | B37: ENSAYO LABORATORIO - GEOTEXTILES | I37: =VLOOKUP(A37,'BD VIEJA'!$B$3:$B$10000,1,FALSE) ->  | J37: =VLOOKUP(A37,'LISTA TOTAL PROVEEDORES'!$B$3:$B$9961,1,FALSE) -> 1182
A38: 1216 | B38: ENSAYO LABORATORIO - LUBRICANTE ADHESIVO | I38: =VLOOKUP(A38,'BD VIEJA'!$B$3:$B$10000,1,FALSE) ->  | J38: =VLOOKUP(A38,'LISTA TOTAL PROVEEDORES'!$B$3:$B$9961,1,FALSE) -> 
A39: 1175 | B39: ENSAYO LABORATORIO - MATERIALES BITUMINOSOS | I39: =VLOOKUP(A39,'BD VIEJA'!$B$3:$B$10000,1,FALSE) ->  | J39: =VLOOKUP(A39,'LISTA TOTAL PROVEEDORES'!$B$3:$B$9961,1,FALSE) -> 1175
A40: 1176 | B40: ENSAYO LABORATORIO - MEZCLAS ASFALTICAS | I40: =VLOOKUP(A40,'BD VIEJA'!$B$3:$B$10000,1,FALSE) ->  | J40: =VLOOKUP(A40,'LISTA TOTAL PROVEEDORES'!$B$3:$B$9961,1,FALSE) -> 1176
A41: 1217 | B41: ENSAYO LABORATORIO - MORTERO | I41: =VLOOKUP(A41,'BD VIEJA'!$B$3:$B$10000,1,FALSE) ->  | J41: =VLOOKUP(A41,'LISTA TOTAL PROVEEDORES'!$B$3:$B$9961,1,FALSE) -> 
A42: 1218 | B42: ENSAYO LABORATORIO - NEOPRENO | I42: =VLOOKUP(A42,'BD VIEJA'!$B$3:$B$10000,1,FALSE) ->  | J42: =VLOOKUP(A42,'LISTA TOTAL PROVEEDORES'!$B$3:$B$9961,1,FALSE) -> 1218
A43: 1207 | B43: ENSAYO LABORATORIO - PERFORACIONES | I43: =VLOOKUP(A43,'BD VIEJA'!$B$3:$B$10000,1,FALSE) ->  | J43: =VLOOKUP(A43,'LISTA TOTAL PROVEEDORES'!$B$3:$B$9961,1,FALSE) -> 1207
A44: 1219 | B44: ENSAYO LABORATORIO - PERNOS | I44: =VLOOKUP(A44,'BD VIEJA'!$B$3:$B$10000,1,FALSE) ->  | J44: =VLOOKUP(A44,'LISTA TOTAL PROVEEDORES'!$B$3:$B$9961,1,FALSE) -> 1219
A45: 1220 | B45: ENSAYO LABORATORIO - PINTURA | I45: =VLOOKUP(A45,'BD VIEJA'!$B$3:$B$10000,1,FALSE) ->  | J45: =VLOOKUP(A45,'LISTA TOTAL PROVEEDORES'!$B$3:$B$9961,1,FALSE) -> 1220
A46: 1221 | B46: ENSAYO LABORATORIO - PLÁSTICO RÍGIDO | I46: =VLOOKUP(A46,'BD VIEJA'!$B$3:$B$10000,1,FALSE) ->  | J46: =VLOOKUP(A46,'LISTA TOTAL PROVEEDORES'!$B$3:$B$9961,1,FALSE) -> 1221
A47: 1222 | B47: ENSAYO LABORATORIO - RESINA | I47: =VLOOKUP(A47,'BD VIEJA'!$B$3:$B$10000,1,FALSE) ->  | J47: =VLOOKUP(A47,'LISTA TOTAL PROVEEDORES'!$B$3:$B$9961,1,FALSE) -> 
A48: 1178 | B48: ENSAYO LABORATORIO - ROCA | I48: =VLOOKUP(A48,'BD VIEJA'!$B$3:$B$10000,1,FALSE) ->  | J48: =VLOOKUP(A48,'LISTA TOTAL PROVEEDORES'!$B$3:$B$9961,1,FALSE) -> 1178
A49: 1203 | B49: ENSAYO LABORATORIO - RUIDO | I49: =VLOOKUP(A49,'BD VIEJA'!$B$3:$B$10000,1,FALSE) ->  | J49: =VLOOKUP(A49,'LISTA TOTAL PROVEEDORES'!$B$3:$B$9961,1,FALSE) -> 1203
A50: 1170 | B50: ENSAYO LABORATORIO - SUELOS | I50: =VLOOKUP(A50,'BD VIEJA'!$B$3:$B$10000,1,FALSE) ->  | J50: =VLOOKUP(A50,'LISTA TOTAL PROVEEDORES'!$B$3:$B$9961,1,FALSE) -> 1170
A51: 1116 | B51: EQUIPO LIVIANO Y HERRAMIENTAS | I51: =VLOOKUP(A51,'BD VIEJA'!$B$3:$B$10000,1,FALSE) -> 1116 | J51: =VLOOKUP(A51,'LISTA TOTAL PROVEEDORES'!$B$3:$B$9961,1,FALSE) -> 1116
A52: 1115 | B52: EQUIPO PESADO | I52: =VLOOKUP(A52,'BD VIEJA'!$B$3:$B$10000,1,FALSE) -> 1115 | J52: =VLOOKUP(A52,'LISTA TOTAL PROVEEDORES'!$B$3:$B$9961,1,FALSE) -> 1115
A53: 1146 | B53: ESTRUCTURAS EN ACERO (CONVENCIONALES TIPO TRANSM) | I53: =VLOOKUP(A53,'BD VIEJA'!$B$3:$B$10000,1,FALSE) -> 1146 | J53: =VLOOKUP(A53,'LISTA TOTAL PROVEEDORES'!$B$3:$B$9961,1,FALSE) -> 1146
A54: 1158 | B54: EXÁMENES MÉDICOS | I54: =VLOOKUP(A54,'BD VIEJA'!$B$3:$B$10000,1,FALSE) -> 1158 | J54: =VLOOKUP(A54,'LISTA TOTAL PROVEEDORES'!$B$3:$B$9961,1,FALSE) -> 1158
A55: 1134 | B55: FORMALETAS, ANDAMIOS Y ACCESORIOS | I55: =VLOOKUP(A55,'BD VIEJA'!$B$3:$B$10000,1,FALSE) -> 1134 | J55: =VLOOKUP(A55,'LISTA TOTAL PROVEEDORES'!$B$3:$B$9961,1,FALSE) -> 1134
A56: 1123 | B56: GEOSINTETICOS | I56: =VLOOKUP(A56,'BD VIEJA'!$B$3:$B$10000,1,FALSE) -> 1123 | J56: =VLOOKUP(A56,'LISTA TOTAL PROVEEDORES'!$B$3:$B$9961,1,FALSE) -> 1123
A57: 1198 | B57: GESTIÓN SOCIAL ELEMENTOS DE IDENTIFICACIÓN EN OBRA | I57: =VLOOKUP(A57,'BD VIEJA'!$B$3:$B$10000,1,FALSE) ->  | J57: =VLOOKUP(A57,'LISTA TOTAL PROVEEDORES'!$B$3:$B$9961,1,FALSE) -> 1198
A58: 1167 | B58: GESTIÓN SOCIAL ELEMENTOS DE PUBLICIDAD | I58: =VLOOKUP(A58,'BD VIEJA'!$B$3:$B$10000,1,FALSE) -> 1167 | J58: =VLOOKUP(A58,'LISTA TOTAL PROVEEDORES'!$B$3:$B$9961,1,FALSE) -> 1167
A59: 1125 | B59: LADRILLOS, BLOQUES Y ADOQUINES | I59: =VLOOKUP(A59,'BD VIEJA'!$B$3:$B$10000,1,FALSE) -> 1125 | J59: =VLOOKUP(A59,'LISTA TOTAL PROVEEDORES'!$B$3:$B$9961,1,FALSE) -> 1125
A60: 1208 | B60: LEVANTAMIENTO TOPOGRÁFICO | I60: =VLOOKUP(A60,'BD VIEJA'!$B$3:$B$10000,1,FALSE) ->  | J60: =VLOOKUP(A60,'LISTA TOTAL PROVEEDORES'!$B$3:$B$9961,1,FALSE) -> 1208
A61: 1133 | B61: MADERAS | I61: =VLOOKUP(A61,'BD VIEJA'!$B$3:$B$10000,1,FALSE) -> 1133 | J61: =VLOOKUP(A61,'LISTA TOTAL PROVEEDORES'!$B$3:$B$9961,1,FALSE) -> 1133
A62: 1122 | B62: MALLAS Y ACEROS PARA REFUERZO | I62: =VLOOKUP(A62,'BD VIEJA'!$B$3:$B$10000,1,FALSE) -> 1122 | J62: =VLOOKUP(A62,'LISTA TOTAL PROVEEDORES'!$B$3:$B$9961,1,FALSE) -> 1122
A63: 1139 | B63: MARCOS, TAPAS, REJILLAS, HERRAJES Y CAJILLAS | I63: =VLOOKUP(A63,'BD VIEJA'!$B$3:$B$10000,1,FALSE) -> 1139 | J63: =VLOOKUP(A63,'LISTA TOTAL PROVEEDORES'!$B$3:$B$9961,1,FALSE) -> 1139
A64: 1206 | B64: MATERIALES BÁSICOS | I64: =VLOOKUP(A64,'BD VIEJA'!$B$3:$B$10000,1,FALSE) ->  | J64: =VLOOKUP(A64,'LISTA TOTAL PROVEEDORES'!$B$3:$B$9961,1,FALSE) -> 1206
A65: 1137 | B65: MATERIALES DE FERRETERÍA Y OTROS | I65: =VLOOKUP(A65,'BD VIEJA'!$B$3:$B$10000,1,FALSE) -> 1137 | J65: =VLOOKUP(A65,'LISTA TOTAL PROVEEDORES'!$B$3:$B$9961,1,FALSE) -> 1137
A66: 1196 | B66: MOBILIARIO METÁLICO TIPO TRANSMILENIO | I66: =VLOOKUP(A66,'BD VIEJA'!$B$3:$B$10000,1,FALSE) ->  | J66: =VLOOKUP(A66,'LISTA TOTAL PROVEEDORES'!$B$3:$B$9961,1,FALSE) -> 1196
A67: 1126 | B67: MOBILIARIO URBANO Y DE PARQUES | I67: =VLOOKUP(A67,'BD VIEJA'!$B$3:$B$10000,1,FALSE) -> 1126 | J67: =VLOOKUP(A67,'LISTA TOTAL PROVEEDORES'!$B$3:$B$9961,1,FALSE) -> 1126
A68: 1156 | B68: MUEBLES - EQUIPOS Y ELEMENTOS OFICINA | I68: =VLOOKUP(A68,'BD VIEJA'!$B$3:$B$10000,1,FALSE) -> 1156 | J68: =VLOOKUP(A68,'LISTA TOTAL PROVEEDORES'!$B$3:$B$9961,1,FALSE) -> 1156
A69: 1205 | B69: NEOPRENOS | I69: =VLOOKUP(A69,'BD VIEJA'!$B$3:$B$10000,1,FALSE) ->  | J69: =VLOOKUP(A69,'LISTA TOTAL PROVEEDORES'!$B$3:$B$9961,1,FALSE) -> 1205
A70: 1129 | B70: PINTURAS | I70: =VLOOKUP(A70,'BD VIEJA'!$B$3:$B$10000,1,FALSE) -> 1129 | J70: =VLOOKUP(A70,'LISTA TOTAL PROVEEDORES'!$B$3:$B$9961,1,FALSE) -> 1129
A71: 1188 | B71: PISOS (CONVENCIONALES Y TIPO TRANSMILENIO) | I71: =VLOOKUP(A71,'BD VIEJA'!$B$3:$B$10000,1,FALSE) -> 1188 | J71: =VLOOKUP(A71,'LISTA TOTAL PROVEEDORES'!$B$3:$B$9961,1,FALSE) -> 1188
A72: 1120 | B72: POSTES Y ALUMBRADO PUBLICO | I72: =VLOOKUP(A72,'BD VIEJA'!$B$3:$B$10000,1,FALSE) -> 1120 | J72: =VLOOKUP(A72,'LISTA TOTAL PROVEEDORES'!$B$3:$B$9961,1,FALSE) -> 1120
A73: 1117 | B73: POZOS Y COMPONENTES - ALCANTARILLADO | I73: =VLOOKUP(A73,'BD VIEJA'!$B$3:$B$10000,1,FALSE) -> 1117 | J73: =VLOOKUP(A73,'LISTA TOTAL PROVEEDORES'!$B$3:$B$9961,1,FALSE) -> 1117
A74: 1201 | B74: PRODUCTOS QUÍMICOS - PESTICIDAS - FITOSANITARIOS | I74: =VLOOKUP(A74,'BD VIEJA'!$B$3:$B$10000,1,FALSE) -> 1201 | J74: =VLOOKUP(A74,'LISTA TOTAL PROVEEDORES'!$B$3:$B$9961,1,FALSE) -> 1201
A75: 1192 | B75: PROYECTO ESPECÍFICO | I75: =VLOOKUP(A75,'BD VIEJA'!$B$3:$B$10000,1,FALSE) -> 1192 | J75: =VLOOKUP(A75,'LISTA TOTAL PROVEEDORES'!$B$3:$B$9961,1,FALSE) -> 1192
A76: 1189 | B76: PRUEBAS DE CARGA PARA PUENTES | I76: =VLOOKUP(A76,'BD VIEJA'!$B$3:$B$10000,1,FALSE) ->  | J76: =VLOOKUP(A76,'LISTA TOTAL PROVEEDORES'!$B$3:$B$9961,1,FALSE) -> 
A77: 1124 | B77: SELLANTES-IMPERMEABILIZANTES Y ADITIVOS CONCRETOS | I77: =VLOOKUP(A77,'BD VIEJA'!$B$3:$B$10000,1,FALSE) -> 1124 | J77: =VLOOKUP(A77,'LISTA TOTAL PROVEEDORES'!$B$3:$B$9961,1,FALSE) -> 1124
A78: 1166 | B78: SEMAFORIZACION | I78: =VLOOKUP(A78,'BD VIEJA'!$B$3:$B$10000,1,FALSE) -> 1166 | J78: =VLOOKUP(A78,'LISTA TOTAL PROVEEDORES'!$B$3:$B$9961,1,FALSE) -> 1166
A79: 1128 | B79: SEÑALES, BARRERAS Y DEMARCACIÓN VIAL | I79: =VLOOKUP(A79,'BD VIEJA'!$B$3:$B$10000,1,FALSE) -> 1128 | J79: =VLOOKUP(A79,'LISTA TOTAL PROVEEDORES'!$B$3:$B$9961,1,FALSE) -> 1128
A80: 1197 | B80: SERV. DIAGNÓSTICO-INSPECCIÓN REDES HIDROSANITARIAS | I80: =VLOOKUP(A80,'BD VIEJA'!$B$3:$B$10000,1,FALSE) -> 1197 | J80: =VLOOKUP(A80,'LISTA TOTAL PROVEEDORES'!$B$3:$B$9961,1,FALSE) -> 1197
A81: 1204 | B81: SISTEMAS CONTRA INCENDIO | I81: =VLOOKUP(A81,'BD VIEJA'!$B$3:$B$10000,1,FALSE) ->  | J81: =VLOOKUP(A81,'LISTA TOTAL PROVEEDORES'!$B$3:$B$9961,1,FALSE) -> 1204
A82: 1140 | B82: SOLDADURA Y PEGANTES | I82: =VLOOKUP(A82,'BD VIEJA'!$B$3:$B$10000,1,FALSE) -> 1140 | J82: =VLOOKUP(A82,'LISTA TOTAL PROVEEDORES'!$B$3:$B$9961,1,FALSE) -> 1140
A83: 177 | B83: SUELDOS Y JORNALES | I83: =VLOOKUP(A83,'BD VIEJA'!$B$3:$B$10000,1,FALSE) -> 177 | J83: =VLOOKUP(A83,'LISTA TOTAL PROVEEDORES'!$B$3:$B$9961,1,FALSE) -> 
A84: 1118 | B84: SUMIDEROS Y COMPONENTES | I84: =VLOOKUP(A84,'BD VIEJA'!$B$3:$B$10000,1,FALSE) -> 1118 | J84: =VLOOKUP(A84,'LISTA TOTAL PROVEEDORES'!$B$3:$B$9961,1,FALSE) -> 1118
A85: 182 | B85: TRANSPORTES DE MATERIALES Y ACARREOS | I85: =VLOOKUP(A85,'BD VIEJA'!$B$3:$B$10000,1,FALSE) -> 182 | J85: =VLOOKUP(A85,'LISTA TOTAL PROVEEDORES'!$B$3:$B$9961,1,FALSE) -> 182
A86: 1154 | B86: TUBERÍA Y ACCESORIOS ACERO AL CARBÓN | I86: =VLOOKUP(A86,'BD VIEJA'!$B$3:$B$10000,1,FALSE) ->  | J86: =VLOOKUP(A86,'LISTA TOTAL PROVEEDORES'!$B$3:$B$9961,1,FALSE) -> 1154
A87: 1113 | B87: TUBERÍA Y ACCESORIOS CONDUIT GALVANIZADAS | I87: =VLOOKUP(A87,'BD VIEJA'!$B$3:$B$10000,1,FALSE) ->  | J87: =VLOOKUP(A87,'LISTA TOTAL PROVEEDORES'!$B$3:$B$9961,1,FALSE) -> 1113
A88: 1105 | B88: TUBERÍA Y ACCESORIOS DE CONCRETO | I88: =VLOOKUP(A88,'BD VIEJA'!$B$3:$B$10000,1,FALSE) ->  | J88: =VLOOKUP(A88,'LISTA TOTAL PROVEEDORES'!$B$3:$B$9961,1,FALSE) -> 1105
A89: 1109 | B89: TUBERÍA Y ACCESORIOS DE PVC PARA ALCANTARILLADO | I89: =VLOOKUP(A89,'BD VIEJA'!$B$3:$B$10000,1,FALSE) ->  | J89: =VLOOKUP(A89,'LISTA TOTAL PROVEEDORES'!$B$3:$B$9961,1,FALSE) -> 1109
A90: 1162 | B90: TUBERÍA Y ACCESORIOS EN ACERO | I90: =VLOOKUP(A90,'BD VIEJA'!$B$3:$B$10000,1,FALSE) ->  | J90: =VLOOKUP(A90,'LISTA TOTAL PROVEEDORES'!$B$3:$B$9961,1,FALSE) -> 1162
A91: 1159 | B91: TUBERIA Y ACCESORIOS EN ACERO GALVANIZADO | I91: =VLOOKUP(A91,'BD VIEJA'!$B$3:$B$10000,1,FALSE) ->  | J91: =VLOOKUP(A91,'LISTA TOTAL PROVEEDORES'!$B$3:$B$9961,1,FALSE) -> 1159
A92: 1153 | B92: TUBERÍA Y ACCESORIOS EN GRP | I92: =VLOOKUP(A92,'BD VIEJA'!$B$3:$B$10000,1,FALSE) ->  | J92: =VLOOKUP(A92,'LISTA TOTAL PROVEEDORES'!$B$3:$B$9961,1,FALSE) -> 1153
A93: 1193 | B93: TUBERÍA Y ACCESORIOS EN POLIETILENO | I93: =VLOOKUP(A93,'BD VIEJA'!$B$3:$B$10000,1,FALSE) ->  | J93: =VLOOKUP(A93,'LISTA TOTAL PROVEEDORES'!$B$3:$B$9961,1,FALSE) -> 1193
A94: 1107 | B94: TUBERIAS DE PVC - ACUEDUCTO | I94: =VLOOKUP(A94,'BD VIEJA'!$B$3:$B$10000,1,FALSE) ->  | J94: =VLOOKUP(A94,'LISTA TOTAL PROVEEDORES'!$B$3:$B$9961,1,FALSE) -> 1107
A95: 1227 | B95: CANAL DE DRENAJE | F95: NUEVO

Sheet Hoja3 (hidden)
A3: Etiquetas de fila
A4: 4GA SAS Agregados de calidad
A5: AB SEÑALIZACIÓN
A6: ABASTECE.COM.CO
A7: ABC TRANSFORMADORES E INGENIERIA ELECTROMECÁNICA
A8: ACCESA
A9: ACCESORIOS Y ACABADOS SAS
A10: ACERAS & SARDINELES DE COLOMBIA
A11: ACEROS PENSILVANIA S.A.S.
A12: ACO SOLUCIONES DE DRENAJE SAS
A13: ACONSTRUCTORAS.COM
A14: ADL DRYWALL
A15: ADRENALINA SAFETY VIRTUAL STORE
A16: AFM DOTACIONES
A17: AGQ LABS
A18: AGREGADOS ARENAS Y GRAVAS SAS
A19: AGREGADOS EL VINCULO SAS
A20: AGREGADOS, ARENAS Y GRAVAS SAS
A21: AGROFÁCIL
A22: ALFAGRES S.A.
A23: ALMACÉN CANAIMA
A24: ALMACEN ENTRE MAYORISTAS
A25: ALMACEN INDUSTRIAL DE TORNILLOS LTDA
A26: ALMACEN SIGMONSHOP
A27: ALMACENES ALKOSTO
A28: ALMACENES EXITO
A29: ALMACENES FALABELLA
A30: ALMACENES JUMBO
A31: ALMACENES KTRONIX
A32: ALMASA S.A.
A33: ALQUILER DE COMPUTADORES S.A.S.
A34: AMVAR WORLD SAS
A35: ANALQUIM LTDA
A36: ANDAMIOS R&S LTDA
A37: ANDES TV
A38: ANPATEC
A39: APOLO AVA
A40: APSA SAS
A41: ARCILLAS DE COLOMBIA S.A.
A42: ARCILLAS DE LA SABANA
A43: ARENAS Y AGREGADOS IVONE SAS
A44: ASOCRETO
A45: ASTROEQUIPOS S.A.
A46: ATLAS LIMITED SAS
A47: AUROS
A48: AUTO GRUAS LA SEXTA
A49: B.M.G
A50: B.M.G. TRANSPORTE DE AGUA POTABLE E. U.
A51: BAC Engineering Consultancy Group S.A.S.
A52: Baños Portatiles SAS
A53: BARNES DE COLOMBIA S.A.
A54: BCD SAS
A55: BELLTEC HERRAMIENTAS Y EQUIPOS
A56: BELPLASTICOS
A57: BIOFRACTAL ARQUITECTURA MEDIANA
A58: BIOQUILAB
A59: BORNA DESDE 1984
A60: CABLES Y GUAYAS ALGOFER
A61: CAELCA
A62: CANECAS DE RECICLAJE
A63: CANECAS URBANAS
A64: CANECAS.COM
A65: CARPAS E INGENIERÍA
A66: CEB IMPORTADORA SAS
A67: CEBA – PRODUCTOS Y SERVICIOS VETERINARIOS
A68: CEI ELECTRICA INTERNACIONAL SAS
A69: CELTA
A70: CEMENTOS ARGOS - AGREGADOS PETREOS
A71: CEMEX DE COLOMBIA S.A.
A72: CENTELSA
A73: CENTRAL DE DOTACIONES LTDA
A74: CENTRAL DE SUMINISTROS - GSPATH
A75: CENTRO COPIAS FELIPE
A76: CERAMICA ITALIA
A77: CHEMILAB
A78: CIDEMAT - U. Antioquia
A79: CIELO RASOS & DIVISIONES
A80: CIELOS RASOS & DIVISIONES
A81: CIMA
A82: COLEMPLAST LTDA
A83: COLPEATON SAS
A84: COMERCIALIZADORA GOYJUL S.A.S
A85: COMERCIALIZADORA GOYJUL SAS
A86: COMERCIALIZADORA IMPERIO
A87: COMFAMA
A88: COMPAÑÍA DE TRABAJOS URBANOS S.A.S
A89: COMPAÑÍA ELÉCTRICA LTDA
A90: COMPAÑÍA MINERA NACIONAL LTDA
A91: CONCRELAB
A92: CONCRELAB SAS
A93: Concreservicios S.A.S.
A94: CONCRESERVICIOS SAS
A95: CONCRETCOL CONCRETO ESTAMPADO DE COLOMBIA
A96: CONCRETERA TREMIX SAS
A97: CONCRETOS ARGOS S.A.
A98: CORONA
A99: CORPACERO
A100: CORPORACIÓN AUTÓNOMA REGIONAL DE CUNDINAMARCA - CAR
A101: CORTEACEROS S.A.S
A102: COVAL
A103: COVAL COMERCIAL S. A.
A104: CREAR SEÑALIZACION
A105: CRUZ ROJA COLONBIANA
A106: CU CONECTORES
A107: DECORCERÁMICA
A108: DEKO
A109: DISATEC
A110: DISELEC LTDA
A111: DISTRIBUCIONES IMAGEN BOGOTÁ
A112: DISTRIBUCIONES Y DOTACIONES R.A.C
A113: DISTRIBUIDORA TODO ASEO
A114: DOBLE A INGENIERIA S.A.
A115: DOTA FUERTE
A116: DOTACIONES CALDERON SAS
A117: DOTACIONES ONLINE
A118: DROMOS PAVIMENTOS S.A.
A119: DURMAN COLOMBIA S.A.
A120: DYA INSUMOS FERRETEROS SAS
A121: DYCON MATERIALES ELÉCTRICOS
A122: DYNATEST COLOMBIA S.A.S.
A123: EASY
A124: ECHEVERRY ENSAYOS SAS
A125: ECHEVERRY INGENIERIA Y ENSAYOS SAS
A126: ECONOMIZADORES.NET
A127: ECOPRADOS SOLUCIONES AMBIENTALES
A128: EDELCO
A129: EIMPSA
A130: EL CONDOR PREFABRICADOS
A131: EL CONDOR PREFABRICADOS S.A.S.
A132: ELECTRICOS JS
A133: ELECTROMANFER
A134: ELECTROPINTAMOS
A135: ELEMENTOS PREFABRICADOS DE CONCRETO EL PRECON
A136: EMPRESA DE ACUEDUCTO Y ALCANTARILLADO DE BOGOTÁ
A137: ENZIPAN LABORATORIOS S.A.
A138: EQUINORTE
A139: ESCOBAR Y MARTÍNEZ SAS
A140: ESCUELA COLOMBIANA DE INGENIERIA
A141: ESCUELA COLOMBIANA DE INGENIERIA JULIO GARAVITO
A142: ESTAHL INGENIERÍA SAS
A143: EUREKA.COM
A144: EZ STREET ASFALTO
A145: FABRIURBANOS
A146: FANNY I. TEQUIA Y CIA SAS
A147: FERCON
A148: FERREMETÁLICAS COLOMBIA
A149: FERRETERIA MEGACOL
A150: FERRETERIA RHINO
A151: FERRETERÍA SAMIR
A152: FERRETERIA TÉCNICA
A153: FERRETERIA TÉCNICA
A154: FERRICENTRO
A155: FERRICENTROS S.A.
A156: FIGMALLAS SAS
A157: FIGURADOS Y MALLAS
A158: FORMAS DE CONCRETO LTDA
A159: Gama Dotaciones
A160: GAVAR. Soluciones en recubrimientos
A161: GECAB COLOMBIA
A162: GECOLSA - CAT RENTAL STORE
A163: GEOMATRIX Soluciones de Alta Tenacidad
A164: GEOSISTEMAS PAVCO
A165: GERFOR
A166: GIM INGENIERIA ELÉCTRICA LTDA
A167: GRABADO Y CORTE LASER BOGOTA
A168: GRAVILLERA ALBANIA S.A.
A169: GRECO
A170: GRIVAL
A171: GRIVAL SA
A172: GRUAS, EQUIPOS Y TRANSPORTES FENIX SAS
A173: GRUPO MASHALI
A174: GRUPO VIKINGO
A175: HACEB
A176: HB SADELEC Estructuras Metálicas
A177: HELBERT Y CIA
A178: HERLOZ SUMINISTROS
A179: HERNANDO OROZCO Y CIA
A180: HIDROEQUIPO
A181: HIERROS Y CONCRETOS S.A.S.
A182: HOME ELEMENTS
A183: HOMECENTER
A184: HOMESENTRY
A185: HORMIGON ANDINO S.A.
A186: ICIPC
A187: IDEAS PIXEL
A188: IE INTERNACIONAL DE ELÉCTRICOS
A189: IMPRIMASCOL
A190: INCOLMALLAS S.A.
A191: INCOMINERIA S.A.S.
A192: INDUSTRIA MILITAR - INDUMIL
A193: INDUSTRIA MILITAR – INDUMIL
A194: INETEL
A195: INGENIERÍA AMBIENTAL Y SANITARIA DE COLOMBIA - IASCOL S.A.S
A196: INGENIERIA DE ESTRUCTURAS Y MATERIALES LTDA. INGEYMA LTDA
A197: INGENIERIA Y SEÑALIZACION SEÑALVIAL SAS
A198: INGENIEROS GF SAS
A199: INGEYMA
A200: INSERCOR SAS
A201: INSPEQ INGENIERIA LTDA
A202: INSTITUTO DE DESARROLLO URBANO - IDU
... 157 more rows

Sheet GRUPOS VIGENTES (hidden)
B1: Página No. 1 de 1
B2: 10-Dec-2019
B3: GRUPOS
A8: Código | B8: Nombre | C8: Código | D8: Tipo de Grupo
A9: 177 | B9: SUELDOS Y JORNALES | C9: 177 | D9: Mano de obra
A10: 182 | B10: TRANSPORTES DE MATERIALES Y ACARREOS | C10: 182 | D10: Transporte
A11: 1102 | B11: AGREGADOS PÉTREOS, BASES Y SUBBASES GRANULARES | C11: 1102 | D11: Material
A12: 1103 | B12: CONCRETOS Y MORTEROS PREMEZCLADOS | C12: 1103 | D12: Material
A13: 1104 | B13: EMULSIONES Y MEZCLAS ASFÁLTICAS | C13: 1104 | D13: Material
A14: 1105 | B14: TUBERÍA Y ACCESORIOS DE CONCRETO | C14: 1105 | D14: Material
A15: 1107 | B15: TUBERIAS DE PVC - ACUEDUCTO | C15: 1107 | D15: Material
A16: 1109 | B16: TUBERÍA Y ACCESORIOS DE PVC PARA ALCANTARILLADO | C16: 1109 | D16: Material
A17: 1111 | B17: DUCTOS PVC - ELECTRICOS/TELEFONICOS TIPO TDP-DB-EB | C17: 1111 | D17: Material
A18: 1113 | B18: TUBERÍA Y ACCESORIOS CONDUIT GALVANIZADAS | C18: 1113 | D18: Material
A19: 1114 | B19: ACCESORIOS HD PARA REDES DE ACUEDUCTO | C19: 1114 | D19: Material
A20: 1115 | B20: EQUIPO PESADO | C20: 1115 | D20: Equipo
A21: 1116 | B21: EQUIPO LIVIANO Y HERRAMIENTAS | C21: 1116 | D21: Equipo
A22: 1117 | B22: POZOS Y COMPONENTES - ALCANTARILLADO | C22: 1117 | D22: Material
A23: 1118 | B23: SUMIDEROS Y COMPONENTES | C23: 1118 | D23: Material
A24: 1120 | B24: POSTES Y ALUMBRADO PUBLICO | C24: 1120 | D24: Material
A25: 1121 | B25: CABLES Y ACCESORIOS ELECTRICOS | C25: 1121 | D25: Material
A26: 1122 | B26: MALLAS Y ACEROS PARA REFUERZO | C26: 1122 | D26: Material
A27: 1123 | B27: GEOSINTETICOS | C27: 1123 | D27: Material
A28: 1124 | B28: SELLANTES-IMPERMEABILIZANTES Y ADITIVOS CONCRETOS | C28: 1124 | D28: Material
A29: 1125 | B29: LADRILLOS, BLOQUES Y ADOQUINES | C29: 1125 | D29: Material
A30: 1126 | B30: MOBILIARIO URBANO Y DE PARQUES | C30: 1126 | D30: Material
A31: 1127 | B31: BORDILLOS Y LOSETAS | C31: 1127 | D31: Material
A32: 1128 | B32: SEÑALES, BARRERAS Y DEMARCACIÓN VIAL | C32: 1128 | D32: Material
A33: 1129 | B33: PINTURAS | C33: 1129 | D33: Material
A34: 1130 | B34: COMBUSTIBLES Y LUBRICANTES | C34: 1130 | D34: Material
A35: 1133 | B35: MADERAS | C35: 1133 | D35: Material
A36: 1134 | B36: FORMALETAS, ANDAMIOS Y ACCESORIOS | C36: 1134 | D36: Equipo
A37: 1137 | B37: MATERIALES DE FERRETERÍA Y OTROS | C37: 1137 | D37: Material
A38: 1139 | B38: MARCOS, TAPAS, REJILLAS, HERRAJES Y CAJILLAS | C38: 1139 | D38: Material
A39: 1140 | B39: SOLDADURA Y PEGANTES | C39: 1140 | D39: Material
A40: 1146 | B40: ESTRUCTURAS EN ACERO | C40: 1146 | D40: Material
A41: 1147 | B41: ARBOLES-GRAMAS-VEGETACIÓN Y PLANTACIÓN PAISAJÍSTIC | C41: 1147 | D41: Material
A42: 1148 | B42: DOTACIÓN (EPP) Y EQUIP. Y HERRAM. SEGUR. INDUSTR. | C42: 1148 | D42: Material
A43: 1153 | B43: TUBERÍA Y ACCESORIOS EN GRP | C43: 1153 | D43: Material
A44: 1154 | B44: TUBERÍA Y ACCESORIOS ACERO AL CARBÓN | C44: 1154 | D44: Material
A45: 1156 | B45: MUEBLES - EQUIPOS Y ELEMENTOS OFICINA | C45: 1156 | D45: Material
A46: 1157 | B46: ALQUILER | C46: 1157 | D46: Equipo
A47: 1158 | B47: EXÁMENES MÉDICOS | C47: 1158 | D47: Material
A48: 1159 | B48: TUBERIA Y ACCESORIOS EN ACERO GALVANIZADO | C48: 1159 | D48: Material
A49: 1161 | B49: ACTIVIDADES A TODO COSTO | C49: 1161 | D49: Material
A50: 1162 | B50: TUBERÍA Y ACCESORIOS EN ACERO | C50: 1162 | D50: Material
A51: 1167 | B51: GESTIÓN SOCIAL ELEMENTOS DE PUBLICIDAD | C51: 1167 | D51: Material
A52: 1179 | B52: ENSAYO LABORATORIO - DETERMI PROPIEDADES MECÁNICAS | C52: 1179 | D52: Material
A53: 1188 | B53: PISOS (CONVENCIONALES Y TIPO TRANSMILENIO) | C53: 1188 | D53: Material
A54: 1189 | B54: PRUEBAS DE CARGA PARA PUENTES | C54: 1189 | D54: Material
A55: 1193 | B55: TUBERÍA Y ACCESORIOS EN POLIETILENO | C55: 1193 | D55: Material
A56: 1194 | B56: DESMONTE Y TRASLADOS DE ELEMENTOS METÁLICOS | C56: 1194 | D56: Material
A57: 1196 | B57: MOBILIARIO METÁLICO TIPO TRANSMILENIO | C57: 1196 | D57: Material
A58: 1166 | B58: SEMAFORIZACION | C58: 1166 | D58: Material
A59: 1168 | B59: CONSULTORIA | C59: 1168 | D59: Material
A60: 1169 | B60: ENSAYO LABORATORIO - CEMENTOS HIDRÁULICOS | C60: 1169 | D60: Material
A61: 1170 | B61: ENSAYO LABORATORIO - SUELOS | C61: 1170 | D61: Material
A62: 1171 | B62: ENSAYO LABORATORIO - AGREGADOS PETREOS | C62: 1171 | D62: Material
A63: 1172 | B63: ENSAYO CAMPO - ELEMENTOS ESTRUCTURALES CONCRETO | C63: 1172 | D63: Material
A64: 1173 | B64: ENSAYO LABORATORIO - DIAGNOSTICO DE PAVIMENTOS | C64: 1173 | D64: Material
A65: 1174 | B65: ENSAYO LABORATORIO - CONCRETOS HIDRÁULICOS | C65: 1174 | D65: Material
A66: 1175 | B66: ENSAYO LABORATORIO - MATERIALES BITUMINOSOS | C66: 1175 | D66: Material
A67: 1176 | B67: ENSAYO LABORATORIO - MEZCLAS ASFALTICAS | C67: 1176 | D67: Material
A68: 1177 | B68: ENSAYO LABORATORIO - ANÁLISIS DE AGUAS | C68: 1177 | D68: Material
A69: 1178 | B69: ENSAYO LABORATORIO - ROCA | C69: 1178 | D69: Material
A70: 1180 | B70: ENSAYO LABORATORIO - ESTABILIZACIÓN DE SUELOS | C70: 1180 | D70: Material
A71: 1181 | B71: ENSAYO LABORATORIO - COMPONENTE DE ESPACIO PÚBLICO | C71: 1181 | D71: Material
A72: 1182 | B72: ENSAYO LABORATORIO - GEOTEXTILES | C72: 1182 | D72: Material
A73: 1183 | B73: ENSAYO LABORATORIO - AIRE | C73: 1183 | D73: Material
A74: 1184 | B74: ENSAYO LABORATORIO - ANÁLISIS DE AGUAS SUBTERRÁNEA | C74: 1184 | D74: Material
A75: 1185 | B75: ENSAYO LABORATORIO - ANÁLISIS QUÍMICOS DE SUELOS | C75: 1185 | D75: Material
A76: 1186 | B76: ENSAYO LABORATORIO - ANÁLISIS FÍSICO DE SUELOS | C76: 1186 | D76: Material
A77: 1187 | B77: ENSAYO LABORATORIO - ANÁLISIS BIOLÓGICOS DE SUELOS | C77: 1187 | D77: Material
A78: 1190 | B78: PRUEBAS DE HERMETICIDAD | C78: 1190 | D78: Material
A79: 1191 | B79: INVENTARIO GEORREFERENCIADO | C79: 1191 | D79: Material
A80: 1192 | B80: PROYECTO ESPECÍFICO | C80: 1192 | D80: Material
A81: 1195 | B81: CARPINTERÍA METÁLICA | C81: 1195 | D81: Material
A82: 1197 | B82: SERV. DIAGNÓSTICO-INSPECCIÓN REDES HIDROSANITARIAS | C82: 1197 | D82: Material
A83: 1198 | B83: GESTIÓN SOCIAL ELEMENTOS DE IDENTIFICACIÓN EN OBRA | C83: 1198 | D83: Material
A84: 1199 | B84: REHABILITACIÓN REDES ALCANTARILLADO MÉTODO SIN ZAN | C84: 1199 | D84: Material
A85: 1200 | B85: CUBIERTA - CIELO RASO - CORTASOL TIPO TRANSMILENIO | C85: 1200 | D85: Material
A86: 1201 | B86: PRODUCTOS QUÍMICOS - PESTICIDAS - FITOSANITARIOS | C86: 1201 | D86: Material
A87: 1202 | B87: ENSAYO MEDICIÓN DE CAMPOS | C87: 1202 | D87: Material
A88: 1203 | B88: ENSAYO LABORATORIO - RUIDO | C88: 1203 | D88: Material
A89: 1204 | B89: SISTEMAS CONTRA INCENDIO | C89: 1204 | D89: Material
A90: 1205 | B90: NEOPRENOS | C90: 1205 | D90: Material
A91: 1206 | B91: MATERIALES BÁSICOS | C91: 1206 | D91: Material
A92: 1207 | B92: ENSAYO LABORATORIO - PERFORACIONES | C92: 1207 | D92: Material
A93: 1208 | B93: LEVANTAMIENTO TOPOGRÁFICO | C93: 1208 | D93: Material
A94: 1209 | B94: ENSAYO CAMPO - RECUBRIMIENTO ESTRUCTURA METÁLICA | C94: 1209 | D94: Material
A95: 1210 | B95: ENSAYO CAMPO - SOLDADURAS | C95: 1210 | D95: Material
A96: 1211 | B96: ENSAYO LABORATORIO - ABRASIVO | C96: 1211 | D96: Material
A97: 1212 | B97: ENSAYO LABORATORIO - ACERO REFUERZO Y PRETENSADO | C97: 1212 | D97: Material
A98: 1213 | B98: ENSAYO LABORATORIO - ACERO ESTRUCTURAL | C98: 1213 | D98: Material
A99: 1214 | B99: ENSAYO LABORATORIO - ALUMINIO | C99: 1214 | D99: Material
A100: 1215 | B100: ENSAYO LABORATORIO - CONCRETO PRETENSADO | C100: 1215 | D100: Material
A101: 1216 | B101: ENSAYO LABORATORIO - LUBRICANTE ADHESIVO | C101: 1216 | D101: Material
A102: 1217 | B102: ENSAYO LABORATORIO - MORTERO | C102: 1217 | D102: Material
A103: 1218 | B103: ENSAYO LABORATORIO - NEOPRENO | C103: 1218 | D103: Material
A104: 1219 | B104: ENSAYO LABORATORIO - PERNOS | C104: 1219 | D104: Material
A105: 1220 | B105: ENSAYO LABORATORIO - PINTURA | C105: 1220 | D105: Material
A106: 1221 | B106: ENSAYO LABORATORIO - PLÁSTICO RÍGIDO | C106: 1221 | D106: Material
A107: 1222 | B107: ENSAYO LABORATORIO - RESINA | C107: 1222 | D107: Material
A108: 1223 | B108: ENSAYO CAMPO - DIAGNOSTICO DE PAVIMENTOS | C108: 1223 | D108: Material
A109: 1224 | B109: ENSAYO CAMPO -RECUBRIMIENTO ESTRUCTURA METÁLICA | C109: 1224 | D109: Material
A110: 1225 | B110: ENSAYO DE CAMPO - SOLDADURAS | C110: 1225 | D110: Material
A111: 1226 | B111: AFORO DE TRANSITO | C111: 1226 | D111: Material
A112: 1227 | B112: CANAL DE DRENAJE | C112: 1227 | D112: Material
A113: 1228 | B113: ENSAYO LABORATORIO - AGREGADOS PROVENIENTES DE RCD | C113: 1228 | D113: Material
A114: 1229 | B114: ARQUEOLOGÍA | C114: 1229 | D114: Material
A115: 1230 | B115: AMBIENTAL | C115: 1230 | D115: Material

Sheet BD VIEJA (hidden)
B1: 2018-II DIRECTORIO
B2: CODIGO GRUPO | C2: GRUPO BASE DE DATOS | D2: NOMBRE PROVEEDOR | E2: UBICACIÓN | F2: DIRECCION | G2: TELEFONO | H2: CORREO ELECTRONICO
A3: =+B3&COUNTIF($B$3:B3,B3) -> 11141 | B3: 1114 | C3: ACCESORIOS HD PARA REDES DE ACUEDUCTO | D3: COVAL COMERCIAL S. A. | E3: Bogota | F3: Avda. Ciudad de Cali 5 A 92 Sur | G3: 3152358446 8759100 Ext. 144 - 145 7454671 | H3: info@coval.com.co | I3: 1
A4: =+B4&COUNTIF($B$3:B4,B4) -> 11142 | B4: 1114 | C4: ACCESORIOS HD PARA REDES DE ACUEDUCTO | D4: METACOL Soluciones integrales en ingeniería y fundición | E4: Bogota | F4: Diagonal 34 Bis 17 58 | G4: 5116262 Ext. 211 | H4: mercadeo@metacol.com | I4: 2
A5: =+B5&COUNTIF($B$3:B5,B5) -> 11143 | B5: 1114 | C5: ACCESORIOS HD PARA REDES DE ACUEDUCTO | D5: PAVCO S.A. | E5: Bogota | F5: Autopista Sur 71 75 | G5: 7825000 | H5: servicio@pavco.com.co orlando.polo@pavco.com.co www.pavco.com.co | I5: 3
A6: =+B6&COUNTIF($B$3:B6,B6) -> 11144 | B6: 1114 | C6: ACCESORIOS HD PARA REDES DE ACUEDUCTO | D6: DURMAN COLOMBIA S.A. | E6: Madrid - Cund. | F6: Km 27 Vía Fontibon Facatativa Los Alpes | G6: 8200200 | H6: colombia@durman.com | I6: 4
A7: =+B7&COUNTIF($B$3:B7,B7) -> 11145 | B7: 1114 | C7: ACCESORIOS HD PARA REDES DE ACUEDUCTO | D7: ALIATUBOS S.A.S. | E7: Bogota | F7: Cra. 25 17 67 | G7: 2011960 | H7: secretaria@aliatubos.com www.aliatubos.com | I7: 5
A8: =+B8&COUNTIF($B$3:B8,B8) -> 11146 | B8: 1114 | C8: ACCESORIOS HD PARA REDES DE ACUEDUCTO | D8: GERFOR | E8: Bogota | F8: Autopista Medellin Km 2 - 600 Entrada via Parcelas de Cota | G8: 8776800 | H8: contactenos@gerfor.com www.gerfor.com.co | I8: 6
A9: =+B9&COUNTIF($B$3:B9,B9) -> 11147 | B9: 1114 | C9: ACCESORIOS HD PARA REDES DE ACUEDUCTO | D9: TUBOS Y ACCESORIOS CELTA | E9: Bogota | F9: Cra. 87 1 42 | G9: 7799000 3143302256 3123320171 | H9: rurodrig@celta.com.co katherine.rodriguez@celta.com.co | I9: 7
A10: =+B10&COUNTIF($B$3:B10,B10) -> 11611 | B10: 1161 | C10: ACTIVIDADES A TODO COSTO | D10: ABC TRANSFORMADORES E INGENIERIA ELECTROMECÁNICA | E10: Bogotá | F10: Carrera 27 No. 7 - 42 | G10: 2015059 - 3105612639 - 3105612635 - 2016468 | H10: http://www.transformadoresabc.com | I10: 8
A11: =+B11&COUNTIF($B$3:B11,B11) -> 11612 | B11: 1161 | C11: ACTIVIDADES A TODO COSTO | D11: AMVAR WORLD SAS | E11: Bogotá | F11: Av. 30 - 7 de agosto 68-125 local 35 | G11: 3810603 EXT 101-102 | H11: ventas@anvarworld.com | I11: 9
A12: =+B12&COUNTIF($B$3:B12,B12) -> 11613 | B12: 1161 | C12: ACTIVIDADES A TODO COSTO | D12: CARPAS E INGENIERÍA | E12: Bogota | F12: Calle 9 32 A 41 | G12: 3102360339 5618623 | H12: ventas@carpascolombia.com | I12: 10
A13: =+B13&COUNTIF($B$3:B13,B13) -> 11614 | B13: 1161 | C13: ACTIVIDADES A TODO COSTO | D13: CIVALCO LTDA | E13: Bogota | F13: carrera 17 No. 36 - 38 | G13: 2853857 ext. 113 | H13: ventas@civalco.com | I13: 11
A14: =+B14&COUNTIF($B$3:B14,B14) -> 11615 | B14: 1161 | C14: ACTIVIDADES A TODO COSTO | D14: COMPUTER ONLINE - DIGITAL TECNOLOGY | E14: Bogotá | F14: -- | G14: 5416053 - 5416054 - 5416059 | H14: www.onlinecomputer.com.co | I14: 12
A15: =+B15&COUNTIF($B$3:B15,B15) -> 11616 | B15: 1161 | C15: ACTIVIDADES A TODO COSTO | D15: G&S SOLUCIONES DE INGENIERÍA | E15: Bogotá | F15: Diagonal 16 C No. 97–29 | G15: 2988669 | H15: contacto@gsingenieria.com.co | I15: 13
A16: =+B16&COUNTIF($B$3:B16,B16) -> 11617 | B16: 1161 | C16: ACTIVIDADES A TODO COSTO | D16: ISTC - BELDEN - Sending All The Right Signals | E16: (Europa / Medio Oriente / África) | F16: 8880 NW 18th Terrace, Doral, FL. 33172 | G16: +1 (305) 594 4141 | H16: marketing@istccorp.com | I16: 14
A17: =+B17&COUNTIF($B$3:B17,B17) -> 11618 | B17: 1161 | C17: ACTIVIDADES A TODO COSTO | D17: KTS Soluciones Energéticas-FAGAELEC Ingeniería Eléctrica | E17: Bogotá | F17: Carrera 68 C No. 2 B - 31 | G17: 7742034 | H17: -- | I17: 15
A18: =+B18&COUNTIF($B$3:B18,B18) -> 11619 | B18: 1161 | C18: ACTIVIDADES A TODO COSTO | D18: NACIONAL DE TRANSFORMADORES | E18: Mosquera/Cundinamarca | F18: PARQUE INDUSTRIAL MONTANA - MOSQUERA | G18: 8932308 | H18: -- | I18: 16
A19: =+B19&COUNTIF($B$3:B19,B19) -> 116110 | B19: 1161 | C19: ACTIVIDADES A TODO COSTO | D19: PROELÉCTRICOS | E19: Bogotá | F19: CALLE 12 A No. 21 - 21 | G19: 2471255 EXT. 301 | H19: presupuestos@proelectricos.com | I19: 17
A20: =+B20&COUNTIF($B$3:B20,B20) -> 116111 | B20: 1161 | C20: ACTIVIDADES A TODO COSTO | D20: PROELÉCTRICOS | E20: Bogotá | F20: CALLE 12 A No. 21 - 21 | G20: 2471255 EXT. 301 | H20: presupuestos@proelectricos.com | I20: 18
A21: =+B21&COUNTIF($B$3:B21,B21) -> 116112 | B21: 1161 | C21: ACTIVIDADES A TODO COSTO | D21: SERVIN GELEC S.A.S. | E21: Bogotá | F21: CALLE 65 A nO. 16 - 30 OF. 201 | G21: 7031742 | H21: comercial@servingelec.com | I21: 19
A22: =+B22&COUNTIF($B$3:B22,B22) -> 11021 | B22: 1102 | C22: AGREGADOS PETREOS, BASES Y SUBBASES GRANULARES | D22: 4GA SAS Agregados de calidad | E22: Bogota | F22: Calle 124 10 29 Apto. 201 | G22: 3183821145 | H22: grupo4ga@gmail.com | I22: 20
A23: =+B23&COUNTIF($B$3:B23,B23) -> 11022 | B23: 1102 | C23: AGREGADOS PETREOS, BASES Y SUBBASES GRANULARES | D23: AGREGADOS EL VINCULO LTDA | E23: Soacha - Cund. | F23: Cra. 7 32 35 C.C. Mercurio Of. 308 | G23: 7251891 3212010616 | H23: info@agregadoselvinculo.com | I23: 21
A24: =+B24&COUNTIF($B$3:B24,B24) -> 11023 | B24: 1102 | C24: AGREGADOS PETREOS, BASES Y SUBBASES GRANULARES | D24: BCD SAS | E24: Bogota | F24: Cra. 67 62 B 55 Sur Bl. 14 Apto. 527 | G24: 3008360 | H24: bcd@bcdsas.com | I24: 22
A25: =+B25&COUNTIF($B$3:B25,B25) -> 11024 | B25: 1102 | C25: AGREGADOS PETREOS, BASES Y SUBBASES GRANULARES | D25: CEMENTOS ARGOS - AGREGADOS PETREOS | E25: Bogotá | F25: Carrera 13 con 80 esquina, entre Av. Boyacá y Av. Cali | G25: 3506623165 | H25: http://agregados.argos.co/productos | I25: 23
A26: =+B26&COUNTIF($B$3:B26,B26) -> 11025 | B26: 1102 | C26: AGREGADOS PETREOS, BASES Y SUBBASES GRANULARES | D26: CICLOMAT SAS MINERIA URBANA | E26: Bogota | F26: Cra. 16 134 A 21 | G26: 3162630002 3163881743 | H26: ciclomatcomercial@gmail.com | I26: 24
A27: =+B27&COUNTIF($B$3:B27,B27) -> 11026 | B27: 1102 | C27: AGREGADOS PETREOS, BASES Y SUBBASES GRANULARES | D27: DEPOSITO RONOVA | E27: Bogota | F27: Calle 141 46 87 | G27: 3202739323 5209398 6256570 | H27: depositoronova@gmail.com | I27: 25
A28: =+B28&COUNTIF($B$3:B28,B28) -> 11027 | B28: 1102 | C28: AGREGADOS PETREOS, BASES Y SUBBASES GRANULARES | D28: DOBLE A INGENIERIA S.A. | E28: Bogota | F28: Calle 79 B 8 11 Piso 3 | G28: 2101700 | H28: cpinilla@da-ing.com gerencia@dobleaingenieria.com | I28: 26
A29: =+B29&COUNTIF($B$3:B29,B29) -> 11028 | B29: 1102 | C29: AGREGADOS PETREOS, BASES Y SUBBASES GRANULARES | D29: DROMOS PAVIMENTOS S.A. | E29: Mosquera/Cundinamarca | F29: Km 3.8 Zona Industrial Balsillas | G29: 7425376 | H29: atencion@dromos.co | I29: 27
A30: =+B30&COUNTIF($B$3:B30,B30) -> 11029 | B30: 1102 | C30: AGREGADOS PETREOS, BASES Y SUBBASES GRANULARES | D30: FANNY I. TEQUIA Y CIA SAS | E30: Soacha - Cund. | F30: Cra. 6 15 38 | G30: 7814130 | H30: contacto@tequiaycia.com | I30: 28
A31: =+B31&COUNTIF($B$3:B31,B31) -> 110210 | B31: 1102 | C31: AGREGADOS PETREOS, BASES Y SUBBASES GRANULARES | D31: GRAVILLERA ALBANIA S.A. | E31: Chia - Cund. | F31: Carretera Central Del Norte Km 19 | G31: 6760212 3102849530 | H31: administracion@gravilleraalbania.com | I31: 29
A32: =+B32&COUNTIF($B$3:B32,B32) -> 110211 | B32: 1102 | C32: AGREGADOS PETREOS, BASES Y SUBBASES GRANULARES | D32: INCOMINERIA S.A.S. | E32: Mosquera - Cund. | F32: Km 3.8 Zona Industrial Balsillas | G32: 3187759539 | H32: ventas@incomineria.co wendy.chaves@incomineria.co | I32: 30
A33: =+B33&COUNTIF($B$3:B33,B33) -> 110212 | B33: 1102 | C33: AGREGADOS PETREOS, BASES Y SUBBASES GRANULARES | D33: INGENIEROS GF SAS | E33: Bogota | F33: Calle 119 14 A 26 Of. 101 - 401 | G33: 6295142 6295120 | H33: info@ingenierosgf.com.co pupilojas@hotmail.com | I33: 31
A34: =+B34&COUNTIF($B$3:B34,B34) -> 110213 | B34: 1102 | C34: AGREGADOS PETREOS, BASES Y SUBBASES GRANULARES | D34: INSTITUTO NACIONAL DE VÍAS - INVIAS | E34: Bogotá | F34: Carrera 59 #26-60, Edificio INVIAS | G34: 7056000 - Ext 1158 | H34: comunicaciones @invias.gov.co | I34: 32
A35: =+B35&COUNTIF($B$3:B35,B35) -> 110214 | B35: 1102 | C35: AGREGADOS PETREOS, BASES Y SUBBASES GRANULARES | D35: RECICLADOS INDUSTRIALES DE COLOMBIA | E35: Cota - Cund. | F35: Km 1.5 Costado Sur Vía Bogotá Siberia Cota | G35: 8966879 8759047 3114926299 | H35: info@recicladosindustriales.co | I35: 33
A36: =+B36&COUNTIF($B$3:B36,B36) -> 110215 | B36: 1102 | C36: AGREGADOS PETREOS, BASES Y SUBBASES GRANULARES | D36: REX INGENIERIA S.A. | E36: Bogota | F36: Cra. 6 153 A 60 | G36: 3378726 3378728 3107694302 | H36: atencionalcliente@rexingenieria.com | I36: 34
A37: =+B37&COUNTIF($B$3:B37,B37) -> 110216 | B37: 1102 | C37: AGREGADOS PETREOS, BASES Y SUBBASES GRANULARES | D37: REX INGENIERIA S.A. | E37: Bogota | F37: Cra. 6 153 A 60 | G37: 3378726 3378728 3107694302 | H37: atencionalcliente@rexingenieria.com | I37: 35
A38: =+B38&COUNTIF($B$3:B38,B38) -> 11601 | B38: 1160 | C38: AMBIENTAL | D38: AGROVETERINARIA DEL CENTRO SAS | E38: Bogota | F38: Calle 11 15 19 | G38: 2431110 | H38: agroveterinariadelcentrohv@gmail.com | I38: 36
A39: =+B39&COUNTIF($B$3:B39,B39) -> 11602 | B39: 1160 | C39: AMBIENTAL | D39: ALMACEN AGROPECUARIO DE LA SABANA | E39: Bogota | F39: Calle 70 A 14 31 | G39: 3153921773 5445236 | H39: info@agrolasabana.com | I39: 37
A40: =+B40&COUNTIF($B$3:B40,B40) -> 11603 | B40: 1160 | C40: AMBIENTAL | D40: EASY | E40: Bogota | F40: Avda. Americas 68 94 | G40: 4191400 | H40: www.easy.com.co | I40: 38
A41: =+B41&COUNTIF($B$3:B41,B41) -> 11604 | B41: 1160 | C41: AMBIENTAL | D41: HOMECENTER | E41: Bogota | F41: Avda. 68 37 37 Sur | G41: 3077115 | H41: www.homecenter.com.co | I41: 39
A42: =+B42&COUNTIF($B$3:B42,B42) -> 11605 | B42: 1160 | C42: AMBIENTAL | D42: LA RES S.A.S. | E42: Bogota | F42: Cra. 13 13 91 | G42: 2825353 3362370 | H42: ventas@lares.com.co | I42: 40
A43: =+B43&COUNTIF($B$3:B43,B43) -> 11471 | B43: 1147 | C43: ARBOLES, GRAMAS, VEGETACION Y PLANTACION PAISAJISTICA | D43: AGRO DECORACIÓN | E43: Bogotá | F43: Cra 123 B 128 | G43: 6873661 | H43: agrodecoraciones@yahoo.es | I43: 41
A44: =+B44&COUNTIF($B$3:B44,B44) -> 11472 | B44: 1147 | C44: ARBOLES, GRAMAS, VEGETACION Y PLANTACION PAISAJISTICA | D44: ECOPRADOS SOLUCIONES AMBIENTALES | E44: Bogotá | F44: -- | G44: -- | H44: -- | I44: 42
A45: =+B45&COUNTIF($B$3:B45,B45) -> 11473 | B45: 1147 | C45: ARBOLES, GRAMAS, VEGETACION Y PLANTACION PAISAJISTICA | D45: EL SEMILLERO | E45: Bogotá | F45: Calle 70 A No. 14 A - 45 | G45: 3473760 | H45: elsemillero@elsemillero.net | I45: 43
A46: =+B46&COUNTIF($B$3:B46,B46) -> 11474 | B46: 1147 | C46: ARBOLES, GRAMAS, VEGETACION Y PLANTACION PAISAJISTICA | D46: INFORAGRO SAS | E46: Bogota | F46: Cra. 18 51 81 | G46: 3128474 7003106 | H46: inforagroltda@yahoo.es | I46: 44
A47: =+B47&COUNTIF($B$3:B47,B47) -> 11475 | B47: 1147 | C47: ARBOLES, GRAMAS, VEGETACION Y PLANTACION PAISAJISTICA | D47: INSTITUTO DISTRITAL DE RECREACION Y DEPORTE - IDRD | E47: Bogota | F47: Calle 63 59 A 06 | G47: 6605400 | H47: www.idrd.gov.co | I47: 45
A48: =+B48&COUNTIF($B$3:B48,B48) -> 11476 | B48: 1147 | C48: ARBOLES, GRAMAS, VEGETACION Y PLANTACION PAISAJISTICA | D48: SECRETARIA DISTRITAL DE AMBIENTE SDA | E48: Bogota | F48: Avda. Caracas 54 38 | G48: 3778899 | H48: www.ambientebogota.gov.co | I48: 46
A49: =+B49&COUNTIF($B$3:B49,B49) -> 11271 | B49: 1127 | C49: BORDILLOS Y LOSETAS | D49: ALFAGRES S.A. | E49: Bogota | F49: Avda. Caracas 35 55 | G49: 3311515 | H49: telemercadeo@alfa.com.co servicioalcliente@alfa.com.co | I49: 47
A50: =+B50&COUNTIF($B$3:B50,B50) -> 11272 | B50: 1127 | C50: BORDILLOS Y LOSETAS | D50: CICLOMAT SAS MINERIA URBANA | E50: Bogota | F50: Cra. 16 134 A 21 | G50: 3162630002 3163881743 | H50: ciclomatcomercial@gmail.com | I50: 48
A51: =+B51&COUNTIF($B$3:B51,B51) -> 11273 | B51: 1127 | C51: BORDILLOS Y LOSETAS | D51: CONSTRUDATA | E51: Pagina WEB | F51: N.A. | G51: N.A. | H51: www.construdata.com | I51: 49
A52: =+B52&COUNTIF($B$3:B52,B52) -> 11274 | B52: 1127 | C52: BORDILLOS Y LOSETAS | D52: EL CONDOR PREFABRICADOS SAS | E52: Soacha - Cund. | F52: Km 2 Via Fusunga vereda Panama | G52: 3134230803 7218612 | H52: info@elcondorprefabricados.com | I52: 50
A53: =+B53&COUNTIF($B$3:B53,B53) -> 11275 | B53: 1127 | C53: BORDILLOS Y LOSETAS | D53: INSUMOBRAS LTDA | E53: Bogota | F53: Autopista Medellin Km 14 Puente Piedra | G53: 3108196349 | H53: insumobrasltda@hotmail.com invaye@hotmail.com | I53: 51
A54: =+B54&COUNTIF($B$3:B54,B54) -> 11276 | B54: 1127 | C54: BORDILLOS Y LOSETAS | D54: MANUFACTURAS DE CEMENTO S.A. TITAN | E54: Cota - Cund. | F54: Autopista Medellin, entrada 2,4 Km al occidente del rio Bogotá | G54: 3353550 | H54: malvarez@titancemento.com | I54: 52
A55: =+B55&COUNTIF($B$3:B55,B55) -> 11277 | B55: 1127 | C55: BORDILLOS Y LOSETAS | D55: PLACA LISTA MODULOS PREFABRICADOS LTDA | E55: Bogota | F55: Calle 65 13 50 Of. 503 | G55: 2550490 3476569 3108173990 | H55: placalista01@yahoo.com | I55: 53
A56: =+B56&COUNTIF($B$3:B56,B56) -> 11278 | B56: 1127 | C56: BORDILLOS Y LOSETAS | D56: TUBOX SAS | E56: Bogota | F56: Calle 22 A 129 87 | G56: 3132851605 3143576140 7565545 | H56: comercial@tubox.com.co | I56: 54
A57: =+B57&COUNTIF($B$3:B57,B57) -> 11211 | B57: 1121 | C57: CABLES Y ACCESORIOS ELECTRICOS | D57: 3M | E57: Bogotá | F57: AV EL DORADO 75-93 | G57: 4161666 | H57: dcpieros@mmm.com | I57: 55
A58: =+B58&COUNTIF($B$3:B58,B58) -> 11212 | B58: 1121 | C58: CABLES Y ACCESORIOS ELECTRICOS | D58: ABB LTDA | E58: Bogotá | F58: Cra. 100 25 D 61 | G58: 4178000 01 8000 522 226 378 9349 | H58: contact.center@co.abb.com | I58: 56
A59: =+B59&COUNTIF($B$3:B59,B59) -> 11213 | B59: 1121 | C59: CABLES Y ACCESORIOS ELECTRICOS | D59: ACONSTRUCTORAS.COM | E59: Yopal - Casanare | F59: Calle 25 15 19 | G59: 3005541747 3163971751 | H59: www.aconstructoras.com | I59: 57
A60: =+B60&COUNTIF($B$3:B60,B60) -> 11214 | B60: 1121 | C60: CABLES Y ACCESORIOS ELECTRICOS | D60: ALMACÉN CANAIMA | E60: Armenia - Quindio | F60: Calle 17 20 21 | G60: 3148884477 (6)7447384 | H60: info@almacencanaima.com | I60: 58
A61: =+B61&COUNTIF($B$3:B61,B61) -> 11215 | B61: 1121 | C61: CABLES Y ACCESORIOS ELECTRICOS | D61: BORNA DESDE 1984 | E61: Bogotá | F61: CARRERA 24 8-51 BOGOTA | G61: 383 7610 | H61: www.borna-store.com servicioalcliente@bornas.info | I61: 59
A62: =+B62&COUNTIF($B$3:B62,B62) -> 11216 | B62: 1121 | C62: CABLES Y ACCESORIOS ELECTRICOS | D62: CEB IMPORTADORA SAS | E62: Bogota | F62: Cra. 13 19 29 | G62: 2825100 | H62: administracion@cebbogota.com | I62: 60
A63: =+B63&COUNTIF($B$3:B63,B63) -> 11217 | B63: 1121 | C63: CABLES Y ACCESORIOS ELECTRICOS | D63: CEI ELECTRICA INTERNACIONAL SAS | E63: Bogotá | F63: Cra. 13 No. 13 - 17 Of. 404 | G63: 2435090 | H63: ventas@ceielectricainternacional.com | I63: 61
A64: =+B64&COUNTIF($B$3:B64,B64) -> 11218 | B64: 1121 | C64: CABLES Y ACCESORIOS ELECTRICOS | D64: TUBOS Y ACCESORIOS CELTA | E64: QUINDÍO/ARMENIA | F64: Cra. 87 1 42 | G64: 7799000 | H64: rurodrig@celta.com.co | I64: 62
A65: =+B65&COUNTIF($B$3:B65,B65) -> 11219 | B65: 1121 | C65: CABLES Y ACCESORIOS ELECTRICOS | D65: CENTELSA | E65: Bogota | F65: Avda. Calle 26 68 C 61 Of. 717 | G65: 3166931865 3154334617 3154332661 | H65: armando.penaranda@centelsa.com.co david.uribe@centelsa.com.co luisf.escobar@centelsa.com.co | I65: 63
A66: =+B66&COUNTIF($B$3:B66,B66) -> 112110 | B66: 1121 | C66: CABLES Y ACCESORIOS ELECTRICOS | D66: CONSTRUDATA | E66: Bogotá | F66: Avda. Calle 26 82 70 | G66: 4255200 | H66: construdata@legis.com.co | I66: 64
A67: =+B67&COUNTIF($B$3:B67,B67) -> 112111 | B67: 1121 | C67: CABLES Y ACCESORIOS ELECTRICOS | D67: CU CONECTORES | E67: Funza - Cundinamarca | F67: Km 7 vía Bogotá - Medellín Complejo Industrial Celta Trade Park, Bodega 152-3 | G67: 8966535 Ext. 400 | H67: comercial@cuconectores.com.co | I67: 65
A68: =+B68&COUNTIF($B$3:B68,B68) -> 112112 | B68: 1121 | C68: CABLES Y ACCESORIOS ELECTRICOS | D68: DIELCO LTDA | E68: Bogotá | F68: CALLE 15 No. 12 - 51 | G68: 7439050 | H68: -- | I68: 66
A69: =+B69&COUNTIF($B$3:B69,B69) -> 112113 | B69: 1121 | C69: CABLES Y ACCESORIOS ELECTRICOS | D69: DISELEC LTDA | E69: Bogota | F69: Cra. 12 16 26 | G69: 3107720207 2843500 2832928 | H69: distrielectrica@hotmail.com | I69: 67
A70: =+B70&COUNTIF($B$3:B70,B70) -> 112114 | B70: 1121 | C70: CABLES Y ACCESORIOS ELECTRICOS | D70: DYCON MATERIALES ELÉCTRICOS | E70: Neiva - Huila | F70: Calle 22 #1h-38, Rojas Trujillo | G70: 8750577 | H70: -- | I70: 68
A71: =+B71&COUNTIF($B$3:B71,B71) -> 112115 | B71: 1121 | C71: CABLES Y ACCESORIOS ELECTRICOS | D71: EASY | E71: Bogota | F71: Avda. Americas 68 94 | G71: 4191400 | H71: www.easy.com.co | I71: 69
A72: =+B72&COUNTIF($B$3:B72,B72) -> 112116 | B72: 1121 | C72: CABLES Y ACCESORIOS ELECTRICOS | D72: EIMPSA | E72: Bogotá | F72: Calle 15 No. 13 - 48 (Entrada Principal) Calle 16 N. 13 - 55 (Parqueadero) | G72: 3275222 - 3340686 | H72: E-mail: ventas@eimpsa.com.co | I72: 70
A73: =+B73&COUNTIF($B$3:B73,B73) -> 112117 | B73: 1121 | C73: CABLES Y ACCESORIOS ELECTRICOS | D73: ELÉCTRICOS INDUSTRIALES LTDA | E73: Bogotá | F73: Cl 15 13-58 | G73: 3421788 | H73: http://www.elein.com.co | I73: 71
A74: =+B74&COUNTIF($B$3:B74,B74) -> 112118 | B74: 1121 | C74: CABLES Y ACCESORIOS ELECTRICOS | D74: ELECTRO MARCAS SOLUCIONES CON ENERGIA | E74: Bogota | F74: Cra 12 15 45 | G74: 3102386993 3341892 | H74: wilson.ariza@electromarcas.com | I74: 72
A75: =+B75&COUNTIF($B$3:B75,B75) -> 112119 | B75: 1121 | C75: CABLES Y ACCESORIOS ELECTRICOS | D75: ENERGIZAR | E75: Bogota | F75: Avda. Americas 68 94 | G75: 4191400 | H75: www.easy.com.co | I75: 73
A76: =+B76&COUNTIF($B$3:B76,B76) -> 112120 | B76: 1121 | C76: CABLES Y ACCESORIOS ELECTRICOS | D76: FERROCABLES S.A.S. | E76: Medellín - Antioquia | F76: CARRERA 45 No. 29 - 32 | G76: 4445123 | H76: -- | I76: 74
A77: =+B77&COUNTIF($B$3:B77,B77) -> 112121 | B77: 1121 | C77: CABLES Y ACCESORIOS ELECTRICOS | D77: GERFOR | E77: Cota - Cund. | F77: Autopista Medellin Km 2 - 600 Entrada via Parcelas de Cota | G77: 8776800 | H77: contactenos@gerfor.com www.gerfor.com.co | I77: 75
A78: =+B78&COUNTIF($B$3:B78,B78) -> 112122 | B78: 1121 | C78: CABLES Y ACCESORIOS ELECTRICOS | D78: HOMECENTER | E78: Bogota | F78: Avda. 68 37 37 Sur | G78: 3077115 | H78: www.homecenter.com.co | I78: 76
A79: =+B79&COUNTIF($B$3:B79,B79) -> 112123 | B79: 1121 | C79: CABLES Y ACCESORIOS ELECTRICOS | D79: HOMESENTRY | E79: Bogota | F79: Calle 127C No. 45-81 | G79: 6151515 Extensión 3031 | H79: norte@homesentry.net | I79: 77
A80: =+B80&COUNTIF($B$3:B80,B80) -> 112124 | B80: 1121 | C80: CABLES Y ACCESORIOS ELECTRICOS | D80: I.E. INTER ELECTRICAS | E80: Bogota | F80: Cra. 12 13 46 | G80: 3360755 Ext. 1103 3106983687 | H80: servicioalcliente@ie.com.co | I80: 78
A81: =+B81&COUNTIF($B$3:B81,B81) -> 112125 | B81: 1121 | C81: CABLES Y ACCESORIOS ELECTRICOS | D81: INTERNACIONAL DE ELÉCTRICOS | E81: Bogota | F81: Avda. Caracas 64 23 | G81: 7448130 | H81: amrubio@iegrupo.co lsescorcia@iegrupo.co | I81: 79
A82: =+B82&COUNTIF($B$3:B82,B82) -> 112126 | B82: 1121 | C82: CABLES Y ACCESORIOS ELECTRICOS | D82: IT-RED Infraestructura & redes | E82: Bogota | F82: Av. El Dorado No. 68 C -61 Of. 204 Edificio Torre | G82: 4322981 | H82: informacion@itred.com.co | I82: 80
A83: =+B83&COUNTIF($B$3:B83,B83) -> 112127 | B83: 1121 | C83: CABLES Y ACCESORIOS ELECTRICOS | D83: LA ESQUINA DE LOS ELECTRICOS | E83: Bogota | F83: Calle 18 10 71 | G83: 2845023 | H83: esquinaelectricos@hotmail.com | I83: 81
A84: =+B84&COUNTIF($B$3:B84,B84) -> 112128 | B84: 1121 | C84: CABLES Y ACCESORIOS ELECTRICOS | D84: MAELECTRICOS | E84: Bogota | F84: Calle 17 28 A 74 | G84: 3647373 | H84: julian.c@maelectricos.com julian.alvarado@maelectricos.com | I84: 82
A85: =+B85&COUNTIF($B$3:B85,B85) -> 112129 | B85: 1121 | C85: CABLES Y ACCESORIOS ELECTRICOS | D85: NACIONAL DE ELECTRICOS | E85: Bogota | F85: Calle 15 12 81 | G85: 3114758165 2543720 Ext. 1502 | H85: centro1@nalelectricos.com.co www.nalelectricos.com.co | I85: 83
A86: =+B86&COUNTIF($B$3:B86,B86) -> 112130 | B86: 1121 | C86: CABLES Y ACCESORIOS ELECTRICOS | D86: PAVCO S.A. | E86: Bogota | F86: Autopista Sur 71 75 | G86: 7825000 | H86: servicio@pavco.com.co orlando.polo@pavco.com.co www.pavco.com.co | I86: 84
A87: =+B87&COUNTIF($B$3:B87,B87) -> 112131 | B87: 1121 | C87: CABLES Y ACCESORIOS ELECTRICOS | D87: PLANTAS ELÉCTRICAS LTDA | E87: Bogota | F87: Carrera 26 No 8 – 36 Barrio Ricaurte | G87: 5102198 5102134 4085742 | H87: plantaselectricas-ltda.com ventas2@plantaselectricas-ltda.com ventas@plantaselectricas-ltda.com | I87: 85
A88: =+B88&COUNTIF($B$3:B88,B88) -> 112132 | B88: 1121 | C88: CABLES Y ACCESORIOS ELECTRICOS | D88: PLANTIDIESELES S.A.S. LTDA Soluciones Integrales de Energía | E88: Bogota | F88: Carrera 127 No. 22G - 18 Bodegas 7-8 | G88: 4185960 - 4185961 - 4185990 | H88: info@plantidieseles.com | I88: 86
A89: =+B89&COUNTIF($B$3:B89,B89) -> 112133 | B89: 1121 | C89: CABLES Y ACCESORIOS ELECTRICOS | D89: PRIXMA | E89: Cali - Valle | F89: CRA 4 B No. 36 - 44 | G89: 5242939 | H89: comercial3@prixma.com.co | I89: 87
A90: =+B90&COUNTIF($B$3:B90,B90) -> 112134 | B90: 1121 | C90: CABLES Y ACCESORIOS ELECTRICOS | D90: PROCABLES | E90: Bogota | F90: Calle 20 68 B 71 | G90: 4042666 Ext. 471 | H90: licitaciones@generalcable.com.co | I90: 88
A91: =+B91&COUNTIF($B$3:B91,B91) -> 112135 | B91: 1121 | C91: CABLES Y ACCESORIOS ELECTRICOS | D91: PROELÉCTRICOS | E91: Bogota | F91: CALLE 12 A No. 21 - 21 | G91: 2471255 EXT. 301 | H91: presupuestos@proelectricos.com | I91: 89
A92: =+B92&COUNTIF($B$3:B92,B92) -> 112136 | B92: 1121 | C92: CABLES Y ACCESORIOS ELECTRICOS | D92: REDES ELECTRICAS S.A. | E92: Bogota | F92: Cra. 12 15 97 | G92: 3340511 3647000 | H92: ventas.palo@redeselectricas.com ingenieria@redeselectricas.com oscar.rodriguez@redes electricas.com | I92: 90
A93: =+B93&COUNTIF($B$3:B93,B93) -> 112137 | B93: 1121 | C93: CABLES Y ACCESORIOS ELECTRICOS | D93: RYMEL | E93: Copacabana - Antioquia Antioquia/Medellín | F93: Autopista Norte paraje El Noral | G93: 4440430 | H93: rymel@rymel.com.co | I93: 91
A94: =+B94&COUNTIF($B$3:B94,B94) -> 112138 | B94: 1121 | C94: CABLES Y ACCESORIOS ELECTRICOS | D94: SIEMENS S.A. | E94: Tenjo - Cund. | F94: Autopista Medellin, Km 8.5 Costado Sur Tenjo | G94: 4142400 2942400 | H94: lia.deltoro@siemens.com www.siemens.com.co | I94: 92
A95: =+B95&COUNTIF($B$3:B95,B95) -> 112139 | B95: 1121 | C95: CABLES Y ACCESORIOS ELECTRICOS | D95: STEREN | E95: Bogotá | F95: Calle 140 n. 12B-25, Edificio Castellana Empresarial, oficina 103 | G95: 7443200 | H95: www.steren.com.co | I95: 93
A96: =+B96&COUNTIF($B$3:B96,B96) -> 112140 | B96: 1121 | C96: CABLES Y ACCESORIOS ELECTRICOS | D96: SUNTEC / WEG | E96: Antioquia/Medellín | F96: Carrera 47G # 78 D Sur - 147 | G96: 3187117802 | H96: ycastrillon@suntec.com.co | I96: 94
A97: =+B97&COUNTIF($B$3:B97,B97) -> 112141 | B97: 1121 | C97: CABLES Y ACCESORIOS ELECTRICOS | D97: ALMACÉN SUPERELÉCTRICOS | E97: Bogotá | F97: Cl 14 12-86 | G97: (+57) 1 3424035 (+57) 1 3424019 | H97: -- | I97: 95
A98: =+B98&COUNTIF($B$3:B98,B98) -> 112142 | B98: 1121 | C98: CABLES Y ACCESORIOS ELECTRICOS | D98: TELDOR | E98: Bogotá | F98: Cr8 64-42 Of 318 | G98: -- | H98: ventos.palo@redeselectricas.com ventos.centro@redeselectricas.com | I98: 96
A99: =+B99&COUNTIF($B$3:B99,B99) -> 11951 | B99: 1195 | C99: CARPINTERIA METALICA | D99: HB SADELEC Estructuras Metálicas | E99: Bogota | F99: Avda. Cra. 129 17 F 97 | G99: 4224700 Ext. 121 4155620 | H99: david.castellanos@hbsadelec.com.co | I99: 97
A100: =+B100&COUNTIF($B$3:B100,B100) -> 11952 | B100: 1195 | C100: CARPINTERIA METALICA | D100: NAZCA DISEÑO - IMAGEN SAS | E100: Bogota | F100: Cra. 55 45 A 20 | G100: 3244248 3003228552 | H100: comercial@nazca.com.co | I100: 98
A101: =+B101&COUNTIF($B$3:B101,B101) -> 11301 | B101: 1130 | C101: COMBUSTIBLES Y LUBRICANTES | D101: MINISTERIO DE MINAS Y ENERGIA | E101: Bogota | F101: Calle 43 57 31 | G101: 2200300 2200306 | H101: www.minminas.gov.co | I101: 99
A102: =+B102&COUNTIF($B$3:B102,B102) -> 11031 | B102: 1103 | C102: CONCRETOS Y MORTEROS PREMEZCLADOS | D102: CONCRETOS ARGOS S.A. | E102: Bogotá | F102: Cra. 7 71 21 Torre A Piso 10 | G102: 6767060 | H102: info@argos.com.co | I102: 100
A103: =+B103&COUNTIF($B$3:B103,B103) -> 11032 | B103: 1103 | C103: CONCRETOS Y MORTEROS PREMEZCLADOS | D103: CEMEX DE COLOMBIA S.A. | E103: Bogota | F103: Calle 99 9 A 54 Piso 8 | G103: 6469000 6039100 | H103: ginnamarcela.gomez@cemex.com alvaro.coral@cemex.com adrianamaritza.ramosrt@cemex.com.co yessicadamaris.torresbeltran@ext.cemex.com | I103: 101
A104: =+B104&COUNTIF($B$3:B104,B104) -> 11033 | B104: 1103 | C104: CONCRETOS Y MORTEROS PREMEZCLADOS | D104: ELEMENTOS PREFABRICADOS DE CONCRETO EL PRECON | E104: Madrid - Cund. | F104: Km 13.7 Autopista Medellin 1.2 Km del Round Point de Puente de Piedra hacia Bogota (Costado Sur) | G104: 3125933840 3115149414 | H104: elprecon@hotmail.com | I104: 102
A105: =+B105&COUNTIF($B$3:B105,B105) -> 11034 | B105: 1103 | C105: CONCRETOS Y MORTEROS PREMEZCLADOS | D105: HIDROPROTECCIÓN | E105: Bogotá | F105: Autopista Norte 169 25 | G105: 6784011 | H105: servicioalcliente@hidroproteccion.com | I105: 103
A106: =+B106&COUNTIF($B$3:B106,B106) -> 11035 | B106: 1103 | C106: CONCRETOS Y MORTEROS PREMEZCLADOS | D106: HOMECENTER | E106: Bogota | F106: Avda. 68 37 37 Sur | G106: 3077115 | H106: www.homecenter.com.co | I106: 104
A107: =+B107&COUNTIF($B$3:B107,B107) -> 11036 | B107: 1103 | C107: CONCRETOS Y MORTEROS PREMEZCLADOS | D107: HORMIGON ANDINO S.A. | E107: Bogota | F107: Calle 125 21 A 18 Piso 4 | G107: 3164706585 6371837 | H107: comercial@hormigonandino.com | I107: 105
A108: =+B108&COUNTIF($B$3:B108,B108) -> 11037 | B108: 1103 | C108: CONCRETOS Y MORTEROS PREMEZCLADOS | D108: MUNDO PREFABRICADOS | E108: Bogotá | F108: PLANTA PUENTE PIEDRA km 15 Autopista Medellin | G108: 310-710-9290 | H108: mundo.prefabricados@mundoprefabricados.com www.mundoprefabricados.com | I108: 106
A109: =+B109&COUNTIF($B$3:B109,B109) -> 11038 | B109: 1103 | C109: CONCRETOS Y MORTEROS PREMEZCLADOS | D109: SIKA COLOMBIA SAS | E109: Tocancipa - Cund. | F109: Vereda Canavita, Km 20,5 Autopista Norte | G109: 8786666 8786681 | H109: ortiz.ricardo@co.sika.com chacon.jose@co.sika.com | I109: 107
A110: =+B110&COUNTIF($B$3:B110,B110) -> 11039 | B110: 1103 | C110: CONCRETOS Y MORTEROS PREMEZCLADOS | D110: TOXEMENT | E110: Bogota | F110: Calle 20 53 A 42 | G110: 2088600 | H110: sandrarodriguez@toxement.com.co atencioncliente@toxement.com.co | I110: 108
A111: =+B111&COUNTIF($B$3:B111,B111) -> 11681 | B111: 1168 | C111: CONSULTORIA | D111: SECRETARIA DISTRITAL DE PLANEACION | E111: Bogota | F111: Avda. Cra. 30 25 90 | G111: 3358000 | H111: www.sdp.gov.co | I111: 109
A112: =+B112&COUNTIF($B$3:B112,B112) -> 11682 | B112: 1168 | C112: CONSULTORIA | D112: SUPERINTENDENCIA DE NOTARIADO Y REGISTRO | E112: Bogota | F112: Calle 26 13 49 Int. 201 | G112: 3282121 | H112: correspondencia@supernotariado.gov.co | I112: 110
A113: =+B113&COUNTIF($B$3:B113,B113) -> 12001 | B113: 1200 | C113: CUBIERTA, CIELO RASO, CORTASOL TIPO TRANSMILENIO | D113: HB SADELEC Estructuras Metálicas | E113: Bogotá | F113: Avda. Cra. 129 17 F 97 | G113: 4155620 | H113: david.castellanos@hbsadelec.com.co | I113: 111
A114: =+B114&COUNTIF($B$3:B114,B114) -> 12002 | B114: 1200 | C114: CUBIERTA, CIELO RASO, CORTASOL TIPO TRANSMILENIO | D114: GRONCOL INFRAESTRUCTURA VERDE | E114: Bogotá | F114: Calle 90 13 40 | G114: 7030955 | H114: info@groncol.com | I114: 112
A115: =+B115&COUNTIF($B$3:B115,B115) -> 11941 | B115: 1194 | C115: DESMONTE Y TRASLADO DE ELEMENTOS METALICOS | D115: INDUSTRIAS METÁLICAS GRAG S.A.S. | E115: Bogotá | F115: Cra. 27 No. 10 - 35 | G115: 2778985/2474813 | H115: metalgrag@yahoo.es | I115: 113
A116: =+B116&COUNTIF($B$3:B116,B116) -> 11942 | B116: 1194 | C116: DESMONTE Y TRASLADO DE ELEMENTOS METALICOS | D116: INGEVEC SAS | E116: Bogotá | F116: CALLE 93 A 68 B 30 | G116: 3014432758 | H116: -- | I116: 114
A117: =+B117&COUNTIF($B$3:B117,B117) -> 11943 | B117: 1194 | C117: DESMONTE Y TRASLADO DE ELEMENTOS METALICOS | D117: NAZCA DISEÑO - IMAGEN SAS | E117: Bogota | F117: Cra. 55 45 A 20 | G117: 3244248 3003228552 | H117: comercial@nazca.com.co | I117: 115
A118: =+B118&COUNTIF($B$3:B118,B118) -> 11481 | B118: 1148 | C118: DOTACION (EPP) Y EQUIPO Y HERRAMIENTA SEGURIDAD INDUSTRIAL | D118: CENTRAL DE DOTACIONES LTDA | E118: Bogota | F118: Cra. 69 A 31 62 Sur | G118: 3118109568 7110583 | H118: almacenprincipal@centraldedotaciones.com | I118: 116
A119: =+B119&COUNTIF($B$3:B119,B119) -> 11482 | B119: 1148 | C119: DOTACION (EPP) Y EQUIPO Y HERRAMIENTA SEGURIDAD INDUSTRIAL | D119: CONSTRUDATA | E119: Bogotá | F119: Avda. Calle 26 82 70 | G119: 4255200 | H119: construdata@legis.com.co | I119: 117
A120: =+B120&COUNTIF($B$3:B120,B120) -> 11483 | B120: 1148 | C120: DOTACION (EPP) Y EQUIPO Y HERRAMIENTA SEGURIDAD INDUSTRIAL | D120: DYA INSUMOS FERRETEROS SAS | E120: Bogota | F120: Calle 9 34 86 | G120: 3102144153 7451525 | H120: ventas@dyainsumosferreteros.com | I120: 118
A121: =+B121&COUNTIF($B$3:B121,B121) -> 11484 | B121: 1148 | C121: DOTACION (EPP) Y EQUIPO Y HERRAMIENTA SEGURIDAD INDUSTRIAL | D121: DOTA FUERTE | E121: Bogota | F121: Avda. Cra. 68 14 32 Sur | G121: 3112819386 2628514 | H121: dotafuerte@gmail.com | I121: 119
A122: =+B122&COUNTIF($B$3:B122,B122) -> 11485 | B122: 1148 | C122: DOTACION (EPP) Y EQUIPO Y HERRAMIENTA SEGURIDAD INDUSTRIAL | D122: DOTACIONES CALDERON SAS | E122: Bogota | F122: Avda. Cra. 68 22 64 Sur | G122: 4065664 4069690 | H122: ventas515@hotmail.es | I122: 120
A123: =+B123&COUNTIF($B$3:B123,B123) -> 11486 | B123: 1148 | C123: DOTACION (EPP) Y EQUIPO Y HERRAMIENTA SEGURIDAD INDUSTRIAL | D123: CONFECCIONES EL OVEROL LTDA | E123: Bogotá | F123: Calle 15 22 73 | G123: 2779854 | H123: ventas@confeccioneseloverol.com | I123: 121
A124: =+B124&COUNTIF($B$3:B124,B124) -> 11487 | B124: 1148 | C124: DOTACION (EPP) Y EQUIPO Y HERRAMIENTA SEGURIDAD INDUSTRIAL | D124: VANGUARD SEGURIDAD INDUSTRIAL | E124: Bogota | F124: Cra. 25 13 53 | G124: 7431671 7452796 | H124: info@vanguardseguridadindustrial.com | I124: 122
A125: =+B125&COUNTIF($B$3:B125,B125) -> 11111 | B125: 1111 | C125: DUCTOS PVC - ELECTRICOS/TELEFONICOS TIPO TDP-DB-EB | D125: DURMAN COLOMBIA S.A. | E125: Madrid - Cund. | F125: Km 27 Vía Fontibon Facatativa Los Alpes | G125: 8200200 | H125: colombia@durman.com | I125: 123
A126: =+B126&COUNTIF($B$3:B126,B126) -> 11112 | B126: 1111 | C126: DUCTOS PVC - ELECTRICOS/TELEFONICOS TIPO TDP-DB-EB | D126: ELÉCTRICOS JS & AC SAS | E126: Bogota | F126: Avda. Calle 63 103 A 32 | G126: 4313120 3145387908 3104772097 | H126: info@electricosjs.com | I126: 124
A127: =+B127&COUNTIF($B$3:B127,B127) -> 11113 | B127: 1111 | C127: DUCTOS PVC - ELECTRICOS/TELEFONICOS TIPO TDP-DB-EB | D127: GERFOR | E127: Bogota | F127: Autopista Medellin Km 2 - 600 m Entrada vía parcelas de Cota | G127: 877 6800 | H127: contactenos@gerfor.com | I127: 125
A128: =+B128&COUNTIF($B$3:B128,B128) -> 11114 | B128: 1111 | C128: DUCTOS PVC - ELECTRICOS/TELEFONICOS TIPO TDP-DB-EB | D128: PAVCO S.A. | E128: Bogota | F128: Autopista Sur 71 75 | G128: 7825000 | H128: servicio@pavco.com.co orlando.polo@pavco.com.co www.pavco.com.co | I128: 126
A129: =+B129&COUNTIF($B$3:B129,B129) -> 11115 | B129: 1111 | C129: DUCTOS PVC - ELECTRICOS/TELEFONICOS TIPO TDP-DB-EB | D129: TUBOS Y ACCESORIOS CELTA | E129: Bogota | F129: Cra. 87 1 42 | G129: 7799000 3143302256 3123320171 | H129: rurodrig@celta.com.co katherine.rodriguez@celta.com.co | I129: 127
A130: =+B130&COUNTIF($B$3:B130,B130) -> 11041 | B130: 1104 | C130: EMULSIONES Y MEZCLAS ASFALTICAS | D130: ASFALTOS PANAMA G. R. | E130: Soacha - Cund. | F130: Vereda Panama / Recebera El Tesoro | G130: 2654522 | H130: asfaltospanama@hotmail.com | I130: 128
A131: =+B131&COUNTIF($B$3:B131,B131) -> 11042 | B131: 1104 | C131: EMULSIONES Y MEZCLAS ASFALTICAS | D131: DOBLE A INGENIERIA S.A. | E131: Bogota | F131: Calle 79 B 8 11 Piso 3 | G131: 2101700 | H131: cpinilla@da-ing.com gerencia@dobleaingenieria.com | I131: 129
A132: =+B132&COUNTIF($B$3:B132,B132) -> 11043 | B132: 1104 | C132: EMULSIONES Y MEZCLAS ASFALTICAS | D132: DROMOS PAVIMENTOS S.A. | E132: Mosquera - Cund. | F132: Km 3.8 Zona Industrial Balsillas | G132: 7425376 Ext. 1208 3152199639 | H132: paola.castro@dromos.co atencion@dromos.co | I132: 130
A133: =+B133&COUNTIF($B$3:B133,B133) -> 11044 | B133: 1104 | C133: EMULSIONES Y MEZCLAS ASFALTICAS | D133: EZ STREET ASFALTO | E133: Gachancipa - Cund. | F133: Autopista Norte km 28 | G133: 3173000246 | H133: ventas@itpasfaltos.com | I133: 131
A134: =+B134&COUNTIF($B$3:B134,B134) -> 11045 | B134: 1104 | C134: EMULSIONES Y MEZCLAS ASFALTICAS | D134: HOMECENTER | E134: Bogota | F134: Avda. 68 37 37 Sur | G134: 3077115 | H134: www.homecenter.com.co | I134: 132
A135: =+B135&COUNTIF($B$3:B135,B135) -> 11046 | B135: 1104 | C135: EMULSIONES Y MEZCLAS ASFALTICAS | D135: INCOASFALTOS SAS | E135: Chia - Cund. | F135: Cra. 5 16 70 | G135: 8637888 | H135: cotizacionesolperez@incoasfaltos.com gmolina@incoasfaltos.com | I135: 133
A136: =+B136&COUNTIF($B$3:B136,B136) -> 11047 | B136: 1104 | C136: EMULSIONES Y MEZCLAS ASFALTICAS | D136: INSTITUTO NACIONAL DE VÍAS - INVIAS | E136: Bogotá | F136: Carrera 59 #26-60, Edificio INVIAS | G136: 7056000 - Ext 1158 | H136: comunicaciones @invias.gov.co | I136: 134
A137: =+B137&COUNTIF($B$3:B137,B137) -> 11048 | B137: 1104 | C137: EMULSIONES Y MEZCLAS ASFALTICAS | D137: MPI LTDA | E137: Bogota | F137: Cra. 7 83 92 Of. 404 | G137: 2375626 3102037329 | H137: direccioncomercial@mpi.net.co ricardo.carreno@mpi.net.co | I137: 135
A138: =+B138&COUNTIF($B$3:B138,B138) -> 11049 | B138: 1104 | C138: EMULSIONES Y MEZCLAS ASFALTICAS | D138: PAVIMENTOS COLOMBIA S.A.S. | E138: Bogotá | F138: AVENIDA 82 No. 10 - 50 | G138: 3760030 | H138: calidad@pavcol.com | I138: 136
A139: =+B139&COUNTIF($B$3:B139,B139) -> 11501 | B139: 1150 | C139: ENSAYOS DE LABORATORIO Y DIAGNOSTICOS | D139: ALS EMICAL | E139: Bogotá | F139: Calle 94 B No. 56 - 45 | G139: 3138325344 - +571 7450790/91 | H139: foodpharma.latam@alsglobal.com | I139: 137
A140: =+B140&COUNTIF($B$3:B140,B140) -> 11502 | B140: 1150 | C140: ENSAYOS DE LABORATORIO Y DIAGNOSTICOS | D140: ANALQUIM LTDA | E140: Bogotá | F140: Cr25 73-60 | G140: (+57) 1 2318149 (+57) 1 6309945 | H140: http://www.analquim.com | I140: 138
A141: =+B141&COUNTIF($B$3:B141,B141) -> 11503 | B141: 1150 | C141: ENSAYOS DE LABORATORIO Y DIAGNOSTICOS | D141: BAC Engineering Consultancy Group S.A.S. | E141: Bogotá | F141: Cra. 29 C 78 37 | G141: 8051209 | H141: laboratorio.colombia@bacecg.com | I141: 139
A142: =+B142&COUNTIF($B$3:B142,B142) -> 11504 | B142: 1150 | C142: ENSAYOS DE LABORATORIO Y DIAGNOSTICOS | D142: BIOQUILAB | E142: Bogotá | F142: Carrera 47A No 91 - 85 • Barrio La Castellana. | G142: (+57 1) 257 0722 / (+57 1) 635 3461 / (+57) 310 568 1450 | H142: servicioalcliente@bioquilab.com | I142: 140
A143: =+B143&COUNTIF($B$3:B143,B143) -> 11505 | B143: 1150 | C143: ENSAYOS DE LABORATORIO Y DIAGNOSTICOS | D143: ConCol - GEOCING - Geociencia e Ingeniería | E143: Bogotá | F143: Calle 120 No. 49 - 44 | G143: -- | H143: obecerra@concol.com | I143: 141
A144: =+B144&COUNTIF($B$3:B144,B144) -> 11506 | B144: 1150 | C144: ENSAYOS DE LABORATORIO Y DIAGNOSTICOS | D144: CONCRELAB | E144: Bogotá | F144: CL 63D 71A-52 | G144: 4386195 | H144: concrelab@cable.net.co | I144: 142
A145: =+B145&COUNTIF($B$3:B145,B145) -> 11507 | B145: 1150 | C145: ENSAYOS DE LABORATORIO Y DIAGNOSTICOS | D145: Concreservicios S.A.S. | E145: Bogota | F145: Calle 22 C 130 51 Bodega 6 | G145: 4211444 3103232062 | H145: comercial@concre-servicios.com | I145: 143
A146: =+B146&COUNTIF($B$3:B146,B146) -> 11508 | B146: 1150 | C146: ENSAYOS DE LABORATORIO Y DIAGNOSTICOS | D146: DIMCO INGENIEROS LTDA | E146: Bogotá | F146: CALLE 65 a No. 16 - 58 | G146: 3457940 | H146: dimcoingenieros@gmail.com | I146: 144
A147: =+B147&COUNTIF($B$3:B147,B147) -> 11509 | B147: 1150 | C147: ENSAYOS DE LABORATORIO Y DIAGNOSTICOS | D147: ECHEVERRY INGENIERIA Y ENSAYOS SAS | E147: Bogota | F147: Cra. 29 C 71 A 30 | G147: 3112088197 2255814 6304515 | H147: comercial@echeverryingenieria.com info@echeverryingenieria.com | I147: 145
A148: =+B148&COUNTIF($B$3:B148,B148) -> 115010 | B148: 1150 | C148: ENSAYOS DE LABORATORIO Y DIAGNOSTICOS | D148: EMPRESA DE ACUEDUCTO Y ALCANTARILLADO DE BOGOTÁ | E148: Bogotá | F148: Avenida Calle 24 No. 37 - 15 | G148: Aguas: (571) 344 7972 Suelos y Materiales: (571) 344 7000 Ext. 4148 Medidores: (571) 344 7173 Hidrología : (571) 344 7819 | H148: Aguas: leidy.silva@acueducto.com.co Medidores: acubillos@acueducto.com.co Suelos y materiales: eaperez@acueducto.com.co Hidrologia: jacopete@acueducto.com.co | I148: 146
A149: =+B149&COUNTIF($B$3:B149,B149) -> 115011 | B149: 1150 | C149: ENSAYOS DE LABORATORIO Y DIAGNOSTICOS | D149: ESCUELA COLOMBIANA DE INGENIERIA JULIO GARAVITO | E149: Bogota | F149: Autopista Norte 205 59 | G149: 6683600 Ext. 584 6763888 Ext. 228 - 324 | H149: laura.valderrama@escuelaing.edu.com | I149: 147
A150: =+B150&COUNTIF($B$3:B150,B150) -> 115012 | B150: 1150 | C150: ENSAYOS DE LABORATORIO Y DIAGNOSTICOS | D150: SUELOS Y PAVIMENTOS GREGORIO ROJAS & CIA LTDA | E150: Bogotá | F150: Calle 79 A 62 37 | G150: 2254760 | H150: laboratoriosuelosypavimentos@gmail.com | I150: 148
A151: =+B151&COUNTIF($B$3:B151,B151) -> 115013 | B151: 1150 | C151: ENSAYOS DE LABORATORIO Y DIAGNOSTICOS | D151: INGETEC | E151: Bogota | F151: Cra. 6 30 A 30 | G151: 238050 | H151: info@ingetec.com.co | I151: 149
A152: =+B152&COUNTIF($B$3:B152,B152) -> 115014 | B152: 1150 | C152: ENSAYOS DE LABORATORIO Y DIAGNOSTICOS | D152: INGENIERÍA Y GEORIESGOS IGR SAS | E152: Bogotá | F152: Carrera 19 A No. 84 - 14 Oficina 204 | G152: 6916054 | H152: igr@ingeoriesgos.com | I152: 150
A153: =+B153&COUNTIF($B$3:B153,B153) -> 115015 | B153: 1150 | C153: ENSAYOS DE LABORATORIO Y DIAGNOSTICOS | D153: JDM Ingeniería | E153: Bogotá | F153: Calle 120 50 86 | G153: 7477665 | H153: administrativa@apcsas.com | I153: 151
A154: =+B154&COUNTIF($B$3:B154,B154) -> 115016 | B154: 1150 | C154: ENSAYOS DE LABORATORIO Y DIAGNOSTICOS | D154: LABORATORIO BATEMAN INGENIERIA | E154: Bogota | F154: Cra. 20 39 65 | G154: 3204318 2459654 2325960 | H154: direcciongeneral@laboratoriobilsa.com direcciontecnica@laboratoriobilsa.com | I154: 152
A155: =+B155&COUNTIF($B$3:B155,B155) -> 115017 | B155: 1150 | C155: ENSAYOS DE LABORATORIO Y DIAGNOSTICOS | D155: LABORATORIO CONTECON URBAR | E155: Bogotá | F155: Cra. 69 Q 78 52 | G155: 7562656 | H155: comercial@contecon.com | I155: 153
A156: =+B156&COUNTIF($B$3:B156,B156) -> 115018 | B156: 1150 | C156: ENSAYOS DE LABORATORIO Y DIAGNOSTICOS | D156: LABORATORIO DEL CONCRETO (ASOCRETO) | E156: Bogota | F156: Calle 103 15 80 | G156: 6180018 | H156: asocreto@asocreto.org.co | I156: 154
A157: =+B157&COUNTIF($B$3:B157,B157) -> 115019 | B157: 1150 | C157: ENSAYOS DE LABORATORIO Y DIAGNOSTICOS | D157: MARIO HUERTAS CORTES LABORATORIO | E157: Bogota | F157: Cra. 22 A 85 20 | G157: 8772093 3219459185 6226620 | H157: mhcingenieros@mhc.com.co mhc.laboratorio@gmail.com. | I157: 155
A158: =+B158&COUNTIF($B$3:B158,B158) -> 115020 | B158: 1150 | C158: ENSAYOS DE LABORATORIO Y DIAGNOSTICOS | D158: MICROMATCO S.A.S. | E158: Bogota | F158: Cra. 23 53 D 52 Int. 101 | G158: 3002220125 7026742 | H158: info@nrbmicromatco.com | I158: 156
A159: =+B159&COUNTIF($B$3:B159,B159) -> 115021 | B159: 1150 | C159: ENSAYOS DE LABORATORIO Y DIAGNOSTICOS | D159: PERFORACIONES Y ESTUDIOS | E159: Bogotá | F159: Calle 78 A No. 64 - 40 | G159: 3002054 | H159: perforacionesyestudios@gmail.com | I159: 157
A160: =+B160&COUNTIF($B$3:B160,B160) -> 115022 | B160: 1150 | C160: ENSAYOS DE LABORATORIO Y DIAGNOSTICOS | D160: PONTIFICIA UNIVERSIDAD JAVERIANA | E160: Bogota | F160: Calle 40 5 50 Fac. de Ingenieria Ed. José Gabriel Maldonado S.J. | G160: 3208320 Ext. 5373 | H160: labcivil@javeriana.edu.co daniel.ruiz@javeriana.edu.co | I160: 158
A161: =+B161&COUNTIF($B$3:B161,B161) -> 115023 | B161: 1150 | C161: ENSAYOS DE LABORATORIO Y DIAGNOSTICOS | D161: SERINCO COLOMBIA | E161: Bogotá | F161: CALLE 163 20 17 | G161: 4673487 | H161: -- | I161: 159
A162: =+B162&COUNTIF($B$3:B162,B162) -> 115024 | B162: 1150 | C162: ENSAYOS DE LABORATORIO Y DIAGNOSTICOS | D162: SERVICIOS GEOTÉCNICOS S.A.S. | E162: Bogotá | F162: CALLE 163 7 44 | G162: 8030792 | H162: -- | I162: 160
A163: =+B163&COUNTIF($B$3:B163,B163) -> 115025 | B163: 1150 | C163: ENSAYOS DE LABORATORIO Y DIAGNOSTICOS | D163: Terratest Laboratorio de Suelos Rocas y Materiales S.A.S. | E163: Bogotá | F163: CARRERA 59 C No. 130 - 38 | G163: 8032324 | H163: comercial@terratest.com.co | I163: 161
A164: =+B164&COUNTIF($B$3:B164,B164) -> 115026 | B164: 1150 | C164: ENSAYOS DE LABORATORIO Y DIAGNOSTICOS | D164: UNIVERSIDAD DE LOS ANDES | E164: Bogota | F164: Cra. 1 E 19 A 40 Ed. Mario Laserna | G164: 3394949 Ext. 1719 - 1768 | H164: labcivil@uniandes.edu.co | I164: 162
A165: =+B165&COUNTIF($B$3:B165,B165) -> 115027 | B165: 1150 | C165: ENSAYOS DE LABORATORIO Y DIAGNOSTICOS | D165: UNIVERSIDAD DE LA SALLE | E165: Bogotá | F165: Universidad De La Salle sede chapinero | G165: 3488000 | H165: www.lasalle.edu.co/Inicio | I165: 163
A166: =+B166&COUNTIF($B$3:B166,B166) -> 115028 | B166: 1150 | C166: ENSAYOS DE LABORATORIO Y DIAGNOSTICOS | D166: UNIVERSIDAD NACIONAL DE COLOMBIA | E166: Bogota | F166: Cra. 45 26 85 | G166: 3165000 | H166: mediosdigitales@unal.edu.co | I166: 164
A167: =+B167&COUNTIF($B$3:B167,B167) -> 115029 | B167: 1150 | C167: ENSAYOS DE LABORATORIO Y DIAGNOSTICOS | D167: VARGAS E INGENIERÍA ENSAYOS S.A.S. | E167: Bogotá | F167: Carrera 11 N°48-13 Soacha | G167: 3208447795 | H167: www.vargasingenieriayensayos.com vargasingenieriayensayos@gmail.com | I167: 165
A168: =+B168&COUNTIF($B$3:B168,B168) -> 115030 | B168: 1150 | C168: ENSAYOS DE LABORATORIO Y DIAGNOSTICOS | D168: XAMTEC | E168: Bogotá | F168: Cra. 45 A # 93 - 29 | G168: 746 5384 | H168: xamtec@xamtec.com | I168: 166
A169: =+B169&COUNTIF($B$3:B169,B169) -> 11161 | B169: 1116 | C169: EQUIPO LIVIANO Y HERRAMIENTAS | D169: ACCEQUIP | E169: Bogota | F169: Cra. 28 No. 68-88 | G169: 6065463 | H169: bogota@accequip.com | I169: 167
A170: =+B170&COUNTIF($B$3:B170,B170) -> 11162 | B170: 1116 | C170: EQUIPO LIVIANO Y HERRAMIENTAS | D170: ASTROEQUIPOS S.A. | E170: Bogota | F170: Calle 75 69 K 43 | G170: 3108596 3108169758 3142513243 | H170: astroequipos@astroequipos.com vivianapaez@astroequipos.com guillermoreyes@astroequipos.com | I170: 168
A171: =+B171&COUNTIF($B$3:B171,B171) -> 11163 | B171: 1116 | C171: EQUIPO LIVIANO Y HERRAMIENTAS | D171: ASTRO MAQUINARIA LTDA - Bombeo de Fluidos | E171: Bogota | F171: Calle 140 No. 22 - 06 | G171: 6261300 | H171: info@astromaquinaria.com | I171: 169
A172: =+B172&COUNTIF($B$3:B172,B172) -> 11164 | B172: 1116 | C172: EQUIPO LIVIANO Y HERRAMIENTAS | D172: CIVALCO LTDA | E172: Bogota | F172: carrera 17 No. 36 - 38 | G172: 2853857 ext. 113 | H172: ventas@civalco.com | I172: 170
A173: =+B173&COUNTIF($B$3:B173,B173) -> 11165 | B173: 1116 | C173: EQUIPO LIVIANO Y HERRAMIENTAS | D173: CONSTRUDATA | E173: Pagina WEB | F173: N.A. | G173: N.A. | H173: www.construdata.com | I173: 171
A174: =+B174&COUNTIF($B$3:B174,B174) -> 11166 | B174: 1116 | C174: EQUIPO LIVIANO Y HERRAMIENTAS | D174: DIESCON | E174: Bogota | F174: CALLE 86 A No. 95 - 40 INT. 102 | G174: 4624033 | H174: -- | I174: 172
A175: =+B175&COUNTIF($B$3:B175,B175) -> 11167 | B175: 1116 | C175: EQUIPO LIVIANO Y HERRAMIENTAS | D175: DIMACRO EMC LTDA | E175: Bogota | F175: Cra. 66 107 56 | G175: 2717288 Ext. 1011 3114746837 | H175: ventas@dimacro.com mercadeo@dimacro.com | I175: 173
A176: =+B176&COUNTIF($B$3:B176,B176) -> 11168 | B176: 1116 | C176: EQUIPO LIVIANO Y HERRAMIENTAS | D176: EQUINORTE | E176: Siberia - Cundinamarca | F176: Parque empresarial Celta - Bodega 118 km 7 Medellin, Siberia | G176: 8966261 3215400185 | H176: cgacharna@equinorte.net | I176: 174
A177: =+B177&COUNTIF($B$3:B177,B177) -> 11169 | B177: 1116 | C177: EQUIPO LIVIANO Y HERRAMIENTAS | D177: EQUIPOS Y MOTORES SAS | E177: Bogota | F177: Carrera 120A #17d-23, Fontibon San Pablo | G177: 267 33 20 313 450 74 33 | H177: info@equiposymotoresml.com | I177: 175
A178: =+B178&COUNTIF($B$3:B178,B178) -> 111610 | B178: 1116 | C178: EQUIPO LIVIANO Y HERRAMIENTAS | D178: FERRETERIA RHINO | E178: Bogota | F178: Cra.25 15 58 | G178: 3204950158 4817222 | H178: gadministrativa@rhino.com.co | I178: 176
A179: =+B179&COUNTIF($B$3:B179,B179) -> 111611 | B179: 1116 | C179: EQUIPO LIVIANO Y HERRAMIENTAS | D179: FERRICENTROS S.A. | E179: Bogota | F179: Avda. Caracas 74 25 | G179: 6511212 2862100 | H179: jhon.bermudez@ferricentro.com callcenter02@ferricentro.com callcenter01@ferricentro.com | I179: 177
A180: =+B180&COUNTIF($B$3:B180,B180) -> 111612 | B180: 1116 | C180: EQUIPO LIVIANO Y HERRAMIENTAS | D180: GARCIA VEGA | E180: Bogota | F180: Calle 5 C 53 D-22 | G180: 4205752 Ext. 109 3176685586 | H180: ventas1@garciavegacia.com | I180: 178
A181: =+B181&COUNTIF($B$3:B181,B181) -> 111613 | B181: 1116 | C181: EQUIPO LIVIANO Y HERRAMIENTAS | D181: GECOLSA - CAT RENTAL STORE | E181: Bogota | F181: Avda. Americas 35 A 51 | G181: 4055554 Ext. 1510 3153692061 | H181: martha_rodriguez@gecolsa.com.co www.gecolsa.com.co cesar_torres@gecolsa.com.co | I181: 179
A182: =+B182&COUNTIF($B$3:B182,B182) -> 111614 | B182: 1116 | C182: EQUIPO LIVIANO Y HERRAMIENTAS | D182: HOMECENTER | E182: Bogota | F182: Avda. 68 37 37 Sur | G182: 3077115 | H182: www.homecenter.com.co | I182: 180
A183: =+B183&COUNTIF($B$3:B183,B183) -> 111615 | B183: 1116 | C183: EQUIPO LIVIANO Y HERRAMIENTAS | D183: PRONTO RENTAL | E183: Bogota | F183: Autopista Medellin Km 7 vía Siberia C E Celta B. 18-4 | G183: 8237564 | H183: asesor.renta6@gruasyequipos.com | I183: 181
A184: =+B184&COUNTIF($B$3:B184,B184) -> 111616 | B184: 1116 | C184: EQUIPO LIVIANO Y HERRAMIENTAS | D184: RENTAN SAS | E184: Antioquia/Medellín | F184: Calle 25 A 43 B 69 Piso 2 Antioquia/Medellín | G184: (4) 4449211 | H184: info@rentan.com.co | I184: 182
A185: =+B185&COUNTIF($B$3:B185,B185) -> 111617 | B185: 1116 | C185: EQUIPO LIVIANO Y HERRAMIENTAS | D185: TECNOFUEGO | E185: Bogota | F185: CALLE 104 No. 14 A - 45 OF. 402 | G185: 3158915543 | H185: restupinan@tecno-fuego.com.co | I185: 183
A186: =+B186&COUNTIF($B$3:B186,B186) -> 11151 | B186: 1115 | C186: EQUIPO PESADO | D186: ASTROEQUIPOS S.A. | E186: Bogota | F186: Calle 75 69 K 43 | G186: 3108596 3108169758 3142513243 | H186: astroequipos@astroequipos.com vivianapaez@astroequipos.com guillermoreyes@astroequipos.com | I186: 184
A187: =+B187&COUNTIF($B$3:B187,B187) -> 11152 | B187: 1115 | C187: EQUIPO PESADO | D187: B.M.G. TRANSPORTE DE AGUA POTABLE E. U. | E187: Bogota | F187: Calle 87 Bis 85 30 | G187: 3105724217 2235354 5363723 | H187: bmgaguapotable@hotmail.com | I187: 185
A188: =+B188&COUNTIF($B$3:B188,B188) -> 11153 | B188: 1115 | C188: EQUIPO PESADO | D188: CONSTRUDATA | E188: Pagina WEB | F188: N.A. | G188: N.A. | H188: www.construdata.com | I188: 186
A189: =+B189&COUNTIF($B$3:B189,B189) -> 11154 | B189: 1115 | C189: EQUIPO PESADO | D189: CONSTRUGROUP VIAL S.A.S | E189: Bogota | F189: CALLE 74 #15 80 OF 310 | G189: 321 2822 | H189: -- | I189: 187
A190: =+B190&COUNTIF($B$3:B190,B190) -> 11155 | B190: 1115 | C190: EQUIPO PESADO | D190: DIESCON | E190: Bogota | F190: CALLE 86 A No. 95 - 40 INT. 102 | G190: 4624033 | H190: -- | I190: 188
A191: =+B191&COUNTIF($B$3:B191,B191) -> 11156 | B191: 1115 | C191: EQUIPO PESADO | D191: DISEPILMEGAPRESS | E191: Cota - Cund. | F191: Autopista Medellin Km 3,5 Centro Empresarial Mertropolitano Piso 3 Of. B-21 | G191: 8233996 | H191: administracion@disepilmegapress.com | I191: 189
A192: =+B192&COUNTIF($B$3:B192,B192) -> 11157 | B192: 1115 | C192: EQUIPO PESADO | D192: EQUINORTE | E192: Bogota | F192: Parque empresarial Celta - Bodega 118 km 7 Medellin, Siberia | G192: 8966261 3215400185 | H192: cgacharna@equinorte.net | I192: 190
A193: =+B193&COUNTIF($B$3:B193,B193) -> 11158 | B193: 1115 | C193: EQUIPO PESADO | D193: EQUIPOS Y MOTORES SAS | E193: Bogota | F193: Carrera 120A #17d-23, Fontibon San Pablo | G193: 267 33 20 313 450 74 33 | H193: info@equiposymotoresml.com | I193: 191
A194: =+B194&COUNTIF($B$3:B194,B194) -> 11159 | B194: 1115 | C194: EQUIPO PESADO | D194: FENIX TORRES SAS GRUAS, EQUIPOS Y TRANSPORTES | E194: Bogota | F194: CALLE 80 KM 2 VIA SIBERIA TCB OF C-56 | G194: 8415000 | H194: -- | I194: 192
A195: =+B195&COUNTIF($B$3:B195,B195) -> 111510 | B195: 1115 | C195: EQUIPO PESADO | D195: GARCIA VEGA | E195: Bogota | F195: Calle 5 C 53 D 22 | G195: 4205752 Ext. 110 4205767 2623264 | H195: ventas1@garciavegacia.com | I195: 193
A196: =+B196&COUNTIF($B$3:B196,B196) -> 111511 | B196: 1115 | C196: EQUIPO PESADO | D196: GECOLSA - CAT RENTAL STORE | E196: Bogota | F196: Avda. Americas 35 A 51 | G196: 4055554 Ext. 1510 3153692061 | H196: martha_rodriguez@gecolsa.com.co www.gecolsa.com.co cesar_torres@gecolsa.com.co | I196: 194
A197: =+B197&COUNTIF($B$3:B197,B197) -> 111512 | B197: 1115 | C197: EQUIPO PESADO | D197: IMPRIMASCOL | E197: Bogota | F197: Avda. Ciudad de Cali 163-09 | G197: 5369666 3153309854 | H197: http://imprimascol.amawebs.com/ | I197: 195
A198: =+B198&COUNTIF($B$3:B198,B198) -> 111513 | B198: 1115 | C198: EQUIPO PESADO | D198: IMPRIMACIONES ASFALTICAS SAS - COVISCOL EU | E198: Bogota | F198: Calle 134 A 16 79 | G198: 8033097 | H198: imprimaciones@hotmail.com | I198: 196
A199: =+B199&COUNTIF($B$3:B199,B199) -> 111514 | B199: 1115 | C199: EQUIPO PESADO | D199: PLANTIDIESELES S.A.S. LTDA Soluciones Integrales de Energía | E199: Bogota | F199: Carrera 127 No. 22G - 18 Bodegas 7-8 | G199: 4185960 - 4185961 - 4185990 | H199: info@plantidieseles.com | I199: 197
A200: =+B200&COUNTIF($B$3:B200,B200) -> 111515 | B200: 1115 | C200: EQUIPO PESADO | D200: PRONTO RENTAL | E200: Bogota | F200: Autopista Medellin Km 7 vía Siberia C E Celta B. 18-4 | G200: 8237564 | H200: asesor.renta6@gruasyequipos.com | I200: 198
... 485 more rows

Sheet LISTA TOTAL PROVEEDORES 2019-I (hidden)
B1: 2019-I DIRECTORIO
B2: CODIGO GRUPO | C2: GRUPO BASE DE DATOS | D2: NOMBRE PROVEEDOR | E2: UBICACIÓN | F2: DIRECCION | G2: TELEFONO | H2: CORREO ELECTRONICO
A3: =+B3&COUNTIF($B$3:B3,B3) -> 11141 | B3: 1114 | C3: ACCESORIOS HD PARA REDES DE ACUEDUCTO | D3: APOLO AVA | E3: Bogotá | F3: Cra. 27 No. 17-74, Paloquemao | G3: 360 70 53 360 70 23 | H3: apolo.bogota@apolo.net.co | I3: 1
A4: =+B4&COUNTIF($B$3:B4,B4) -> 11142 | B4: 1114 | C4: ACCESORIOS HD PARA REDES DE ACUEDUCTO | D4: BARNES DE COLOMBIA S.A. | E4: Funza, Cundinamarca | F4: Celta Trade Park - Bodegas 86 y 93 Autopista Bogota Medellin Km 7 Costado Occidental Antes de Peaje de Siberia. | G4: 743 9090 ext 8311-8312-8403-8402-8502 | H4: distribucion@barnes.com.co industria@barnes.com.co construccion@barnes.com.co exportaciones@barnes.com.co | I4: 2
A5: =+B5&COUNTIF($B$3:B5,B5) -> 11143 | B5: 1114 | C5: ACCESORIOS HD PARA REDES DE ACUEDUCTO | D5: COVAL COMERCIAL S. A. | E5: =VLOOKUP(D5,'BD VIEJA'!$D$3:$H$594,2,FALSE) -> Bogota | F5: =VLOOKUP(D5,'BD VIEJA'!$D$3:$H$594,3,FALSE) -> Avda. Ciudad de Cali 5 A 92 Sur | G5: =VLOOKUP(D5,'BD VIEJA'!$D$3:$H$594,4,FALSE) -> 3152358446 8759100 Ext. 144 - 145 7454671 | H5: =VLOOKUP(D5,'BD VIEJA'!$D$3:$H$594,5,FALSE) -> info@coval.com.co | I5: 3
A6: =+B6&COUNTIF($B$3:B6,B6) -> 11144 | B6: 1114 | C6: ACCESORIOS HD PARA REDES DE ACUEDUCTO | D6: DURMAN COLOMBIA S.A. | E6: =VLOOKUP(D6,'BD VIEJA'!$D$3:$H$594,2,FALSE) -> Madrid - Cund. | F6: =VLOOKUP(D6,'BD VIEJA'!$D$3:$H$594,3,FALSE) -> Km 27 Vía Fontibon Facatativa Los Alpes | G6: =VLOOKUP(D6,'BD VIEJA'!$D$3:$H$594,4,FALSE) -> 8200200 | H6: =VLOOKUP(D6,'BD VIEJA'!$D$3:$H$594,5,FALSE) -> colombia@durman.com | I6: 4
A7: =+B7&COUNTIF($B$3:B7,B7) -> 11145 | B7: 1114 | C7: ACCESORIOS HD PARA REDES DE ACUEDUCTO | D7: EASY | E7: =VLOOKUP(D7,'BD VIEJA'!$D$3:$H$594,2,FALSE) -> Bogota | F7: =VLOOKUP(D7,'BD VIEJA'!$D$3:$H$594,3,FALSE) -> Avda. Americas 68 94 | G7: =VLOOKUP(D7,'BD VIEJA'!$D$3:$H$594,4,FALSE) -> 4191400 | H7: =VLOOKUP(D7,'BD VIEJA'!$D$3:$H$594,5,FALSE) -> www.easy.com.co | I7: 5
A8: =+B8&COUNTIF($B$3:B8,B8) -> 11146 | B8: 1114 | C8: ACCESORIOS HD PARA REDES DE ACUEDUCTO | D8: GRIVAL SA | E8: Bogotá | F8: Av. Carrera 45 No. 149-09 Mazuren | G8: 6140241 3138697904 | H8: contactenoscorona@corona.com.co | I8: 6
A9: =+B9&COUNTIF($B$3:B9,B9) -> 11147 | B9: 1114 | C9: ACCESORIOS HD PARA REDES DE ACUEDUCTO | D9: HELBERT Y CIA | E9: =VLOOKUP(D9,'BD VIEJA'!$D$3:$H$594,2,FALSE) -> Bogota | F9: =VLOOKUP(D9,'BD VIEJA'!$D$3:$H$594,3,FALSE) -> Av Cr 40 # 20 - 73 | G9: =VLOOKUP(D9,'BD VIEJA'!$D$3:$H$594,4,FALSE) -> 368 10 77 | H9: =VLOOKUP(D9,'BD VIEJA'!$D$3:$H$594,5,FALSE) -> ventas@helbertycia.com | I9: 7
A10: =+B10&COUNTIF($B$3:B10,B10) -> 11148 | B10: 1114 | C10: ACCESORIOS HD PARA REDES DE ACUEDUCTO | D10: HIDROEQUIPO | E10: =VLOOKUP(D10,'BD VIEJA'!$D$3:$H$594,2,FALSE) -> Cali - Valle | F10: =VLOOKUP(D10,'BD VIEJA'!$D$3:$H$594,3,FALSE) -> Av. 3 Bis Norte No. 23 CN-35 | G10: =VLOOKUP(D10,'BD VIEJA'!$D$3:$H$594,4,FALSE) -> 653 0033 315 471 8248 | H10: =VLOOKUP(D10,'BD VIEJA'!$D$3:$H$594,5,FALSE) -> info@hidroequipos.com.co | I10: 8
A11: =+B11&COUNTIF($B$3:B11,B11) -> 11149 | B11: 1114 | C11: ACCESORIOS HD PARA REDES DE ACUEDUCTO | D11: HOMECENTER | E11: =VLOOKUP(D11,'BD VIEJA'!$D$3:$H$594,2,FALSE) -> Bogota | F11: =VLOOKUP(D11,'BD VIEJA'!$D$3:$H$594,3,FALSE) -> Avda. 68 37 37 Sur | G11: =VLOOKUP(D11,'BD VIEJA'!$D$3:$H$594,4,FALSE) -> 3077115 | H11: =VLOOKUP(D11,'BD VIEJA'!$D$3:$H$594,5,FALSE) -> www.homecenter.com.co | I11: 9
A12: =+B12&COUNTIF($B$3:B12,B12) -> 111410 | B12: 1114 | C12: ACCESORIOS HD PARA REDES DE ACUEDUCTO | D12: METACOL Soluciones integrales en ingeniería y fundición | E12: =VLOOKUP(D12,'BD VIEJA'!$D$3:$H$594,2,FALSE) -> Bogota | F12: =VLOOKUP(D12,'BD VIEJA'!$D$3:$H$594,3,FALSE) -> Diagonal 34 Bis 17 58 | G12: =VLOOKUP(D12,'BD VIEJA'!$D$3:$H$594,4,FALSE) -> 5116262 Ext. 211 | H12: =VLOOKUP(D12,'BD VIEJA'!$D$3:$H$594,5,FALSE) -> mercadeo@metacol.com | I12: 10
A13: =+B13&COUNTIF($B$3:B13,B13) -> 111411 | B13: 1114 | C13: ACCESORIOS HD PARA REDES DE ACUEDUCTO | D13: PCP | E13: Bogotá | F13: Carrera 20 No. 16 – 25 | G13: 7428373 Ext. 200 | H13: servicioalcliente@pcpplasticos.com | I13: 11
A14: =+B14&COUNTIF($B$3:B14,B14) -> 111412 | B14: 1114 | C14: ACCESORIOS HD PARA REDES DE ACUEDUCTO | D14: TUBOS COLMENA | E14: =VLOOKUP(D14,'BD VIEJA'!$D$3:$H$594,2,FALSE) -> Bogota | F14: =VLOOKUP(D14,'BD VIEJA'!$D$3:$H$594,3,FALSE) -> Calle 45 A Sur # 60-57 | G14: =VLOOKUP(D14,'BD VIEJA'!$D$3:$H$594,4,FALSE) -> 7280211 | H14: =VLOOKUP(D14,'BD VIEJA'!$D$3:$H$594,5,FALSE) -> servicioalcliente@tuboscolmena.com www.tuboscolmena.com | I14: 12
A15: =+B15&COUNTIF($B$3:B15,B15) -> 111413 | B15: 1114 | C15: ACCESORIOS HD PARA REDES DE ACUEDUCTO | D15: TUVALREP SAS | E15: =VLOOKUP(D15,'BD VIEJA'!$D$3:$H$594,2,FALSE) -> Bogotá | F15: =VLOOKUP(D15,'BD VIEJA'!$D$3:$H$594,3,FALSE) -> Av. Calle 13 No. 22-72 | G15: =VLOOKUP(D15,'BD VIEJA'!$D$3:$H$594,4,FALSE) -> 2015415 3713386 | H15: =VLOOKUP(D15,'BD VIEJA'!$D$3:$H$594,5,FALSE) -> tuvalrep@tuvalrep.com.co | I15: 13
A16: =+B16&COUNTIF($B$3:B16,B16) -> 11611 | B16: 1161 | C16: ACTIVIDADES A TODO COSTO | D16: AMVAR WORLD SAS | E16: =VLOOKUP(D16,'BD VIEJA'!$D$3:$H$594,2,FALSE) -> Bogotá | F16: =VLOOKUP(D16,'BD VIEJA'!$D$3:$H$594,3,FALSE) -> Av. 30 - 7 de agosto 68-125 local 35 | G16: =VLOOKUP(D16,'BD VIEJA'!$D$3:$H$594,4,FALSE) -> 3810603 EXT 101-102 | H16: =VLOOKUP(D16,'BD VIEJA'!$D$3:$H$594,5,FALSE) -> ventas@anvarworld.com | I16: 14
A17: =+B17&COUNTIF($B$3:B17,B17) -> 11612 | B17: 1161 | C17: ACTIVIDADES A TODO COSTO | D17: CABLES Y GUAYAS ALGOFER | E17: =VLOOKUP(D17,'BD VIEJA'!$D$3:$H$594,2,FALSE) -> Bogota | F17: =VLOOKUP(D17,'BD VIEJA'!$D$3:$H$594,3,FALSE) -> Cra. 109 A 66 33 | G17: =VLOOKUP(D17,'BD VIEJA'!$D$3:$H$594,4,FALSE) -> 3133184817 3214983819 4345598 | H17: =VLOOKUP(D17,'BD VIEJA'!$D$3:$H$594,5,FALSE) -> servicioalcliente@cablesyguayasalgofer.com | I17: 15
A18: =+B18&COUNTIF($B$3:B18,B18) -> 11613 | B18: 1161 | C18: ACTIVIDADES A TODO COSTO | D18: CARPAS E INGENIERÍA | E18: =VLOOKUP(D18,'BD VIEJA'!$D$3:$H$594,2,FALSE) -> Bogota | F18: =VLOOKUP(D18,'BD VIEJA'!$D$3:$H$594,3,FALSE) -> Calle 9 32 A 41 | G18: =VLOOKUP(D18,'BD VIEJA'!$D$3:$H$594,4,FALSE) -> 3102360339 5618623 | H18: =VLOOKUP(D18,'BD VIEJA'!$D$3:$H$594,5,FALSE) -> ventas@carpascolombia.com | I18: 16
A19: =+B19&COUNTIF($B$3:B19,B19) -> 11614 | B19: 1161 | C19: ACTIVIDADES A TODO COSTO | D19: CIELO RASOS & DIVISIONES | E19: Bogotá | F19: Cra 14 #75-58 | G19: 248 18 60 310 577 4471 | H19: ventas@cielosrasos.com | I19: 17
A20: =+B20&COUNTIF($B$3:B20,B20) -> 11615 | B20: 1161 | C20: ACTIVIDADES A TODO COSTO | D20: COVAL COMERCIAL S. A. | E20: =VLOOKUP(D20,'BD VIEJA'!$D$3:$H$594,2,FALSE) -> Bogota | F20: =VLOOKUP(D20,'BD VIEJA'!$D$3:$H$594,3,FALSE) -> Avda. Ciudad de Cali 5 A 92 Sur | G20: =VLOOKUP(D20,'BD VIEJA'!$D$3:$H$594,4,FALSE) -> 3152358446 8759100 Ext. 144 - 145 7454671 | H20: =VLOOKUP(D20,'BD VIEJA'!$D$3:$H$594,5,FALSE) -> info@coval.com.co | I20: 18
A21: =+B21&COUNTIF($B$3:B21,B21) -> 11616 | B21: 1161 | C21: ACTIVIDADES A TODO COSTO | D21: GRABADO Y CORTE LASER BOGOTA | E21: =VLOOKUP(D21,'BD VIEJA'!$D$3:$H$594,2,FALSE) -> Bogota | F21: =VLOOKUP(D21,'BD VIEJA'!$D$3:$H$594,3,FALSE) -> Carrera 27B No. 24B - 23 | G21: =VLOOKUP(D21,'BD VIEJA'!$D$3:$H$594,4,FALSE) -> 310 760 3311 560 2421 | H21: =VLOOKUP(D21,'BD VIEJA'!$D$3:$H$594,5,FALSE) -> ventas@grabadoycortelaser.com | I21: 19
A22: =+B22&COUNTIF($B$3:B22,B22) -> 11617 | B22: 1161 | C22: ACTIVIDADES A TODO COSTO | D22: HB SADELEC Estructuras Metálicas | E22: =VLOOKUP(D22,'BD VIEJA'!$D$3:$H$594,2,FALSE) -> Bogota | F22: =VLOOKUP(D22,'BD VIEJA'!$D$3:$H$594,3,FALSE) -> Avda. Cra. 129 17 F 97 | G22: =VLOOKUP(D22,'BD VIEJA'!$D$3:$H$594,4,FALSE) -> 4224700 Ext. 121 4155620 | H22: =VLOOKUP(D22,'BD VIEJA'!$D$3:$H$594,5,FALSE) -> david.castellanos@hbsadelec.com.co | I22: 20
A23: =+B23&COUNTIF($B$3:B23,B23) -> 11618 | B23: 1161 | C23: ACTIVIDADES A TODO COSTO | D23: PROELÉCTRICOS | E23: =VLOOKUP(D23,'BD VIEJA'!$D$3:$H$594,2,FALSE) -> Bogotá | F23: =VLOOKUP(D23,'BD VIEJA'!$D$3:$H$594,3,FALSE) -> CALLE 12 A No. 21 - 21 | G23: =VLOOKUP(D23,'BD VIEJA'!$D$3:$H$594,4,FALSE) -> 2471255 EXT. 301 | H23: =VLOOKUP(D23,'BD VIEJA'!$D$3:$H$594,5,FALSE) -> presupuestos@proelectricos.com | I23: 21
A24: =+B24&COUNTIF($B$3:B24,B24) -> 11619 | B24: 1161 | C24: ACTIVIDADES A TODO COSTO | D24: SEÑAL VIAS SAS | E24: =VLOOKUP(D24,'BD VIEJA'!$D$3:$H$594,2,FALSE) -> Bogota | F24: =VLOOKUP(D24,'BD VIEJA'!$D$3:$H$594,3,FALSE) -> Calle 38 Sur 72 H 30 | G24: =VLOOKUP(D24,'BD VIEJA'!$D$3:$H$594,4,FALSE) -> 4034647 | H24: =VLOOKUP(D24,'BD VIEJA'!$D$3:$H$594,5,FALSE) -> senalvias@yahoo.es | I24: 22
A25: =+B25&COUNTIF($B$3:B25,B25) -> 116110 | B25: 1161 | C25: ACTIVIDADES A TODO COSTO | D25: SERVIN GELEC SAS | E25: Bogotá | F25: CALLE 65 A nO. 16 - 30 OF. 201 | G25: 7031742 | H25: comercial@servingelec.com | I25: 23
A26: =+B26&COUNTIF($B$3:B26,B26) -> 116111 | B26: 1161 | C26: ACTIVIDADES A TODO COSTO | D26: SOY RED | E26: Bogotá | F26: Carrera 14 #75-77 | G26: 477 8701 | H26: comercial@soyred.net | I26: 24
A27: =+B27&COUNTIF($B$3:B27,B27) -> 116112 | B27: 1161 | C27: ACTIVIDADES A TODO COSTO | D27: STUP DE COLOMBIA | E27: =VLOOKUP(D27,'BD VIEJA'!$D$3:$H$594,2,FALSE) -> Bogota | F27: =VLOOKUP(D27,'BD VIEJA'!$D$3:$H$594,3,FALSE) -> Cra. 50 126 19 | G27: =VLOOKUP(D27,'BD VIEJA'!$D$3:$H$594,4,FALSE) -> 2131601 | H27: =VLOOKUP(D27,'BD VIEJA'!$D$3:$H$594,5,FALSE) -> carlos.salgado@stup.co | I27: 25
A28: =+B28&COUNTIF($B$3:B28,B28) -> 116113 | B28: 1161 | C28: ACTIVIDADES A TODO COSTO | D28: SUM RED LTDA | E28: Bogotá | F28: Calle 154 A 96 - 40 23 Local 203 | G28: 4778701 3212418771 3212418769 | H28: asistente@soyred.net comercial@soyred.net | I28: 26 | J28: preguntar a francisco
A29: =+B29&COUNTIF($B$3:B29,B29) -> 116114 | B29: 1161 | C29: ACTIVIDADES A TODO COSTO | D29: TECNOCOMPRAS | E29: Bogotá | F29: www.tecnocompras.com.co | G29: 316 8701076 3013782 | H29: gerencia@tecnocompras.com.co | I29: 27
A30: =+B30&COUNTIF($B$3:B30,B30) -> 11021 | B30: 1102 | C30: AGREGADOS PETREOS, BASES Y SUBBASES GRANULARES | D30: 4GA SAS Agregados de calidad | E30: =VLOOKUP(D30,'BD VIEJA'!$D$3:$H$594,2,FALSE) -> Bogota | F30: =VLOOKUP(D30,'BD VIEJA'!$D$3:$H$594,3,FALSE) -> Calle 124 10 29 Apto. 201 | G30: =VLOOKUP(D30,'BD VIEJA'!$D$3:$H$594,4,FALSE) -> 3183821145 | H30: =VLOOKUP(D30,'BD VIEJA'!$D$3:$H$594,5,FALSE) -> grupo4ga@gmail.com | I30: 28
A31: =+B31&COUNTIF($B$3:B31,B31) -> 11022 | B31: 1102 | C31: AGREGADOS PETREOS, BASES Y SUBBASES GRANULARES | D31: AGREGADOS ARENAS Y GRAVAS SAS | E31: Bogotá | F31: Calle 185 # 45 - 03 Centro Comercial Santa Fe - Plaza Brasil Of 601 | G31: 3563097 3105691679 | H31: juanonate@outkook.es | I31: 29
A32: =+B32&COUNTIF($B$3:B32,B32) -> 11023 | B32: 1102 | C32: AGREGADOS PETREOS, BASES Y SUBBASES GRANULARES | D32: AGREGADOS EL VINCULO SAS | E32: Soacha - Cund. | F32: Cra. 7 32 35 C.C. Mercurio Of. 308 | G32: 7251891 3212010616 | H32: info@agregadoselvinculo.com | I32: 30
A33: =+B33&COUNTIF($B$3:B33,B33) -> 11024 | B33: 1102 | C33: AGREGADOS PETREOS, BASES Y SUBBASES GRANULARES | D33: ARENAS Y AGREGADOS IVONE SAS | E33: Soacha - Cund. | F33: Calle 95 # 11A-37 Of 401 | G33: 6225492 6226133 | H33: gerencia@arenasyagregados.com | I33: 31
A34: =+B34&COUNTIF($B$3:B34,B34) -> 11025 | B34: 1102 | C34: AGREGADOS PETREOS, BASES Y SUBBASES GRANULARES | D34: BCD SAS | E34: =VLOOKUP(D34,'BD VIEJA'!$D$3:$H$594,2,FALSE) -> Bogota | F34: =VLOOKUP(D34,'BD VIEJA'!$D$3:$H$594,3,FALSE) -> Cra. 67 62 B 55 Sur Bl. 14 Apto. 527 | G34: =VLOOKUP(D34,'BD VIEJA'!$D$3:$H$594,4,FALSE) -> 3008360 | H34: =VLOOKUP(D34,'BD VIEJA'!$D$3:$H$594,5,FALSE) -> bcd@bcdsas.com | I34: 32
A35: =+B35&COUNTIF($B$3:B35,B35) -> 11026 | B35: 1102 | C35: AGREGADOS PETREOS, BASES Y SUBBASES GRANULARES | D35: CEMENTOS ARGOS - AGREGADOS PETREOS | E35: =VLOOKUP(D35,'BD VIEJA'!$D$3:$H$594,2,FALSE) -> Bogotá | F35: =VLOOKUP(D35,'BD VIEJA'!$D$3:$H$594,3,FALSE) -> Carrera 13 con 80 esquina, entre Av. Boyacá y Av. Cali | G35: =VLOOKUP(D35,'BD VIEJA'!$D$3:$H$594,4,FALSE) -> 3506623165 | H35: =VLOOKUP(D35,'BD VIEJA'!$D$3:$H$594,5,FALSE) -> http://agregados.argos.co/productos | I35: 33
A36: =+B36&COUNTIF($B$3:B36,B36) -> 11027 | B36: 1102 | C36: AGREGADOS PETREOS, BASES Y SUBBASES GRANULARES | D36: COMPAÑÍA MINERA NACIONAL LTDA | E36: Soacha - Cund. | F36: Cra 7 # 32 - 35 Centro Comercial Mercurio Of 308 | G36: 7251891 3212060710 | H36: cominal_vp@hotmail.com | I36: 34
A37: =+B37&COUNTIF($B$3:B37,B37) -> 11028 | B37: 1102 | C37: AGREGADOS PETREOS, BASES Y SUBBASES GRANULARES | D37: DOBLE A INGENIERIA S.A. | E37: =VLOOKUP(D37,'BD VIEJA'!$D$3:$H$594,2,FALSE) -> Bogota | F37: =VLOOKUP(D37,'BD VIEJA'!$D$3:$H$594,3,FALSE) -> Calle 79 B 8 11 Piso 3 | G37: =VLOOKUP(D37,'BD VIEJA'!$D$3:$H$594,4,FALSE) -> 2101700 | H37: =VLOOKUP(D37,'BD VIEJA'!$D$3:$H$594,5,FALSE) -> cpinilla@da-ing.com gerencia@dobleaingenieria.com | I37: 35
A38: =+B38&COUNTIF($B$3:B38,B38) -> 11029 | B38: 1102 | C38: AGREGADOS PETREOS, BASES Y SUBBASES GRANULARES | D38: DROMOS PAVIMENTOS S.A. | E38: =VLOOKUP(D38,'BD VIEJA'!$D$3:$H$594,2,FALSE) -> Mosquera/Cundinamarca | F38: =VLOOKUP(D38,'BD VIEJA'!$D$3:$H$594,3,FALSE) -> Km 3.8 Zona Industrial Balsillas | G38: =VLOOKUP(D38,'BD VIEJA'!$D$3:$H$594,4,FALSE) -> 7425376 | H38: =VLOOKUP(D38,'BD VIEJA'!$D$3:$H$594,5,FALSE) -> atencion@dromos.co | I38: 36
A39: =+B39&COUNTIF($B$3:B39,B39) -> 110210 | B39: 1102 | C39: AGREGADOS PETREOS, BASES Y SUBBASES GRANULARES | D39: FANNY I. TEQUIA Y CIA SAS | E39: =VLOOKUP(D39,'BD VIEJA'!$D$3:$H$594,2,FALSE) -> Soacha - Cund. | F39: =VLOOKUP(D39,'BD VIEJA'!$D$3:$H$594,3,FALSE) -> Cra. 6 15 38 | G39: =VLOOKUP(D39,'BD VIEJA'!$D$3:$H$594,4,FALSE) -> 7814130 | H39: =VLOOKUP(D39,'BD VIEJA'!$D$3:$H$594,5,FALSE) -> contacto@tequiaycia.com | I39: 37
A40: =+B40&COUNTIF($B$3:B40,B40) -> 110211 | B40: 1102 | C40: AGREGADOS PETREOS, BASES Y SUBBASES GRANULARES | D40: GRAVILLERA ALBANIA S.A. | E40: =VLOOKUP(D40,'BD VIEJA'!$D$3:$H$594,2,FALSE) -> Chia - Cund. | F40: =VLOOKUP(D40,'BD VIEJA'!$D$3:$H$594,3,FALSE) -> Carretera Central Del Norte Km 19 | G40: =VLOOKUP(D40,'BD VIEJA'!$D$3:$H$594,4,FALSE) -> 6760212 3102849530 | H40: =VLOOKUP(D40,'BD VIEJA'!$D$3:$H$594,5,FALSE) -> administracion@gravilleraalbania.com | I40: 38
A41: =+B41&COUNTIF($B$3:B41,B41) -> 110212 | B41: 1102 | C41: AGREGADOS PETREOS, BASES Y SUBBASES GRANULARES | D41: GRECO | E41: Cota - Cund. | F41: KM 1.5 Puente de Madera Autopista Medellín, Municipio de Cota - Vereda Siberia | G41: 304 6383774 301 3363867 315 8729749 | H41: dircomercial@recicladosgreco.com | I41: 39
A42: =+B42&COUNTIF($B$3:B42,B42) -> 110213 | B42: 1102 | C42: AGREGADOS PETREOS, BASES Y SUBBASES GRANULARES | D42: INCOMINERIA S.A.S. | E42: =VLOOKUP(D42,'BD VIEJA'!$D$3:$H$594,2,FALSE) -> Mosquera - Cund. | F42: =VLOOKUP(D42,'BD VIEJA'!$D$3:$H$594,3,FALSE) -> Km 3.8 Zona Industrial Balsillas | G42: =VLOOKUP(D42,'BD VIEJA'!$D$3:$H$594,4,FALSE) -> 3187759539 | H42: =VLOOKUP(D42,'BD VIEJA'!$D$3:$H$594,5,FALSE) -> ventas@incomineria.co wendy.chaves@incomineria.co | I42: 40
A43: =+B43&COUNTIF($B$3:B43,B43) -> 110214 | B43: 1102 | C43: AGREGADOS PETREOS, BASES Y SUBBASES GRANULARES | D43: INGENIEROS GF SAS | E43: =VLOOKUP(D43,'BD VIEJA'!$D$3:$H$594,2,FALSE) -> Bogota | F43: =VLOOKUP(D43,'BD VIEJA'!$D$3:$H$594,3,FALSE) -> Calle 119 14 A 26 Of. 101 - 401 | G43: =VLOOKUP(D43,'BD VIEJA'!$D$3:$H$594,4,FALSE) -> 6295142 6295120 | H43: =VLOOKUP(D43,'BD VIEJA'!$D$3:$H$594,5,FALSE) -> info@ingenierosgf.com.co pupilojas@hotmail.com | I43: 41
A44: =+B44&COUNTIF($B$3:B44,B44) -> 110215 | B44: 1102 | C44: AGREGADOS PETREOS, BASES Y SUBBASES GRANULARES | D44: MINERALES & TRITURADOS NACIONALES S.A.S | E44: Mosquera - Cund. | F44: Parque Industrial San Jorge - Of 235 | G44: 304 379 0037 8933740 | H44: mintrinal@gmail.com | I44: 42
A45: =+B45&COUNTIF($B$3:B45,B45) -> 110216 | B45: 1102 | C45: AGREGADOS PETREOS, BASES Y SUBBASES GRANULARES | D45: RECICLADOS INDUSTRIALES DE COLOMBIA | E45: =VLOOKUP(D45,'BD VIEJA'!$D$3:$H$594,2,FALSE) -> Cota - Cund. | F45: =VLOOKUP(D45,'BD VIEJA'!$D$3:$H$594,3,FALSE) -> Km 1.5 Costado Sur Vía Bogotá Siberia Cota | G45: =VLOOKUP(D45,'BD VIEJA'!$D$3:$H$594,4,FALSE) -> 8966879 8759047 3114926299 | H45: =VLOOKUP(D45,'BD VIEJA'!$D$3:$H$594,5,FALSE) -> info@recicladosindustriales.co | I45: 43
A46: =+B46&COUNTIF($B$3:B46,B46) -> 110217 | B46: 1102 | C46: AGREGADOS PETREOS, BASES Y SUBBASES GRANULARES | D46: REX INGENIERIA S.A. | E46: =VLOOKUP(D46,'BD VIEJA'!$D$3:$H$594,2,FALSE) -> Bogota | F46: =VLOOKUP(D46,'BD VIEJA'!$D$3:$H$594,3,FALSE) -> Cra. 6 153 A 60 | G46: =VLOOKUP(D46,'BD VIEJA'!$D$3:$H$594,4,FALSE) -> 3378726 3378728 3107694302 | H46: =VLOOKUP(D46,'BD VIEJA'!$D$3:$H$594,5,FALSE) -> atencionalcliente@rexingenieria.com | I46: 44
A47: =+B47&COUNTIF($B$3:B47,B47) -> 11471 | B47: 1147 | C47: ARBOLES, GRAMAS, VEGETACION Y PLANTACION PAISAJISTICA | D47: ECOPRADOS SOLUCIONES AMBIENTALES | E47: =VLOOKUP(D47,'BD VIEJA'!$D$3:$H$594,2,FALSE) -> Bogotá | F47: =VLOOKUP(D47,'BD VIEJA'!$D$3:$H$594,3,FALSE) -> -- | G47: 3118137222 3193922421 | H47: ecopradosambientales@gmail.com nancyemv2017@hotmail.com | I47: 45
A48: =+B48&COUNTIF($B$3:B48,B48) -> 11472 | B48: 1147 | C48: ARBOLES, GRAMAS, VEGETACION Y PLANTACION PAISAJISTICA | D48: VERNE | E48: Bogotá | F48: -- | G48: 317 5123977 321 2053538 | H48: vernebroder@gmail.com | I48: 46
A49: =+B49&COUNTIF($B$3:B49,B49) -> 11473 | B49: 1147 | C49: ARBOLES, GRAMAS, VEGETACION Y PLANTACION PAISAJISTICA | D49: SECRETARIA DISTRITAL DE AMBIENTE | E49: Bogotá | F49: Av caracas No. 54 -38 | G49: 3778899 | H49: atencionalciudadano@ambientebogota.gov.co | I49: 47
A50: =+B50&COUNTIF($B$3:B50,B50) -> 11271 | B50: 1127 | C50: BORDILLOS Y LOSETAS | D50: ALFAGRES S.A. | E50: =VLOOKUP(D50,'BD VIEJA'!$D$3:$H$594,2,FALSE) -> Bogota | F50: =VLOOKUP(D50,'BD VIEJA'!$D$3:$H$594,3,FALSE) -> Avda. Caracas 35 55 | G50: =VLOOKUP(D50,'BD VIEJA'!$D$3:$H$594,4,FALSE) -> 3311515 | H50: =VLOOKUP(D50,'BD VIEJA'!$D$3:$H$594,5,FALSE) -> telemercadeo@alfa.com.co servicioalcliente@alfa.com.co | I50: 48
A51: =+B51&COUNTIF($B$3:B51,B51) -> 11272 | B51: 1127 | C51: BORDILLOS Y LOSETAS | D51: ELEMENTOS PREFABRICADOS DE CONCRETO EL PRECON | E51: =VLOOKUP(D51,'BD VIEJA'!$D$3:$H$594,2,FALSE) -> Madrid - Cund. | F51: =VLOOKUP(D51,'BD VIEJA'!$D$3:$H$594,3,FALSE) -> Km 13.7 Autopista Medellin 1.2 Km del Round Point de Puente de Piedra hacia Bogota (Costado Sur) | G51: =VLOOKUP(D51,'BD VIEJA'!$D$3:$H$594,4,FALSE) -> 3125933840 3115149414 | H51: =VLOOKUP(D51,'BD VIEJA'!$D$3:$H$594,5,FALSE) -> elprecon@hotmail.com | I51: 49
A52: =+B52&COUNTIF($B$3:B52,B52) -> 11273 | B52: 1127 | C52: BORDILLOS Y LOSETAS | D52: INSUMOBRAS LTDA | E52: =VLOOKUP(D52,'BD VIEJA'!$D$3:$H$594,2,FALSE) -> Bogota | F52: =VLOOKUP(D52,'BD VIEJA'!$D$3:$H$594,3,FALSE) -> Autopista Medellin Km 14 Puente Piedra | G52: =VLOOKUP(D52,'BD VIEJA'!$D$3:$H$594,4,FALSE) -> 3108196349 | H52: =VLOOKUP(D52,'BD VIEJA'!$D$3:$H$594,5,FALSE) -> insumobrasltda@hotmail.com invaye@hotmail.com | I52: 50
A53: =+B53&COUNTIF($B$3:B53,B53) -> 11274 | B53: 1127 | C53: BORDILLOS Y LOSETAS | D53: INVERSIONES TJ | E53: Bogotá | F53: Autopista Medellin KM 14 Via Bogota - El Rosal (Puente de Piedra) | G53: 3143941329 3124329816 3158533639 | H53: inversionestj2011@hotmail.com | I53: 51
A54: =+B54&COUNTIF($B$3:B54,B54) -> 11275 | B54: 1127 | C54: BORDILLOS Y LOSETAS | D54: MANUFACTURAS DE CEMENTO S.A. TITAN | E54: =VLOOKUP(D54,'BD VIEJA'!$D$3:$H$594,2,FALSE) -> Cota - Cund. | F54: =VLOOKUP(D54,'BD VIEJA'!$D$3:$H$594,3,FALSE) -> Autopista Medellin, entrada 2,4 Km al occidente del rio Bogotá | G54: =VLOOKUP(D54,'BD VIEJA'!$D$3:$H$594,4,FALSE) -> 3353550 | H54: =VLOOKUP(D54,'BD VIEJA'!$D$3:$H$594,5,FALSE) -> malvarez@titancemento.com | I54: 52
A55: =+B55&COUNTIF($B$3:B55,B55) -> 11276 | B55: 1127 | C55: BORDILLOS Y LOSETAS | D55: PLACA LISTA MODULOS PREFABRICADOS LTDA | E55: =VLOOKUP(D55,'BD VIEJA'!$D$3:$H$594,2,FALSE) -> Bogota | F55: =VLOOKUP(D55,'BD VIEJA'!$D$3:$H$594,3,FALSE) -> Calle 65 13 50 Of. 503 | G55: =VLOOKUP(D55,'BD VIEJA'!$D$3:$H$594,4,FALSE) -> 2550490 3476569 3108173990 | H55: =VLOOKUP(D55,'BD VIEJA'!$D$3:$H$594,5,FALSE) -> placalista01@yahoo.com | I55: 53
A56: =+B56&COUNTIF($B$3:B56,B56) -> 11277 | B56: 1127 | C56: BORDILLOS Y LOSETAS | D56: POSTES MEDINA PREFABRICADOS EN CONCRETO | E56: =VLOOKUP(D56,'BD VIEJA'!$D$3:$H$594,2,FALSE) -> Bogota | F56: =VLOOKUP(D56,'BD VIEJA'!$D$3:$H$594,3,FALSE) -> Avda. Cra. Séptima No. 156 - 78 Oficina 706 | G56: =VLOOKUP(D56,'BD VIEJA'!$D$3:$H$594,4,FALSE) -> 2163020 | H56: =VLOOKUP(D56,'BD VIEJA'!$D$3:$H$594,5,FALSE) -> comercial1@postesmedina.com colpostesmedina@yahoo.com postesmedinacolombia@hotmail.com | I56: 54
A57: =+B57&COUNTIF($B$3:B57,B57) -> 11278 | B57: 1127 | C57: BORDILLOS Y LOSETAS | D57: RECICLADOS INDUSTRIALES DE COLOMBIA | E57: =VLOOKUP(D57,'BD VIEJA'!$D$3:$H$594,2,FALSE) -> Cota - Cund. | F57: =VLOOKUP(D57,'BD VIEJA'!$D$3:$H$594,3,FALSE) -> Km 1.5 Costado Sur Vía Bogotá Siberia Cota | G57: =VLOOKUP(D57,'BD VIEJA'!$D$3:$H$594,4,FALSE) -> 8966879 8759047 3114926299 | H57: =VLOOKUP(D57,'BD VIEJA'!$D$3:$H$594,5,FALSE) -> info@recicladosindustriales.co | I57: 55
A58: =+B58&COUNTIF($B$3:B58,B58) -> 11211 | B58: 1121 | C58: CABLES Y ACCESORIOS ELECTRICOS | D58: ABC TRANSFORMADORES E INGENIERIA ELECTROMECÁNICA | E58: =VLOOKUP(D58,'BD VIEJA'!$D$3:$H$594,2,FALSE) -> Bogotá | F58: =VLOOKUP(D58,'BD VIEJA'!$D$3:$H$594,3,FALSE) -> Carrera 27 No. 7 - 42 | G58: =VLOOKUP(D58,'BD VIEJA'!$D$3:$H$594,4,FALSE) -> 2015059 - 3105612639 - 3105612635 - 2016468 | H58: =VLOOKUP(D58,'BD VIEJA'!$D$3:$H$594,5,FALSE) -> http://www.transformadoresabc.com | I58: 56
A59: =+B59&COUNTIF($B$3:B59,B59) -> 11212 | B59: 1121 | C59: CABLES Y ACCESORIOS ELECTRICOS | D59: ACONSTRUCTORAS.COM | E59: =VLOOKUP(D59,'BD VIEJA'!$D$3:$H$594,2,FALSE) -> Yopal - Casanare | F59: =VLOOKUP(D59,'BD VIEJA'!$D$3:$H$594,3,FALSE) -> Calle 25 15 19 | G59: =VLOOKUP(D59,'BD VIEJA'!$D$3:$H$594,4,FALSE) -> 3005541747 3163971751 | H59: =VLOOKUP(D59,'BD VIEJA'!$D$3:$H$594,5,FALSE) -> www.aconstructoras.com | I59: 57
A60: =+B60&COUNTIF($B$3:B60,B60) -> 11213 | B60: 1121 | C60: CABLES Y ACCESORIOS ELECTRICOS | D60: ALMACÉN CANAIMA | E60: =VLOOKUP(D60,'BD VIEJA'!$D$3:$H$594,2,FALSE) -> Armenia - Quindio | F60: =VLOOKUP(D60,'BD VIEJA'!$D$3:$H$594,3,FALSE) -> Calle 17 20 21 | G60: =VLOOKUP(D60,'BD VIEJA'!$D$3:$H$594,4,FALSE) -> 3148884477 (6)7447384 | H60: =VLOOKUP(D60,'BD VIEJA'!$D$3:$H$594,5,FALSE) -> info@almacencanaima.com | I60: 58
A61: =+B61&COUNTIF($B$3:B61,B61) -> 11214 | B61: 1121 | C61: CABLES Y ACCESORIOS ELECTRICOS | D61: BORNA DESDE 1984 | E61: =VLOOKUP(D61,'BD VIEJA'!$D$3:$H$594,2,FALSE) -> Bogotá | F61: =VLOOKUP(D61,'BD VIEJA'!$D$3:$H$594,3,FALSE) -> CARRERA 24 8-51 BOGOTA | G61: =VLOOKUP(D61,'BD VIEJA'!$D$3:$H$594,4,FALSE) -> 383 7610 | H61: =VLOOKUP(D61,'BD VIEJA'!$D$3:$H$594,5,FALSE) -> www.borna-store.com servicioalcliente@bornas.info | I61: 59
A62: =+B62&COUNTIF($B$3:B62,B62) -> 11215 | B62: 1121 | C62: CABLES Y ACCESORIOS ELECTRICOS | D62: CEB IMPORTADORA SAS | E62: =VLOOKUP(D62,'BD VIEJA'!$D$3:$H$594,2,FALSE) -> Bogota | F62: =VLOOKUP(D62,'BD VIEJA'!$D$3:$H$594,3,FALSE) -> Cra. 13 19 29 | G62: =VLOOKUP(D62,'BD VIEJA'!$D$3:$H$594,4,FALSE) -> 2825100 | H62: =VLOOKUP(D62,'BD VIEJA'!$D$3:$H$594,5,FALSE) -> administracion@cebbogota.com | I62: 60
A63: =+B63&COUNTIF($B$3:B63,B63) -> 11216 | B63: 1121 | C63: CABLES Y ACCESORIOS ELECTRICOS | D63: CEI ELECTRICA INTERNACIONAL SAS | E63: =VLOOKUP(D63,'BD VIEJA'!$D$3:$H$594,2,FALSE) -> Bogotá | F63: =VLOOKUP(D63,'BD VIEJA'!$D$3:$H$594,3,FALSE) -> Cra. 13 No. 13 - 17 Of. 404 | G63: =VLOOKUP(D63,'BD VIEJA'!$D$3:$H$594,4,FALSE) -> 2435090 | H63: =VLOOKUP(D63,'BD VIEJA'!$D$3:$H$594,5,FALSE) -> ventas@ceielectricainternacional.com | I63: 61
A64: =+B64&COUNTIF($B$3:B64,B64) -> 11217 | B64: 1121 | C64: CABLES Y ACCESORIOS ELECTRICOS | D64: COVAL COMERCIAL S. A. | E64: =VLOOKUP(D64,'BD VIEJA'!$D$3:$H$594,2,FALSE) -> Bogota | F64: =VLOOKUP(D64,'BD VIEJA'!$D$3:$H$594,3,FALSE) -> Avda. Ciudad de Cali 5 A 92 Sur | G64: =VLOOKUP(D64,'BD VIEJA'!$D$3:$H$594,4,FALSE) -> 3152358446 8759100 Ext. 144 - 145 7454671 | H64: =VLOOKUP(D64,'BD VIEJA'!$D$3:$H$594,5,FALSE) -> info@coval.com.co | I64: 62
A65: =+B65&COUNTIF($B$3:B65,B65) -> 11218 | B65: 1121 | C65: CABLES Y ACCESORIOS ELECTRICOS | D65: CU CONECTORES | E65: =VLOOKUP(D65,'BD VIEJA'!$D$3:$H$594,2,FALSE) -> Funza - Cundinamarca | F65: =VLOOKUP(D65,'BD VIEJA'!$D$3:$H$594,3,FALSE) -> Km 7 vía Bogotá - Medellín Complejo Industrial Celta Trade Park, Bodega 152-3 | G65: =VLOOKUP(D65,'BD VIEJA'!$D$3:$H$594,4,FALSE) -> 8966535 Ext. 400 | H65: =VLOOKUP(D65,'BD VIEJA'!$D$3:$H$594,5,FALSE) -> comercial@cuconectores.com.co | I65: 63
A66: =+B66&COUNTIF($B$3:B66,B66) -> 11219 | B66: 1121 | C66: CABLES Y ACCESORIOS ELECTRICOS | D66: DEKO | E66: Bogotá | F66: Cra 43#79-61 - Cll 30#4B-350 - Cll 36#43-49 | G66: 3850303 ext 61-64 | H66: cliente@electricosei.com | I66: 64
A67: =+B67&COUNTIF($B$3:B67,B67) -> 112110 | B67: 1121 | C67: CABLES Y ACCESORIOS ELECTRICOS | D67: DISELEC LTDA | E67: =VLOOKUP(D67,'BD VIEJA'!$D$3:$H$594,2,FALSE) -> Bogota | F67: =VLOOKUP(D67,'BD VIEJA'!$D$3:$H$594,3,FALSE) -> Cra. 12 16 26 | G67: =VLOOKUP(D67,'BD VIEJA'!$D$3:$H$594,4,FALSE) -> 3107720207 2843500 2832928 | H67: =VLOOKUP(D67,'BD VIEJA'!$D$3:$H$594,5,FALSE) -> distrielectrica@hotmail.com | I67: 65
A68: =+B68&COUNTIF($B$3:B68,B68) -> 112111 | B68: 1121 | C68: CABLES Y ACCESORIOS ELECTRICOS | D68: DURMAN COLOMBIA S.A. | E68: =VLOOKUP(D68,'BD VIEJA'!$D$3:$H$594,2,FALSE) -> Madrid - Cund. | F68: =VLOOKUP(D68,'BD VIEJA'!$D$3:$H$594,3,FALSE) -> Km 27 Vía Fontibon Facatativa Los Alpes | G68: =VLOOKUP(D68,'BD VIEJA'!$D$3:$H$594,4,FALSE) -> 8200200 | H68: =VLOOKUP(D68,'BD VIEJA'!$D$3:$H$594,5,FALSE) -> colombia@durman.com | I68: 66
A69: =+B69&COUNTIF($B$3:B69,B69) -> 112112 | B69: 1121 | C69: CABLES Y ACCESORIOS ELECTRICOS | D69: DYCON MATERIALES ELÉCTRICOS | E69: =VLOOKUP(D69,'BD VIEJA'!$D$3:$H$594,2,FALSE) -> Neiva - Huila | F69: =VLOOKUP(D69,'BD VIEJA'!$D$3:$H$594,3,FALSE) -> Calle 22 #1h-38, Rojas Trujillo | G69: =VLOOKUP(D69,'BD VIEJA'!$D$3:$H$594,4,FALSE) -> 8750577 | H69: =VLOOKUP(D69,'BD VIEJA'!$D$3:$H$594,5,FALSE) -> -- | I69: 67
A70: =+B70&COUNTIF($B$3:B70,B70) -> 112113 | B70: 1121 | C70: CABLES Y ACCESORIOS ELECTRICOS | D70: EASY | E70: =VLOOKUP(D70,'BD VIEJA'!$D$3:$H$594,2,FALSE) -> Bogota | F70: =VLOOKUP(D70,'BD VIEJA'!$D$3:$H$594,3,FALSE) -> Avda. Americas 68 94 | G70: =VLOOKUP(D70,'BD VIEJA'!$D$3:$H$594,4,FALSE) -> 4191400 | H70: =VLOOKUP(D70,'BD VIEJA'!$D$3:$H$594,5,FALSE) -> www.easy.com.co | I70: 68
A71: =+B71&COUNTIF($B$3:B71,B71) -> 112114 | B71: 1121 | C71: CABLES Y ACCESORIOS ELECTRICOS | D71: EIMPSA | E71: =VLOOKUP(D71,'BD VIEJA'!$D$3:$H$594,2,FALSE) -> Bogotá | F71: =VLOOKUP(D71,'BD VIEJA'!$D$3:$H$594,3,FALSE) -> Calle 15 No. 13 - 48 (Entrada Principal) Calle 16 N. 13 - 55 (Parqueadero) | G71: =VLOOKUP(D71,'BD VIEJA'!$D$3:$H$594,4,FALSE) -> 3275222 - 3340686 | H71: =VLOOKUP(D71,'BD VIEJA'!$D$3:$H$594,5,FALSE) -> E-mail: ventas@eimpsa.com.co | I71: 69
A72: =+B72&COUNTIF($B$3:B72,B72) -> 112115 | B72: 1121 | C72: CABLES Y ACCESORIOS ELECTRICOS | D72: ELECTRICOS JS | E72: Bogotá | F72: Av. Calle 63 #103A-32 Viña del Mar | G72: 431 31 20 310 477 2097 | H72: ventas2@electricosjs.com.co | I72: 70
A73: =+B73&COUNTIF($B$3:B73,B73) -> 112116 | B73: 1121 | C73: CABLES Y ACCESORIOS ELECTRICOS | D73: ALMACENES EXITO | E73: =VLOOKUP(D73,'BD VIEJA'!$D$3:$H$594,2,FALSE) -> Bogotá | F73: =VLOOKUP(D73,'BD VIEJA'!$D$3:$H$594,3,FALSE) -> Cra. 7 32 84 | G73: =VLOOKUP(D73,'BD VIEJA'!$D$3:$H$594,4,FALSE) -> 3278888 | H73: =VLOOKUP(D73,'BD VIEJA'!$D$3:$H$594,5,FALSE) -> www.exito.com | I73: 71
A74: =+B74&COUNTIF($B$3:B74,B74) -> 112117 | B74: 1121 | C74: CABLES Y ACCESORIOS ELECTRICOS | D74: FERRETERIA TÉCNICA | E74: Medellín - Antioquia | F74: Carrera 51 # 44 - 98 | G74: 511 9828 | H74: ferreteriatecnicasa@gmail.com | I74: 72
A75: =+B75&COUNTIF($B$3:B75,B75) -> 112118 | B75: 1121 | C75: CABLES Y ACCESORIOS ELECTRICOS | D75: GERFOR | E75: =VLOOKUP(D75,'BD VIEJA'!$D$3:$H$594,2,FALSE) -> Bogota | F75: =VLOOKUP(D75,'BD VIEJA'!$D$3:$H$594,3,FALSE) -> Autopista Medellin Km 2 - 600 Entrada via Parcelas de Cota | G75: =VLOOKUP(D75,'BD VIEJA'!$D$3:$H$594,4,FALSE) -> 8776800 | H75: =VLOOKUP(D75,'BD VIEJA'!$D$3:$H$594,5,FALSE) -> contactenos@gerfor.com www.gerfor.com.co | I75: 73
A76: =+B76&COUNTIF($B$3:B76,B76) -> 112119 | B76: 1121 | C76: CABLES Y ACCESORIOS ELECTRICOS | D76: GIM INGENIERIA ELÉCTRICA LTDA | E76: Bogotá | F76: Cra 73A N° 68B-28 | G76: 2526888 | H76: info@gim.com.co | I76: 74
A77: =+B77&COUNTIF($B$3:B77,B77) -> 112120 | B77: 1121 | C77: CABLES Y ACCESORIOS ELECTRICOS | D77: HOMECENTER | E77: =VLOOKUP(D77,'BD VIEJA'!$D$3:$H$594,2,FALSE) -> Bogota | F77: =VLOOKUP(D77,'BD VIEJA'!$D$3:$H$594,3,FALSE) -> Avda. 68 37 37 Sur | G77: =VLOOKUP(D77,'BD VIEJA'!$D$3:$H$594,4,FALSE) -> 3077115 | H77: =VLOOKUP(D77,'BD VIEJA'!$D$3:$H$594,5,FALSE) -> www.homecenter.com.co | I77: 75
A78: =+B78&COUNTIF($B$3:B78,B78) -> 112121 | B78: 1121 | C78: CABLES Y ACCESORIOS ELECTRICOS | D78: INTECH | E78: Bogotá | F78: Oficinas Exhibición y Ventas CC. Iserra 100 LC 133 | G78: 381 4920 3008360675 | H78: comercial@intech.com.co | I78: 76
A79: =+B79&COUNTIF($B$3:B79,B79) -> 112122 | B79: 1121 | C79: CABLES Y ACCESORIOS ELECTRICOS | D79: INTERELECTRICAS | E79: Bogotá | F79: Cra. 12 13 46 | G79: 3360755 3106983687 | H79: servicioalcliente@ie.com.co | I79: 77
A80: =+B80&COUNTIF($B$3:B80,B80) -> 112123 | B80: 1121 | C80: CABLES Y ACCESORIOS ELECTRICOS | D80: INTERNACIONAL DE ELÉCTRICOS | E80: =VLOOKUP(D80,'BD VIEJA'!$D$3:$H$594,2,FALSE) -> Bogota | F80: =VLOOKUP(D80,'BD VIEJA'!$D$3:$H$594,3,FALSE) -> Avda. Caracas 64 23 | G80: =VLOOKUP(D80,'BD VIEJA'!$D$3:$H$594,4,FALSE) -> 7448130 | H80: =VLOOKUP(D80,'BD VIEJA'!$D$3:$H$594,5,FALSE) -> amrubio@iegrupo.co lsescorcia@iegrupo.co | I80: 78
A81: =+B81&COUNTIF($B$3:B81,B81) -> 112124 | B81: 1121 | C81: CABLES Y ACCESORIOS ELECTRICOS | D81: JD ELECTRICOS E INDUSTRIA LTDA | E81: Bogota | F81: Cra. 12 15 95 | G81: 3411060 | H81: elianasalazar@jdelectricos.com.co | I81: 79
A82: =+B82&COUNTIF($B$3:B82,B82) -> 112125 | B82: 1121 | C82: CABLES Y ACCESORIOS ELECTRICOS | D82: ALMACENES JUMBO | E82: =VLOOKUP(D82,'BD VIEJA'!$D$3:$H$594,2,FALSE) -> Bogota | F82: =VLOOKUP(D82,'BD VIEJA'!$D$3:$H$594,3,FALSE) -> Calle 185 # 43 - 05 Lc 167 C.cial Santafé Av. Carrera. 72 # 80 - 94 Local 1-13 C.cial Titán Plaza | G82: =VLOOKUP(D82,'BD VIEJA'!$D$3:$H$594,4,FALSE) -> 3489898 | H82: =VLOOKUP(D82,'BD VIEJA'!$D$3:$H$594,5,FALSE) -> sac@tiendasjumbo.co | I82: 80
A83: =+B83&COUNTIF($B$3:B83,B83) -> 112126 | B83: 1121 | C83: CABLES Y ACCESORIOS ELECTRICOS | D83: MAELECTRICOS | E83: =VLOOKUP(D83,'BD VIEJA'!$D$3:$H$594,2,FALSE) -> Bogota | F83: =VLOOKUP(D83,'BD VIEJA'!$D$3:$H$594,3,FALSE) -> Calle 17 28 A 74 | G83: =VLOOKUP(D83,'BD VIEJA'!$D$3:$H$594,4,FALSE) -> 3647373 | H83: =VLOOKUP(D83,'BD VIEJA'!$D$3:$H$594,5,FALSE) -> julian.c@maelectricos.com julian.alvarado@maelectricos.com | I83: 81
A84: =+B84&COUNTIF($B$3:B84,B84) -> 112127 | B84: 1121 | C84: CABLES Y ACCESORIOS ELECTRICOS | D84: NACIONAL DE ELECTRICOS | E84: =VLOOKUP(D84,'BD VIEJA'!$D$3:$H$594,2,FALSE) -> Bogota | F84: =VLOOKUP(D84,'BD VIEJA'!$D$3:$H$594,3,FALSE) -> Calle 15 12 81 | G84: =VLOOKUP(D84,'BD VIEJA'!$D$3:$H$594,4,FALSE) -> 3114758165 2543720 Ext. 1502 | H84: =VLOOKUP(D84,'BD VIEJA'!$D$3:$H$594,5,FALSE) -> centro1@nalelectricos.com.co www.nalelectricos.com.co | I84: 82
A85: =+B85&COUNTIF($B$3:B85,B85) -> 112128 | B85: 1121 | C85: CABLES Y ACCESORIOS ELECTRICOS | D85: NACIONAL DE TRANSFORMADORES | E85: =VLOOKUP(D85,'BD VIEJA'!$D$3:$H$594,2,FALSE) -> Mosquera/Cundinamarca | F85: =VLOOKUP(D85,'BD VIEJA'!$D$3:$H$594,3,FALSE) -> PARQUE INDUSTRIAL MONTANA - MOSQUERA | G85: =VLOOKUP(D85,'BD VIEJA'!$D$3:$H$594,4,FALSE) -> 8932308 | H85: =VLOOKUP(D85,'BD VIEJA'!$D$3:$H$594,5,FALSE) -> -- | I85: 83
A86: =+B86&COUNTIF($B$3:B86,B86) -> 112129 | B86: 1121 | C86: CABLES Y ACCESORIOS ELECTRICOS | D86: PANAMERICANA | E86: Bogotá | F86: Calle 12 # 34 - 30 | G86: 364 9000 018000 121314 | H86: tiendavirtual@panamericana.com.co | I86: 84
A87: =+B87&COUNTIF($B$3:B87,B87) -> 112130 | B87: 1121 | C87: CABLES Y ACCESORIOS ELECTRICOS | D87: PAVCO S.A. | E87: =VLOOKUP(D87,'BD VIEJA'!$D$3:$H$594,2,FALSE) -> Bogota | F87: =VLOOKUP(D87,'BD VIEJA'!$D$3:$H$594,3,FALSE) -> Autopista Sur 71 75 | G87: =VLOOKUP(D87,'BD VIEJA'!$D$3:$H$594,4,FALSE) -> 7825000 | H87: =VLOOKUP(D87,'BD VIEJA'!$D$3:$H$594,5,FALSE) -> servicio@pavco.com.co orlando.polo@pavco.com.co www.pavco.com.co | I87: 85
A88: =+B88&COUNTIF($B$3:B88,B88) -> 112131 | B88: 1121 | C88: CABLES Y ACCESORIOS ELECTRICOS | D88: PROELÉCTRICOS | E88: =VLOOKUP(D88,'BD VIEJA'!$D$3:$H$594,2,FALSE) -> Bogotá | F88: =VLOOKUP(D88,'BD VIEJA'!$D$3:$H$594,3,FALSE) -> CALLE 12 A No. 21 - 21 | G88: =VLOOKUP(D88,'BD VIEJA'!$D$3:$H$594,4,FALSE) -> 2471255 EXT. 301 | H88: =VLOOKUP(D88,'BD VIEJA'!$D$3:$H$594,5,FALSE) -> presupuestos@proelectricos.com | I88: 86
A89: =+B89&COUNTIF($B$3:B89,B89) -> 112132 | B89: 1121 | C89: CABLES Y ACCESORIOS ELECTRICOS | D89: REDES ELECTRICAS SA | E89: =VLOOKUP(D89,'BD VIEJA'!$D$3:$H$594,2,FALSE) -> Bogotá | F89: =VLOOKUP(D89,'BD VIEJA'!$D$3:$H$594,3,FALSE) -> Calle 18 # 25 - 60 | G89: =VLOOKUP(D89,'BD VIEJA'!$D$3:$H$594,4,FALSE) -> 7470023 | H89: =VLOOKUP(D89,'BD VIEJA'!$D$3:$H$594,5,FALSE) -> servicioalcliente@redeselectricas.com | I89: 87
A90: =+B90&COUNTIF($B$3:B90,B90) -> 112133 | B90: 1121 | C90: CABLES Y ACCESORIOS ELECTRICOS | D90: STEREN | E90: =VLOOKUP(D90,'BD VIEJA'!$D$3:$H$594,2,FALSE) -> Bogotá | F90: =VLOOKUP(D90,'BD VIEJA'!$D$3:$H$594,3,FALSE) -> Calle 140 n. 12B-25, Edificio Castellana Empresarial, oficina 103 | G90: =VLOOKUP(D90,'BD VIEJA'!$D$3:$H$594,4,FALSE) -> 7443200 | H90: =VLOOKUP(D90,'BD VIEJA'!$D$3:$H$594,5,FALSE) -> www.steren.com.co | I90: 88
A91: =+B91&COUNTIF($B$3:B91,B91) -> 112134 | B91: 1121 | C91: CABLES Y ACCESORIOS ELECTRICOS | D91: TRANSFORMADORES INDUELECTRO | E91: Bogotá | F91: Cll 24 Sur No 18 C-51 - Barrio Olaya | G91: 3669171 2729590 312 4199852 310 8774120 | H91: transformadoresinduelectro@hotmail.com | I91: 89
A92: =+B92&COUNTIF($B$3:B92,B92) -> 112135 | B92: 1121 | C92: CABLES Y ACCESORIOS ELECTRICOS | D92: TRANSFORMADORES EL WATTIO | E92: Bogotá | F92: Kr 88a # 64D - 90 Bod 14. Centro Industrial el Dorado. | G92: 252 22 77 3174029908 | H92: transformadores@elwattio.com.co | I92: 90
A93: =+B93&COUNTIF($B$3:B93,B93) -> 112136 | B93: 1121 | C93: CABLES Y ACCESORIOS ELECTRICOS | D93: TUBOS Y ACCESORIOS CELTA | E93: =VLOOKUP(D93,'BD VIEJA'!$D$3:$H$594,2,FALSE) -> Bogota | F93: =VLOOKUP(D93,'BD VIEJA'!$D$3:$H$594,3,FALSE) -> Cra. 87 1 42 | G93: =VLOOKUP(D93,'BD VIEJA'!$D$3:$H$594,4,FALSE) -> 7799000 3143302256 3123320171 | H93: =VLOOKUP(D93,'BD VIEJA'!$D$3:$H$594,5,FALSE) -> rurodrig@celta.com.co katherine.rodriguez@celta.com.co | I93: 91
A94: =+B94&COUNTIF($B$3:B94,B94) -> 11951 | B94: 1195 | C94: CARPINTERIA METALICA | D94: CIELO RASOS & DIVISIONES | E94: Bogotá | F94: Cra 14 #75-58 | G94: 248 18 60 310 577 4471 | H94: ventas@cielosrasos.com | I94: 92
A95: =+B95&COUNTIF($B$3:B95,B95) -> 11952 | B95: 1195 | C95: CARPINTERIA METALICA | D95: HB SADELEC Estructuras Metálicas | E95: =VLOOKUP(D95,'BD VIEJA'!$D$3:$H$594,2,FALSE) -> Bogota | F95: =VLOOKUP(D95,'BD VIEJA'!$D$3:$H$594,3,FALSE) -> Avda. Cra. 129 17 F 97 | G95: =VLOOKUP(D95,'BD VIEJA'!$D$3:$H$594,4,FALSE) -> 4224700 Ext. 121 4155620 | H95: =VLOOKUP(D95,'BD VIEJA'!$D$3:$H$594,5,FALSE) -> david.castellanos@hbsadelec.com.co | I95: 93
A96: =+B96&COUNTIF($B$3:B96,B96) -> 11953 | B96: 1195 | C96: CARPINTERIA METALICA | D96: NAZCA DISEÑO - IMAGEN SAS | E96: =VLOOKUP(D96,'BD VIEJA'!$D$3:$H$594,2,FALSE) -> Bogota | F96: =VLOOKUP(D96,'BD VIEJA'!$D$3:$H$594,3,FALSE) -> Cra. 55 45 A 20 | G96: =VLOOKUP(D96,'BD VIEJA'!$D$3:$H$594,4,FALSE) -> 3244248 3003228552 | H96: =VLOOKUP(D96,'BD VIEJA'!$D$3:$H$594,5,FALSE) -> comercial@nazca.com.co | I96: 94
A97: =+B97&COUNTIF($B$3:B97,B97) -> 11301 | B97: 1130 | C97: COMBUSTIBLES Y LUBRICANTES | D97: MINISTERIO DE MINAS Y ENERGIA | E97: =VLOOKUP(D97,'BD VIEJA'!$D$3:$H$594,2,FALSE) -> Bogota | F97: =VLOOKUP(D97,'BD VIEJA'!$D$3:$H$594,3,FALSE) -> Calle 43 57 31 | G97: =VLOOKUP(D97,'BD VIEJA'!$D$3:$H$594,4,FALSE) -> 2200300 2200306 | H97: =VLOOKUP(D97,'BD VIEJA'!$D$3:$H$594,5,FALSE) -> www.minminas.gov.co | I97: 95
A98: =+B98&COUNTIF($B$3:B98,B98) -> 11031 | B98: 1103 | C98: CONCRETOS Y MORTEROS PREMEZCLADOS | D98: CEMEX DE COLOMBIA S.A. | E98: =VLOOKUP(D98,'BD VIEJA'!$D$3:$H$594,2,FALSE) -> Bogota | F98: =VLOOKUP(D98,'BD VIEJA'!$D$3:$H$594,3,FALSE) -> Calle 99 9 A 54 Piso 8 | G98: =VLOOKUP(D98,'BD VIEJA'!$D$3:$H$594,4,FALSE) -> 6469000 6039100 | H98: ginnamarcela.gomez@cemex.com alvaro.coral@cemex.com adrianamaritza.ramosrt@cemex.com.co | I98: 96
A99: =+B99&COUNTIF($B$3:B99,B99) -> 11032 | B99: 1103 | C99: CONCRETOS Y MORTEROS PREMEZCLADOS | D99: CONCRETERA TREMIX SAS | E99: Bogotá | F99: -- | G99: 6260860 | H99: -- | I99: 97
A100: =+B100&COUNTIF($B$3:B100,B100) -> 11033 | B100: 1103 | C100: CONCRETOS Y MORTEROS PREMEZCLADOS | D100: CONCRETOS ARGOS S.A. | E100: =VLOOKUP(D100,'BD VIEJA'!$D$3:$H$594,2,FALSE) -> Bogotá | F100: =VLOOKUP(D100,'BD VIEJA'!$D$3:$H$594,3,FALSE) -> Cra. 7 71 21 Torre A Piso 10 | G100: =VLOOKUP(D100,'BD VIEJA'!$D$3:$H$594,4,FALSE) -> 6767060 | H100: =VLOOKUP(D100,'BD VIEJA'!$D$3:$H$594,5,FALSE) -> info@argos.com.co | I100: 98
A101: =+B101&COUNTIF($B$3:B101,B101) -> 11034 | B101: 1103 | C101: CONCRETOS Y MORTEROS PREMEZCLADOS | D101: HORMIGON ANDINO S.A. | E101: =VLOOKUP(D101,'BD VIEJA'!$D$3:$H$594,2,FALSE) -> Bogota | F101: =VLOOKUP(D101,'BD VIEJA'!$D$3:$H$594,3,FALSE) -> Calle 125 21 A 18 Piso 4 | G101: =VLOOKUP(D101,'BD VIEJA'!$D$3:$H$594,4,FALSE) -> 3164706585 6371837 | H101: =VLOOKUP(D101,'BD VIEJA'!$D$3:$H$594,5,FALSE) -> comercial@hormigonandino.com | I101: 99
A102: =+B102&COUNTIF($B$3:B102,B102) -> 11035 | B102: 1103 | C102: CONCRETOS Y MORTEROS PREMEZCLADOS | D102: POLIMIX COLOMBIA | E102: Bogotá | F102: Calle 147 # 17 - 78 Edificio Soko 147 Of 504 | G102: 6260860 / 61 / 62 / 63 | H102: -- | I102: 100 | J102: preguntar a francisco
A103: =+B103&COUNTIF($B$3:B103,B103) -> 11036 | B103: 1103 | C103: CONCRETOS Y MORTEROS PREMEZCLADOS | D103: SIKA COLOMBIA SAS | E103: =VLOOKUP(D103,'BD VIEJA'!$D$3:$H$594,2,FALSE) -> Tocancipa - Cund. | F103: =VLOOKUP(D103,'BD VIEJA'!$D$3:$H$594,3,FALSE) -> Vereda Canavita, Km 20,5 Autopista Norte | G103: =VLOOKUP(D103,'BD VIEJA'!$D$3:$H$594,4,FALSE) -> 8786666 8786681 | H103: =VLOOKUP(D103,'BD VIEJA'!$D$3:$H$594,5,FALSE) -> ortiz.ricardo@co.sika.com chacon.jose@co.sika.com | I103: 101
A104: =+B104&COUNTIF($B$3:B104,B104) -> 12001 | B104: 1200 | C104: CUBIERTA, CIELO RASO, CORTASOL TIPO TRANSMILENIO | D104: CIELOS RASOS & DIVISIONES | E104: Bogotá | F104: Cra 14 #75-58 | G104: 248 18 60 310 577 4471 | H104: ventas@cielosrasos.com | I104: 102
A105: =+B105&COUNTIF($B$3:B105,B105) -> 12002 | B105: 1200 | C105: CUBIERTA, CIELO RASO, CORTASOL TIPO TRANSMILENIO | D105: HB SADELEC Estructuras Metálicas | E105: =VLOOKUP(D105,'BD VIEJA'!$D$3:$H$594,2,FALSE) -> Bogota | F105: =VLOOKUP(D105,'BD VIEJA'!$D$3:$H$594,3,FALSE) -> Avda. Cra. 129 17 F 97 | G105: =VLOOKUP(D105,'BD VIEJA'!$D$3:$H$594,4,FALSE) -> 4224700 Ext. 121 4155620 | H105: =VLOOKUP(D105,'BD VIEJA'!$D$3:$H$594,5,FALSE) -> david.castellanos@hbsadelec.com.co | I105: 103
A106: =+B106&COUNTIF($B$3:B106,B106) -> 11941 | B106: 1194 | C106: DESMONTE Y TRASLADO DE ELEMENTOS METALICOS | D106: NAZCA DISEÑO - IMAGEN SAS | E106: =VLOOKUP(D106,'BD VIEJA'!$D$3:$H$594,2,FALSE) -> Bogota | F106: =VLOOKUP(D106,'BD VIEJA'!$D$3:$H$594,3,FALSE) -> Cra. 55 45 A 20 | G106: =VLOOKUP(D106,'BD VIEJA'!$D$3:$H$594,4,FALSE) -> 3244248 3003228552 | H106: =VLOOKUP(D106,'BD VIEJA'!$D$3:$H$594,5,FALSE) -> comercial@nazca.com.co | I106: 104
A107: =+B107&COUNTIF($B$3:B107,B107) -> 11481 | B107: 1148 | C107: DOTACION (EPP) Y EQUIPO Y HERRAMIENTA SEGURIDAD INDUSTRIAL | D107: ACONSTRUCTORAS.COM | E107: =VLOOKUP(D107,'BD VIEJA'!$D$3:$H$594,2,FALSE) -> Yopal - Casanare | F107: =VLOOKUP(D107,'BD VIEJA'!$D$3:$H$594,3,FALSE) -> Calle 25 15 19 | G107: =VLOOKUP(D107,'BD VIEJA'!$D$3:$H$594,4,FALSE) -> 3005541747 3163971751 | H107: =VLOOKUP(D107,'BD VIEJA'!$D$3:$H$594,5,FALSE) -> www.aconstructoras.com | I107: 105
A108: =+B108&COUNTIF($B$3:B108,B108) -> 11482 | B108: 1148 | C108: DOTACION (EPP) Y EQUIPO Y HERRAMIENTA SEGURIDAD INDUSTRIAL | D108: ADRENALINA SAFETY VIRTUAL STORE | E108: Bogotá | F108: www.adrenalina.co | G108: 350 239 4362 | H108: adrenalina.virtual.store@gmail.com servicio.cliente@adrenalina.co | I108: 106
A109: =+B109&COUNTIF($B$3:B109,B109) -> 11483 | B109: 1148 | C109: DOTACION (EPP) Y EQUIPO Y HERRAMIENTA SEGURIDAD INDUSTRIAL | D109: AFM DOTACIONES | E109: Bogotá | F109: Av 68 N. 18-32 Sur | G109: 4948768 5637649 | H109: servicioalcliente@afmdotaciones.com.co ventas68punto1@afmdotaciones.com.co | I109: 107
A110: =+B110&COUNTIF($B$3:B110,B110) -> 11484 | B110: 1148 | C110: DOTACION (EPP) Y EQUIPO Y HERRAMIENTA SEGURIDAD INDUSTRIAL | D110: ALMACEN ENTRE MAYORISTAS | E110: Bogotá | F110: Cl 6A # 19-70 Piso 1 Almacenes Salamandras Textil | G110: 37 01 091 | H110: info@entremayoristas.com ventas@salamandratextil.com | I110: 108 | J110: preguntar a sara
A111: =+B111&COUNTIF($B$3:B111,B111) -> 11485 | B111: 1148 | C111: DOTACION (EPP) Y EQUIPO Y HERRAMIENTA SEGURIDAD INDUSTRIAL | D111: ALMACEN SIGMONSHOP | E111: Cali - Valle | F111: Crra 83A No. 45 - 59 Piso 2 Barrio El Caney | G111: 4015063 3212151598 | H111: ventas@sigmonshop.com | I111: 109
A112: =+B112&COUNTIF($B$3:B112,B112) -> 11486 | B112: 1148 | C112: DOTACION (EPP) Y EQUIPO Y HERRAMIENTA SEGURIDAD INDUSTRIAL | D112: CENTRAL DE SUMINISTROS - GSPATH | E112: Cartagena - Bolivar | F112: Mamonal Km 6, EDS las Américas Local 7B | G112: 6685571 304 344 9544 | H112: ventas@centraldesuministrosgs.com | I112: 110
A113: =+B113&COUNTIF($B$3:B113,B113) -> 11487 | B113: 1148 | C113: DOTACION (EPP) Y EQUIPO Y HERRAMIENTA SEGURIDAD INDUSTRIAL | D113: DISTRIBUCIONES Y DOTACIONES R.A.C | E113: Bogotá | F113: Carrera 22 # 16 – 65 Almacén Paloquemao Calle 164 # 21 – 25 Almacén Toberín | G113: 672 22 36 314 878 93 31 | H113: ventas@dotacionesrac.com | I113: 111
A114: =+B114&COUNTIF($B$3:B114,B114) -> 11488 | B114: 1148 | C114: DOTACION (EPP) Y EQUIPO Y HERRAMIENTA SEGURIDAD INDUSTRIAL | D114: DOTA FUERTE | E114: =VLOOKUP(D114,'BD VIEJA'!$D$3:$H$594,2,FALSE) -> Bogota | F114: =VLOOKUP(D114,'BD VIEJA'!$D$3:$H$594,3,FALSE) -> Avda. Cra. 68 14 32 Sur | G114: =VLOOKUP(D114,'BD VIEJA'!$D$3:$H$594,4,FALSE) -> 3112819386 2628514 | H114: =VLOOKUP(D114,'BD VIEJA'!$D$3:$H$594,5,FALSE) -> dotafuerte@gmail.com | I114: 112
A115: =+B115&COUNTIF($B$3:B115,B115) -> 11489 | B115: 1148 | C115: DOTACION (EPP) Y EQUIPO Y HERRAMIENTA SEGURIDAD INDUSTRIAL | D115: DOTACIONES CALDERON SAS | E115: =VLOOKUP(D115,'BD VIEJA'!$D$3:$H$594,2,FALSE) -> Bogota | F115: =VLOOKUP(D115,'BD VIEJA'!$D$3:$H$594,3,FALSE) -> Avda. Cra. 68 22 64 Sur | G115: =VLOOKUP(D115,'BD VIEJA'!$D$3:$H$594,4,FALSE) -> 4065664 4069690 | H115: =VLOOKUP(D115,'BD VIEJA'!$D$3:$H$594,5,FALSE) -> ventas515@hotmail.es | I115: 113
A116: =+B116&COUNTIF($B$3:B116,B116) -> 114810 | B116: 1148 | C116: DOTACION (EPP) Y EQUIPO Y HERRAMIENTA SEGURIDAD INDUSTRIAL | D116: DOTACIONES ONLINE | E116: Bogotá | F116: Bodega: Calle 75 A No. 61-44 | G116: 7921705 318 320 5423 350 349 6922. | H116: servicioalcliente@dotacionesonline.com | I116: 114
A117: =+B117&COUNTIF($B$3:B117,B117) -> 114811 | B117: 1148 | C117: DOTACION (EPP) Y EQUIPO Y HERRAMIENTA SEGURIDAD INDUSTRIAL | D117: DYA INSUMOS FERRETEROS SAS | E117: =VLOOKUP(D117,'BD VIEJA'!$D$3:$H$594,2,FALSE) -> Bogota | F117: =VLOOKUP(D117,'BD VIEJA'!$D$3:$H$594,3,FALSE) -> Calle 9 34 86 | G117: =VLOOKUP(D117,'BD VIEJA'!$D$3:$H$594,4,FALSE) -> 3102144153 7451525 | H117: =VLOOKUP(D117,'BD VIEJA'!$D$3:$H$594,5,FALSE) -> ventas@dyainsumosferreteros.com | I117: 115
A118: =+B118&COUNTIF($B$3:B118,B118) -> 114812 | B118: 1148 | C118: DOTACION (EPP) Y EQUIPO Y HERRAMIENTA SEGURIDAD INDUSTRIAL | D118: EASY | E118: =VLOOKUP(D118,'BD VIEJA'!$D$3:$H$594,2,FALSE) -> Bogota | F118: =VLOOKUP(D118,'BD VIEJA'!$D$3:$H$594,3,FALSE) -> Avda. Americas 68 94 | G118: =VLOOKUP(D118,'BD VIEJA'!$D$3:$H$594,4,FALSE) -> 4191400 | H118: =VLOOKUP(D118,'BD VIEJA'!$D$3:$H$594,5,FALSE) -> www.easy.com.co | I118: 116
A119: =+B119&COUNTIF($B$3:B119,B119) -> 114813 | B119: 1148 | C119: DOTACION (EPP) Y EQUIPO Y HERRAMIENTA SEGURIDAD INDUSTRIAL | D119: ALMACENES EXITO | E119: =VLOOKUP(D119,'BD VIEJA'!$D$3:$H$594,2,FALSE) -> Bogotá | F119: =VLOOKUP(D119,'BD VIEJA'!$D$3:$H$594,3,FALSE) -> Cra. 7 32 84 | G119: =VLOOKUP(D119,'BD VIEJA'!$D$3:$H$594,4,FALSE) -> 3278888 | H119: =VLOOKUP(D119,'BD VIEJA'!$D$3:$H$594,5,FALSE) -> www.exito.com | I119: 117
A120: =+B120&COUNTIF($B$3:B120,B120) -> 114814 | B120: 1148 | C120: DOTACION (EPP) Y EQUIPO Y HERRAMIENTA SEGURIDAD INDUSTRIAL | D120: FERRETERÍA SAMIR | E120: =VLOOKUP(D120,'BD VIEJA'!$D$3:$H$594,2,FALSE) -> Barranquilla - Atlantico | F120: =VLOOKUP(D120,'BD VIEJA'!$D$3:$H$594,3,FALSE) -> Calle 35 #38 -43 | G120: =VLOOKUP(D120,'BD VIEJA'!$D$3:$H$594,4,FALSE) -> 318 336 4259 318 775 8062 316 341 3547 | H120: =VLOOKUP(D120,'BD VIEJA'!$D$3:$H$594,5,FALSE) -> cotizaciones@ferreteriasamir.com | I120: 118
A121: =+B121&COUNTIF($B$3:B121,B121) -> 114815 | B121: 1148 | C121: DOTACION (EPP) Y EQUIPO Y HERRAMIENTA SEGURIDAD INDUSTRIAL | D121: FERRETERIA TÉCNICA | E121: Medellín - Antioquia | F121: Carrera 51 # 44 - 98 | G121: 511 9828 | H121: ferreteriatecnicasa@gmail.com | I121: 119
A122: =+B122&COUNTIF($B$3:B122,B122) -> 114816 | B122: 1148 | C122: DOTACION (EPP) Y EQUIPO Y HERRAMIENTA SEGURIDAD INDUSTRIAL | D122: FERRICENTRO | E122: Bogota | F122: Avda. Caracas 74 25 | G122: 6511212 2862100 | H122: jhon.bermudez@ferricentro.com callcenter02@ferricentro.com callcenter01@ferricentro.com | I122: 120
A123: =+B123&COUNTIF($B$3:B123,B123) -> 114817 | B123: 1148 | C123: DOTACION (EPP) Y EQUIPO Y HERRAMIENTA SEGURIDAD INDUSTRIAL | D123: Gama Dotaciones | E123: Bogotá | F123: Carrera 5 No 49ª sur-93, barrio marruecos | G123: 3503829335 | H123: gamadotaciones@gmail.com | I123: 121
A124: =+B124&COUNTIF($B$3:B124,B124) -> 114818 | B124: 1148 | C124: DOTACION (EPP) Y EQUIPO Y HERRAMIENTA SEGURIDAD INDUSTRIAL | D124: GECAB COLOMBIA | E124: Bogotá | F124: Calle 75A #26-36, Bogotá DC | G124: 7029294 | H124: contacto@gecabcolombia.com | I124: 122
A125: =+B125&COUNTIF($B$3:B125,B125) -> 114819 | B125: 1148 | C125: DOTACION (EPP) Y EQUIPO Y HERRAMIENTA SEGURIDAD INDUSTRIAL | D125: GRUPO MASHALI | E125: Bogotá | F125: Cra 101 A Bis Nº 23H – 02 | G125: 314 443 03 87 6 45 14 11 | H125: grupomashali@gmail.com comercial@grupo-mashali.com | I125: 123
A126: =+B126&COUNTIF($B$3:B126,B126) -> 114820 | B126: 1148 | C126: DOTACION (EPP) Y EQUIPO Y HERRAMIENTA SEGURIDAD INDUSTRIAL | D126: HERLOZ SUMINISTROS | E126: Bogotá | F126: www.herloz.com | G126: 247 8827 315 305 1224 | H126: ventasweb@herloz.com | I126: 124
A127: =+B127&COUNTIF($B$3:B127,B127) -> 114821 | B127: 1148 | C127: DOTACION (EPP) Y EQUIPO Y HERRAMIENTA SEGURIDAD INDUSTRIAL | D127: HERNANDO OROZCO Y CIA | E127: Bogotá | F127: Carrera 7 A # 151 - 21 | G127: 2166260 | H127: -- | I127: 125
A128: =+B128&COUNTIF($B$3:B128,B128) -> 114822 | B128: 1148 | C128: DOTACION (EPP) Y EQUIPO Y HERRAMIENTA SEGURIDAD INDUSTRIAL | D128: HOMECENTER | E128: =VLOOKUP(D128,'BD VIEJA'!$D$3:$H$594,2,FALSE) -> Bogota | F128: =VLOOKUP(D128,'BD VIEJA'!$D$3:$H$594,3,FALSE) -> Avda. 68 37 37 Sur | G128: =VLOOKUP(D128,'BD VIEJA'!$D$3:$H$594,4,FALSE) -> 3077115 | H128: =VLOOKUP(D128,'BD VIEJA'!$D$3:$H$594,5,FALSE) -> www.homecenter.com.co | I128: 126
A129: =+B129&COUNTIF($B$3:B129,B129) -> 114823 | B129: 1148 | C129: DOTACION (EPP) Y EQUIPO Y HERRAMIENTA SEGURIDAD INDUSTRIAL | D129: ALMACENES JUMBO | E129: =VLOOKUP(D129,'BD VIEJA'!$D$3:$H$594,2,FALSE) -> Bogota | F129: =VLOOKUP(D129,'BD VIEJA'!$D$3:$H$594,3,FALSE) -> Calle 185 # 43 - 05 Lc 167 C.cial Santafé Av. Carrera. 72 # 80 - 94 Local 1-13 C.cial Titán Plaza | G129: =VLOOKUP(D129,'BD VIEJA'!$D$3:$H$594,4,FALSE) -> 3489898 | H129: =VLOOKUP(D129,'BD VIEJA'!$D$3:$H$594,5,FALSE) -> sac@tiendasjumbo.co | I129: 127
A130: =+B130&COUNTIF($B$3:B130,B130) -> 114824 | B130: 1148 | C130: DOTACION (EPP) Y EQUIPO Y HERRAMIENTA SEGURIDAD INDUSTRIAL | D130: Mundo Natural SAS | E130: Bogotá | F130: Cl. 163 #18 A - 93 | G130: 350 539 6869 | H130: ventasonline@mundonatural.com.co | I130: 128
A131: =+B131&COUNTIF($B$3:B131,B131) -> 114825 | B131: 1148 | C131: DOTACION (EPP) Y EQUIPO Y HERRAMIENTA SEGURIDAD INDUSTRIAL | D131: PROTECTOR UNIFORMS | E131: Bogotá | F131: Av Cra 68 #15 - 28 Sur | G131: 29 04 091 26 22 004 | H131: info@protectorsas.com servicioalcliente@protectorsas.com ventas@protectorsas.com | I131: 129 | J131: preguntar a sara
A132: =+B132&COUNTIF($B$3:B132,B132) -> 114826 | B132: 1148 | C132: DOTACION (EPP) Y EQUIPO Y HERRAMIENTA SEGURIDAD INDUSTRIAL | D132: PUNTO LIMPIO SUMINISTROS | E132: Duitama - Boyacá | F132: Calle 6 #18-77 Barrio Cándido Quintero | G132: 3186794111 7625526 | H132: informacionplsuministros@gmail.com | I132: 130
A133: =+B133&COUNTIF($B$3:B133,B133) -> 114827 | B133: 1148 | C133: DOTACION (EPP) Y EQUIPO Y HERRAMIENTA SEGURIDAD INDUSTRIAL | D133: TERMEC | E133: Bogotá | F133: Calle 24C # 26 - 50 | G133: 3182817847 3687738 | H133: -- | I133: 131
A134: =+B134&COUNTIF($B$3:B134,B134) -> 114828 | B134: 1148 | C134: DOTACION (EPP) Y EQUIPO Y HERRAMIENTA SEGURIDAD INDUSTRIAL | D134: TIENDA DWORK | E134: Bogotá | F134: Kilometro 2 Vía Funza- Siberia Parque Agroindustrial Perú-Japón | G134: 3003081262 8264933 | H134: ventas@dwork.com.co | I134: 132
A135: =+B135&COUNTIF($B$3:B135,B135) -> 114829 | B135: 1148 | C135: DOTACION (EPP) Y EQUIPO Y HERRAMIENTA SEGURIDAD INDUSTRIAL | D135: TIENDAS EPP | E135: Bogotá | F135: Autopista Norte 178 83. | G135: 673 22 00 311 232 1328 | H135: comercial@tiendasepp.com | I135: 133
A136: =+B136&COUNTIF($B$3:B136,B136) -> 114830 | B136: 1148 | C136: DOTACION (EPP) Y EQUIPO Y HERRAMIENTA SEGURIDAD INDUSTRIAL | D136: UNIFORMES WALDY | E136: Bogotá | F136: Carrera 8F Bis A No. 163C-79 San Cristobal | G136: 678 2014 310 688 3839 | H136: info@uniformeswaldy.com | I136: 134
A137: =+B137&COUNTIF($B$3:B137,B137) -> 11111 | B137: 1111 | C137: DUCTOS PVC - ELECTRICOS/TELEFONICOS TIPO TDP-DB-EB | D137: DURMAN COLOMBIA S.A. | E137: =VLOOKUP(D137,'BD VIEJA'!$D$3:$H$594,2,FALSE) -> Madrid - Cund. | F137: =VLOOKUP(D137,'BD VIEJA'!$D$3:$H$594,3,FALSE) -> Km 27 Vía Fontibon Facatativa Los Alpes | G137: =VLOOKUP(D137,'BD VIEJA'!$D$3:$H$594,4,FALSE) -> 8200200 | H137: =VLOOKUP(D137,'BD VIEJA'!$D$3:$H$594,5,FALSE) -> colombia@durman.com | I137: 135
A138: =+B138&COUNTIF($B$3:B138,B138) -> 11112 | B138: 1111 | C138: DUCTOS PVC - ELECTRICOS/TELEFONICOS TIPO TDP-DB-EB | D138: GEOSISTEMAS PAVCO | E138: =VLOOKUP(D138,'BD VIEJA'!$D$3:$H$594,2,FALSE) -> Bogota | F138: =VLOOKUP(D138,'BD VIEJA'!$D$3:$H$594,3,FALSE) -> Autopista Sur 71 75 | G138: =VLOOKUP(D138,'BD VIEJA'!$D$3:$H$594,4,FALSE) -> 7825000 | H138: =VLOOKUP(D138,'BD VIEJA'!$D$3:$H$594,5,FALSE) -> leonardo.gomez@pavco.com.co servicio@pavco.com.co www.pavco.com.co | I138: 136
A139: =+B139&COUNTIF($B$3:B139,B139) -> 11113 | B139: 1111 | C139: DUCTOS PVC - ELECTRICOS/TELEFONICOS TIPO TDP-DB-EB | D139: GERFOR | E139: =VLOOKUP(D139,'BD VIEJA'!$D$3:$H$594,2,FALSE) -> Bogota | F139: =VLOOKUP(D139,'BD VIEJA'!$D$3:$H$594,3,FALSE) -> Autopista Medellin Km 2 - 600 Entrada via Parcelas de Cota | G139: =VLOOKUP(D139,'BD VIEJA'!$D$3:$H$594,4,FALSE) -> 8776800 | H139: =VLOOKUP(D139,'BD VIEJA'!$D$3:$H$594,5,FALSE) -> contactenos@gerfor.com www.gerfor.com.co | I139: 137
A140: =+B140&COUNTIF($B$3:B140,B140) -> 11114 | B140: 1111 | C140: DUCTOS PVC - ELECTRICOS/TELEFONICOS TIPO TDP-DB-EB | D140: INETEL | E140: Bogotá | F140: Calle 37b Sur N°.68i-80 | G140: 741 5856 741 5865 | H140: comercial@inetelltda.com | I140: 138
A141: =+B141&COUNTIF($B$3:B141,B141) -> 11115 | B141: 1111 | C141: DUCTOS PVC - ELECTRICOS/TELEFONICOS TIPO TDP-DB-EB | D141: PAVCO S.A. | E141: =VLOOKUP(D141,'BD VIEJA'!$D$3:$H$594,2,FALSE) -> Bogota | F141: =VLOOKUP(D141,'BD VIEJA'!$D$3:$H$594,3,FALSE) -> Autopista Sur 71 75 | G141: =VLOOKUP(D141,'BD VIEJA'!$D$3:$H$594,4,FALSE) -> 7825000 | H141: =VLOOKUP(D141,'BD VIEJA'!$D$3:$H$594,5,FALSE) -> servicio@pavco.com.co orlando.polo@pavco.com.co www.pavco.com.co | I141: 139
A142: =+B142&COUNTIF($B$3:B142,B142) -> 11116 | B142: 1111 | C142: DUCTOS PVC - ELECTRICOS/TELEFONICOS TIPO TDP-DB-EB | D142: TUBOS Y ACCESORIOS CELTA | E142: =VLOOKUP(D142,'BD VIEJA'!$D$3:$H$594,2,FALSE) -> Bogota | F142: =VLOOKUP(D142,'BD VIEJA'!$D$3:$H$594,3,FALSE) -> Cra. 87 1 42 | G142: =VLOOKUP(D142,'BD VIEJA'!$D$3:$H$594,4,FALSE) -> 7799000 3143302256 3123320171 | H142: =VLOOKUP(D142,'BD VIEJA'!$D$3:$H$594,5,FALSE) -> rurodrig@celta.com.co katherine.rodriguez@celta.com.co | I142: 140
A143: =+B143&COUNTIF($B$3:B143,B143) -> 11041 | B143: 1104 | C143: EMULSIONES Y MEZCLAS ASFALTICAS | D143: COMPAÑÍA DE TRABAJOS URBANOS S.A.S | E143: Chia - Cund. | F143: Km 17 + 200 metros, carretera Central del Norte (carrera 7ª) | G143: 310 208 5791 | H143: ventas@ctu.com.co | I143: 141
A144: =+B144&COUNTIF($B$3:B144,B144) -> 11042 | B144: 1104 | C144: EMULSIONES Y MEZCLAS ASFALTICAS | D144: EZ STREET ASFALTO | E144: =VLOOKUP(D144,'BD VIEJA'!$D$3:$H$594,2,FALSE) -> Gachancipa - Cund. | F144: =VLOOKUP(D144,'BD VIEJA'!$D$3:$H$594,3,FALSE) -> Autopista Norte km 28 | G144: =VLOOKUP(D144,'BD VIEJA'!$D$3:$H$594,4,FALSE) -> 3173000246 | H144: =VLOOKUP(D144,'BD VIEJA'!$D$3:$H$594,5,FALSE) -> ventas@itpasfaltos.com | I144: 142
A145: =+B145&COUNTIF($B$3:B145,B145) -> 11043 | B145: 1104 | C145: EMULSIONES Y MEZCLAS ASFALTICAS | D145: HOMECENTER | E145: =VLOOKUP(D145,'BD VIEJA'!$D$3:$H$594,2,FALSE) -> Bogota | F145: =VLOOKUP(D145,'BD VIEJA'!$D$3:$H$594,3,FALSE) -> Avda. 68 37 37 Sur | G145: =VLOOKUP(D145,'BD VIEJA'!$D$3:$H$594,4,FALSE) -> 3077115 | H145: =VLOOKUP(D145,'BD VIEJA'!$D$3:$H$594,5,FALSE) -> www.homecenter.com.co | I145: 143
A146: =+B146&COUNTIF($B$3:B146,B146) -> 11044 | B146: 1104 | C146: EMULSIONES Y MEZCLAS ASFALTICAS | D146: PAVIMENTOS COLOMBIA S.A.S. | E146: =VLOOKUP(D146,'BD VIEJA'!$D$3:$H$594,2,FALSE) -> Bogotá | F146: =VLOOKUP(D146,'BD VIEJA'!$D$3:$H$594,3,FALSE) -> AVENIDA 82 No. 10 - 50 | G146: =VLOOKUP(D146,'BD VIEJA'!$D$3:$H$594,4,FALSE) -> 3760030 | H146: =VLOOKUP(D146,'BD VIEJA'!$D$3:$H$594,5,FALSE) -> calidad@pavcol.com | I146: 144
A147: =+B147&COUNTIF($B$3:B147,B147) -> 11045 | B147: 1104 | C147: EMULSIONES Y MEZCLAS ASFALTICAS | D147: PAVIOBRAS SAS | E147: Bogotá | F147: Avenida 15 No. 119A-03 Of. 325 | G147: 2 15 50 67 | H147: ltdapaviobras@gmail.com | I147: 145
A148: =+B148&COUNTIF($B$3:B148,B148) -> 11046 | B148: 1104 | C148: EMULSIONES Y MEZCLAS ASFALTICAS | D148: ROKASFALTOS | E148: Cali - Valle | F148: Av. 3 norte # 54N – 67 Ofi. 301 Cali – Colombia | G148: 300 600 0852 304 584 4063 | H148: rokasfaltos@gmail.com gerencia@rokasfaltos.com info@rokasfaltos.com | I148: 146
A149: =+B149&COUNTIF($B$3:B149,B149) -> 11047 | B149: 1104 | C149: EMULSIONES Y MEZCLAS ASFALTICAS | D149: SIKA COLOMBIA SAS | E149: =VLOOKUP(D149,'BD VIEJA'!$D$3:$H$594,2,FALSE) -> Tocancipa - Cund. | F149: =VLOOKUP(D149,'BD VIEJA'!$D$3:$H$594,3,FALSE) -> Vereda Canavita, Km 20,5 Autopista Norte | G149: =VLOOKUP(D149,'BD VIEJA'!$D$3:$H$594,4,FALSE) -> 8786666 8786681 | H149: =VLOOKUP(D149,'BD VIEJA'!$D$3:$H$594,5,FALSE) -> ortiz.ricardo@co.sika.com chacon.jose@co.sika.com | I149: 147
A150: =+B150&COUNTIF($B$3:B150,B150) -> 11731 | B150: 1173 | C150: ENSAYO CAMPO - DIAGNOSTICO DE PAVIMENTOS | D150: APSA SAS | E150: Bogotá | F150: Carrera 16 # 96-64 Oﬁcina 509 Chicó Norte, Bogotá. | G150: 520 26 71 520 53 31 | H150: apsa@apsacolombia.co | I150: 148
A151: =+B151&COUNTIF($B$3:B151,B151) -> 11732 | B151: 1173 | C151: ENSAYO CAMPO - DIAGNOSTICO DE PAVIMENTOS | D151: Concreservicios S.A.S. | E151: =VLOOKUP(D151,'BD VIEJA'!$D$3:$H$594,2,FALSE) -> Bogota | F151: =VLOOKUP(D151,'BD VIEJA'!$D$3:$H$594,3,FALSE) -> Calle 22 C 130 51 Bodega 6 | G151: =VLOOKUP(D151,'BD VIEJA'!$D$3:$H$594,4,FALSE) -> 4211444 3103232062 | H151: =VLOOKUP(D151,'BD VIEJA'!$D$3:$H$594,5,FALSE) -> comercial@concre-servicios.com | I151: 149
A152: =+B152&COUNTIF($B$3:B152,B152) -> 11733 | B152: 1173 | C152: ENSAYO CAMPO - DIAGNOSTICO DE PAVIMENTOS | D152: DYNATEST COLOMBIA S.A.S. | E152: =VLOOKUP(D152,'BD VIEJA'!$D$3:$H$594,2,FALSE) -> Bogotá | F152: =VLOOKUP(D152,'BD VIEJA'!$D$3:$H$594,3,FALSE) -> Calle 161 A No 16 C - 91 | G152: =VLOOKUP(D152,'BD VIEJA'!$D$3:$H$594,4,FALSE) -> 6721322 | H152: =VLOOKUP(D152,'BD VIEJA'!$D$3:$H$594,5,FALSE) -> www.dynatest.com | I152: 150
A153: =+B153&COUNTIF($B$3:B153,B153) -> 11734 | B153: 1173 | C153: ENSAYO CAMPO - DIAGNOSTICO DE PAVIMENTOS | D153: ECHEVERRY INGENIERIA Y ENSAYOS SAS | E153: =VLOOKUP(D153,'BD VIEJA'!$D$3:$H$594,2,FALSE) -> Bogota | F153: =VLOOKUP(D153,'BD VIEJA'!$D$3:$H$594,3,FALSE) -> Cra. 29 C 71 A 30 | G153: =VLOOKUP(D153,'BD VIEJA'!$D$3:$H$594,4,FALSE) -> 3112088197 2255814 6304515 | H153: =VLOOKUP(D153,'BD VIEJA'!$D$3:$H$594,5,FALSE) -> comercial@echeverryingenieria.com info@echeverryingenieria.com | I153: 151
A154: =+B154&COUNTIF($B$3:B154,B154) -> 11735 | B154: 1173 | C154: ENSAYO CAMPO - DIAGNOSTICO DE PAVIMENTOS | D154: ESCUELA COLOMBIANA DE INGENIERIA JULIO GARAVITO | E154: =VLOOKUP(D154,'BD VIEJA'!$D$3:$H$594,2,FALSE) -> Bogota | F154: =VLOOKUP(D154,'BD VIEJA'!$D$3:$H$594,3,FALSE) -> Autopista Norte 205 59 | G154: =VLOOKUP(D154,'BD VIEJA'!$D$3:$H$594,4,FALSE) -> 6683600 Ext. 584 6763888 Ext. 228 - 324 | H154: =VLOOKUP(D154,'BD VIEJA'!$D$3:$H$594,5,FALSE) -> laura.valderrama@escuelaing.edu.com | I154: 152
A155: =+B155&COUNTIF($B$3:B155,B155) -> 11736 | B155: 1173 | C155: ENSAYO CAMPO - DIAGNOSTICO DE PAVIMENTOS | D155: LABORATORIO BATEMAN INGENIERIA | E155: =VLOOKUP(D155,'BD VIEJA'!$D$3:$H$594,2,FALSE) -> Bogota | F155: =VLOOKUP(D155,'BD VIEJA'!$D$3:$H$594,3,FALSE) -> Cra. 20 39 65 | G155: =VLOOKUP(D155,'BD VIEJA'!$D$3:$H$594,4,FALSE) -> 3204318 2459654 2325960 | H155: =VLOOKUP(D155,'BD VIEJA'!$D$3:$H$594,5,FALSE) -> direcciongeneral@laboratoriobilsa.com direcciontecnica@laboratoriobilsa.com | I155: 153
A156: =+B156&COUNTIF($B$3:B156,B156) -> 11737 | B156: 1173 | C156: ENSAYO CAMPO - DIAGNOSTICO DE PAVIMENTOS | D156: LABORATORIO CONTECON URBAR | E156: =VLOOKUP(D156,'BD VIEJA'!$D$3:$H$594,2,FALSE) -> Bogotá | F156: =VLOOKUP(D156,'BD VIEJA'!$D$3:$H$594,3,FALSE) -> Cra. 69 Q 78 52 | G156: =VLOOKUP(D156,'BD VIEJA'!$D$3:$H$594,4,FALSE) -> 7562656 | H156: =VLOOKUP(D156,'BD VIEJA'!$D$3:$H$594,5,FALSE) -> comercial@contecon.com | I156: 154
A157: =+B157&COUNTIF($B$3:B157,B157) -> 11738 | B157: 1173 | C157: ENSAYO CAMPO - DIAGNOSTICO DE PAVIMENTOS | D157: LABORATORIO DEL CONCRETO (ASOCRETO) | E157: =VLOOKUP(D157,'BD VIEJA'!$D$3:$H$594,2,FALSE) -> Bogota | F157: =VLOOKUP(D157,'BD VIEJA'!$D$3:$H$594,3,FALSE) -> Calle 103 15 80 | G157: =VLOOKUP(D157,'BD VIEJA'!$D$3:$H$594,4,FALSE) -> 6180018 | H157: =VLOOKUP(D157,'BD VIEJA'!$D$3:$H$594,5,FALSE) -> asocreto@asocreto.org.co | I157: 155
A158: =+B158&COUNTIF($B$3:B158,B158) -> 11739 | B158: 1173 | C158: ENSAYO CAMPO - DIAGNOSTICO DE PAVIMENTOS | D158: MARIO HUERTAS CORTES LABORATORIO | E158: =VLOOKUP(D158,'BD VIEJA'!$D$3:$H$594,2,FALSE) -> Bogota | F158: =VLOOKUP(D158,'BD VIEJA'!$D$3:$H$594,3,FALSE) -> Cra. 22 A 85 20 | G158: =VLOOKUP(D158,'BD VIEJA'!$D$3:$H$594,4,FALSE) -> 8772093 3219459185 6226620 | H158: =VLOOKUP(D158,'BD VIEJA'!$D$3:$H$594,5,FALSE) -> mhcingenieros@mhc.com.co mhc.laboratorio@gmail.com. | I158: 156
A159: =+B159&COUNTIF($B$3:B159,B159) -> 117310 | B159: 1173 | C159: ENSAYO CAMPO - DIAGNOSTICO DE PAVIMENTOS | D159: PONTIFICIA UNIVERSIDAD JAVERIANA | E159: =VLOOKUP(D159,'BD VIEJA'!$D$3:$H$594,2,FALSE) -> Bogota | F159: =VLOOKUP(D159,'BD VIEJA'!$D$3:$H$594,3,FALSE) -> Calle 40 5 50 Fac. de Ingenieria Ed. José Gabriel Maldonado S.J. | G159: =VLOOKUP(D159,'BD VIEJA'!$D$3:$H$594,4,FALSE) -> 3208320 Ext. 5373 | H159: =VLOOKUP(D159,'BD VIEJA'!$D$3:$H$594,5,FALSE) -> labcivil@javeriana.edu.co daniel.ruiz@javeriana.edu.co | I159: 157
A160: =+B160&COUNTIF($B$3:B160,B160) -> 117311 | B160: 1173 | C160: ENSAYO CAMPO - DIAGNOSTICO DE PAVIMENTOS | D160: Terratest Laboratorio de Suelos Rocas y Materiales S.A.S. | E160: =VLOOKUP(D160,'BD VIEJA'!$D$3:$H$594,2,FALSE) -> Bogotá | F160: =VLOOKUP(D160,'BD VIEJA'!$D$3:$H$594,3,FALSE) -> CARRERA 59 C No. 130 - 38 | G160: =VLOOKUP(D160,'BD VIEJA'!$D$3:$H$594,4,FALSE) -> 8032324 | H160: =VLOOKUP(D160,'BD VIEJA'!$D$3:$H$594,5,FALSE) -> comercial@terratest.com.co | I160: 158
A161: =+B161&COUNTIF($B$3:B161,B161) -> 12241 | B161: 1224 | C161: ENSAYO CAMPO - RECUBRIMIENTO DE ESTRUCTURA METALICA | D161: INSERCOR SAS | E161: Cota - Cund. | F161: Calle 13 No, 3-46 oficina 301 – 302 | G161: 8787530 | H161: comercial@insercor.com marquez.mario@insercor.com insercor@insercor.com | I161: 159
A162: =+B162&COUNTIF($B$3:B162,B162) -> 12242 | B162: 1224 | C162: ENSAYO CAMPO - RECUBRIMIENTO DE ESTRUCTURA METALICA | D162: INSPEQ INGENIERIA LTDA | E162: Bogotá | F162: Carrera 27 No. 83-67 | G162: 218 65 80 691 53 40 | H162: inspeq@inspeqingenieria.com | I162: 160
A163: =+B163&COUNTIF($B$3:B163,B163) -> 12243 | B163: 1224 | C163: ENSAYO CAMPO - RECUBRIMIENTO DE ESTRUCTURA METALICA | D163: TAESMET | E163: Bogotá | F163: Calle 14A No. 123 - 36 | G163: 418 99 21 | H163: comercial@taesmet.com info@taesmet.com | I163: 161
A164: =+B164&COUNTIF($B$3:B164,B164) -> 12251 | B164: 1225 | C164: ENSAYO DE CAMPO - SOLDADURAS | D164: CIMA | E164: Bogotá | F164: Carrera 96J #23A-55 | G164: 486 58 51 301 3312055 | H164: cimaltda@yahoo.es gerenciatecnica@cima-co.com info@cima-co.com | I164: 162
A165: =+B165&COUNTIF($B$3:B165,B165) -> 12252 | B165: 1225 | C165: ENSAYO DE CAMPO - SOLDADURAS | D165: INSERCOR SAS | E165: Cota - Cund. | F165: Calle 13 No, 3-46 oficina 301 – 302 | G165: 8787530 | H165: comercial@insercor.com marquez.mario@insercor.com insercor@insercor.com | I165: 163
A166: =+B166&COUNTIF($B$3:B166,B166) -> 12253 | B166: 1225 | C166: ENSAYO DE CAMPO - SOLDADURAS | D166: INSPEQ INGENIERIA LTDA | E166: Bogotá | F166: Carrera 27 No. 83-67 | G166: 218 65 80 691 53 40 | H166: inspeq@inspeqingenieria.com | I166: 164
A167: =+B167&COUNTIF($B$3:B167,B167) -> 12254 | B167: 1225 | C167: ENSAYO DE CAMPO - SOLDADURAS | D167: ISOTEC SAS | E167: Bogotá | F167: Carrera 71B No. 55 - 18 | G167: 4674269 315 3461240 4673767 | H167: comercial@isotec.com.co isotec@isotec.com.co | I167: 165
A168: =+B168&COUNTIF($B$3:B168,B168) -> 12255 | B168: 1225 | C168: ENSAYO DE CAMPO - SOLDADURAS | D168: TAESMET | E168: Bogotá | F168: Calle 14A No. 123 - 36 | G168: 418 99 21 | H168: comercial@taesmet.com info@taesmet.com | I168: 166
A169: =+B169&COUNTIF($B$3:B169,B169) -> 12121 | B169: 1212 | C169: ENSAYO DE LABORATORIO - ACERO DE REFUERZO Y ACERO PRETENSADO | D169: ASOCRETO | E169: Bogota | F169: Calle 103 15 80 | G169: 6180018 | H169: asocreto@asocreto.org.co | I169: 167
A170: =+B170&COUNTIF($B$3:B170,B170) -> 12122 | B170: 1212 | C170: ENSAYO DE LABORATORIO - ACERO DE REFUERZO Y ACERO PRETENSADO | D170: INGEYMA | E170: Bogotá | F170: CR 71B # 48A - 15 | G170: 4104813 4107203 4104739 | H170: info@ingeyma.com | I170: 168
A171: =+B171&COUNTIF($B$3:B171,B171) -> 12123 | B171: 1212 | C171: ENSAYO DE LABORATORIO - ACERO DE REFUERZO Y ACERO PRETENSADO | D171: PONTIFICIA UNIVERSIDAD JAVERIANA | E171: =VLOOKUP(D171,'BD VIEJA'!$D$3:$H$594,2,FALSE) -> Bogota | F171: =VLOOKUP(D171,'BD VIEJA'!$D$3:$H$594,3,FALSE) -> Calle 40 5 50 Fac. de Ingenieria Ed. José Gabriel Maldonado S.J. | G171: =VLOOKUP(D171,'BD VIEJA'!$D$3:$H$594,4,FALSE) -> 3208320 Ext. 5373 | H171: =VLOOKUP(D171,'BD VIEJA'!$D$3:$H$594,5,FALSE) -> labcivil@javeriana.edu.co daniel.ruiz@javeriana.edu.co | I171: 169
A172: =+B172&COUNTIF($B$3:B172,B172) -> 12124 | B172: 1212 | C172: ENSAYO DE LABORATORIO - ACERO DE REFUERZO Y ACERO PRETENSADO | D172: SENA | E172: Bogotá | F172: Av. 30 No. 17 B – 25 Sur | G172: 5960050 ext 14924 5960050 ext 15006 | H172: laboratoriomateriales@misena.edu.co mehc07@misena.edu.co | I172: 170
A173: =+B173&COUNTIF($B$3:B173,B173) -> 12125 | B173: 1212 | C173: ENSAYO DE LABORATORIO - ACERO DE REFUERZO Y ACERO PRETENSADO | D173: UNIVERSIDAD DE LOS ANDES - LAB CIVIL | E173: Bogota | F173: Cra. 1 E 19 A 40 Ed. Mario Laserna | G173: 3394949 Ext. 1719 - 1768 | H173: labcivil@uniandes.edu.co | I173: 171
A174: =+B174&COUNTIF($B$3:B174,B174) -> 12126 | B174: 1212 | C174: ENSAYO DE LABORATORIO - ACERO DE REFUERZO Y ACERO PRETENSADO | D174: UNIVERSIDAD NACIONAL DE COLOMBIA | E174: =VLOOKUP(D174,'BD VIEJA'!$D$3:$H$594,2,FALSE) -> Bogota | F174: =VLOOKUP(D174,'BD VIEJA'!$D$3:$H$594,3,FALSE) -> Cra. 45 26 85 | G174: =VLOOKUP(D174,'BD VIEJA'!$D$3:$H$594,4,FALSE) -> 3165000 | H174: =VLOOKUP(D174,'BD VIEJA'!$D$3:$H$594,5,FALSE) -> mediosdigitales@unal.edu.co | I174: 172
A175: =+B175&COUNTIF($B$3:B175,B175) -> 12141 | B175: 1214 | C175: ENSAYO DE LABORATORIO - ALUMINIO | D175: UNIVERSIDAD NACIONAL DE COLOMBIA | E175: =VLOOKUP(D175,'BD VIEJA'!$D$3:$H$594,2,FALSE) -> Bogota | F175: =VLOOKUP(D175,'BD VIEJA'!$D$3:$H$594,3,FALSE) -> Cra. 45 26 85 | G175: =VLOOKUP(D175,'BD VIEJA'!$D$3:$H$594,4,FALSE) -> 3165000 | H175: =VLOOKUP(D175,'BD VIEJA'!$D$3:$H$594,5,FALSE) -> mediosdigitales@unal.edu.co | I175: 173
A176: =+B176&COUNTIF($B$3:B176,B176) -> 12151 | B176: 1215 | C176: ENSAYO DE LABORATORIO - CONCRETO PRETENSADO | D176: ASOCRETO | E176: Bogota | F176: Calle 103 15 80 | G176: 6180018 | H176: asocreto@asocreto.org.co | I176: 174
A177: =+B177&COUNTIF($B$3:B177,B177) -> 12152 | B177: 1215 | C177: ENSAYO DE LABORATORIO - CONCRETO PRETENSADO | D177: PONTIFICIA UNIVERSIDAD JAVERIANA | E177: =VLOOKUP(D177,'BD VIEJA'!$D$3:$H$594,2,FALSE) -> Bogota | F177: =VLOOKUP(D177,'BD VIEJA'!$D$3:$H$594,3,FALSE) -> Calle 40 5 50 Fac. de Ingenieria Ed. José Gabriel Maldonado S.J. | G177: =VLOOKUP(D177,'BD VIEJA'!$D$3:$H$594,4,FALSE) -> 3208320 Ext. 5373 | H177: =VLOOKUP(D177,'BD VIEJA'!$D$3:$H$594,5,FALSE) -> labcivil@javeriana.edu.co daniel.ruiz@javeriana.edu.co | I177: 175
A178: =+B178&COUNTIF($B$3:B178,B178) -> 12153 | B178: 1215 | C178: ENSAYO DE LABORATORIO - CONCRETO PRETENSADO | D178: UNIVERSIDAD DE LOS ANDES - LAB CIVIL | E178: Bogota | F178: Cra. 1 E 19 A 40 Ed. Mario Laserna | G178: 3394949 Ext. 1719 - 1768 | H178: labcivil@uniandes.edu.co | I178: 176
A179: =+B179&COUNTIF($B$3:B179,B179) -> 12181 | B179: 1218 | C179: ENSAYO DE LABORATORIO - NEOPRENO | D179: ATLAS LIMITED SAS | E179: Bogotá | F179: Calle 17 No. 68B-68 | G179: 4050891 Ext. 104 405 4111 Ext. 106 | H179: lpelaboratorio@gmail.com | I179: 177
A180: =+B180&COUNTIF($B$3:B180,B180) -> 12182 | B180: 1218 | C180: ENSAYO DE LABORATORIO - NEOPRENO | D180: ICIPC | E180: Medellín - Antioquia | F180: Cra. 49 # 5 Sur – 190. Bloque 37 | G180: 3116478 3116381 305 728 4664 | H180: hramirez@icipc.org icipc@icipc.org | I180: 178
A181: =+B181&COUNTIF($B$3:B181,B181) -> 12183 | B181: 1218 | C181: ENSAYO DE LABORATORIO - NEOPRENO | D181: INDUSTRIA MILITAR - INDUMIL | E181: Bogotá | F181: Calle 44 # 54-11 CAN | G181: 2207800 2225786 | H181: indumil@indumil.gov.co | I181: 179
A182: =+B182&COUNTIF($B$3:B182,B182) -> 12184 | B182: 1218 | C182: ENSAYO DE LABORATORIO - NEOPRENO | D182: LABORATORIOS MYG SAS | E182: Bogotá | F182: Cl 102a # 70 - 22 | G182: 5331133 5331185 3108066036 | H182: gerencia@laboratoriosmyg.com servicioalcliente@laboratoriosmyg.com | I182: 180
A183: =+B183&COUNTIF($B$3:B183,B183) -> 12191 | B183: 1219 | C183: ENSAYO DE LABORATORIO - PERNOS | D183: ESCUELA COLOMBIANA DE INGENIERIA | E183: Bogota | F183: Autopista Norte 205 59 | G183: 6683600 Ext. 584 6763888 Ext. 228 - 324 | H183: laura.valderrama@escuelaing.edu.com | I183: 181
A184: =+B184&COUNTIF($B$3:B184,B184) -> 12192 | B184: 1219 | C184: ENSAYO DE LABORATORIO - PERNOS | D184: UNIVERSIDAD DE LOS ANDES - LAB CIVIL | E184: Bogota | F184: Cra. 1 E 19 A 40 Ed. Mario Laserna | G184: 3394949 Ext. 1719 - 1768 | H184: labcivil@uniandes.edu.co | I184: 182
A185: =+B185&COUNTIF($B$3:B185,B185) -> 12193 | B185: 1219 | C185: ENSAYO DE LABORATORIO - PERNOS | D185: UNIVERSIDAD NACIONAL DE COLOMBIA | E185: =VLOOKUP(D185,'BD VIEJA'!$D$3:$H$594,2,FALSE) -> Bogota | F185: =VLOOKUP(D185,'BD VIEJA'!$D$3:$H$594,3,FALSE) -> Cra. 45 26 85 | G185: =VLOOKUP(D185,'BD VIEJA'!$D$3:$H$594,4,FALSE) -> 3165000 | H185: =VLOOKUP(D185,'BD VIEJA'!$D$3:$H$594,5,FALSE) -> mediosdigitales@unal.edu.co | I185: 183
A186: =+B186&COUNTIF($B$3:B186,B186) -> 12201 | B186: 1220 | C186: ENSAYO DE LABORATORIO - PINTURA | D186: CIDEMAT - U. Antioquia | E186: Medellín - Antioquia | F186: Calle 62 No. 52-59 Torre 2 Lab. 330. | G186: 219 66 17 | H186: laboratoriocidemat@udea.edu.co | I186: 184
A187: =+B187&COUNTIF($B$3:B187,B187) -> 12202 | B187: 1220 | C187: ENSAYO DE LABORATORIO - PINTURA | D187: ECHEVERRY ENSAYOS SAS | E187: Bogota | F187: Cra. 29 C 71 A 30 | G187: 3112088197 2255814 6304515 | H187: comercial@echeverryingenieria.com info@echeverryingenieria.com | I187: 185
A188: =+B188&COUNTIF($B$3:B188,B188) -> 12203 | B188: 1220 | C188: ENSAYO DE LABORATORIO - PINTURA | D188: UNIVERSIDAD NACIONAL DE COLOMBIA | E188: =VLOOKUP(D188,'BD VIEJA'!$D$3:$H$594,2,FALSE) -> Bogota | F188: =VLOOKUP(D188,'BD VIEJA'!$D$3:$H$594,3,FALSE) -> Cra. 45 26 85 | G188: =VLOOKUP(D188,'BD VIEJA'!$D$3:$H$594,4,FALSE) -> 3165000 | H188: =VLOOKUP(D188,'BD VIEJA'!$D$3:$H$594,5,FALSE) -> mediosdigitales@unal.edu.co | I188: 186
A189: =+B189&COUNTIF($B$3:B189,B189) -> 12211 | B189: 1221 | C189: ENSAYO DE LABORATORIO - PLASTICO RÍGIDO | D189: ESCUELA COLOMBIANA DE INGENIERIA | E189: Bogota | F189: Autopista Norte 205 59 | G189: 6683600 Ext. 584 6763888 Ext. 228 - 324 | H189: laura.valderrama@escuelaing.edu.com | I189: 187
A190: =+B190&COUNTIF($B$3:B190,B190) -> 12212 | B190: 1221 | C190: ENSAYO DE LABORATORIO - PLASTICO RÍGIDO | D190: ICIPC | E190: Medellín - Antioquia | F190: Cra. 49 # 5 Sur – 190. Bloque 37 | G190: 3116478 3116381 305 728 4664 | H190: hramirez@icipc.org icipc@icipc.org | I190: 188
A191: =+B191&COUNTIF($B$3:B191,B191) -> 12213 | B191: 1221 | C191: ENSAYO DE LABORATORIO - PLASTICO RÍGIDO | D191: INDUSTRIA MILITAR - INDUMIL | E191: Bogotá | F191: Calle 44 # 54-11 CAN | G191: 2207800 2225786 | H191: indumil@indumil.gov.co | I191: 189
A192: =+B192&COUNTIF($B$3:B192,B192) -> 12214 | B192: 1221 | C192: ENSAYO DE LABORATORIO - PLASTICO RÍGIDO | D192: LABORATORIOS MYG SAS | E192: Bogotá | F192: Calle 102 A No 70 - 28 | G192: 533 1133 / 1185 / 3743 310 806 6036 | H192: servicioalcliente@laboratoriosmyg.com gerencia@laboratoriosmyg.com | I192: 190
A193: =+B193&COUNTIF($B$3:B193,B193) -> 12215 | B193: 1221 | C193: ENSAYO DE LABORATORIO - PLASTICO RÍGIDO | D193: PONTIFICIA UNIVERSIDAD JAVERIANA | E193: =VLOOKUP(D193,'BD VIEJA'!$D$3:$H$594,2,FALSE) -> Bogota | F193: =VLOOKUP(D193,'BD VIEJA'!$D$3:$H$594,3,FALSE) -> Calle 40 5 50 Fac. de Ingenieria Ed. José Gabriel Maldonado S.J. | G193: =VLOOKUP(D193,'BD VIEJA'!$D$3:$H$594,4,FALSE) -> 3208320 Ext. 5373 | H193: =VLOOKUP(D193,'BD VIEJA'!$D$3:$H$594,5,FALSE) -> labcivil@javeriana.edu.co daniel.ruiz@javeriana.edu.co | I193: 191
A194: =+B194&COUNTIF($B$3:B194,B194) ->  | C194: ENSAYO DE VALIDACIÓN EN CAMPO - SOLDADURAS | D194: CIMA | E194: Bogotá | F194: Carrera 96J #23A-55 | G194: 486 58 51 301 3312055 | H194: cimaltda@yahoo.es gerenciatecnica@cima-co.com info@cima-co.com | I194: 192
A195: =+B195&COUNTIF($B$3:B195,B195) -> 12256 | B195: 1225 | C195: ENSAYO DE CAMPO - SOLDADURAS | D195: INSERCOR SAS | E195: Cota - Cund. | F195: Calle 13 No, 3-46 oficina 301 – 302 | G195: 8787530 | H195: comercial@insercor.com , extensión: 109 prada.juan@insercor.com extensión: 116 | I195: 193
A196: =+B196&COUNTIF($B$3:B196,B196) ->  | C196: ENSAYO DE VALIDACIÓN EN CAMPO - SOLDADURAS | D196: INSPEQ INGENIERIA LTDA | E196: Bogotá | F196: Carrera 27 No. 83-67 | G196: 218 65 80 691 53 40 | H196: inspeq@inspeqingenieria.com | I196: 194
A197: =+B197&COUNTIF($B$3:B197,B197) ->  | C197: ENSAYO DE VALIDACIÓN EN CAMPO - SOLDADURAS | D197: ISOTEC SAS | E197: Bogotá | F197: Carrera 71B No. 55 - 18 | G197: 4674269 315 3461240 4673767 | H197: comercial@isotec.com.co isotec@isotec.com.co | I197: 195
A198: =+B198&COUNTIF($B$3:B198,B198) ->  | C198: ENSAYO DE VALIDACIÓN EN CAMPO - SOLDADURAS | D198: TAESMET | E198: Bogotá | F198: Calle 14A No. 123 - 36 | G198: 418 99 21 | H198: comercial@taesmet.com info@taesmet.com | I198: 196
A199: =+B199&COUNTIF($B$3:B199,B199) -> 11721 | B199: 1172 | C199: ENSAYO DIAGNOSTICO ELEMENTO ESTRUCTURALES CONCRETO | D199: Concreservicios S.A.S. | E199: =VLOOKUP(D199,'BD VIEJA'!$D$3:$H$594,2,FALSE) -> Bogota | F199: =VLOOKUP(D199,'BD VIEJA'!$D$3:$H$594,3,FALSE) -> Calle 22 C 130 51 Bodega 6 | G199: =VLOOKUP(D199,'BD VIEJA'!$D$3:$H$594,4,FALSE) -> 4211444 3103232062 | H199: =VLOOKUP(D199,'BD VIEJA'!$D$3:$H$594,5,FALSE) -> comercial@concre-servicios.com | I199: 197
A200: =+B200&COUNTIF($B$3:B200,B200) -> 11722 | B200: 1172 | C200: ENSAYO DIAGNOSTICO ELEMENTO ESTRUCTURALES CONCRETO | D200: ECHEVERRY INGENIERIA Y ENSAYOS SAS | E200: =VLOOKUP(D200,'BD VIEJA'!$D$3:$H$594,2,FALSE) -> Bogota | F200: =VLOOKUP(D200,'BD VIEJA'!$D$3:$H$594,3,FALSE) -> Cra. 29 C 71 A 30 | G200: =VLOOKUP(D200,'BD VIEJA'!$D$3:$H$594,4,FALSE) -> 3112088197 2255814 6304515 | H200: =VLOOKUP(D200,'BD VIEJA'!$D$3:$H$594,5,FALSE) -> comercial@echeverryingenieria.com info@echeverryingenieria.com | I200: 198
... 473 more rows

Sheet LISTA TOTAL PROVEEDORES (hidden)
B1: 2019-II DIRECTORIO
B2: CODIGO GRUPO | C2: GRUPO BASE DE DATOS | D2: NOMBRE PROVEEDOR | E2: UBICACIÓN | F2: DIRECCION | G2: TELEFONO | H2: CORREO ELECTRONICO
A3: =+B3&COUNTIF($B$3:B3,B3) -> 11141 | B3: =VLOOKUP(C3,'GRUPOS VIGENTES'!$B$9:$C$115,2,FALSE) -> 1114 | C3: ACCESORIOS HD PARA REDES DE ACUEDUCTO | D3: APOLO AVA | E3: =VLOOKUP(D3,'LISTA TOTAL PROVEEDORES 2019-I'!$D$3:$H$5594,2,FALSE) -> Bogotá | F3: =VLOOKUP(D3,'LISTA TOTAL PROVEEDORES 2019-I'!$D$3:$H$5594,3,FALSE) -> Cra. 27 No. 17-74, Paloquemao | G3: =VLOOKUP(D3,'LISTA TOTAL PROVEEDORES 2019-I'!$D$3:$H$5594,4,FALSE) -> 360 70 53 360 70 23 | H3: =VLOOKUP(D3,'LISTA TOTAL PROVEEDORES 2019-I'!$D$3:$H$5594,5,FALSE) -> apolo.bogota@apolo.net.co | I3: 1 | K3: =VLOOKUP(D3,'LISTA TOTAL PROVEEDORES 2019-I'!$D$3:$H$5594,2,FALSE) -> Bogotá | M3: =IFERROR(K3,1) -> Bogotá
A4: =+B4&COUNTIF($B$3:B4,B4) -> 11142 | B4: =VLOOKUP(C4,'GRUPOS VIGENTES'!$B$9:$C$115,2,FALSE) -> 1114 | C4: ACCESORIOS HD PARA REDES DE ACUEDUCTO | D4: BARNES DE COLOMBIA S.A. | E4: =VLOOKUP(D4,'LISTA TOTAL PROVEEDORES 2019-I'!$D$3:$H$5594,2,FALSE) -> Funza, Cundinamarca | F4: =VLOOKUP(D4,'LISTA TOTAL PROVEEDORES 2019-I'!$D$3:$H$5594,3,FALSE) -> Celta Trade Park - Bodegas 86 y 93 Autopista Bogota Medellin Km 7 Costado Occidental Antes de Peaje de Siberia. | G4: =VLOOKUP(D4,'LISTA TOTAL PROVEEDORES 2019-I'!$D$3:$H$5594,4,FALSE) -> 743 9090 ext 8311-8312-8403-8402-8502 | H4: =VLOOKUP(D4,'LISTA TOTAL PROVEEDORES 2019-I'!$D$3:$H$5594,5,FALSE) -> distribucion@barnes.com.co industria@barnes.com.co construccion@barnes.com.co exportaciones@barnes.com.co | I4: =+I3+1 -> 2 | K4: =VLOOKUP(D4,'LISTA TOTAL PROVEEDORES 2019-I'!$D$3:$H$5594,2,FALSE) -> Funza, Cundinamarca | M4: =IFERROR(K4,1) -> Funza, Cundinamarca
A5: =+B5&COUNTIF($B$3:B5,B5) -> 11143 | B5: =VLOOKUP(C5,'GRUPOS VIGENTES'!$B$9:$C$115,2,FALSE) -> 1114 | C5: ACCESORIOS HD PARA REDES DE ACUEDUCTO | D5: COVAL | E5: =VLOOKUP(D5,'LISTA TOTAL PROVEEDORES 2019-I'!$D$3:$H$5594,2,FALSE) -> Bogota | F5: =VLOOKUP(D5,'LISTA TOTAL PROVEEDORES 2019-I'!$D$3:$H$5594,3,FALSE) -> Avda. Ciudad de Cali 5 A 92 Sur | G5: =VLOOKUP(D5,'LISTA TOTAL PROVEEDORES 2019-I'!$D$3:$H$5594,4,FALSE) -> 3152358446 8759100 Ext. 144 - 145 7454671 | H5: =VLOOKUP(D5,'LISTA TOTAL PROVEEDORES 2019-I'!$D$3:$H$5594,5,FALSE) -> info@coval.com.co | I5: =+I4+1 -> 3 | K5: =VLOOKUP(D5,'LISTA TOTAL PROVEEDORES 2019-I'!$D$3:$H$5594,2,FALSE) -> Bogota | M5: Bogota
A6: =+B6&COUNTIF($B$3:B6,B6) -> 11144 | B6: =VLOOKUP(C6,'GRUPOS VIGENTES'!$B$9:$C$115,2,FALSE) -> 1114 | C6: ACCESORIOS HD PARA REDES DE ACUEDUCTO | D6: DURMAN COLOMBIA S.A. | E6: =VLOOKUP(D6,'LISTA TOTAL PROVEEDORES 2019-I'!$D$3:$H$5594,2,FALSE) -> Madrid - Cund. | F6: =VLOOKUP(D6,'LISTA TOTAL PROVEEDORES 2019-I'!$D$3:$H$5594,3,FALSE) -> Km 27 Vía Fontibon Facatativa Los Alpes | G6: =VLOOKUP(D6,'LISTA TOTAL PROVEEDORES 2019-I'!$D$3:$H$5594,4,FALSE) -> 8200200 | H6: =VLOOKUP(D6,'LISTA TOTAL PROVEEDORES 2019-I'!$D$3:$H$5594,5,FALSE) -> colombia@durman.com | I6: 4 | K6: =VLOOKUP(D6,'LISTA TOTAL PROVEEDORES 2019-I'!$D$3:$H$5594,2,FALSE) -> Madrid - Cund. | M6: Madrid - Cund.
A7: =+B7&COUNTIF($B$3:B7,B7) -> 11145 | B7: =VLOOKUP(C7,'GRUPOS VIGENTES'!$B$9:$C$115,2,FALSE) -> 1114 | C7: ACCESORIOS HD PARA REDES DE ACUEDUCTO | D7: EASY | E7: =VLOOKUP(D7,'LISTA TOTAL PROVEEDORES 2019-I'!$D$3:$H$5594,2,FALSE) -> Bogota | F7: =VLOOKUP(D7,'LISTA TOTAL PROVEEDORES 2019-I'!$D$3:$H$5594,3,FALSE) -> Avda. Americas 68 94 | G7: =VLOOKUP(D7,'LISTA TOTAL PROVEEDORES 2019-I'!$D$3:$H$5594,4,FALSE) -> 4191400 | H7: =VLOOKUP(D7,'LISTA TOTAL PROVEEDORES 2019-I'!$D$3:$H$5594,5,FALSE) -> www.easy.com.co | I7: 5 | K7: =VLOOKUP(D7,'LISTA TOTAL PROVEEDORES 2019-I'!$D$3:$H$5594,2,FALSE) -> Bogota | M7: Bogota
A8: =+B8&COUNTIF($B$3:B8,B8) -> 11146 | B8: =VLOOKUP(C8,'GRUPOS VIGENTES'!$B$9:$C$115,2,FALSE) -> 1114 | C8: ACCESORIOS HD PARA REDES DE ACUEDUCTO | D8: HELBERT Y CIA | E8: =VLOOKUP(D8,'LISTA TOTAL PROVEEDORES 2019-I'!$D$3:$H$5594,2,FALSE) -> Bogota | F8: =VLOOKUP(D8,'LISTA TOTAL PROVEEDORES 2019-I'!$D$3:$H$5594,3,FALSE) -> Av Cr 40 # 20 - 73 | G8: =VLOOKUP(D8,'LISTA TOTAL PROVEEDORES 2019-I'!$D$3:$H$5594,4,FALSE) -> 368 10 77 | H8: =VLOOKUP(D8,'LISTA TOTAL PROVEEDORES 2019-I'!$D$3:$H$5594,5,FALSE) -> ventas@helbertycia.com | I8: 6 | K8: =VLOOKUP(D8,'LISTA TOTAL PROVEEDORES 2019-I'!$D$3:$H$5594,2,FALSE) -> Bogota | M8: Bogota
A9: =+B9&COUNTIF($B$3:B9,B9) -> 11147 | B9: =VLOOKUP(C9,'GRUPOS VIGENTES'!$B$9:$C$115,2,FALSE) -> 1114 | C9: ACCESORIOS HD PARA REDES DE ACUEDUCTO | D9: HIDROEQUIPO | E9: =VLOOKUP(D9,'LISTA TOTAL PROVEEDORES 2019-I'!$D$3:$H$5594,2,FALSE) -> Cali - Valle | F9: =VLOOKUP(D9,'LISTA TOTAL PROVEEDORES 2019-I'!$D$3:$H$5594,3,FALSE) -> Av. 3 Bis Norte No. 23 CN-35 | G9: =VLOOKUP(D9,'LISTA TOTAL PROVEEDORES 2019-I'!$D$3:$H$5594,4,FALSE) -> 653 0033 315 471 8248 | H9: =VLOOKUP(D9,'LISTA TOTAL PROVEEDORES 2019-I'!$D$3:$H$5594,5,FALSE) -> info@hidroequipos.com.co | I9: 7 | K9: =VLOOKUP(D9,'LISTA TOTAL PROVEEDORES 2019-I'!$D$3:$H$5594,2,FALSE) -> Cali - Valle | M9: Cali - Valle
A10: =+B10&COUNTIF($B$3:B10,B10) -> 11148 | B10: =VLOOKUP(C10,'GRUPOS VIGENTES'!$B$9:$C$115,2,FALSE) -> 1114 | C10: ACCESORIOS HD PARA REDES DE ACUEDUCTO | D10: HOMECENTER | E10: =VLOOKUP(D10,'LISTA TOTAL PROVEEDORES 2019-I'!$D$3:$H$5594,2,FALSE) -> Bogota | F10: =VLOOKUP(D10,'LISTA TOTAL PROVEEDORES 2019-I'!$D$3:$H$5594,3,FALSE) -> Avda. 68 37 37 Sur | G10: =VLOOKUP(D10,'LISTA TOTAL PROVEEDORES 2019-I'!$D$3:$H$5594,4,FALSE) -> 3077115 | H10: =VLOOKUP(D10,'LISTA TOTAL PROVEEDORES 2019-I'!$D$3:$H$5594,5,FALSE) -> www.homecenter.com.co | I10: 8 | K10: =VLOOKUP(D10,'LISTA TOTAL PROVEEDORES 2019-I'!$D$3:$H$5594,2,FALSE) -> Bogota | M10: Bogota
A11: =+B11&COUNTIF($B$3:B11,B11) -> 11149 | B11: =VLOOKUP(C11,'GRUPOS VIGENTES'!$B$9:$C$115,2,FALSE) -> 1114 | C11: ACCESORIOS HD PARA REDES DE ACUEDUCTO | D11: METACOL S.A | E11: Bogota | F11: Diagonal 34 Bis 17 58 | G11: 5116262 Ext. 211 | H11: mercadeo@metacol.com | I11: 9 | K11: =VLOOKUP(D11,'LISTA TOTAL PROVEEDORES 2019-I'!$D$3:$H$5594,2,FALSE) ->  | M11: 1
A12: =+B12&COUNTIF($B$3:B12,B12) -> 111410 | B12: =VLOOKUP(C12,'GRUPOS VIGENTES'!$B$9:$C$115,2,FALSE) -> 1114 | C12: ACCESORIOS HD PARA REDES DE ACUEDUCTO | D12: TECHNOLOGIES TRADE | E12: =VLOOKUP(D12,'LISTA TOTAL PROVEEDORES 2019-I'!$D$3:$H$5594,2,FALSE) -> Bogotá | F12: =VLOOKUP(D12,'LISTA TOTAL PROVEEDORES 2019-I'!$D$3:$H$5594,3,FALSE) -> Cr 38 #10-90 Local-10 71 | G12: =VLOOKUP(D12,'LISTA TOTAL PROVEEDORES 2019-I'!$D$3:$H$5594,4,FALSE) -> 313 222 10 67 316 496 91 60 | H12: =VLOOKUP(D12,'LISTA TOTAL PROVEEDORES 2019-I'!$D$3:$H$5594,5,FALSE) -> ventas@tdt.com.co | I12: 10 | K12: =VLOOKUP(D12,'LISTA TOTAL PROVEEDORES 2019-I'!$D$3:$H$5594,2,FALSE) -> Bogotá | M12: Bogotá
A13: =+B13&COUNTIF($B$3:B13,B13) -> 111411 | B13: =VLOOKUP(C13,'GRUPOS VIGENTES'!$B$9:$C$115,2,FALSE) -> 1114 | C13: ACCESORIOS HD PARA REDES DE ACUEDUCTO | D13: TUVALREP SAS | E13: =VLOOKUP(D13,'LISTA TOTAL PROVEEDORES 2019-I'!$D$3:$H$5594,2,FALSE) -> Bogotá | F13: =VLOOKUP(D13,'LISTA TOTAL PROVEEDORES 2019-I'!$D$3:$H$5594,3,FALSE) -> Av. Calle 13 No. 22-72 | G13: =VLOOKUP(D13,'LISTA TOTAL PROVEEDORES 2019-I'!$D$3:$H$5594,4,FALSE) -> 2015415 3713386 | H13: =VLOOKUP(D13,'LISTA TOTAL PROVEEDORES 2019-I'!$D$3:$H$5594,5,FALSE) -> tuvalrep@tuvalrep.com.co | I13: 11 | K13: =VLOOKUP(D13,'LISTA TOTAL PROVEEDORES 2019-I'!$D$3:$H$5594,2,FALSE) -> Bogotá | M13: Bogotá
A14: =+B14&COUNTIF($B$3:B14,B14) -> 11611 | B14: =VLOOKUP(C14,'GRUPOS VIGENTES'!$B$9:$C$115,2,FALSE) -> 1161 | C14: ACTIVIDADES A TODO COSTO | D14: ALUMINIOS, ACEROS Y VIDRIOS S.A.S | E14: Bogotá | F14: CALLE 73D SUR No. 82G-18 | G14: 3870898 3213061965 | H14: mtaluminios@gmail.com | I14: 12 | J14: BUSCAR | K14: =VLOOKUP(D14,'LISTA TOTAL PROVEEDORES 2019-I'!$D$3:$H$5594,2,FALSE) ->  | M14: 1
A15: =+B15&COUNTIF($B$3:B15,B15) -> 11612 | B15: =VLOOKUP(C15,'GRUPOS VIGENTES'!$B$9:$C$115,2,FALSE) -> 1161 | C15: ACTIVIDADES A TODO COSTO | D15: ANDIMALLAS & ANDIMETALES | E15: Cajicá, Cundinamarca | F15: Calle 4S # 3-83/89 | G15: 8661961 3176571211 | H15: info@andimallas.com | I15: 13 | J15: BUSCAR | K15: =VLOOKUP(D15,'LISTA TOTAL PROVEEDORES 2019-I'!$D$3:$H$5594,2,FALSE) ->  | M15: 1
A16: =+B16&COUNTIF($B$3:B16,B16) -> 11613 | B16: =VLOOKUP(C16,'GRUPOS VIGENTES'!$B$9:$C$115,2,FALSE) -> 1161 | C16: ACTIVIDADES A TODO COSTO | D16: BIOFRACTAL ARQUITECTURA LIVIANA | E16: =VLOOKUP(D16,'LISTA TOTAL PROVEEDORES 2019-I'!$D$3:$H$594,2,FALSE) -> Bogotá | F16: =VLOOKUP(D16,'LISTA TOTAL PROVEEDORES 2019-I'!$D$3:$H$594,3,FALSE) -> CR 62 #98-16 | G16: =VLOOKUP(D16,'LISTA TOTAL PROVEEDORES 2019-I'!$D$3:$H$594,4,FALSE) -> 2210831 318 222 1076 | H16: =VLOOKUP(D16,'LISTA TOTAL PROVEEDORES 2019-I'!$D$3:$H$594,5,FALSE) -> biofractal.as@gmail.com | I16: 14 | K16: =VLOOKUP(D16,'LISTA TOTAL PROVEEDORES 2019-I'!$D$3:$H$5594,2,FALSE) -> Bogotá | M16: Bogotá
A17: =+B17&COUNTIF($B$3:B17,B17) -> 11614 | B17: =VLOOKUP(C17,'GRUPOS VIGENTES'!$B$9:$C$115,2,FALSE) -> 1161 | C17: ACTIVIDADES A TODO COSTO | D17: CABLES Y GUAYAS ALGOFER | E17: =VLOOKUP(D17,'LISTA TOTAL PROVEEDORES 2019-I'!$D$3:$H$594,2,FALSE) -> Bogota | F17: =VLOOKUP(D17,'LISTA TOTAL PROVEEDORES 2019-I'!$D$3:$H$594,3,FALSE) -> Cra. 109 A 66 33 | G17: =VLOOKUP(D17,'LISTA TOTAL PROVEEDORES 2019-I'!$D$3:$H$594,4,FALSE) -> 3133184817 3214983819 4345598 | H17: =VLOOKUP(D17,'LISTA TOTAL PROVEEDORES 2019-I'!$D$3:$H$594,5,FALSE) -> servicioalcliente@cablesyguayasalgofer.com | I17: 15 | K17: =VLOOKUP(D17,'LISTA TOTAL PROVEEDORES 2019-I'!$D$3:$H$5594,2,FALSE) -> Bogota | M17: Bogota
A18: =+B18&COUNTIF($B$3:B18,B18) -> 11615 | B18: =VLOOKUP(C18,'GRUPOS VIGENTES'!$B$9:$C$115,2,FALSE) -> 1161 | C18: ACTIVIDADES A TODO COSTO | D18: G&S SOLUCIONES DE INGENIERÍA | E18: Bogotá | F18: Diagonal 16 C No. 97–29 | G18: 3125103779 | H18: contacto@gsingenieria.com.co | I18: 16 | J18: BUSCAR | K18: =VLOOKUP(D18,'LISTA TOTAL PROVEEDORES 2019-I'!$D$3:$H$5594,2,FALSE) ->  | M18: 1
A19: =+B19&COUNTIF($B$3:B19,B19) -> 11616 | B19: =VLOOKUP(C19,'GRUPOS VIGENTES'!$B$9:$C$115,2,FALSE) -> 1161 | C19: ACTIVIDADES A TODO COSTO | D19: SOLUCIONES EN DISEÑO E INGENIERÍA SAS | E19: Bogotá | F19: CALLE 78 D 112 F 34 | G19: 4422174 | H19: hipolito.suarez@sdi.com.co sdicolombia1@outolook.com | I19: 17 | J19: BUSCAR | K19: =VLOOKUP(D19,'LISTA TOTAL PROVEEDORES 2019-I'!$D$3:$H$5594,2,FALSE) ->  | M19: 1
A20: =+B20&COUNTIF($B$3:B20,B20) -> 11617 | B20: =VLOOKUP(C20,'GRUPOS VIGENTES'!$B$9:$C$115,2,FALSE) -> 1161 | C20: ACTIVIDADES A TODO COSTO | D20: ABC TRANSFORMADORES E INGENIERIA ELECTROMECÁNICA | E20: =VLOOKUP(D20,'LISTA TOTAL PROVEEDORES 2019-I'!$D$3:$H$594,2,FALSE) -> Bogotá | F20: =VLOOKUP(D20,'LISTA TOTAL PROVEEDORES 2019-I'!$D$3:$H$594,3,FALSE) -> Carrera 27 No. 7 - 42 | G20: =VLOOKUP(D20,'LISTA TOTAL PROVEEDORES 2019-I'!$D$3:$H$594,4,FALSE) -> 2015059 - 3105612639 - 3105612635 - 2016468 | H20: =VLOOKUP(D20,'LISTA TOTAL PROVEEDORES 2019-I'!$D$3:$H$594,5,FALSE) -> http://www.transformadoresabc.com | I20: 18 | K20: =VLOOKUP(D20,'LISTA TOTAL PROVEEDORES 2019-I'!$D$3:$H$5594,2,FALSE) -> Bogotá | M20: Bogotá
A21: =+B21&COUNTIF($B$3:B21,B21) -> 11618 | B21: =VLOOKUP(C21,'GRUPOS VIGENTES'!$B$9:$C$115,2,FALSE) -> 1161 | C21: ACTIVIDADES A TODO COSTO | D21: ACABADOS ARQUITECTONICOS ROWCAST | E21: Bogotá | F21: Carrera 53 D Nº 128A - 74 | G21: 7320310 315 700 6533 | H21: obrasbogota@rowcast.com | I21: 19 | J21: BUSCAR | K21: =VLOOKUP(D21,'LISTA TOTAL PROVEEDORES 2019-I'!$D$3:$H$5594,2,FALSE) ->  | M21: 1
A22: =+B22&COUNTIF($B$3:B22,B22) -> 11619 | B22: =VLOOKUP(C22,'GRUPOS VIGENTES'!$B$9:$C$115,2,FALSE) -> 1161 | C22: ACTIVIDADES A TODO COSTO | D22: AMVAR WORLD SAS | E22: =VLOOKUP(D22,'LISTA TOTAL PROVEEDORES 2019-I'!$D$3:$H$594,2,FALSE) -> Bogotá | F22: =VLOOKUP(D22,'LISTA TOTAL PROVEEDORES 2019-I'!$D$3:$H$594,3,FALSE) -> Av. 30 - 7 de agosto 68-125 local 35 | G22: =VLOOKUP(D22,'LISTA TOTAL PROVEEDORES 2019-I'!$D$3:$H$594,4,FALSE) -> 3810603 EXT 101-102 | H22: =VLOOKUP(D22,'LISTA TOTAL PROVEEDORES 2019-I'!$D$3:$H$594,5,FALSE) -> ventas@anvarworld.com | I22: 20 | K22: =VLOOKUP(D22,'LISTA TOTAL PROVEEDORES 2019-I'!$D$3:$H$5594,2,FALSE) -> Bogotá | M22: Bogotá
A23: =+B23&COUNTIF($B$3:B23,B23) -> 116110 | B23: =VLOOKUP(C23,'GRUPOS VIGENTES'!$B$9:$C$115,2,FALSE) -> 1161 | C23: ACTIVIDADES A TODO COSTO | D23: AW ELECTRONICA SAS | E23: Bogotá | F23: Carrera 13 No.38-29 Piso 2 | G23: 340 2856 / 57 340 2854 | H23: awelectronica@awelectronica.com | I23: 21 | J23: BUSCAR | K23: =VLOOKUP(D23,'LISTA TOTAL PROVEEDORES 2019-I'!$D$3:$H$5594,2,FALSE) ->  | M23: 1
A24: =+B24&COUNTIF($B$3:B24,B24) -> 116111 | B24: =VLOOKUP(C24,'GRUPOS VIGENTES'!$B$9:$C$115,2,FALSE) -> 1161 | C24: ACTIVIDADES A TODO COSTO | D24: CARPAS E INGENIERÍA | E24: =VLOOKUP(D24,'LISTA TOTAL PROVEEDORES 2019-I'!$D$3:$H$594,2,FALSE) -> Bogota | F24: =VLOOKUP(D24,'LISTA TOTAL PROVEEDORES 2019-I'!$D$3:$H$594,3,FALSE) -> Calle 9 32 A 41 | G24: =VLOOKUP(D24,'LISTA TOTAL PROVEEDORES 2019-I'!$D$3:$H$594,4,FALSE) -> 3102360339 5618623 | H24: =VLOOKUP(D24,'LISTA TOTAL PROVEEDORES 2019-I'!$D$3:$H$594,5,FALSE) -> ventas@carpascolombia.com | I24: 22 | K24: =VLOOKUP(D24,'LISTA TOTAL PROVEEDORES 2019-I'!$D$3:$H$5594,2,FALSE) -> Bogota | M24: Bogota
A25: =+B25&COUNTIF($B$3:B25,B25) -> 116112 | B25: =VLOOKUP(C25,'GRUPOS VIGENTES'!$B$9:$C$115,2,FALSE) -> 1161 | C25: ACTIVIDADES A TODO COSTO | D25: CENTRIACEROS H A | E25: Bogotá | F25: Cra 42 No. 22A - 23 | G25: 269 1944 738 8385 | H25: administrativo@centriaceros.com | I25: 23 | J25: BUSCAR | K25: =VLOOKUP(D25,'LISTA TOTAL PROVEEDORES 2019-I'!$D$3:$H$5594,2,FALSE) ->  | M25: 1
A26: =+B26&COUNTIF($B$3:B26,B26) -> 116113 | B26: =VLOOKUP(C26,'GRUPOS VIGENTES'!$B$9:$C$115,2,FALSE) -> 1161 | C26: ACTIVIDADES A TODO COSTO | D26: CEPLASS | E26: Bogotá | F26: Carrera 25 Bis N° 3-18 Sur | G26: 313 423 7817 | H26: ceplass@ceplass.com | I26: 24 | J26: BUSCAR | K26: =VLOOKUP(D26,'LISTA TOTAL PROVEEDORES 2019-I'!$D$3:$H$5594,2,FALSE) ->  | M26: 1
A27: =+B27&COUNTIF($B$3:B27,B27) -> 116114 | B27: =VLOOKUP(C27,'GRUPOS VIGENTES'!$B$9:$C$115,2,FALSE) -> 1161 | C27: ACTIVIDADES A TODO COSTO | D27: CIELOS RASOS & DIVISIONES | E27: Bogotá | F27: Cra 14 #75-58 | G27: 248 18 60 310 577 4471 | H27: ventas@cielosrasos.com | I27: 25 | K27: =VLOOKUP(D27,'LISTA TOTAL PROVEEDORES 2019-I'!$D$3:$H$5594,2,FALSE) -> Bogotá | M27: Bogotá
A28: =+B28&COUNTIF($B$3:B28,B28) -> 116115 | B28: =VLOOKUP(C28,'GRUPOS VIGENTES'!$B$9:$C$115,2,FALSE) -> 1161 | C28: ACTIVIDADES A TODO COSTO | D28: CIVALCO LTDA | E28: Bogotá | F28: Carrera 17 # 36-38 | G28: 285 38 57 | H28: civalco@civalco.com | I28: 26 | K28: =VLOOKUP(D28,'LISTA TOTAL PROVEEDORES 2019-I'!$D$3:$H$5594,2,FALSE) ->  | M28: 1
A29: =+B29&COUNTIF($B$3:B29,B29) -> 116116 | B29: =VLOOKUP(C29,'GRUPOS VIGENTES'!$B$9:$C$115,2,FALSE) -> 1161 | C29: ACTIVIDADES A TODO COSTO | D29: COLGRASS SAS | E29: Medellín - Antioquia | F29: Carrera 25 1a° sur 155 Edificio Platinum Superior Of 341 | G29: 353 70 32 3182860092 | H29: colgrass@une.net.co | I29: 27 | J29: BUSCAR | K29: =VLOOKUP(D29,'LISTA TOTAL PROVEEDORES 2019-I'!$D$3:$H$5594,2,FALSE) ->  | M29: 1
A30: =+B30&COUNTIF($B$3:B30,B30) -> 116117 | B30: =VLOOKUP(C30,'GRUPOS VIGENTES'!$B$9:$C$115,2,FALSE) -> 1161 | C30: ACTIVIDADES A TODO COSTO | D30: COVAL | E30: Bogota | F30: Avda. Ciudad de Cali 5 A 92 Sur | G30: 3152358446 8759100 Ext. 144 - 145 7454671 | H30: info@coval.com.co | I30: 28 | K30: =VLOOKUP(D30,'LISTA TOTAL PROVEEDORES 2019-I'!$D$3:$H$5594,2,FALSE) -> Bogota | M30: Bogota
A31: =+B31&COUNTIF($B$3:B31,B31) -> 116118 | B31: =VLOOKUP(C31,'GRUPOS VIGENTES'!$B$9:$C$115,2,FALSE) -> 1161 | C31: ACTIVIDADES A TODO COSTO | D31: EQUIPOS Y CONTROLES INDUSTRIALES SA - ECI | E31: Bogotá | F31: Calle 23 # 116 - 31 | G31: 3275151 7457474 | H31: ecisales@eci.com.co | I31: 29 | K31: =VLOOKUP(D31,'LISTA TOTAL PROVEEDORES 2019-I'!$D$3:$H$5594,2,FALSE) ->  | M31: 1
A32: =+B32&COUNTIF($B$3:B32,B32) -> 116119 | B32: =VLOOKUP(C32,'GRUPOS VIGENTES'!$B$9:$C$115,2,FALSE) -> 1161 | C32: ACTIVIDADES A TODO COSTO | D32: FIBRIT S.A. PREFABRICADOS EN CONCRETO Y CEMENTO | E32: Bogotá | F32: Calle 90 #14-26 Of. 218 | G32: 7457443 | H32: info@fibrit.com | I32: 30 | J32: BUSCAR | K32: =VLOOKUP(D32,'LISTA TOTAL PROVEEDORES 2019-I'!$D$3:$H$5594,2,FALSE) ->  | M32: 1
A33: =+B33&COUNTIF($B$3:B33,B33) -> 116120 | B33: =VLOOKUP(C33,'GRUPOS VIGENTES'!$B$9:$C$115,2,FALSE) -> 1161 | C33: ACTIVIDADES A TODO COSTO | D33: GRABADO Y CORTE LASER BOGOTA | E33: =VLOOKUP(D33,'LISTA TOTAL PROVEEDORES 2019-I'!$D$3:$H$5594,2,FALSE) -> Bogota | F33: =VLOOKUP(D33,'LISTA TOTAL PROVEEDORES 2019-I'!$D$3:$H$5594,3,FALSE) -> Carrera 27B No. 24B - 23 | G33: =VLOOKUP(D33,'LISTA TOTAL PROVEEDORES 2019-I'!$D$3:$H$5594,4,FALSE) -> 310 760 3311 560 2421 | H33: =VLOOKUP(D33,'LISTA TOTAL PROVEEDORES 2019-I'!$D$3:$H$5594,5,FALSE) -> ventas@grabadoycortelaser.com | I33: 31 | K33: =VLOOKUP(D33,'LISTA TOTAL PROVEEDORES 2019-I'!$D$3:$H$5594,2,FALSE) -> Bogota | M33: Bogota
A34: =+B34&COUNTIF($B$3:B34,B34) -> 116121 | B34: =VLOOKUP(C34,'GRUPOS VIGENTES'!$B$9:$C$115,2,FALSE) -> 1161 | C34: ACTIVIDADES A TODO COSTO | D34: HB SADELEC Estructuras Metálicas | E34: =VLOOKUP(D34,'LISTA TOTAL PROVEEDORES 2019-I'!$D$3:$H$5594,2,FALSE) -> Bogota | F34: =VLOOKUP(D34,'LISTA TOTAL PROVEEDORES 2019-I'!$D$3:$H$5594,3,FALSE) -> Avda. Cra. 129 17 F 97 | G34: =VLOOKUP(D34,'LISTA TOTAL PROVEEDORES 2019-I'!$D$3:$H$5594,4,FALSE) -> 4224700 Ext. 121 4155620 | H34: =VLOOKUP(D34,'LISTA TOTAL PROVEEDORES 2019-I'!$D$3:$H$5594,5,FALSE) -> david.castellanos@hbsadelec.com.co | I34: 32 | K34: =VLOOKUP(D34,'LISTA TOTAL PROVEEDORES 2019-I'!$D$3:$H$5594,2,FALSE) -> Bogota | M34: Bogota
A35: =+B35&COUNTIF($B$3:B35,B35) -> 116122 | B35: =VLOOKUP(C35,'GRUPOS VIGENTES'!$B$9:$C$115,2,FALSE) -> 1161 | C35: ACTIVIDADES A TODO COSTO | D35: INDUSTRIAS METALICAS GRAG S.A.S. | E35: Bogotá | F35: Carrera 27 # 10 - 35 | G35: 805 9374 805 9374 277 3540 | H35: metalicasgrag@yahoo.es | I35: 33 | K35: =VLOOKUP(D35,'LISTA TOTAL PROVEEDORES 2019-I'!$D$3:$H$5594,2,FALSE) ->  | M35: 1
A36: =+B36&COUNTIF($B$3:B36,B36) -> 116123 | B36: =VLOOKUP(C36,'GRUPOS VIGENTES'!$B$9:$C$115,2,FALSE) -> 1161 | C36: ACTIVIDADES A TODO COSTO | D36: INTEGRACIONVIAL - Industria de señalización y segu | E36: Cali - Valle | F36: CALLE 25 N 5 N 47 OFICINA 323 | G36: 4854822 | H36: -- | I36: 34 | K36: =VLOOKUP(D36,'LISTA TOTAL PROVEEDORES 2019-I'!$D$3:$H$5594,2,FALSE) ->  | M36: 1
A37: =+B37&COUNTIF($B$3:B37,B37) -> 116124 | B37: =VLOOKUP(C37,'GRUPOS VIGENTES'!$B$9:$C$115,2,FALSE) -> 1161 | C37: ACTIVIDADES A TODO COSTO | D37: LA CASA DE LA UPS | E37: Bogota | F37: Cra 24 # 76-24 Juan 23 | G37: 345 33 95 314 260 65 92 | H37: ventasnacionales@casaups.com | I37: 35 | K37: =VLOOKUP(D37,'LISTA TOTAL PROVEEDORES 2019-I'!$D$3:$H$5594,2,FALSE) ->  | M37: 1
A38: =+B38&COUNTIF($B$3:B38,B38) -> 116125 | B38: =VLOOKUP(C38,'GRUPOS VIGENTES'!$B$9:$C$115,2,FALSE) -> 1161 | C38: ACTIVIDADES A TODO COSTO | D38: NACIONAL DE ELECTRICOS | E38: =VLOOKUP(D38,'LISTA TOTAL PROVEEDORES 2019-I'!$D$3:$H$5594,2,FALSE) -> Bogota | F38: =VLOOKUP(D38,'LISTA TOTAL PROVEEDORES 2019-I'!$D$3:$H$5594,3,FALSE) -> Calle 15 12 81 | G38: =VLOOKUP(D38,'LISTA TOTAL PROVEEDORES 2019-I'!$D$3:$H$5594,4,FALSE) -> 3114758165 2543720 Ext. 1502 | H38: =VLOOKUP(D38,'LISTA TOTAL PROVEEDORES 2019-I'!$D$3:$H$5594,5,FALSE) -> centro1@nalelectricos.com.co www.nalelectricos.com.co | I38: 36 | K38: =VLOOKUP(D38,'LISTA TOTAL PROVEEDORES 2019-I'!$D$3:$H$5594,2,FALSE) -> Bogota | M38: Bogota
A39: =+B39&COUNTIF($B$3:B39,B39) -> 116126 | B39: =VLOOKUP(C39,'GRUPOS VIGENTES'!$B$9:$C$115,2,FALSE) -> 1161 | C39: ACTIVIDADES A TODO COSTO | D39: PLASTEMPACK DE COLOMBIA LTDA | E39: =VLOOKUP(D39,'LISTA TOTAL PROVEEDORES 2019-I'!$D$3:$H$5594,2,FALSE) -> Bogota | F39: =VLOOKUP(D39,'LISTA TOTAL PROVEEDORES 2019-I'!$D$3:$H$5594,3,FALSE) -> Cra. 65 4 D 34 | G39: =VLOOKUP(D39,'LISTA TOTAL PROVEEDORES 2019-I'!$D$3:$H$5594,4,FALSE) -> 2610698 4146476 8931536 | H39: =VLOOKUP(D39,'LISTA TOTAL PROVEEDORES 2019-I'!$D$3:$H$5594,5,FALSE) -> ventas@plastempack.com | I39: 37 | K39: =VLOOKUP(D39,'LISTA TOTAL PROVEEDORES 2019-I'!$D$3:$H$5594,2,FALSE) -> Bogota | M39: Bogota
A40: =+B40&COUNTIF($B$3:B40,B40) -> 116127 | B40: =VLOOKUP(C40,'GRUPOS VIGENTES'!$B$9:$C$115,2,FALSE) -> 1161 | C40: ACTIVIDADES A TODO COSTO | D40: PROELÉCTRICOS | E40: =VLOOKUP(D40,'LISTA TOTAL PROVEEDORES 2019-I'!$D$3:$H$5594,2,FALSE) -> Bogotá | F40: =VLOOKUP(D40,'LISTA TOTAL PROVEEDORES 2019-I'!$D$3:$H$5594,3,FALSE) -> CALLE 12 A No. 21 - 21 | G40: =VLOOKUP(D40,'LISTA TOTAL PROVEEDORES 2019-I'!$D$3:$H$5594,4,FALSE) -> 2471255 EXT. 301 | H40: =VLOOKUP(D40,'LISTA TOTAL PROVEEDORES 2019-I'!$D$3:$H$5594,5,FALSE) -> presupuestos@proelectricos.com | I40: 38 | K40: =VLOOKUP(D40,'LISTA TOTAL PROVEEDORES 2019-I'!$D$3:$H$5594,2,FALSE) -> Bogotá | M40: Bogotá
A41: =+B41&COUNTIF($B$3:B41,B41) -> 116128 | B41: =VLOOKUP(C41,'GRUPOS VIGENTES'!$B$9:$C$115,2,FALSE) -> 1161 | C41: ACTIVIDADES A TODO COSTO | D41: SEÑAL VIAS SAS | E41: =VLOOKUP(D41,'LISTA TOTAL PROVEEDORES 2019-I'!$D$3:$H$5594,2,FALSE) -> Bogota | F41: =VLOOKUP(D41,'LISTA TOTAL PROVEEDORES 2019-I'!$D$3:$H$5594,3,FALSE) -> Calle 38 Sur 72 H 30 | G41: =VLOOKUP(D41,'LISTA TOTAL PROVEEDORES 2019-I'!$D$3:$H$5594,4,FALSE) -> 4034647 | H41: =VLOOKUP(D41,'LISTA TOTAL PROVEEDORES 2019-I'!$D$3:$H$5594,5,FALSE) -> senalvias@yahoo.es | I41: 39 | K41: =VLOOKUP(D41,'LISTA TOTAL PROVEEDORES 2019-I'!$D$3:$H$5594,2,FALSE) -> Bogota | M41: Bogota
A42: =+B42&COUNTIF($B$3:B42,B42) -> 116129 | B42: =VLOOKUP(C42,'GRUPOS VIGENTES'!$B$9:$C$115,2,FALSE) -> 1161 | C42: ACTIVIDADES A TODO COSTO | D42: SOCODA | E42: =VLOOKUP(D42,'LISTA TOTAL PROVEEDORES 2019-I'!$D$3:$H$5594,2,FALSE) -> Bogotá | F42: =VLOOKUP(D42,'LISTA TOTAL PROVEEDORES 2019-I'!$D$3:$H$5594,3,FALSE) -> Av. Carrera 45 # 136 - 51 | G42: =VLOOKUP(D42,'LISTA TOTAL PROVEEDORES 2019-I'!$D$3:$H$5594,4,FALSE) -> 766 62 40 01 8000 41 06 00 | H42: =VLOOKUP(D42,'LISTA TOTAL PROVEEDORES 2019-I'!$D$3:$H$5594,5,FALSE) -> info@socoda.com.co | I42: 40 | K42: =VLOOKUP(D42,'LISTA TOTAL PROVEEDORES 2019-I'!$D$3:$H$5594,2,FALSE) -> Bogotá | M42: Bogotá
A43: =+B43&COUNTIF($B$3:B43,B43) -> 116130 | B43: =VLOOKUP(C43,'GRUPOS VIGENTES'!$B$9:$C$115,2,FALSE) -> 1161 | C43: ACTIVIDADES A TODO COSTO | D43: SOY RED | E43: =VLOOKUP(D43,'LISTA TOTAL PROVEEDORES 2019-I'!$D$3:$H$5594,2,FALSE) -> Bogotá | F43: =VLOOKUP(D43,'LISTA TOTAL PROVEEDORES 2019-I'!$D$3:$H$5594,3,FALSE) -> Carrera 14 #75-77 | G43: =VLOOKUP(D43,'LISTA TOTAL PROVEEDORES 2019-I'!$D$3:$H$5594,4,FALSE) -> 477 8701 | H43: =VLOOKUP(D43,'LISTA TOTAL PROVEEDORES 2019-I'!$D$3:$H$5594,5,FALSE) -> comercial@soyred.net | I43: 41 | K43: =VLOOKUP(D43,'LISTA TOTAL PROVEEDORES 2019-I'!$D$3:$H$5594,2,FALSE) -> Bogotá | M43: Bogotá
A44: =+B44&COUNTIF($B$3:B44,B44) -> 116131 | B44: =VLOOKUP(C44,'GRUPOS VIGENTES'!$B$9:$C$115,2,FALSE) -> 1161 | C44: ACTIVIDADES A TODO COSTO | D44: STUP DE COLOMBIA | E44: =VLOOKUP(D44,'LISTA TOTAL PROVEEDORES 2019-I'!$D$3:$H$5594,2,FALSE) -> Bogota | F44: =VLOOKUP(D44,'LISTA TOTAL PROVEEDORES 2019-I'!$D$3:$H$5594,3,FALSE) -> Cra. 50 126 19 | G44: =VLOOKUP(D44,'LISTA TOTAL PROVEEDORES 2019-I'!$D$3:$H$5594,4,FALSE) -> 2131601 | H44: =VLOOKUP(D44,'LISTA TOTAL PROVEEDORES 2019-I'!$D$3:$H$5594,5,FALSE) -> carlos.salgado@stup.co | I44: 42 | K44: =VLOOKUP(D44,'LISTA TOTAL PROVEEDORES 2019-I'!$D$3:$H$5594,2,FALSE) -> Bogota | M44: Bogota
A45: =+B45&COUNTIF($B$3:B45,B45) -> 116132 | B45: =VLOOKUP(C45,'GRUPOS VIGENTES'!$B$9:$C$115,2,FALSE) -> 1161 | C45: ACTIVIDADES A TODO COSTO | D45: SUPERTEC S.A.S. | E45: Bogotá | F45: Calle 114 A # 45-32 Of. 241 | G45: 215 0500 | H45: camiladetoro@supertecsas.com | I45: 43 | K45: =VLOOKUP(D45,'LISTA TOTAL PROVEEDORES 2019-I'!$D$3:$H$5594,2,FALSE) ->  | M45: 1
A46: =+B46&COUNTIF($B$3:B46,B46) -> 116133 | B46: =VLOOKUP(C46,'GRUPOS VIGENTES'!$B$9:$C$115,2,FALSE) -> 1161 | C46: ACTIVIDADES A TODO COSTO | D46: TECNOCOMPRAS | E46: =VLOOKUP(D46,'LISTA TOTAL PROVEEDORES 2019-I'!$D$3:$H$5594,2,FALSE) -> Bogotá | F46: =VLOOKUP(D46,'LISTA TOTAL PROVEEDORES 2019-I'!$D$3:$H$5594,3,FALSE) -> www.tecnocompras.com.co | G46: =VLOOKUP(D46,'LISTA TOTAL PROVEEDORES 2019-I'!$D$3:$H$5594,4,FALSE) -> 316 8701076 3013782 | H46: =VLOOKUP(D46,'LISTA TOTAL PROVEEDORES 2019-I'!$D$3:$H$5594,5,FALSE) -> gerencia@tecnocompras.com.co | I46: 44 | K46: =VLOOKUP(D46,'LISTA TOTAL PROVEEDORES 2019-I'!$D$3:$H$5594,2,FALSE) -> Bogotá | M46: Bogotá
A47: =+B47&COUNTIF($B$3:B47,B47) -> 116134 | B47: =VLOOKUP(C47,'GRUPOS VIGENTES'!$B$9:$C$115,2,FALSE) -> 1161 | C47: ACTIVIDADES A TODO COSTO | D47: TRANSFORMADORES INDUELECTRO | E47: Bogota | F47: Cll 24 Sur No 18 C-51 | G47: 3669171 2729590 | H47: transformadoresinduelectro@hotmail.com | I47: 45 | K47: =VLOOKUP(D47,'LISTA TOTAL PROVEEDORES 2019-I'!$D$3:$H$5594,2,FALSE) ->  | M47: 1
A48: =+B48&COUNTIF($B$3:B48,B48) -> 11021 | B48: =VLOOKUP(C48,'GRUPOS VIGENTES'!$B$9:$C$115,2,FALSE) -> 1102 | C48: AGREGADOS PÉTREOS, BASES Y SUBBASES GRANULARES | D48: 4GA SAS Agregados de calidad | E48: =VLOOKUP(D48,'LISTA TOTAL PROVEEDORES 2019-I'!$D$3:$H$5594,2,FALSE) -> Bogota | F48: =VLOOKUP(D48,'LISTA TOTAL PROVEEDORES 2019-I'!$D$3:$H$5594,3,FALSE) -> Calle 124 10 29 Apto. 201 | G48: =VLOOKUP(D48,'LISTA TOTAL PROVEEDORES 2019-I'!$D$3:$H$5594,4,FALSE) -> 3183821145 | H48: =VLOOKUP(D48,'LISTA TOTAL PROVEEDORES 2019-I'!$D$3:$H$5594,5,FALSE) -> grupo4ga@gmail.com | I48: 46 | K48: =VLOOKUP(D48,'LISTA TOTAL PROVEEDORES 2019-I'!$D$3:$H$5594,2,FALSE) -> Bogota | M48: Bogota
A49: =+B49&COUNTIF($B$3:B49,B49) -> 11022 | B49: =VLOOKUP(C49,'GRUPOS VIGENTES'!$B$9:$C$115,2,FALSE) -> 1102 | C49: AGREGADOS PÉTREOS, BASES Y SUBBASES GRANULARES | D49: AGREGADOS LA ROCA SAS | E49: Mosquera - Cund. | F49: Calle 1 # 5-03 barrio Las Villas | G49: 315 392 8159 | H49: servicioalcliente@agregadoslaroca.com | I49: 47 | K49: =VLOOKUP(D49,'LISTA TOTAL PROVEEDORES 2019-I'!$D$3:$H$5594,2,FALSE) ->  | M49: 1
A50: =+B50&COUNTIF($B$3:B50,B50) -> 11023 | B50: =VLOOKUP(C50,'GRUPOS VIGENTES'!$B$9:$C$115,2,FALSE) -> 1102 | C50: AGREGADOS PÉTREOS, BASES Y SUBBASES GRANULARES | D50: ARENAS Y AGREGADOS IVONE SAS | E50: =VLOOKUP(D50,'LISTA TOTAL PROVEEDORES 2019-I'!$D$3:$H$5594,2,FALSE) -> Soacha - Cund. | F50: =VLOOKUP(D50,'LISTA TOTAL PROVEEDORES 2019-I'!$D$3:$H$5594,3,FALSE) -> Calle 95 # 11A-37 Of 401 | G50: =VLOOKUP(D50,'LISTA TOTAL PROVEEDORES 2019-I'!$D$3:$H$5594,4,FALSE) -> 6225492 6226133 | H50: =VLOOKUP(D50,'LISTA TOTAL PROVEEDORES 2019-I'!$D$3:$H$5594,5,FALSE) -> gerencia@arenasyagregados.com | I50: 48 | K50: =VLOOKUP(D50,'LISTA TOTAL PROVEEDORES 2019-I'!$D$3:$H$5594,2,FALSE) -> Soacha - Cund. | M50: Soacha - Cund.
A51: =+B51&COUNTIF($B$3:B51,B51) -> 11024 | B51: =VLOOKUP(C51,'GRUPOS VIGENTES'!$B$9:$C$115,2,FALSE) -> 1102 | C51: AGREGADOS PÉTREOS, BASES Y SUBBASES GRANULARES | D51: ARENAS Y TRITURADOS SANTA FE SAS | E51: Medellín - Antioquia | F51: Cra 66 # 49B - 20 Bloque A-Centro Comercial Los sauces | G51: 2302064 | H51: -- | I51: 49 | K51: =VLOOKUP(D51,'LISTA TOTAL PROVEEDORES 2019-I'!$D$3:$H$5594,2,FALSE) ->  | M51: 1
A52: =+B52&COUNTIF($B$3:B52,B52) -> 11025 | B52: =VLOOKUP(C52,'GRUPOS VIGENTES'!$B$9:$C$115,2,FALSE) -> 1102 | C52: AGREGADOS PÉTREOS, BASES Y SUBBASES GRANULARES | D52: ASMINCOL SAS | E52: Bogotá | F52: Calle 3 N° 31 - 04 | G52: 311 853 3661 | H52: juancamilo.ospina@asmincol.com | I52: 50 | K52: =VLOOKUP(D52,'LISTA TOTAL PROVEEDORES 2019-I'!$D$3:$H$5594,2,FALSE) ->  | M52: 1
A53: =+B53&COUNTIF($B$3:B53,B53) -> 11026 | B53: =VLOOKUP(C53,'GRUPOS VIGENTES'!$B$9:$C$115,2,FALSE) -> 1102 | C53: AGREGADOS PÉTREOS, BASES Y SUBBASES GRANULARES | D53: BCD SAS | E53: =VLOOKUP(D53,'LISTA TOTAL PROVEEDORES 2019-I'!$D$3:$H$5594,2,FALSE) -> Bogota | F53: =VLOOKUP(D53,'LISTA TOTAL PROVEEDORES 2019-I'!$D$3:$H$5594,3,FALSE) -> Cra. 67 62 B 55 Sur Bl. 14 Apto. 527 | G53: =VLOOKUP(D53,'LISTA TOTAL PROVEEDORES 2019-I'!$D$3:$H$5594,4,FALSE) -> 3008360 | H53: =VLOOKUP(D53,'LISTA TOTAL PROVEEDORES 2019-I'!$D$3:$H$5594,5,FALSE) -> bcd@bcdsas.com | I53: 51 | K53: =VLOOKUP(D53,'LISTA TOTAL PROVEEDORES 2019-I'!$D$3:$H$5594,2,FALSE) -> Bogota | M53: Bogota
A54: =+B54&COUNTIF($B$3:B54,B54) -> 11027 | B54: =VLOOKUP(C54,'GRUPOS VIGENTES'!$B$9:$C$115,2,FALSE) -> 1102 | C54: AGREGADOS PÉTREOS, BASES Y SUBBASES GRANULARES | D54: CICLOMAT SAS | E54: Bogotá | F54: Autopista Medellín km 1.5 vía Siberia- Bogotá D.C Entrada Parque Industrial la Florida 600 mt al sur de la calle 80 | G54: 3162630001 | H54: comercial@ciclomat.com | I54: 52 | K54: =VLOOKUP(D54,'LISTA TOTAL PROVEEDORES 2019-I'!$D$3:$H$5594,2,FALSE) ->  | M54: 1
A55: =+B55&COUNTIF($B$3:B55,B55) -> 11028 | B55: =VLOOKUP(C55,'GRUPOS VIGENTES'!$B$9:$C$115,2,FALSE) -> 1102 | C55: AGREGADOS PÉTREOS, BASES Y SUBBASES GRANULARES | D55: CONSTRITURAR SAS | E55: Bogotá | F55: Calle 72 # 10 - 70 Torre A oficina 704 | G55: 3475257 3220462 3186129043 | H55: constriturar@constriturar.com | I55: 53 | K55: =VLOOKUP(D55,'LISTA TOTAL PROVEEDORES 2019-I'!$D$3:$H$5594,2,FALSE) ->  | M55: 1
A56: =+B56&COUNTIF($B$3:B56,B56) -> 11029 | B56: =VLOOKUP(C56,'GRUPOS VIGENTES'!$B$9:$C$115,2,FALSE) -> 1102 | C56: AGREGADOS PÉTREOS, BASES Y SUBBASES GRANULARES | D56: DOBLE A INGENIERIA S.A. | E56: =VLOOKUP(D56,'LISTA TOTAL PROVEEDORES 2019-I'!$D$3:$H$5594,2,FALSE) -> Bogota | F56: =VLOOKUP(D56,'LISTA TOTAL PROVEEDORES 2019-I'!$D$3:$H$5594,3,FALSE) -> Calle 79 B 8 11 Piso 3 | G56: =VLOOKUP(D56,'LISTA TOTAL PROVEEDORES 2019-I'!$D$3:$H$5594,4,FALSE) -> 2101700 | H56: =VLOOKUP(D56,'LISTA TOTAL PROVEEDORES 2019-I'!$D$3:$H$5594,5,FALSE) -> cpinilla@da-ing.com gerencia@dobleaingenieria.com | I56: 54 | K56: =VLOOKUP(D56,'LISTA TOTAL PROVEEDORES 2019-I'!$D$3:$H$5594,2,FALSE) -> Bogota | M56: Bogota
A57: =+B57&COUNTIF($B$3:B57,B57) -> 110210 | B57: =VLOOKUP(C57,'GRUPOS VIGENTES'!$B$9:$C$115,2,FALSE) -> 1102 | C57: AGREGADOS PÉTREOS, BASES Y SUBBASES GRANULARES | D57: DROMOS PAVIMENTOS S.A. | E57: =VLOOKUP(D57,'LISTA TOTAL PROVEEDORES 2019-I'!$D$3:$H$5594,2,FALSE) -> Mosquera/Cundinamarca | F57: =VLOOKUP(D57,'LISTA TOTAL PROVEEDORES 2019-I'!$D$3:$H$5594,3,FALSE) -> Km 3.8 Zona Industrial Balsillas | G57: =VLOOKUP(D57,'LISTA TOTAL PROVEEDORES 2019-I'!$D$3:$H$5594,4,FALSE) -> 7425376 | H57: =VLOOKUP(D57,'LISTA TOTAL PROVEEDORES 2019-I'!$D$3:$H$5594,5,FALSE) -> atencion@dromos.co | I57: 55 | K57: =VLOOKUP(D57,'LISTA TOTAL PROVEEDORES 2019-I'!$D$3:$H$5594,2,FALSE) -> Mosquera/Cundinamarca | M57: Mosquera/Cundinamarca
A58: =+B58&COUNTIF($B$3:B58,B58) -> 110211 | B58: =VLOOKUP(C58,'GRUPOS VIGENTES'!$B$9:$C$115,2,FALSE) -> 1102 | C58: AGREGADOS PÉTREOS, BASES Y SUBBASES GRANULARES | D58: FANNY I. TEQUIA Y CIA SAS | E58: =VLOOKUP(D58,'LISTA TOTAL PROVEEDORES 2019-I'!$D$3:$H$5594,2,FALSE) -> Soacha - Cund. | F58: =VLOOKUP(D58,'LISTA TOTAL PROVEEDORES 2019-I'!$D$3:$H$5594,3,FALSE) -> Cra. 6 15 38 | G58: =VLOOKUP(D58,'LISTA TOTAL PROVEEDORES 2019-I'!$D$3:$H$5594,4,FALSE) -> 7814130 | H58: =VLOOKUP(D58,'LISTA TOTAL PROVEEDORES 2019-I'!$D$3:$H$5594,5,FALSE) -> contacto@tequiaycia.com | I58: 56 | K58: =VLOOKUP(D58,'LISTA TOTAL PROVEEDORES 2019-I'!$D$3:$H$5594,2,FALSE) -> Soacha - Cund. | M58: Soacha - Cund.
A59: =+B59&COUNTIF($B$3:B59,B59) -> 110212 | B59: =VLOOKUP(C59,'GRUPOS VIGENTES'!$B$9:$C$115,2,FALSE) -> 1102 | C59: AGREGADOS PÉTREOS, BASES Y SUBBASES GRANULARES | D59: GRAVILLERA ALBANIA S.A. | E59: =VLOOKUP(D59,'LISTA TOTAL PROVEEDORES 2019-I'!$D$3:$H$5594,2,FALSE) -> Chia - Cund. | F59: =VLOOKUP(D59,'LISTA TOTAL PROVEEDORES 2019-I'!$D$3:$H$5594,3,FALSE) -> Carretera Central Del Norte Km 19 | G59: =VLOOKUP(D59,'LISTA TOTAL PROVEEDORES 2019-I'!$D$3:$H$5594,4,FALSE) -> 6760212 3102849530 | H59: =VLOOKUP(D59,'LISTA TOTAL PROVEEDORES 2019-I'!$D$3:$H$5594,5,FALSE) -> administracion@gravilleraalbania.com | I59: 57 | K59: =VLOOKUP(D59,'LISTA TOTAL PROVEEDORES 2019-I'!$D$3:$H$5594,2,FALSE) -> Chia - Cund. | M59: Chia - Cund.
A60: =+B60&COUNTIF($B$3:B60,B60) -> 110213 | B60: =VLOOKUP(C60,'GRUPOS VIGENTES'!$B$9:$C$115,2,FALSE) -> 1102 | C60: AGREGADOS PÉTREOS, BASES Y SUBBASES GRANULARES | D60: GRECO | E60: =VLOOKUP(D60,'LISTA TOTAL PROVEEDORES 2019-I'!$D$3:$H$5594,2,FALSE) -> Cota - Cund. | F60: =VLOOKUP(D60,'LISTA TOTAL PROVEEDORES 2019-I'!$D$3:$H$5594,3,FALSE) -> KM 1.5 Puente de Madera Autopista Medellín, Municipio de Cota - Vereda Siberia | G60: =VLOOKUP(D60,'LISTA TOTAL PROVEEDORES 2019-I'!$D$3:$H$5594,4,FALSE) -> 304 6383774 301 3363867 315 8729749 | H60: =VLOOKUP(D60,'LISTA TOTAL PROVEEDORES 2019-I'!$D$3:$H$5594,5,FALSE) -> dircomercial@recicladosgreco.com | I60: 58 | K60: =VLOOKUP(D60,'LISTA TOTAL PROVEEDORES 2019-I'!$D$3:$H$5594,2,FALSE) -> Cota - Cund. | M60: Cota - Cund.
A61: =+B61&COUNTIF($B$3:B61,B61) -> 110214 | B61: =VLOOKUP(C61,'GRUPOS VIGENTES'!$B$9:$C$115,2,FALSE) -> 1102 | C61: AGREGADOS PÉTREOS, BASES Y SUBBASES GRANULARES | D61: INCOMINERIA S.A.S. | E61: =VLOOKUP(D61,'LISTA TOTAL PROVEEDORES 2019-I'!$D$3:$H$5594,2,FALSE) -> Mosquera - Cund. | F61: =VLOOKUP(D61,'LISTA TOTAL PROVEEDORES 2019-I'!$D$3:$H$5594,3,FALSE) -> Km 3.8 Zona Industrial Balsillas | G61: =VLOOKUP(D61,'LISTA TOTAL PROVEEDORES 2019-I'!$D$3:$H$5594,4,FALSE) -> 3187759539 | H61: =VLOOKUP(D61,'LISTA TOTAL PROVEEDORES 2019-I'!$D$3:$H$5594,5,FALSE) -> ventas@incomineria.co wendy.chaves@incomineria.co | I61: 59 | K61: =VLOOKUP(D61,'LISTA TOTAL PROVEEDORES 2019-I'!$D$3:$H$5594,2,FALSE) -> Mosquera - Cund. | M61: Mosquera - Cund.
A62: =+B62&COUNTIF($B$3:B62,B62) -> 110215 | B62: =VLOOKUP(C62,'GRUPOS VIGENTES'!$B$9:$C$115,2,FALSE) -> 1102 | C62: AGREGADOS PÉTREOS, BASES Y SUBBASES GRANULARES | D62: INGENIEROS GF SAS | E62: =VLOOKUP(D62,'LISTA TOTAL PROVEEDORES 2019-I'!$D$3:$H$5594,2,FALSE) -> Bogota | F62: =VLOOKUP(D62,'LISTA TOTAL PROVEEDORES 2019-I'!$D$3:$H$5594,3,FALSE) -> Calle 119 14 A 26 Of. 101 - 401 | G62: =VLOOKUP(D62,'LISTA TOTAL PROVEEDORES 2019-I'!$D$3:$H$5594,4,FALSE) -> 6295142 6295120 | H62: =VLOOKUP(D62,'LISTA TOTAL PROVEEDORES 2019-I'!$D$3:$H$5594,5,FALSE) -> info@ingenierosgf.com.co pupilojas@hotmail.com | I62: 60 | K62: =VLOOKUP(D62,'LISTA TOTAL PROVEEDORES 2019-I'!$D$3:$H$5594,2,FALSE) -> Bogota | M62: Bogota
A63: =+B63&COUNTIF($B$3:B63,B63) -> 110216 | B63: =VLOOKUP(C63,'GRUPOS VIGENTES'!$B$9:$C$115,2,FALSE) -> 1102 | C63: AGREGADOS PÉTREOS, BASES Y SUBBASES GRANULARES | D63: INVERSIONES MONDOÑEDO SAS | E63: Bogotá | F63: TRANSVERSAL 3 51 A 09 | G63: 3403187 | H63: -- | I63: 61 | K63: =VLOOKUP(D63,'LISTA TOTAL PROVEEDORES 2019-I'!$D$3:$H$5594,2,FALSE) ->  | M63: 1
A64: =+B64&COUNTIF($B$3:B64,B64) -> 110217 | B64: =VLOOKUP(C64,'GRUPOS VIGENTES'!$B$9:$C$115,2,FALSE) -> 1102 | C64: AGREGADOS PÉTREOS, BASES Y SUBBASES GRANULARES | D64: MINERALES & TRITURADOS NACIONALES S.A.S | E64: =VLOOKUP(D64,'LISTA TOTAL PROVEEDORES 2019-I'!$D$3:$H$5594,2,FALSE) -> Mosquera - Cund. | F64: =VLOOKUP(D64,'LISTA TOTAL PROVEEDORES 2019-I'!$D$3:$H$5594,3,FALSE) -> Parque Industrial San Jorge - Of 235 | G64: =VLOOKUP(D64,'LISTA TOTAL PROVEEDORES 2019-I'!$D$3:$H$5594,4,FALSE) -> 304 379 0037 8933740 | H64: =VLOOKUP(D64,'LISTA TOTAL PROVEEDORES 2019-I'!$D$3:$H$5594,5,FALSE) -> mintrinal@gmail.com | I64: 62 | K64: =VLOOKUP(D64,'LISTA TOTAL PROVEEDORES 2019-I'!$D$3:$H$5594,2,FALSE) -> Mosquera - Cund. | M64: Mosquera - Cund.
A65: =+B65&COUNTIF($B$3:B65,B65) -> 110218 | B65: =VLOOKUP(C65,'GRUPOS VIGENTES'!$B$9:$C$115,2,FALSE) -> 1102 | C65: AGREGADOS PÉTREOS, BASES Y SUBBASES GRANULARES | D65: PAVIOBRAS SAS | E65: =VLOOKUP(D65,'LISTA TOTAL PROVEEDORES 2019-I'!$D$3:$H$5594,2,FALSE) -> Bogotá | F65: =VLOOKUP(D65,'LISTA TOTAL PROVEEDORES 2019-I'!$D$3:$H$5594,3,FALSE) -> Avenida 15 No. 119A-03 Of. 325 | G65: =VLOOKUP(D65,'LISTA TOTAL PROVEEDORES 2019-I'!$D$3:$H$5594,4,FALSE) -> 2 15 50 67 | H65: =VLOOKUP(D65,'LISTA TOTAL PROVEEDORES 2019-I'!$D$3:$H$5594,5,FALSE) -> ltdapaviobras@gmail.com | I65: 63 | K65: =VLOOKUP(D65,'LISTA TOTAL PROVEEDORES 2019-I'!$D$3:$H$5594,2,FALSE) -> Bogotá | M65: Bogotá
A66: =+B66&COUNTIF($B$3:B66,B66) -> 110219 | B66: =VLOOKUP(C66,'GRUPOS VIGENTES'!$B$9:$C$115,2,FALSE) -> 1102 | C66: AGREGADOS PÉTREOS, BASES Y SUBBASES GRANULARES | D66: RCD TRANSFORMACIÓN NATURAL SAS | E66: Mosquera | F66: Predio "Vista Hermosa" en la Vereda Balsillas | G66: 3187509487 | H66: comercial@rcdtransformacion.com | I66: 64 | K66: =VLOOKUP(D66,'LISTA TOTAL PROVEEDORES 2019-I'!$D$3:$H$5594,2,FALSE) ->  | M66: 1
A67: =+B67&COUNTIF($B$3:B67,B67) -> 110220 | B67: =VLOOKUP(C67,'GRUPOS VIGENTES'!$B$9:$C$115,2,FALSE) -> 1102 | C67: AGREGADOS PÉTREOS, BASES Y SUBBASES GRANULARES | D67: RECICLADOS INDUSTRIALES DE COLOMBIA | E67: =VLOOKUP(D67,'LISTA TOTAL PROVEEDORES 2019-I'!$D$3:$H$5594,2,FALSE) -> Cota - Cund. | F67: =VLOOKUP(D67,'LISTA TOTAL PROVEEDORES 2019-I'!$D$3:$H$5594,3,FALSE) -> Km 1.5 Costado Sur Vía Bogotá Siberia Cota | G67: =VLOOKUP(D67,'LISTA TOTAL PROVEEDORES 2019-I'!$D$3:$H$5594,4,FALSE) -> 8966879 8759047 3114926299 | H67: =VLOOKUP(D67,'LISTA TOTAL PROVEEDORES 2019-I'!$D$3:$H$5594,5,FALSE) -> info@recicladosindustriales.co | I67: 65 | K67: =VLOOKUP(D67,'LISTA TOTAL PROVEEDORES 2019-I'!$D$3:$H$5594,2,FALSE) -> Cota - Cund. | M67: Cota - Cund.
A68: =+B68&COUNTIF($B$3:B68,B68) -> 110221 | B68: =VLOOKUP(C68,'GRUPOS VIGENTES'!$B$9:$C$115,2,FALSE) -> 1102 | C68: AGREGADOS PÉTREOS, BASES Y SUBBASES GRANULARES | D68: REX INGENIERIA S.A. | E68: =VLOOKUP(D68,'LISTA TOTAL PROVEEDORES 2019-I'!$D$3:$H$5594,2,FALSE) -> Bogota | F68: =VLOOKUP(D68,'LISTA TOTAL PROVEEDORES 2019-I'!$D$3:$H$5594,3,FALSE) -> Cra. 6 153 A 60 | G68: =VLOOKUP(D68,'LISTA TOTAL PROVEEDORES 2019-I'!$D$3:$H$5594,4,FALSE) -> 3378726 3378728 3107694302 | H68: =VLOOKUP(D68,'LISTA TOTAL PROVEEDORES 2019-I'!$D$3:$H$5594,5,FALSE) -> atencionalcliente@rexingenieria.com | I68: 66 | K68: =VLOOKUP(D68,'LISTA TOTAL PROVEEDORES 2019-I'!$D$3:$H$5594,2,FALSE) -> Bogota | M68: =IFERROR(K68,1) -> Bogota
A69: =+B69&COUNTIF($B$3:B69,B69) -> 110222 | B69: =VLOOKUP(C69,'GRUPOS VIGENTES'!$B$9:$C$115,2,FALSE) -> 1102 | C69: AGREGADOS PÉTREOS, BASES Y SUBBASES GRANULARES | D69: TS INGENIERIA Y CIA | E69: Girardot | F69: Km 14 Vereda los cabos sector pacolí / Via Girardot | G69: 320 304 3382 313 207 2773 | H69: gerencia@tsingenieria.com.co | I69: =+I68+1 -> 67 | K69: =VLOOKUP(D69,'LISTA TOTAL PROVEEDORES 2019-I'!$D$3:$H$5594,2,FALSE) ->  | M69: 1
A70: =+B70&COUNTIF($B$3:B70,B70) -> 11471 | B70: =VLOOKUP(C70,'GRUPOS VIGENTES'!$B$9:$C$115,2,FALSE) -> 1147 | C70: ARBOLES-GRAMAS-VEGETACIÓN Y PLANTACIÓN PAISAJÍSTIC | D70: ACONSTRUCTORAS.COM | E70: =VLOOKUP(D70,'LISTA TOTAL PROVEEDORES 2019-I'!$D$3:$H$5594,2,FALSE) -> Yopal - Casanare | F70: =VLOOKUP(D70,'LISTA TOTAL PROVEEDORES 2019-I'!$D$3:$H$5594,3,FALSE) -> Calle 25 15 19 | G70: =VLOOKUP(D70,'LISTA TOTAL PROVEEDORES 2019-I'!$D$3:$H$5594,4,FALSE) -> 3005541747 3163971751 | H70: =VLOOKUP(D70,'LISTA TOTAL PROVEEDORES 2019-I'!$D$3:$H$5594,5,FALSE) -> www.aconstructoras.com | I70: 68 | K70: =VLOOKUP(D70,'LISTA TOTAL PROVEEDORES 2019-I'!$D$3:$H$5594,2,FALSE) -> Yopal - Casanare | M70: =IFERROR(K70,1) -> Yopal - Casanare
A71: =+B71&COUNTIF($B$3:B71,B71) -> 11472 | B71: =VLOOKUP(C71,'GRUPOS VIGENTES'!$B$9:$C$115,2,FALSE) -> 1147 | C71: ARBOLES-GRAMAS-VEGETACIÓN Y PLANTACIÓN PAISAJÍSTIC | D71: ECOPRADOS SOLUCIONES AMBIENTALES | E71: =VLOOKUP(D71,'LISTA TOTAL PROVEEDORES 2019-I'!$D$3:$H$5594,2,FALSE) -> Bogotá | F71: =VLOOKUP(D71,'LISTA TOTAL PROVEEDORES 2019-I'!$D$3:$H$5594,3,FALSE) -> -- | G71: =VLOOKUP(D71,'LISTA TOTAL PROVEEDORES 2019-I'!$D$3:$H$5594,4,FALSE) -> 3118137222 3193922421 | H71: =VLOOKUP(D71,'LISTA TOTAL PROVEEDORES 2019-I'!$D$3:$H$5594,5,FALSE) -> ecopradosambientales@gmail.com nancyemv2017@hotmail.com | I71: 69 | K71: =VLOOKUP(D71,'LISTA TOTAL PROVEEDORES 2019-I'!$D$3:$H$5594,2,FALSE) -> Bogotá | M71: Bogotá
A72: =+B72&COUNTIF($B$3:B72,B72) -> 11473 | B72: =VLOOKUP(C72,'GRUPOS VIGENTES'!$B$9:$C$115,2,FALSE) -> 1147 | C72: ARBOLES-GRAMAS-VEGETACIÓN Y PLANTACIÓN PAISAJÍSTIC | D72: PLANTICENTER | E72: Bogotá | F72: Calle 127 # 46 - 11 | G72: 467 6054 318 207 3895 3202106417 | H72: planticenter@hotmail.com | I72: 70 | K72: =VLOOKUP(D72,'LISTA TOTAL PROVEEDORES 2019-I'!$D$3:$H$5594,2,FALSE) ->  | M72: 1
A73: =+B73&COUNTIF($B$3:B73,B73) -> 11271 | B73: =VLOOKUP(C73,'GRUPOS VIGENTES'!$B$9:$C$115,2,FALSE) -> 1127 | C73: BORDILLOS Y LOSETAS | D73: ALFAGRES S.A. | E73: =VLOOKUP(D73,'LISTA TOTAL PROVEEDORES 2019-I'!$D$3:$H$5594,2,FALSE) -> Bogota | F73: =VLOOKUP(D73,'LISTA TOTAL PROVEEDORES 2019-I'!$D$3:$H$5594,3,FALSE) -> Avda. Caracas 35 55 | G73: =VLOOKUP(D73,'LISTA TOTAL PROVEEDORES 2019-I'!$D$3:$H$5594,4,FALSE) -> 3311515 | H73: =VLOOKUP(D73,'LISTA TOTAL PROVEEDORES 2019-I'!$D$3:$H$5594,5,FALSE) -> telemercadeo@alfa.com.co servicioalcliente@alfa.com.co | I73: 71 | K73: =VLOOKUP(D73,'LISTA TOTAL PROVEEDORES 2019-I'!$D$3:$H$5594,2,FALSE) -> Bogota | M73: Bogota
A74: =+B74&COUNTIF($B$3:B74,B74) -> 11272 | B74: =VLOOKUP(C74,'GRUPOS VIGENTES'!$B$9:$C$115,2,FALSE) -> 1127 | C74: BORDILLOS Y LOSETAS | D74: ARKA | E74: Bogotá | F74: Calle 65 sur No 77 m -04 Torre 2 Of. 202 Bosa Estación | G74: 476 86 77 315 613 6471 318 879 8278 | H74: ventas@arkaprefabricados.com | I74: 72 | K74: =VLOOKUP(D74,'LISTA TOTAL PROVEEDORES 2019-I'!$D$3:$H$5594,2,FALSE) ->  | M74: 1
A75: =+B75&COUNTIF($B$3:B75,B75) -> 11273 | B75: =VLOOKUP(C75,'GRUPOS VIGENTES'!$B$9:$C$115,2,FALSE) -> 1127 | C75: BORDILLOS Y LOSETAS | D75: EL CONDOR PREFABRICADOS | E75: =VLOOKUP(D75,'LISTA TOTAL PROVEEDORES 2019-I'!$D$3:$H$5594,2,FALSE) -> Soacha - Cund. | F75: =VLOOKUP(D75,'LISTA TOTAL PROVEEDORES 2019-I'!$D$3:$H$5594,3,FALSE) -> Km 2 Via Fusunga vereda Panama | G75: =VLOOKUP(D75,'LISTA TOTAL PROVEEDORES 2019-I'!$D$3:$H$5594,4,FALSE) -> 3134230803 7218612 | H75: =VLOOKUP(D75,'LISTA TOTAL PROVEEDORES 2019-I'!$D$3:$H$5594,5,FALSE) -> info@elcondorprefabricados.com | I75: 73 | K75: =VLOOKUP(D75,'LISTA TOTAL PROVEEDORES 2019-I'!$D$3:$H$5594,2,FALSE) -> Soacha - Cund. | M75: Soacha - Cund.
A76: =+B76&COUNTIF($B$3:B76,B76) -> 11274 | B76: =VLOOKUP(C76,'GRUPOS VIGENTES'!$B$9:$C$115,2,FALSE) -> 1127 | C76: BORDILLOS Y LOSETAS | D76: HOMECENTER | E76: =VLOOKUP(D76,'LISTA TOTAL PROVEEDORES 2019-I'!$D$3:$H$5594,2,FALSE) -> Bogota | F76: =VLOOKUP(D76,'LISTA TOTAL PROVEEDORES 2019-I'!$D$3:$H$5594,3,FALSE) -> Avda. 68 37 37 Sur | G76: =VLOOKUP(D76,'LISTA TOTAL PROVEEDORES 2019-I'!$D$3:$H$5594,4,FALSE) -> 3077115 | H76: =VLOOKUP(D76,'LISTA TOTAL PROVEEDORES 2019-I'!$D$3:$H$5594,5,FALSE) -> www.homecenter.com.co | I76: 74 | K76: =VLOOKUP(D76,'LISTA TOTAL PROVEEDORES 2019-I'!$D$3:$H$5594,2,FALSE) -> Bogota | M76: Bogota
A77: =+B77&COUNTIF($B$3:B77,B77) -> 11275 | B77: =VLOOKUP(C77,'GRUPOS VIGENTES'!$B$9:$C$115,2,FALSE) -> 1127 | C77: BORDILLOS Y LOSETAS | D77: INSUMOBRAS LTDA | E77: =VLOOKUP(D77,'LISTA TOTAL PROVEEDORES 2019-I'!$D$3:$H$5594,2,FALSE) -> Bogota | F77: =VLOOKUP(D77,'LISTA TOTAL PROVEEDORES 2019-I'!$D$3:$H$5594,3,FALSE) -> Autopista Medellin Km 14 Puente Piedra | G77: =VLOOKUP(D77,'LISTA TOTAL PROVEEDORES 2019-I'!$D$3:$H$5594,4,FALSE) -> 3108196349 | H77: =VLOOKUP(D77,'LISTA TOTAL PROVEEDORES 2019-I'!$D$3:$H$5594,5,FALSE) -> insumobrasltda@hotmail.com invaye@hotmail.com | I77: 75 | K77: =VLOOKUP(D77,'LISTA TOTAL PROVEEDORES 2019-I'!$D$3:$H$5594,2,FALSE) -> Bogota | M77: Bogota
A78: =+B78&COUNTIF($B$3:B78,B78) -> 11276 | B78: =VLOOKUP(C78,'GRUPOS VIGENTES'!$B$9:$C$115,2,FALSE) -> 1127 | C78: BORDILLOS Y LOSETAS | D78: KREATO SOLUCIONES CREATIVAS EN CONCRETO S.A. KREAT | E78: =VLOOKUP(D78,'LISTA TOTAL PROVEEDORES 2019-I'!$D$3:$H$5594,2,FALSE) -> Bogota | F78: =VLOOKUP(D78,'LISTA TOTAL PROVEEDORES 2019-I'!$D$3:$H$5594,3,FALSE) -> Calle 85 A 21 56 | G78: =VLOOKUP(D78,'LISTA TOTAL PROVEEDORES 2019-I'!$D$3:$H$5594,4,FALSE) -> 6109114 | H78: =VLOOKUP(D78,'LISTA TOTAL PROVEEDORES 2019-I'!$D$3:$H$5594,5,FALSE) -> acastellanos@kreato.com.co agranados@kreato.com.co fsolano@kreato.com.co | I78: 76 | K78: =VLOOKUP(D78,'LISTA TOTAL PROVEEDORES 2019-I'!$D$3:$H$5594,2,FALSE) -> Bogota | M78: Bogota
A79: =+B79&COUNTIF($B$3:B79,B79) -> 11277 | B79: =VLOOKUP(C79,'GRUPOS VIGENTES'!$B$9:$C$115,2,FALSE) -> 1127 | C79: BORDILLOS Y LOSETAS | D79: MANUFACTURAS DE CEMENTO S.A. TITAN | E79: =VLOOKUP(D79,'LISTA TOTAL PROVEEDORES 2019-I'!$D$3:$H$5594,2,FALSE) -> Cota - Cund. | F79: =VLOOKUP(D79,'LISTA TOTAL PROVEEDORES 2019-I'!$D$3:$H$5594,3,FALSE) -> Autopista Medellin, entrada 2,4 Km al occidente del rio Bogotá | G79: =VLOOKUP(D79,'LISTA TOTAL PROVEEDORES 2019-I'!$D$3:$H$5594,4,FALSE) -> 3353550 | H79: =VLOOKUP(D79,'LISTA TOTAL PROVEEDORES 2019-I'!$D$3:$H$5594,5,FALSE) -> malvarez@titancemento.com | I79: 77 | K79: =VLOOKUP(D79,'LISTA TOTAL PROVEEDORES 2019-I'!$D$3:$H$5594,2,FALSE) -> Cota - Cund. | M79: Cota - Cund.
A80: =+B80&COUNTIF($B$3:B80,B80) -> 11278 | B80: =VLOOKUP(C80,'GRUPOS VIGENTES'!$B$9:$C$115,2,FALSE) -> 1127 | C80: BORDILLOS Y LOSETAS | D80: PLACA LISTA MODULOS PREFABRICADOS LTDA | E80: =VLOOKUP(D80,'LISTA TOTAL PROVEEDORES 2019-I'!$D$3:$H$5594,2,FALSE) -> Bogota | F80: =VLOOKUP(D80,'LISTA TOTAL PROVEEDORES 2019-I'!$D$3:$H$5594,3,FALSE) -> Calle 65 13 50 Of. 503 | G80: =VLOOKUP(D80,'LISTA TOTAL PROVEEDORES 2019-I'!$D$3:$H$5594,4,FALSE) -> 2550490 3476569 3108173990 | H80: =VLOOKUP(D80,'LISTA TOTAL PROVEEDORES 2019-I'!$D$3:$H$5594,5,FALSE) -> placalista01@yahoo.com | I80: 78 | K80: =VLOOKUP(D80,'LISTA TOTAL PROVEEDORES 2019-I'!$D$3:$H$5594,2,FALSE) -> Bogota | M80: Bogota
A81: =+B81&COUNTIF($B$3:B81,B81) -> 11279 | B81: =VLOOKUP(C81,'GRUPOS VIGENTES'!$B$9:$C$115,2,FALSE) -> 1127 | C81: BORDILLOS Y LOSETAS | D81: POSTES MEDINA COLOMBIA | E81: =VLOOKUP(D81,'LISTA TOTAL PROVEEDORES 2019-I'!$D$3:$H$5594,2,FALSE) -> Bogotá | F81: =VLOOKUP(D81,'LISTA TOTAL PROVEEDORES 2019-I'!$D$3:$H$5594,3,FALSE) -> Avda. Cra. Séptima No. 156 - 78 Oficina 706 | G81: =VLOOKUP(D81,'LISTA TOTAL PROVEEDORES 2019-I'!$D$3:$H$5594,4,FALSE) -> 2163020 | H81: =VLOOKUP(D81,'LISTA TOTAL PROVEEDORES 2019-I'!$D$3:$H$5594,5,FALSE) -> comercial1@postesmedina.com colpostesmedina@yahoo.com postesmedinacolombia@hotmail.com | I81: 79 | K81: =VLOOKUP(D81,'LISTA TOTAL PROVEEDORES 2019-I'!$D$3:$H$5594,2,FALSE) -> Bogotá | M81: Bogotá
A82: =+B82&COUNTIF($B$3:B82,B82) -> 112710 | B82: =VLOOKUP(C82,'GRUPOS VIGENTES'!$B$9:$C$115,2,FALSE) -> 1127 | C82: BORDILLOS Y LOSETAS | D82: PREALCA SAS | E82: Soacha - Cund. | F82: Autopista sur Cra. 4 #21a-26 | G82: 320 3470096 310 3167820 | H82: -- | I82: 80 | K82: =VLOOKUP(D82,'LISTA TOTAL PROVEEDORES 2019-I'!$D$3:$H$5594,2,FALSE) ->  | M82: 1
A83: =+B83&COUNTIF($B$3:B83,B83) -> 112711 | B83: =VLOOKUP(C83,'GRUPOS VIGENTES'!$B$9:$C$115,2,FALSE) -> 1127 | C83: BORDILLOS Y LOSETAS | D83: PREFABRICADOS JOVITA CASTRO Y CIA LTDA | E83: =VLOOKUP(D83,'LISTA TOTAL PROVEEDORES 2019-I'!$D$3:$H$5594,2,FALSE) -> Bogota | F83: =VLOOKUP(D83,'LISTA TOTAL PROVEEDORES 2019-I'!$D$3:$H$5594,3,FALSE) -> Calle 57 Sur 19 B 73 | G83: =VLOOKUP(D83,'LISTA TOTAL PROVEEDORES 2019-I'!$D$3:$H$5594,4,FALSE) -> 7142887 3115947000 | H83: =VLOOKUP(D83,'LISTA TOTAL PROVEEDORES 2019-I'!$D$3:$H$5594,5,FALSE) -> jovitacastrovega@hotmail.com www.prefabricadosjovitacastro.com | I83: 81 | K83: =VLOOKUP(D83,'LISTA TOTAL PROVEEDORES 2019-I'!$D$3:$H$5594,2,FALSE) -> Bogota | M83: Bogota
A84: =+B84&COUNTIF($B$3:B84,B84) -> 112712 | B84: =VLOOKUP(C84,'GRUPOS VIGENTES'!$B$9:$C$115,2,FALSE) -> 1127 | C84: BORDILLOS Y LOSETAS | D84: PREFABRICADOS Y CONSTRUCCIONES PREFACON SAS (CONCRETARTE) | E84: Bogotá | F84: Cra 69 Q #78 - 62 | G84: 3230353 3197149307 | H84: prefabricados@concretarte.com.co | I84: 82 | K84: =VLOOKUP(D84,'LISTA TOTAL PROVEEDORES 2019-I'!$D$3:$H$5594,2,FALSE) ->  | M84: 1
A85: =+B85&COUNTIF($B$3:B85,B85) -> 11211 | B85: =VLOOKUP(C85,'GRUPOS VIGENTES'!$B$9:$C$115,2,FALSE) -> 1121 | C85: CABLES Y ACCESORIOS ELECTRICOS | D85: ACONSTRUCTORAS.COM | E85: =VLOOKUP(D85,'LISTA TOTAL PROVEEDORES 2019-I'!$D$3:$H$5594,2,FALSE) -> Yopal - Casanare | F85: =VLOOKUP(D85,'LISTA TOTAL PROVEEDORES 2019-I'!$D$3:$H$5594,3,FALSE) -> Calle 25 15 19 | G85: =VLOOKUP(D85,'LISTA TOTAL PROVEEDORES 2019-I'!$D$3:$H$5594,4,FALSE) -> 3005541747 3163971751 | H85: =VLOOKUP(D85,'LISTA TOTAL PROVEEDORES 2019-I'!$D$3:$H$5594,5,FALSE) -> www.aconstructoras.com | I85: 83 | K85: =VLOOKUP(D85,'LISTA TOTAL PROVEEDORES 2019-I'!$D$3:$H$5594,2,FALSE) -> Yopal - Casanare | M85: Yopal - Casanare
A86: =+B86&COUNTIF($B$3:B86,B86) -> 11212 | B86: =VLOOKUP(C86,'GRUPOS VIGENTES'!$B$9:$C$115,2,FALSE) -> 1121 | C86: CABLES Y ACCESORIOS ELECTRICOS | D86: BIGTRONICA | E86: Medellín - Antioquia | F86: Carrera 53 # 50 - 51 Local 212H C.C. La Cascada | G86: 5113403 3156435352 | H86: ventas@bigtronica.com | I86: 84 | K86: =VLOOKUP(D86,'LISTA TOTAL PROVEEDORES 2019-I'!$D$3:$H$5594,2,FALSE) ->  | M86: 1
A87: =+B87&COUNTIF($B$3:B87,B87) -> 11213 | B87: =VLOOKUP(C87,'GRUPOS VIGENTES'!$B$9:$C$115,2,FALSE) -> 1121 | C87: CABLES Y ACCESORIOS ELECTRICOS | D87: BORNA | E87: Bogotá | F87: CARRERA 24 8-51 BOGOTA | G87: 383 7610 | H87: www.borna-store.com servicioalcliente@bornas.info | I87: 85 | K87: =VLOOKUP(D87,'LISTA TOTAL PROVEEDORES 2019-I'!$D$3:$H$5594,2,FALSE) ->  | M87: 1
A88: =+B88&COUNTIF($B$3:B88,B88) -> 11214 | B88: =VLOOKUP(C88,'GRUPOS VIGENTES'!$B$9:$C$115,2,FALSE) -> 1121 | C88: CABLES Y ACCESORIOS ELECTRICOS | D88: CARULLA | E88: Bogotá | F88: Cl. 85 #No. 15 -29 | G88: 7455777 | H88: servicio-al-cliente-carulla@clientesexito.com | I88: 86 | K88: =VLOOKUP(D88,'LISTA TOTAL PROVEEDORES 2019-I'!$D$3:$H$5594,2,FALSE) ->  | M88: 1
A89: =+B89&COUNTIF($B$3:B89,B89) -> 11215 | B89: =VLOOKUP(C89,'GRUPOS VIGENTES'!$B$9:$C$115,2,FALSE) -> 1121 | C89: CABLES Y ACCESORIOS ELECTRICOS | D89: CENTELSA | E89: =VLOOKUP(D89,'LISTA TOTAL PROVEEDORES 2019-I'!$D$3:$H$5594,2,FALSE) -> Bogota | F89: =VLOOKUP(D89,'LISTA TOTAL PROVEEDORES 2019-I'!$D$3:$H$5594,3,FALSE) -> Avda. Calle 26 68 C 61 Of. 717 | G89: =VLOOKUP(D89,'LISTA TOTAL PROVEEDORES 2019-I'!$D$3:$H$5594,4,FALSE) -> 3166931865 3154334617 3154332661 | H89: =VLOOKUP(D89,'LISTA TOTAL PROVEEDORES 2019-I'!$D$3:$H$5594,5,FALSE) -> armando.penaranda@centelsa.com.co david.uribe@centelsa.com.co luisf.escobar@centelsa.com.co | I89: 87 | K89: =VLOOKUP(D89,'LISTA TOTAL PROVEEDORES 2019-I'!$D$3:$H$5594,2,FALSE) -> Bogota | M89: Bogota
A90: =+B90&COUNTIF($B$3:B90,B90) -> 11216 | B90: =VLOOKUP(C90,'GRUPOS VIGENTES'!$B$9:$C$115,2,FALSE) -> 1121 | C90: CABLES Y ACCESORIOS ELECTRICOS | D90: CINELECO.COM | E90: Bogotá | F90: Calle 14 No 12 - 65 Local 129 | G90: 5082212 313 853 8792 | H90: servicioalcliente@cineleco.com | I90: 88 | K90: =VLOOKUP(D90,'LISTA TOTAL PROVEEDORES 2019-I'!$D$3:$H$5594,2,FALSE) ->  | M90: 1
A91: =+B91&COUNTIF($B$3:B91,B91) -> 11217 | B91: =VLOOKUP(C91,'GRUPOS VIGENTES'!$B$9:$C$115,2,FALSE) -> 1121 | C91: CABLES Y ACCESORIOS ELECTRICOS | D91: COPCO INGENIERIA | E91: Bucaramanga | F91: Calle 21 # 21-20 - San Francisco | G91: 6343555 3163803545 | H91: contacto@copcoingenieria.com | I91: 89 | K91: =VLOOKUP(D91,'LISTA TOTAL PROVEEDORES 2019-I'!$D$3:$H$5594,2,FALSE) ->  | M91: 1
A92: =+B92&COUNTIF($B$3:B92,B92) -> 11218 | B92: =VLOOKUP(C92,'GRUPOS VIGENTES'!$B$9:$C$115,2,FALSE) -> 1121 | C92: CABLES Y ACCESORIOS ELECTRICOS | D92: CU CONECTORES | E92: =VLOOKUP(D92,'LISTA TOTAL PROVEEDORES 2019-I'!$D$3:$H$5594,2,FALSE) -> Funza - Cundinamarca | F92: =VLOOKUP(D92,'LISTA TOTAL PROVEEDORES 2019-I'!$D$3:$H$5594,3,FALSE) -> Km 7 vía Bogotá - Medellín Complejo Industrial Celta Trade Park, Bodega 152-3 | G92: =VLOOKUP(D92,'LISTA TOTAL PROVEEDORES 2019-I'!$D$3:$H$5594,4,FALSE) -> 8966535 Ext. 400 | H92: =VLOOKUP(D92,'LISTA TOTAL PROVEEDORES 2019-I'!$D$3:$H$5594,5,FALSE) -> comercial@cuconectores.com.co | I92: 90 | K92: =VLOOKUP(D92,'LISTA TOTAL PROVEEDORES 2019-I'!$D$3:$H$5594,2,FALSE) -> Funza - Cundinamarca | M92: Funza - Cundinamarca
A93: =+B93&COUNTIF($B$3:B93,B93) -> 11219 | B93: =VLOOKUP(C93,'GRUPOS VIGENTES'!$B$9:$C$115,2,FALSE) -> 1121 | C93: CABLES Y ACCESORIOS ELECTRICOS | D93: DISTRIBUIDORA EYCOS | E93: Bogotá | F93: Cra 12 No. 16-82 | G93: 2 86 66 00 | H93: ventas@eycos.com.co servicioalcliente@eycos.com.co | I93: 91 | K93: =VLOOKUP(D93,'LISTA TOTAL PROVEEDORES 2019-I'!$D$3:$H$5594,2,FALSE) ->  | M93: 1
A94: =+B94&COUNTIF($B$3:B94,B94) -> 112110 | B94: =VLOOKUP(C94,'GRUPOS VIGENTES'!$B$9:$C$115,2,FALSE) -> 1121 | C94: CABLES Y ACCESORIOS ELECTRICOS | D94: DYCON MATERIALES ELÉCTRICOS | E94: =VLOOKUP(D94,'LISTA TOTAL PROVEEDORES 2019-I'!$D$3:$H$5594,2,FALSE) -> Neiva - Huila | F94: =VLOOKUP(D94,'LISTA TOTAL PROVEEDORES 2019-I'!$D$3:$H$5594,3,FALSE) -> Calle 22 #1h-38, Rojas Trujillo | G94: =VLOOKUP(D94,'LISTA TOTAL PROVEEDORES 2019-I'!$D$3:$H$5594,4,FALSE) -> 8750577 | H94: =VLOOKUP(D94,'LISTA TOTAL PROVEEDORES 2019-I'!$D$3:$H$5594,5,FALSE) -> -- | I94: 92 | K94: =VLOOKUP(D94,'LISTA TOTAL PROVEEDORES 2019-I'!$D$3:$H$5594,2,FALSE) -> Neiva - Huila | M94: Neiva - Huila
A95: =+B95&COUNTIF($B$3:B95,B95) -> 112111 | B95: =VLOOKUP(C95,'GRUPOS VIGENTES'!$B$9:$C$115,2,FALSE) -> 1121 | C95: CABLES Y ACCESORIOS ELECTRICOS | D95: EASY | E95: =VLOOKUP(D95,'LISTA TOTAL PROVEEDORES 2019-I'!$D$3:$H$5594,2,FALSE) -> Bogota | F95: =VLOOKUP(D95,'LISTA TOTAL PROVEEDORES 2019-I'!$D$3:$H$5594,3,FALSE) -> Avda. Americas 68 94 | G95: =VLOOKUP(D95,'LISTA TOTAL PROVEEDORES 2019-I'!$D$3:$H$5594,4,FALSE) -> 4191400 | H95: =VLOOKUP(D95,'LISTA TOTAL PROVEEDORES 2019-I'!$D$3:$H$5594,5,FALSE) -> www.easy.com.co | I95: 93 | K95: =VLOOKUP(D95,'LISTA TOTAL PROVEEDORES 2019-I'!$D$3:$H$5594,2,FALSE) -> Bogota | M95: Bogota
A96: =+B96&COUNTIF($B$3:B96,B96) -> 112112 | B96: =VLOOKUP(C96,'GRUPOS VIGENTES'!$B$9:$C$115,2,FALSE) -> 1121 | C96: CABLES Y ACCESORIOS ELECTRICOS | D96: EDELCO | E96: =VLOOKUP(D96,'LISTA TOTAL PROVEEDORES 2019-I'!$D$3:$H$5594,2,FALSE) -> Bogotá | F96: =VLOOKUP(D96,'LISTA TOTAL PROVEEDORES 2019-I'!$D$3:$H$5594,3,FALSE) -> Calle 68 # 14A 64 Chapinero | G96: =VLOOKUP(D96,'LISTA TOTAL PROVEEDORES 2019-I'!$D$3:$H$5594,4,FALSE) -> 606 77 77 Ext 18 318 383 51 33 316 390 95 01 | H96: =VLOOKUP(D96,'LISTA TOTAL PROVEEDORES 2019-I'!$D$3:$H$5594,5,FALSE) -> asistentecomercialbogota@edelco.co ccomercialbogota@edelco.co servicioalcliente@edelco.co | I96: 94 | K96: =VLOOKUP(D96,'LISTA TOTAL PROVEEDORES 2019-I'!$D$3:$H$5594,2,FALSE) -> Bogotá | M96: Bogotá
A97: =+B97&COUNTIF($B$3:B97,B97) -> 112113 | B97: =VLOOKUP(C97,'GRUPOS VIGENTES'!$B$9:$C$115,2,FALSE) -> 1121 | C97: CABLES Y ACCESORIOS ELECTRICOS | D97: FERRETERÍA SAMIR | E97: =VLOOKUP(D97,'LISTA TOTAL PROVEEDORES 2019-I'!$D$3:$H$5594,2,FALSE) -> Barranquilla - Atlantico | F97: =VLOOKUP(D97,'LISTA TOTAL PROVEEDORES 2019-I'!$D$3:$H$5594,3,FALSE) -> Calle 35 #38 -43 | G97: =VLOOKUP(D97,'LISTA TOTAL PROVEEDORES 2019-I'!$D$3:$H$5594,4,FALSE) -> 318 336 4259 318 775 8062 316 341 3547 | H97: =VLOOKUP(D97,'LISTA TOTAL PROVEEDORES 2019-I'!$D$3:$H$5594,5,FALSE) -> cotizaciones@ferreteriasamir.com | I97: 95 | K97: =VLOOKUP(D97,'LISTA TOTAL PROVEEDORES 2019-I'!$D$3:$H$5594,2,FALSE) -> Barranquilla - Atlantico | M97: Barranquilla - Atlantico
A98: =+B98&COUNTIF($B$3:B98,B98) -> 112114 | B98: =VLOOKUP(C98,'GRUPOS VIGENTES'!$B$9:$C$115,2,FALSE) -> 1121 | C98: CABLES Y ACCESORIOS ELECTRICOS | D98: FORMAS ELECTRICAS | E98: Bogotá | F98: Calle 16 Nro 12-42 | G98: 342 9114 | H98: -- | I98: 96 | K98: =VLOOKUP(D98,'LISTA TOTAL PROVEEDORES 2019-I'!$D$3:$H$5594,2,FALSE) ->  | M98: 1
A99: =+B99&COUNTIF($B$3:B99,B99) -> 112115 | B99: =VLOOKUP(C99,'GRUPOS VIGENTES'!$B$9:$C$115,2,FALSE) -> 1121 | C99: CABLES Y ACCESORIOS ELECTRICOS | D99: HOMECENTER | E99: =VLOOKUP(D99,'LISTA TOTAL PROVEEDORES 2019-I'!$D$3:$H$5594,2,FALSE) -> Bogota | F99: =VLOOKUP(D99,'LISTA TOTAL PROVEEDORES 2019-I'!$D$3:$H$5594,3,FALSE) -> Avda. 68 37 37 Sur | G99: =VLOOKUP(D99,'LISTA TOTAL PROVEEDORES 2019-I'!$D$3:$H$5594,4,FALSE) -> 3077115 | H99: =VLOOKUP(D99,'LISTA TOTAL PROVEEDORES 2019-I'!$D$3:$H$5594,5,FALSE) -> www.homecenter.com.co | I99: 97 | K99: =VLOOKUP(D99,'LISTA TOTAL PROVEEDORES 2019-I'!$D$3:$H$5594,2,FALSE) -> Bogota | M99: Bogota
A100: =+B100&COUNTIF($B$3:B100,B100) -> 112116 | B100: =VLOOKUP(C100,'GRUPOS VIGENTES'!$B$9:$C$115,2,FALSE) -> 1121 | C100: CABLES Y ACCESORIOS ELECTRICOS | D100: IE INTERNACIONAL DE ELÉCTRICOS | E100: =VLOOKUP(D100,'LISTA TOTAL PROVEEDORES 2019-I'!$D$3:$H$5594,2,FALSE) -> Bogotá | F100: =VLOOKUP(D100,'LISTA TOTAL PROVEEDORES 2019-I'!$D$3:$H$5594,3,FALSE) -> Cll 24 #4a-26 | G100: =VLOOKUP(D100,'LISTA TOTAL PROVEEDORES 2019-I'!$D$3:$H$5594,4,FALSE) -> 7448130 | H100: =VLOOKUP(D100,'LISTA TOTAL PROVEEDORES 2019-I'!$D$3:$H$5594,5,FALSE) -> ieportalweb@iegrupo.co | I100: 98 | K100: =VLOOKUP(D100,'LISTA TOTAL PROVEEDORES 2019-I'!$D$3:$H$5594,2,FALSE) -> Bogotá | M100: Bogotá
A101: =+B101&COUNTIF($B$3:B101,B101) -> 112117 | B101: =VLOOKUP(C101,'GRUPOS VIGENTES'!$B$9:$C$115,2,FALSE) -> 1121 | C101: CABLES Y ACCESORIOS ELECTRICOS | D101: ILUMINACIONES ELECTRICAS ILUX SAS | E101: Bogotá | F101: Calle 18 # 12-68, Centro | G101: 3214769560 2432433 2865770 | H101: ventas@iluminacioneselectricasilux.com | I101: 99 | K101: =VLOOKUP(D101,'LISTA TOTAL PROVEEDORES 2019-I'!$D$3:$H$5594,2,FALSE) ->  | M101: 1
A102: =+B102&COUNTIF($B$3:B102,B102) -> 112118 | B102: =VLOOKUP(C102,'GRUPOS VIGENTES'!$B$9:$C$115,2,FALSE) -> 1121 | C102: CABLES Y ACCESORIOS ELECTRICOS | D102: INTERELECTRICAS | E102: Bogota | F102: Cra. 12 13 46 | G102: 3360755 Ext. 1103 3106983687 | H102: servicioalcliente@ie.com.co | I102: 100 | K102: =VLOOKUP(D102,'LISTA TOTAL PROVEEDORES 2019-I'!$D$3:$H$5594,2,FALSE) -> Bogotá | M102: Bogotá
A103: =+B103&COUNTIF($B$3:B103,B103) -> 112119 | B103: =VLOOKUP(C103,'GRUPOS VIGENTES'!$B$9:$C$115,2,FALSE) -> 1121 | C103: CABLES Y ACCESORIOS ELECTRICOS | D103: JD ELECTRICOS E INDUSTRIA LTDA | E103: =VLOOKUP(D103,'LISTA TOTAL PROVEEDORES 2019-I'!$D$3:$H$5594,2,FALSE) -> Bogota | F103: =VLOOKUP(D103,'LISTA TOTAL PROVEEDORES 2019-I'!$D$3:$H$5594,3,FALSE) -> Cra. 12 15 95 | G103: =VLOOKUP(D103,'LISTA TOTAL PROVEEDORES 2019-I'!$D$3:$H$5594,4,FALSE) -> 3411060 | H103: =VLOOKUP(D103,'LISTA TOTAL PROVEEDORES 2019-I'!$D$3:$H$5594,5,FALSE) -> elianasalazar@jdelectricos.com.co | I103: 101 | K103: =VLOOKUP(D103,'LISTA TOTAL PROVEEDORES 2019-I'!$D$3:$H$5594,2,FALSE) -> Bogota | M103: Bogota
A104: =+B104&COUNTIF($B$3:B104,B104) -> 112120 | B104: =VLOOKUP(C104,'GRUPOS VIGENTES'!$B$9:$C$115,2,FALSE) -> 1121 | C104: CABLES Y ACCESORIOS ELECTRICOS | D104: LA TIENDA DEL ELECTRICO | E104: Itagüí - Antioquia | F104: Calle 46 N 50-33 | G104: 317 4272570 578 65 34 | H104: servicioalcliente@latiendadelelectrico.com | I104: 102 | K104: =VLOOKUP(D104,'LISTA TOTAL PROVEEDORES 2019-I'!$D$3:$H$5594,2,FALSE) ->  | M104: 1
A105: =+B105&COUNTIF($B$3:B105,B105) -> 112121 | B105: =VLOOKUP(C105,'GRUPOS VIGENTES'!$B$9:$C$115,2,FALSE) -> 1121 | C105: CABLES Y ACCESORIOS ELECTRICOS | D105: LINIO | E105: Bogotá | F105: Calle 99 #14-49 Piso 9 | G105: 7457888 | H105: www.linio.com.co | I105: 103 | K105: =VLOOKUP(D105,'LISTA TOTAL PROVEEDORES 2019-I'!$D$3:$H$5594,2,FALSE) ->  | M105: 1
A106: =+B106&COUNTIF($B$3:B106,B106) -> 112122 | B106: =VLOOKUP(C106,'GRUPOS VIGENTES'!$B$9:$C$115,2,FALSE) -> 1121 | C106: CABLES Y ACCESORIOS ELECTRICOS | D106: MAELECTRICOS | E106: =VLOOKUP(D106,'LISTA TOTAL PROVEEDORES 2019-I'!$D$3:$H$5594,2,FALSE) -> Bogota | F106: =VLOOKUP(D106,'LISTA TOTAL PROVEEDORES 2019-I'!$D$3:$H$5594,3,FALSE) -> Calle 17 28 A 74 | G106: =VLOOKUP(D106,'LISTA TOTAL PROVEEDORES 2019-I'!$D$3:$H$5594,4,FALSE) -> 3647373 | H106: =VLOOKUP(D106,'LISTA TOTAL PROVEEDORES 2019-I'!$D$3:$H$5594,5,FALSE) -> julian.c@maelectricos.com julian.alvarado@maelectricos.com | I106: 104 | K106: =VLOOKUP(D106,'LISTA TOTAL PROVEEDORES 2019-I'!$D$3:$H$5594,2,FALSE) -> Bogota | M106: Bogota
A107: =+B107&COUNTIF($B$3:B107,B107) -> 112123 | B107: =VLOOKUP(C107,'GRUPOS VIGENTES'!$B$9:$C$115,2,FALSE) -> 1121 | C107: CABLES Y ACCESORIOS ELECTRICOS | D107: MAGNETRON | E107: Bogotá | F107: Cra 7A # 123-24 Centro Empresarial Santa Barbara Oficina 301 | G107: 629 7247 317 4773345 | H107: falvarez@magnetron.com.co | I107: 105 | K107: =VLOOKUP(D107,'LISTA TOTAL PROVEEDORES 2019-I'!$D$3:$H$5594,2,FALSE) ->  | M107: 1
A108: =+B108&COUNTIF($B$3:B108,B108) -> 112124 | B108: =VLOOKUP(C108,'GRUPOS VIGENTES'!$B$9:$C$115,2,FALSE) -> 1121 | C108: CABLES Y ACCESORIOS ELECTRICOS | D108: MATERIALES DE OCCIDENTE SAS | E108: Armenia - Quindio | F108: Calle 18 No 20 - 31 | G108: 311 358 1082 741 2226 744 3737 | H108: info@materialesdeoccidente.com | I108: 106 | K108: =VLOOKUP(D108,'LISTA TOTAL PROVEEDORES 2019-I'!$D$3:$H$5594,2,FALSE) -> Armenia - Quindio | M108: Armenia - Quindio
A109: =+B109&COUNTIF($B$3:B109,B109) -> 112125 | B109: =VLOOKUP(C109,'GRUPOS VIGENTES'!$B$9:$C$115,2,FALSE) -> 1121 | C109: CABLES Y ACCESORIOS ELECTRICOS | D109: MYM TRANFORMADORES | E109: Bogotá | F109: Cll 22 18a 76 | G109: 3102281619 3132503176 | H109: ventastransformadoresmym@hotmail.com | I109: 107 | K109: =VLOOKUP(D109,'LISTA TOTAL PROVEEDORES 2019-I'!$D$3:$H$5594,2,FALSE) ->  | M109: 1
A110: =+B110&COUNTIF($B$3:B110,B110) -> 112126 | B110: =VLOOKUP(C110,'GRUPOS VIGENTES'!$B$9:$C$115,2,FALSE) -> 1121 | C110: CABLES Y ACCESORIOS ELECTRICOS | D110: NACIONAL DE ELECTRICOS | E110: =VLOOKUP(D110,'LISTA TOTAL PROVEEDORES 2019-I'!$D$3:$H$5594,2,FALSE) -> Bogota | F110: =VLOOKUP(D110,'LISTA TOTAL PROVEEDORES 2019-I'!$D$3:$H$5594,3,FALSE) -> Calle 15 12 81 | G110: =VLOOKUP(D110,'LISTA TOTAL PROVEEDORES 2019-I'!$D$3:$H$5594,4,FALSE) -> 3114758165 2543720 Ext. 1502 | H110: =VLOOKUP(D110,'LISTA TOTAL PROVEEDORES 2019-I'!$D$3:$H$5594,5,FALSE) -> centro1@nalelectricos.com.co www.nalelectricos.com.co | I110: 108 | K110: =VLOOKUP(D110,'LISTA TOTAL PROVEEDORES 2019-I'!$D$3:$H$5594,2,FALSE) -> Bogota | M110: Bogota
A111: =+B111&COUNTIF($B$3:B111,B111) -> 112127 | B111: =VLOOKUP(C111,'GRUPOS VIGENTES'!$B$9:$C$115,2,FALSE) -> 1121 | C111: CABLES Y ACCESORIOS ELECTRICOS | D111: NEXANS | E111: Bucaramanga | F111: Parque Industrial de Bucaramanga Manzana B Km 3 Vía Café Madrid | G111: 6762929 | H111: ventas.colombia@nexans.com | I111: 109 | K111: =VLOOKUP(D111,'LISTA TOTAL PROVEEDORES 2019-I'!$D$3:$H$5594,2,FALSE) ->  | M111: 1
A112: =+B112&COUNTIF($B$3:B112,B112) -> 112128 | B112: =VLOOKUP(C112,'GRUPOS VIGENTES'!$B$9:$C$115,2,FALSE) -> 1121 | C112: CABLES Y ACCESORIOS ELECTRICOS | D112: PUNTO ELECTRICO SAS | E112: Manizales - Caldas | F112: Cra 22 # 15-09 | G112: 311 312 2156 | H112: logistica@puntoelectrico.com.co | I112: 110 | K112: =VLOOKUP(D112,'LISTA TOTAL PROVEEDORES 2019-I'!$D$3:$H$5594,2,FALSE) ->  | M112: 1
A113: =+B113&COUNTIF($B$3:B113,B113) -> 112129 | B113: =VLOOKUP(C113,'GRUPOS VIGENTES'!$B$9:$C$115,2,FALSE) -> 1121 | C113: CABLES Y ACCESORIOS ELECTRICOS | D113: REDES ELECTRICAS S.A. | E113: =VLOOKUP(D113,'LISTA TOTAL PROVEEDORES 2019-I'!$D$3:$H$5594,2,FALSE) -> Bogota | F113: =VLOOKUP(D113,'LISTA TOTAL PROVEEDORES 2019-I'!$D$3:$H$5594,3,FALSE) -> Cra. 12 15 97 | G113: =VLOOKUP(D113,'LISTA TOTAL PROVEEDORES 2019-I'!$D$3:$H$5594,4,FALSE) -> 3340511 3647000 | H113: =VLOOKUP(D113,'LISTA TOTAL PROVEEDORES 2019-I'!$D$3:$H$5594,5,FALSE) -> ventas.palo@redeselectricas.com ingenieria@redeselectricas.com oscar.rodriguez@redes electricas.com | I113: 111 | K113: =VLOOKUP(D113,'LISTA TOTAL PROVEEDORES 2019-I'!$D$3:$H$5594,2,FALSE) -> Bogota | M113: Bogota
A114: =+B114&COUNTIF($B$3:B114,B114) -> 112130 | B114: =VLOOKUP(C114,'GRUPOS VIGENTES'!$B$9:$C$115,2,FALSE) -> 1121 | C114: CABLES Y ACCESORIOS ELECTRICOS | D114: RENTAL STORE.CO (SERVICIO DE LAQUILER DE EQUIPO) | E114: Bogotá | F114: Cra 50 #134 - 66 | G114: 3176432973 | H114: sales.col@rentalstore.co | I114: 112 | K114: =VLOOKUP(D114,'LISTA TOTAL PROVEEDORES 2019-I'!$D$3:$H$5594,2,FALSE) ->  | M114: 1
A115: =+B115&COUNTIF($B$3:B115,B115) -> 112131 | B115: =VLOOKUP(C115,'GRUPOS VIGENTES'!$B$9:$C$115,2,FALSE) -> 1121 | C115: CABLES Y ACCESORIOS ELECTRICOS | D115: STEREN | E115: =VLOOKUP(D115,'LISTA TOTAL PROVEEDORES 2019-I'!$D$3:$H$5594,2,FALSE) -> Bogotá | F115: =VLOOKUP(D115,'LISTA TOTAL PROVEEDORES 2019-I'!$D$3:$H$5594,3,FALSE) -> Calle 140 n. 12B-25, Edificio Castellana Empresarial, oficina 103 | G115: =VLOOKUP(D115,'LISTA TOTAL PROVEEDORES 2019-I'!$D$3:$H$5594,4,FALSE) -> 7443200 | H115: =VLOOKUP(D115,'LISTA TOTAL PROVEEDORES 2019-I'!$D$3:$H$5594,5,FALSE) -> www.steren.com.co | I115: 113 | K115: =VLOOKUP(D115,'LISTA TOTAL PROVEEDORES 2019-I'!$D$3:$H$5594,2,FALSE) -> Bogotá | M115: Bogotá
A116: =+B116&COUNTIF($B$3:B116,B116) -> 112132 | B116: =VLOOKUP(C116,'GRUPOS VIGENTES'!$B$9:$C$115,2,FALSE) -> 1121 | C116: CABLES Y ACCESORIOS ELECTRICOS | D116: VISTRONICA | E116: Fusagasugá - Cundinamarca | F116: Calle 17B #14-42 (Nueva Dirección) Barrio Piedra Grande | G116: 3118679028 | H116: ventas@vistronica.com | I116: 114 | K116: =VLOOKUP(D116,'LISTA TOTAL PROVEEDORES 2019-I'!$D$3:$H$5594,2,FALSE) ->  | M116: 1
A117: =+B117&COUNTIF($B$3:B117,B117) -> 11951 | B117: =VLOOKUP(C117,'GRUPOS VIGENTES'!$B$9:$C$115,2,FALSE) -> 1195 | C117: CARPINTERÍA METÁLICA | D117: CIELOS RASOS & DIVISIONES | E117: =VLOOKUP(D117,'LISTA TOTAL PROVEEDORES 2019-I'!$D$3:$H$5594,2,FALSE) -> Bogotá | F117: =VLOOKUP(D117,'LISTA TOTAL PROVEEDORES 2019-I'!$D$3:$H$5594,3,FALSE) -> Cra 14 #75-58 | G117: =VLOOKUP(D117,'LISTA TOTAL PROVEEDORES 2019-I'!$D$3:$H$5594,4,FALSE) -> 248 18 60 310 577 4471 | H117: =VLOOKUP(D117,'LISTA TOTAL PROVEEDORES 2019-I'!$D$3:$H$5594,5,FALSE) -> ventas@cielosrasos.com | I117: 115 | K117: =VLOOKUP(D117,'LISTA TOTAL PROVEEDORES 2019-I'!$D$3:$H$5594,2,FALSE) -> Bogotá | M117: Bogotá
A118: =+B118&COUNTIF($B$3:B118,B118) -> 11952 | B118: =VLOOKUP(C118,'GRUPOS VIGENTES'!$B$9:$C$115,2,FALSE) -> 1195 | C118: CARPINTERÍA METÁLICA | D118: HB SADELEC Estructuras Metálicas | E118: =VLOOKUP(D118,'LISTA TOTAL PROVEEDORES 2019-I'!$D$3:$H$5594,2,FALSE) -> Bogota | F118: =VLOOKUP(D118,'LISTA TOTAL PROVEEDORES 2019-I'!$D$3:$H$5594,3,FALSE) -> Avda. Cra. 129 17 F 97 | G118: =VLOOKUP(D118,'LISTA TOTAL PROVEEDORES 2019-I'!$D$3:$H$5594,4,FALSE) -> 4224700 Ext. 121 4155620 | H118: =VLOOKUP(D118,'LISTA TOTAL PROVEEDORES 2019-I'!$D$3:$H$5594,5,FALSE) -> david.castellanos@hbsadelec.com.co | I118: 116 | K118: =VLOOKUP(D118,'LISTA TOTAL PROVEEDORES 2019-I'!$D$3:$H$5594,2,FALSE) -> Bogota | M118: Bogota
A119: =+B119&COUNTIF($B$3:B119,B119) -> 11301 | B119: =VLOOKUP(C119,'GRUPOS VIGENTES'!$B$9:$C$115,2,FALSE) -> 1130 | C119: COMBUSTIBLES Y LUBRICANTES | D119: MINISTERIO DE MINAS Y ENERGIA | E119: =VLOOKUP(D119,'LISTA TOTAL PROVEEDORES 2019-I'!$D$3:$H$5594,2,FALSE) -> Bogota | F119: =VLOOKUP(D119,'LISTA TOTAL PROVEEDORES 2019-I'!$D$3:$H$5594,3,FALSE) -> Calle 43 57 31 | G119: =VLOOKUP(D119,'LISTA TOTAL PROVEEDORES 2019-I'!$D$3:$H$5594,4,FALSE) -> 2200300 2200306 | H119: =VLOOKUP(D119,'LISTA TOTAL PROVEEDORES 2019-I'!$D$3:$H$5594,5,FALSE) -> www.minminas.gov.co | I119: 117 | K119: =VLOOKUP(D119,'LISTA TOTAL PROVEEDORES 2019-I'!$D$3:$H$5594,2,FALSE) -> Bogota | M119: Bogota
A120: =+B120&COUNTIF($B$3:B120,B120) -> 11031 | B120: =VLOOKUP(C120,'GRUPOS VIGENTES'!$B$9:$C$115,2,FALSE) -> 1103 | C120: CONCRETOS Y MORTEROS PREMEZCLADOS | D120: HIDROPROTECCIÓN DE COLOMBIA | E120: Bogotá | F120: Calle 74 No. 20 A - 14 | G120: 317 331 59 50 702 0385 | H120: -- | I120: 118 | K120: =VLOOKUP(D120,'LISTA TOTAL PROVEEDORES 2019-I'!$D$3:$H$5594,2,FALSE) ->  | M120: 1
A121: =+B121&COUNTIF($B$3:B121,B121) -> 11032 | B121: =VLOOKUP(C121,'GRUPOS VIGENTES'!$B$9:$C$115,2,FALSE) -> 1103 | C121: CONCRETOS Y MORTEROS PREMEZCLADOS | D121: CEMEX DE COLOMBIA S.A. | E121: =VLOOKUP(D121,'LISTA TOTAL PROVEEDORES 2019-I'!$D$3:$H$5594,2,FALSE) -> Bogota | F121: =VLOOKUP(D121,'LISTA TOTAL PROVEEDORES 2019-I'!$D$3:$H$5594,3,FALSE) -> Calle 99 9 A 54 Piso 8 | G121: =VLOOKUP(D121,'LISTA TOTAL PROVEEDORES 2019-I'!$D$3:$H$5594,4,FALSE) -> 6469000 6039100 | H121: =VLOOKUP(D121,'LISTA TOTAL PROVEEDORES 2019-I'!$D$3:$H$5594,5,FALSE) -> ginnamarcela.gomez@cemex.com alvaro.coral@cemex.com adrianamaritza.ramosrt@cemex.com.co | I121: 119 | K121: =VLOOKUP(D121,'LISTA TOTAL PROVEEDORES 2019-I'!$D$3:$H$5594,2,FALSE) -> Bogota | M121: Bogota
A122: =+B122&COUNTIF($B$3:B122,B122) -> 11033 | B122: =VLOOKUP(C122,'GRUPOS VIGENTES'!$B$9:$C$115,2,FALSE) -> 1103 | C122: CONCRETOS Y MORTEROS PREMEZCLADOS | D122: CONCRETERA TREMIX SAS | E122: =VLOOKUP(D122,'LISTA TOTAL PROVEEDORES 2019-I'!$D$3:$H$5594,2,FALSE) -> Bogotá | F122: =VLOOKUP(D122,'LISTA TOTAL PROVEEDORES 2019-I'!$D$3:$H$5594,3,FALSE) -> -- | G122: =VLOOKUP(D122,'LISTA TOTAL PROVEEDORES 2019-I'!$D$3:$H$5594,4,FALSE) -> 6260860 | H122: =VLOOKUP(D122,'LISTA TOTAL PROVEEDORES 2019-I'!$D$3:$H$5594,5,FALSE) -> -- | I122: 120 | K122: =VLOOKUP(D122,'LISTA TOTAL PROVEEDORES 2019-I'!$D$3:$H$5594,2,FALSE) -> Bogotá | M122: Bogotá
A123: =+B123&COUNTIF($B$3:B123,B123) -> 11034 | B123: =VLOOKUP(C123,'GRUPOS VIGENTES'!$B$9:$C$115,2,FALSE) -> 1103 | C123: CONCRETOS Y MORTEROS PREMEZCLADOS | D123: CONCRETOS ARGOS S.A. | E123: =VLOOKUP(D123,'LISTA TOTAL PROVEEDORES 2019-I'!$D$3:$H$5594,2,FALSE) -> Bogotá | F123: =VLOOKUP(D123,'LISTA TOTAL PROVEEDORES 2019-I'!$D$3:$H$5594,3,FALSE) -> Cra. 7 71 21 Torre A Piso 10 | G123: =VLOOKUP(D123,'LISTA TOTAL PROVEEDORES 2019-I'!$D$3:$H$5594,4,FALSE) -> 6767060 | H123: =VLOOKUP(D123,'LISTA TOTAL PROVEEDORES 2019-I'!$D$3:$H$5594,5,FALSE) -> info@argos.com.co | I123: 121 | K123: =VLOOKUP(D123,'LISTA TOTAL PROVEEDORES 2019-I'!$D$3:$H$5594,2,FALSE) -> Bogotá | M123: Bogotá
A124: =+B124&COUNTIF($B$3:B124,B124) -> 11035 | B124: =VLOOKUP(C124,'GRUPOS VIGENTES'!$B$9:$C$115,2,FALSE) -> 1103 | C124: CONCRETOS Y MORTEROS PREMEZCLADOS | D124: HORMIGON ANDINO | E124: Bogotá | F124: Calle 125 # 21 A - 18 Piso 4 | G124: 6371837 6371748 | H124: g.comercial@hormigonandino.com | I124: 122 | K124: =VLOOKUP(D124,'LISTA TOTAL PROVEEDORES 2019-I'!$D$3:$H$5594,2,FALSE) ->  | M124: 1
A125: =+B125&COUNTIF($B$3:B125,B125) -> 11036 | B125: =VLOOKUP(C125,'GRUPOS VIGENTES'!$B$9:$C$115,2,FALSE) -> 1103 | C125: CONCRETOS Y MORTEROS PREMEZCLADOS | D125: MEGA CONCRETOS | E125: Bogotá | F125: Cra. 80A No. 17 - 21 | G125: 390 6012 310 349 4946 | H125: gerencia@megaconcretos.com.co | I125: 123 | K125: =VLOOKUP(D125,'LISTA TOTAL PROVEEDORES 2019-I'!$D$3:$H$5594,2,FALSE) ->  | M125: 1
A126: =+B126&COUNTIF($B$3:B126,B126) -> 11037 | B126: =VLOOKUP(C126,'GRUPOS VIGENTES'!$B$9:$C$115,2,FALSE) -> 1103 | C126: CONCRETOS Y MORTEROS PREMEZCLADOS | D126: POLIMIX COLOMBIA | E126: =VLOOKUP(D126,'LISTA TOTAL PROVEEDORES 2019-I'!$D$3:$H$5594,2,FALSE) -> Bogotá | F126: =VLOOKUP(D126,'LISTA TOTAL PROVEEDORES 2019-I'!$D$3:$H$5594,3,FALSE) -> Calle 147 # 17 - 78 Edificio Soko 147 Of 504 | G126: =VLOOKUP(D126,'LISTA TOTAL PROVEEDORES 2019-I'!$D$3:$H$5594,4,FALSE) -> 6260860 / 61 / 62 / 63 | H126: =VLOOKUP(D126,'LISTA TOTAL PROVEEDORES 2019-I'!$D$3:$H$5594,5,FALSE) -> -- | I126: 124 | K126: =VLOOKUP(D126,'LISTA TOTAL PROVEEDORES 2019-I'!$D$3:$H$5594,2,FALSE) -> Bogotá | M126: Bogotá
A127: =+B127&COUNTIF($B$3:B127,B127) -> 11038 | B127: =VLOOKUP(C127,'GRUPOS VIGENTES'!$B$9:$C$115,2,FALSE) -> 1103 | C127: CONCRETOS Y MORTEROS PREMEZCLADOS | D127: SIKA COLOMBIA SAS | E127: =VLOOKUP(D127,'LISTA TOTAL PROVEEDORES 2019-I'!$D$3:$H$5594,2,FALSE) -> Tocancipa - Cund. | F127: =VLOOKUP(D127,'LISTA TOTAL PROVEEDORES 2019-I'!$D$3:$H$5594,3,FALSE) -> Vereda Canavita, Km 20,5 Autopista Norte | G127: =VLOOKUP(D127,'LISTA TOTAL PROVEEDORES 2019-I'!$D$3:$H$5594,4,FALSE) -> 8786666 8786681 | H127: =VLOOKUP(D127,'LISTA TOTAL PROVEEDORES 2019-I'!$D$3:$H$5594,5,FALSE) -> ortiz.ricardo@co.sika.com chacon.jose@co.sika.com | I127: 125 | K127: =VLOOKUP(D127,'LISTA TOTAL PROVEEDORES 2019-I'!$D$3:$H$5594,2,FALSE) -> Tocancipa - Cund. | M127: Tocancipa - Cund.
A128: =+B128&COUNTIF($B$3:B128,B128) -> 11039 | B128: =VLOOKUP(C128,'GRUPOS VIGENTES'!$B$9:$C$115,2,FALSE) -> 1103 | C128: CONCRETOS Y MORTEROS PREMEZCLADOS | D128: TOXEMENT | E128: Tocancipa - Cund. | F128: Parque Industrial Gran Sabana | G128: 869 87 87 | H128: atencioncliente@toxement.com.co | I128: 126 | K128: =VLOOKUP(D128,'LISTA TOTAL PROVEEDORES 2019-I'!$D$3:$H$5594,2,FALSE) ->  | M128: 1
A129: =+B129&COUNTIF($B$3:B129,B129) -> 11681 | B129: =VLOOKUP(C129,'GRUPOS VIGENTES'!$B$9:$C$115,2,FALSE) -> 1168 | C129: CONSULTORIA | D129: SECRETARIA DISTRITAL DE PLANEACIÓN | E129: Bogotá | F129: Kra 30 # 25 - 90 Pisos 5 - 8 -13 | G129: 3358000 ext 9013 | H129: servicioalciudadanoGEL@sdp.gov.co | I129: 127 | K129: =VLOOKUP(D129,'LISTA TOTAL PROVEEDORES 2019-I'!$D$3:$H$5594,2,FALSE) ->  | M129: 1
A130: =+B130&COUNTIF($B$3:B130,B130) -> 11682 | B130: =VLOOKUP(C130,'GRUPOS VIGENTES'!$B$9:$C$115,2,FALSE) -> 1168 | C130: CONSULTORIA | D130: SUPERINTENDENCIA DE NOTARIADO Y REGISTRO | E130: Bogotá | F130: Calle 26 No. 13-49 Interior 201 | G130: 328 2121 | H130: notificaciones.juridica@supernotariado.gov.co | I130: 128 | K130: =VLOOKUP(D130,'LISTA TOTAL PROVEEDORES 2019-I'!$D$3:$H$5594,2,FALSE) ->  | M130: 1
A131: =+B131&COUNTIF($B$3:B131,B131) -> 12001 | B131: =VLOOKUP(C131,'GRUPOS VIGENTES'!$B$9:$C$115,2,FALSE) -> 1200 | C131: CUBIERTA - CIELO RASO - CORTASOL TIPO TRANSMILENIO | D131: CIELOS RASOS & DIVISIONES | E131: Bogotá | F131: Cra. 14 No. 75 - 58 | G131: 248 1860 | H131: ventas@cielosrasos.com | I131: 129 | K131: =VLOOKUP(D131,'LISTA TOTAL PROVEEDORES 2019-I'!$D$3:$H$5594,2,FALSE) -> Bogotá | M131: Bogotá
A132: =+B132&COUNTIF($B$3:B132,B132) -> 12002 | B132: =VLOOKUP(C132,'GRUPOS VIGENTES'!$B$9:$C$115,2,FALSE) -> 1200 | C132: CUBIERTA - CIELO RASO - CORTASOL TIPO TRANSMILENIO | D132: DECOGOLD ESPACIOS, S.A.S. | E132: Bogotá | F132: Cra 46 #152-46 Local 266 Cra 55 152 B 68 OF 705 | G132: 2166263 3108768739 | H132: decogoldespacios@gmail.com | I132: 130 | K132: =VLOOKUP(D132,'LISTA TOTAL PROVEEDORES 2019-I'!$D$3:$H$5594,2,FALSE) ->  | M132: 1
A133: =+B133&COUNTIF($B$3:B133,B133) -> 12003 | B133: =VLOOKUP(C133,'GRUPOS VIGENTES'!$B$9:$C$115,2,FALSE) -> 1200 | C133: CUBIERTA - CIELO RASO - CORTASOL TIPO TRANSMILENIO | D133: DEPOSITO DE MADERAS VILLA BOYACA | E133: Bogotá | F133: Calle 71A # 74 A - 43 | G133: 2763975 | H133: maderasvillaboyaca@gmail.com | I133: =+I132+1 -> 131 | K133: =VLOOKUP(D133,'LISTA TOTAL PROVEEDORES 2019-I'!$D$3:$H$5594,2,FALSE) ->  | M133: =IFERROR(K133,1) -> 1
A134: =+B134&COUNTIF($B$3:B134,B134) -> 12004 | B134: =VLOOKUP(C134,'GRUPOS VIGENTES'!$B$9:$C$115,2,FALSE) -> 1200 | C134: CUBIERTA - CIELO RASO - CORTASOL TIPO TRANSMILENIO | D134: EASY | E134: =VLOOKUP(D134,'LISTA TOTAL PROVEEDORES 2019-I'!$D$3:$H$5594,2,FALSE) -> Bogota | F134: =VLOOKUP(D134,'LISTA TOTAL PROVEEDORES 2019-I'!$D$3:$H$5594,3,FALSE) -> Avda. Americas 68 94 | G134: =VLOOKUP(D134,'LISTA TOTAL PROVEEDORES 2019-I'!$D$3:$H$5594,4,FALSE) -> 4191400 | H134: =VLOOKUP(D134,'LISTA TOTAL PROVEEDORES 2019-I'!$D$3:$H$5594,5,FALSE) -> www.easy.com.co | I134: 132 | K134: =VLOOKUP(D134,'LISTA TOTAL PROVEEDORES 2019-I'!$D$3:$H$5594,2,FALSE) -> Bogota | M134: Bogota
A135: =+B135&COUNTIF($B$3:B135,B135) -> 12005 | B135: =VLOOKUP(C135,'GRUPOS VIGENTES'!$B$9:$C$115,2,FALSE) -> 1200 | C135: CUBIERTA - CIELO RASO - CORTASOL TIPO TRANSMILENIO | D135: HB SADELEC Estructuras Metálicas | E135: =VLOOKUP(D135,'LISTA TOTAL PROVEEDORES 2019-I'!$D$3:$H$5594,2,FALSE) -> Bogota | F135: =VLOOKUP(D135,'LISTA TOTAL PROVEEDORES 2019-I'!$D$3:$H$5594,3,FALSE) -> Avda. Cra. 129 17 F 97 | G135: =VLOOKUP(D135,'LISTA TOTAL PROVEEDORES 2019-I'!$D$3:$H$5594,4,FALSE) -> 4224700 Ext. 121 4155620 | H135: =VLOOKUP(D135,'LISTA TOTAL PROVEEDORES 2019-I'!$D$3:$H$5594,5,FALSE) -> david.castellanos@hbsadelec.com.co | I135: 133 | K135: =VLOOKUP(D135,'LISTA TOTAL PROVEEDORES 2019-I'!$D$3:$H$5594,2,FALSE) -> Bogota | M135: Bogota
A136: =+B136&COUNTIF($B$3:B136,B136) -> 12006 | B136: =VLOOKUP(C136,'GRUPOS VIGENTES'!$B$9:$C$115,2,FALSE) -> 1200 | C136: CUBIERTA - CIELO RASO - CORTASOL TIPO TRANSMILENIO | D136: HOMECENTER | E136: =VLOOKUP(D136,'LISTA TOTAL PROVEEDORES 2019-I'!$D$3:$H$5594,2,FALSE) -> Bogota | F136: =VLOOKUP(D136,'LISTA TOTAL PROVEEDORES 2019-I'!$D$3:$H$5594,3,FALSE) -> Avda. 68 37 37 Sur | G136: =VLOOKUP(D136,'LISTA TOTAL PROVEEDORES 2019-I'!$D$3:$H$5594,4,FALSE) -> 3077115 | H136: =VLOOKUP(D136,'LISTA TOTAL PROVEEDORES 2019-I'!$D$3:$H$5594,5,FALSE) -> www.homecenter.com.co | I136: 134 | K136: =VLOOKUP(D136,'LISTA TOTAL PROVEEDORES 2019-I'!$D$3:$H$5594,2,FALSE) -> Bogota | M136: Bogota
A137: =+B137&COUNTIF($B$3:B137,B137) -> 12007 | B137: =VLOOKUP(C137,'GRUPOS VIGENTES'!$B$9:$C$115,2,FALSE) -> 1200 | C137: CUBIERTA - CIELO RASO - CORTASOL TIPO TRANSMILENIO | D137: MADERAS PUERTO COLOMBIA LTDA | E137: =VLOOKUP(D137,'LISTA TOTAL PROVEEDORES 2019-I'!$D$3:$H$5594,2,FALSE) -> Bogota | F137: =VLOOKUP(D137,'LISTA TOTAL PROVEEDORES 2019-I'!$D$3:$H$5594,3,FALSE) -> Avda. Cra. 70 70 45 | G137: =VLOOKUP(D137,'LISTA TOTAL PROVEEDORES 2019-I'!$D$3:$H$5594,4,FALSE) -> 2243982 2761648 | H137: =VLOOKUP(D137,'LISTA TOTAL PROVEEDORES 2019-I'!$D$3:$H$5594,5,FALSE) -> maderaspuertoco@hotmail.com | I137: 135 | K137: =VLOOKUP(D137,'LISTA TOTAL PROVEEDORES 2019-I'!$D$3:$H$5594,2,FALSE) -> Bogota | M137: Bogota
A138: =+B138&COUNTIF($B$3:B138,B138) -> 12008 | B138: =VLOOKUP(C138,'GRUPOS VIGENTES'!$B$9:$C$115,2,FALSE) -> 1200 | C138: CUBIERTA - CIELO RASO - CORTASOL TIPO TRANSMILENIO | D138: MADERAS SAJO | E138: Bogotá | F138: CALLE 68 # 87 - 40 | G138: 310 8811268 | H138: maderassajo@gmail.com | I138: 136 | K138: =VLOOKUP(D138,'LISTA TOTAL PROVEEDORES 2019-I'!$D$3:$H$5594,2,FALSE) ->  | M138: 1
A139: =+B139&COUNTIF($B$3:B139,B139) -> 11941 | B139: =VLOOKUP(C139,'GRUPOS VIGENTES'!$B$9:$C$115,2,FALSE) -> 1194 | C139: DESMONTE Y TRASLADOS DE ELEMENTOS METÁLICOS | D139: INDUSTRIAS METALICAS GRAG S.A.S. | E139: Bogotá | F139: Carrera 27 # 10 - 35 | G139: 805 9374 805 9374 277 3540 | H139: metalicasgrag@yahoo.es | I139: 137 | K139: =VLOOKUP(D139,'LISTA TOTAL PROVEEDORES 2019-I'!$D$3:$H$5594,2,FALSE) ->  | M139: 1
A140: =+B140&COUNTIF($B$3:B140,B140) -> 11942 | B140: =VLOOKUP(C140,'GRUPOS VIGENTES'!$B$9:$C$115,2,FALSE) -> 1194 | C140: DESMONTE Y TRASLADOS DE ELEMENTOS METÁLICOS | D140: NAZCA DISEÑO - IMAGEN SAS | E140: =VLOOKUP(D140,'LISTA TOTAL PROVEEDORES 2019-I'!$D$3:$H$5594,2,FALSE) -> Bogota | F140: =VLOOKUP(D140,'LISTA TOTAL PROVEEDORES 2019-I'!$D$3:$H$5594,3,FALSE) -> Cra. 55 45 A 20 | G140: =VLOOKUP(D140,'LISTA TOTAL PROVEEDORES 2019-I'!$D$3:$H$5594,4,FALSE) -> 3244248 3003228552 | H140: =VLOOKUP(D140,'LISTA TOTAL PROVEEDORES 2019-I'!$D$3:$H$5594,5,FALSE) -> comercial@nazca.com.co | I140: 138 | K140: =VLOOKUP(D140,'LISTA TOTAL PROVEEDORES 2019-I'!$D$3:$H$5594,2,FALSE) -> Bogota | M140: Bogota
A141: =+B141&COUNTIF($B$3:B141,B141) -> 11481 | B141: =VLOOKUP(C141,'GRUPOS VIGENTES'!$B$9:$C$115,2,FALSE) -> 1148 | C141: DOTACIÓN (EPP) Y EQUIP. Y HERRAM. SEGUR. INDUSTR. | D141: BELTEC | E141: Bogotá | F141: Carrera 27 No. 17 - 10 | G141: 3600950 | H141: contactenos@belltec.com.co | I141: 139 | K141: =VLOOKUP(D141,'LISTA TOTAL PROVEEDORES 2019-I'!$D$3:$H$5594,2,FALSE) ->  | M141: 1
A142: =+B142&COUNTIF($B$3:B142,B142) -> 11482 | B142: =VLOOKUP(C142,'GRUPOS VIGENTES'!$B$9:$C$115,2,FALSE) -> 1148 | C142: DOTACIÓN (EPP) Y EQUIP. Y HERRAM. SEGUR. INDUSTR. | D142: COMSECOL SAS | E142: Bogotá | F142: Cra. 28 No. 11 - 67, Of. 321 | G142: 351 3819 3162664928 | H142: -- | I142: 140 | K142: =VLOOKUP(D142,'LISTA TOTAL PROVEEDORES 2019-I'!$D$3:$H$5594,2,FALSE) ->  | M142: 1
A143: =+B143&COUNTIF($B$3:B143,B143) -> 11483 | B143: =VLOOKUP(C143,'GRUPOS VIGENTES'!$B$9:$C$115,2,FALSE) -> 1148 | C143: DOTACIÓN (EPP) Y EQUIP. Y HERRAM. SEGUR. INDUSTR. | D143: DOTACIONES CALDERON SAS | E143: =VLOOKUP(D143,'LISTA TOTAL PROVEEDORES 2019-I'!$D$3:$H$5594,2,FALSE) -> Bogota | F143: =VLOOKUP(D143,'LISTA TOTAL PROVEEDORES 2019-I'!$D$3:$H$5594,3,FALSE) -> Avda. Cra. 68 22 64 Sur | G143: =VLOOKUP(D143,'LISTA TOTAL PROVEEDORES 2019-I'!$D$3:$H$5594,4,FALSE) -> 4065664 4069690 | H143: =VLOOKUP(D143,'LISTA TOTAL PROVEEDORES 2019-I'!$D$3:$H$5594,5,FALSE) -> ventas515@hotmail.es | I143: 141 | K143: =VLOOKUP(D143,'LISTA TOTAL PROVEEDORES 2019-I'!$D$3:$H$5594,2,FALSE) -> Bogota | M143: Bogota
A144: =+B144&COUNTIF($B$3:B144,B144) -> 11484 | B144: =VLOOKUP(C144,'GRUPOS VIGENTES'!$B$9:$C$115,2,FALSE) -> 1148 | C144: DOTACIÓN (EPP) Y EQUIP. Y HERRAM. SEGUR. INDUSTR. | D144: DOTACIONES ONLINE | E144: =VLOOKUP(D144,'LISTA TOTAL PROVEEDORES 2019-I'!$D$3:$H$5594,2,FALSE) -> Bogotá | F144: =VLOOKUP(D144,'LISTA TOTAL PROVEEDORES 2019-I'!$D$3:$H$5594,3,FALSE) -> Bodega: Calle 75 A No. 61-44 | G144: =VLOOKUP(D144,'LISTA TOTAL PROVEEDORES 2019-I'!$D$3:$H$5594,4,FALSE) -> 7921705 318 320 5423 350 349 6922. | H144: =VLOOKUP(D144,'LISTA TOTAL PROVEEDORES 2019-I'!$D$3:$H$5594,5,FALSE) -> servicioalcliente@dotacionesonline.com | I144: 142 | K144: =VLOOKUP(D144,'LISTA TOTAL PROVEEDORES 2019-I'!$D$3:$H$5594,2,FALSE) -> Bogotá | M144: Bogotá
A145: =+B145&COUNTIF($B$3:B145,B145) -> 11485 | B145: =VLOOKUP(C145,'GRUPOS VIGENTES'!$B$9:$C$115,2,FALSE) -> 1148 | C145: DOTACIÓN (EPP) Y EQUIP. Y HERRAM. SEGUR. INDUSTR. | D145: EASY | E145: =VLOOKUP(D145,'LISTA TOTAL PROVEEDORES 2019-I'!$D$3:$H$5594,2,FALSE) -> Bogota | F145: =VLOOKUP(D145,'LISTA TOTAL PROVEEDORES 2019-I'!$D$3:$H$5594,3,FALSE) -> Avda. Americas 68 94 | G145: =VLOOKUP(D145,'LISTA TOTAL PROVEEDORES 2019-I'!$D$3:$H$5594,4,FALSE) -> 4191400 | H145: =VLOOKUP(D145,'LISTA TOTAL PROVEEDORES 2019-I'!$D$3:$H$5594,5,FALSE) -> www.easy.com.co | I145: 143 | K145: =VLOOKUP(D145,'LISTA TOTAL PROVEEDORES 2019-I'!$D$3:$H$5594,2,FALSE) -> Bogota | M145: Bogota
A146: =+B146&COUNTIF($B$3:B146,B146) -> 11486 | B146: =VLOOKUP(C146,'GRUPOS VIGENTES'!$B$9:$C$115,2,FALSE) -> 1148 | C146: DOTACIÓN (EPP) Y EQUIP. Y HERRAM. SEGUR. INDUSTR. | D146: ECOLSEN | E146: Bogotá | F146: DIAG 77B # 116B - 42 | G146: 3123226014 8063016 | H146: info@ecolsen.com.co | I146: 144 | K146: =VLOOKUP(D146,'LISTA TOTAL PROVEEDORES 2019-I'!$D$3:$H$5594,2,FALSE) ->  | M146: 1
A147: =+B147&COUNTIF($B$3:B147,B147) -> 11487 | B147: =VLOOKUP(C147,'GRUPOS VIGENTES'!$B$9:$C$115,2,FALSE) -> 1148 | C147: DOTACIÓN (EPP) Y EQUIP. Y HERRAM. SEGUR. INDUSTR. | D147: FERRESTAR DE COLOMBIA | E147: Bogotá | F147: Carrera 27B # 5-88 Santa Isabel | G147: 313 4392699 321 4573931 | H147: comercial1@ferrestardecolombia.co ventasferrestar1@gmail.com | I147: 145 | K147: =VLOOKUP(D147,'LISTA TOTAL PROVEEDORES 2019-I'!$D$3:$H$5594,2,FALSE) ->  | M147: 1
A148: =+B148&COUNTIF($B$3:B148,B148) -> 11488 | B148: =VLOOKUP(C148,'GRUPOS VIGENTES'!$B$9:$C$115,2,FALSE) -> 1148 | C148: DOTACIÓN (EPP) Y EQUIP. Y HERRAM. SEGUR. INDUSTR. | D148: FERRETERÍA SAMIR | E148: =VLOOKUP(D148,'LISTA TOTAL PROVEEDORES 2019-I'!$D$3:$H$5594,2,FALSE) -> Barranquilla - Atlantico | F148: =VLOOKUP(D148,'LISTA TOTAL PROVEEDORES 2019-I'!$D$3:$H$5594,3,FALSE) -> Calle 35 #38 -43 | G148: =VLOOKUP(D148,'LISTA TOTAL PROVEEDORES 2019-I'!$D$3:$H$5594,4,FALSE) -> 318 336 4259 318 775 8062 316 341 3547 | H148: =VLOOKUP(D148,'LISTA TOTAL PROVEEDORES 2019-I'!$D$3:$H$5594,5,FALSE) -> cotizaciones@ferreteriasamir.com | I148: 146 | K148: =VLOOKUP(D148,'LISTA TOTAL PROVEEDORES 2019-I'!$D$3:$H$5594,2,FALSE) -> Barranquilla - Atlantico | M148: Barranquilla - Atlantico
A149: =+B149&COUNTIF($B$3:B149,B149) -> 11489 | B149: =VLOOKUP(C149,'GRUPOS VIGENTES'!$B$9:$C$115,2,FALSE) -> 1148 | C149: DOTACIÓN (EPP) Y EQUIP. Y HERRAM. SEGUR. INDUSTR. | D149: FERRICENTRO | E149: =VLOOKUP(D149,'LISTA TOTAL PROVEEDORES 2019-I'!$D$3:$H$5594,2,FALSE) -> Bogota | F149: =VLOOKUP(D149,'LISTA TOTAL PROVEEDORES 2019-I'!$D$3:$H$5594,3,FALSE) -> Avda. Caracas 74 25 | G149: =VLOOKUP(D149,'LISTA TOTAL PROVEEDORES 2019-I'!$D$3:$H$5594,4,FALSE) -> 6511212 2862100 | H149: =VLOOKUP(D149,'LISTA TOTAL PROVEEDORES 2019-I'!$D$3:$H$5594,5,FALSE) -> jhon.bermudez@ferricentro.com callcenter02@ferricentro.com callcenter01@ferricentro.com | I149: 147 | K149: =VLOOKUP(D149,'LISTA TOTAL PROVEEDORES 2019-I'!$D$3:$H$5594,2,FALSE) -> Bogota | M149: Bogota
A150: =+B150&COUNTIF($B$3:B150,B150) -> 114810 | B150: =VLOOKUP(C150,'GRUPOS VIGENTES'!$B$9:$C$115,2,FALSE) -> 1148 | C150: DOTACIÓN (EPP) Y EQUIP. Y HERRAM. SEGUR. INDUSTR. | D150: GAMA DOTACIONES | E150: =VLOOKUP(D150,'LISTA TOTAL PROVEEDORES 2019-I'!$D$3:$H$5594,2,FALSE) -> Bogotá | F150: =VLOOKUP(D150,'LISTA TOTAL PROVEEDORES 2019-I'!$D$3:$H$5594,3,FALSE) -> Carrera 5 No 49ª sur-93, barrio marruecos | G150: =VLOOKUP(D150,'LISTA TOTAL PROVEEDORES 2019-I'!$D$3:$H$5594,4,FALSE) -> 3503829335 | H150: =VLOOKUP(D150,'LISTA TOTAL PROVEEDORES 2019-I'!$D$3:$H$5594,5,FALSE) -> gamadotaciones@gmail.com | I150: 148 | K150: =VLOOKUP(D150,'LISTA TOTAL PROVEEDORES 2019-I'!$D$3:$H$5594,2,FALSE) -> Bogotá | M150: Bogotá
A151: =+B151&COUNTIF($B$3:B151,B151) -> 114811 | B151: =VLOOKUP(C151,'GRUPOS VIGENTES'!$B$9:$C$115,2,FALSE) -> 1148 | C151: DOTACIÓN (EPP) Y EQUIP. Y HERRAM. SEGUR. INDUSTR. | D151: HERLOZ SUMINISTROS | E151: =VLOOKUP(D151,'LISTA TOTAL PROVEEDORES 2019-I'!$D$3:$H$5594,2,FALSE) -> Bogotá | F151: =VLOOKUP(D151,'LISTA TOTAL PROVEEDORES 2019-I'!$D$3:$H$5594,3,FALSE) -> www.herloz.com | G151: =VLOOKUP(D151,'LISTA TOTAL PROVEEDORES 2019-I'!$D$3:$H$5594,4,FALSE) -> 247 8827 315 305 1224 | H151: =VLOOKUP(D151,'LISTA TOTAL PROVEEDORES 2019-I'!$D$3:$H$5594,5,FALSE) -> ventasweb@herloz.com | I151: 149 | K151: =VLOOKUP(D151,'LISTA TOTAL PROVEEDORES 2019-I'!$D$3:$H$5594,2,FALSE) -> Bogotá | M151: Bogotá
A152: =+B152&COUNTIF($B$3:B152,B152) -> 114812 | B152: =VLOOKUP(C152,'GRUPOS VIGENTES'!$B$9:$C$115,2,FALSE) -> 1148 | C152: DOTACIÓN (EPP) Y EQUIP. Y HERRAM. SEGUR. INDUSTR. | D152: HOMECENTER | E152: =VLOOKUP(D152,'LISTA TOTAL PROVEEDORES 2019-I'!$D$3:$H$5594,2,FALSE) -> Bogota | F152: =VLOOKUP(D152,'LISTA TOTAL PROVEEDORES 2019-I'!$D$3:$H$5594,3,FALSE) -> Avda. 68 37 37 Sur | G152: =VLOOKUP(D152,'LISTA TOTAL PROVEEDORES 2019-I'!$D$3:$H$5594,4,FALSE) -> 3077115 | H152: =VLOOKUP(D152,'LISTA TOTAL PROVEEDORES 2019-I'!$D$3:$H$5594,5,FALSE) -> www.homecenter.com.co | I152: 150 | K152: =VLOOKUP(D152,'LISTA TOTAL PROVEEDORES 2019-I'!$D$3:$H$5594,2,FALSE) -> Bogota | M152: Bogota
A153: =+B153&COUNTIF($B$3:B153,B153) -> 114813 | B153: =VLOOKUP(C153,'GRUPOS VIGENTES'!$B$9:$C$115,2,FALSE) -> 1148 | C153: DOTACIÓN (EPP) Y EQUIP. Y HERRAM. SEGUR. INDUSTR. | D153: LASUS | E153: =VLOOKUP(D153,'LISTA TOTAL PROVEEDORES 2019-I'!$D$3:$H$5594,2,FALSE) -> Bogotá | F153: =VLOOKUP(D153,'LISTA TOTAL PROVEEDORES 2019-I'!$D$3:$H$5594,3,FALSE) -> Cra 16 #97- 46 | G153: =VLOOKUP(D153,'LISTA TOTAL PROVEEDORES 2019-I'!$D$3:$H$5594,4,FALSE) -> 5086170 | H153: =VLOOKUP(D153,'LISTA TOTAL PROVEEDORES 2019-I'!$D$3:$H$5594,5,FALSE) -> info@lasus.com.co | I153: 151 | K153: =VLOOKUP(D153,'LISTA TOTAL PROVEEDORES 2019-I'!$D$3:$H$5594,2,FALSE) -> Bogotá | M153: Bogotá
A154: =+B154&COUNTIF($B$3:B154,B154) -> 114814 | B154: =VLOOKUP(C154,'GRUPOS VIGENTES'!$B$9:$C$115,2,FALSE) -> 1148 | C154: DOTACIÓN (EPP) Y EQUIP. Y HERRAM. SEGUR. INDUSTR. | D154: LINIO | E154: Bogotá | F154: Calle 99 #14-49 Piso 9 | G154: 7457888 | H154: www.linio.com.co | I154: 152 | K154: =VLOOKUP(D154,'LISTA TOTAL PROVEEDORES 2019-I'!$D$3:$H$5594,2,FALSE) ->  | M154: 1
A155: =+B155&COUNTIF($B$3:B155,B155) -> 114815 | B155: =VLOOKUP(C155,'GRUPOS VIGENTES'!$B$9:$C$115,2,FALSE) -> 1148 | C155: DOTACIÓN (EPP) Y EQUIP. Y HERRAM. SEGUR. INDUSTR. | D155: MULTINACIONAL DE DOTACIONES | E155: Bogotá | F155: Av. 68 # 10 - 12 sur | G155: 314 3817430 315 3267865 4946229 | H155: ventas@multinacionaldedotaciones.com | I155: 153 | K155: =VLOOKUP(D155,'LISTA TOTAL PROVEEDORES 2019-I'!$D$3:$H$5594,2,FALSE) ->  | M155: 1
A156: =+B156&COUNTIF($B$3:B156,B156) -> 114816 | B156: =VLOOKUP(C156,'GRUPOS VIGENTES'!$B$9:$C$115,2,FALSE) -> 1148 | C156: DOTACIÓN (EPP) Y EQUIP. Y HERRAM. SEGUR. INDUSTR. | D156: MUNDO NATURAL SAS | E156: =VLOOKUP(D156,'LISTA TOTAL PROVEEDORES 2019-I'!$D$3:$H$5594,2,FALSE) -> Bogotá | F156: =VLOOKUP(D156,'LISTA TOTAL PROVEEDORES 2019-I'!$D$3:$H$5594,3,FALSE) -> Cl. 163 #18 A - 93 | G156: =VLOOKUP(D156,'LISTA TOTAL PROVEEDORES 2019-I'!$D$3:$H$5594,4,FALSE) -> 350 539 6869 | H156: =VLOOKUP(D156,'LISTA TOTAL PROVEEDORES 2019-I'!$D$3:$H$5594,5,FALSE) -> ventasonline@mundonatural.com.co | I156: 154 | K156: =VLOOKUP(D156,'LISTA TOTAL PROVEEDORES 2019-I'!$D$3:$H$5594,2,FALSE) -> Bogotá | M156: Bogotá
A157: =+B157&COUNTIF($B$3:B157,B157) -> 114817 | B157: =VLOOKUP(C157,'GRUPOS VIGENTES'!$B$9:$C$115,2,FALSE) -> 1148 | C157: DOTACIÓN (EPP) Y EQUIP. Y HERRAM. SEGUR. INDUSTR. | D157: TIENDAS EPP | E157: =VLOOKUP(D157,'LISTA TOTAL PROVEEDORES 2019-I'!$D$3:$H$5594,2,FALSE) -> Bogotá | F157: =VLOOKUP(D157,'LISTA TOTAL PROVEEDORES 2019-I'!$D$3:$H$5594,3,FALSE) -> Autopista Norte 178 83. | G157: =VLOOKUP(D157,'LISTA TOTAL PROVEEDORES 2019-I'!$D$3:$H$5594,4,FALSE) -> 673 22 00 311 232 1328 | H157: =VLOOKUP(D157,'LISTA TOTAL PROVEEDORES 2019-I'!$D$3:$H$5594,5,FALSE) -> comercial@tiendasepp.com | I157: 155 | K157: =VLOOKUP(D157,'LISTA TOTAL PROVEEDORES 2019-I'!$D$3:$H$5594,2,FALSE) -> Bogotá | M157: Bogotá
A158: =+B158&COUNTIF($B$3:B158,B158) -> 11111 | B158: =VLOOKUP(C158,'GRUPOS VIGENTES'!$B$9:$C$115,2,FALSE) -> 1111 | C158: DUCTOS PVC - ELECTRICOS/TELEFONICOS TIPO TDP-DB-EB | D158: CELTA | E158: =VLOOKUP(D158,'LISTA TOTAL PROVEEDORES 2019-I'!$D$3:$H$5594,2,FALSE) -> Bogota | F158: =VLOOKUP(D158,'LISTA TOTAL PROVEEDORES 2019-I'!$D$3:$H$5594,3,FALSE) -> Cra. 87 1 42 | G158: =VLOOKUP(D158,'LISTA TOTAL PROVEEDORES 2019-I'!$D$3:$H$5594,4,FALSE) -> 7799000 3143302256 3123320171 | H158: =VLOOKUP(D158,'LISTA TOTAL PROVEEDORES 2019-I'!$D$3:$H$5594,5,FALSE) -> rurodrig@celta.com.co katherine.rodriguez@celta.com.co | I158: 156 | K158: =VLOOKUP(D158,'LISTA TOTAL PROVEEDORES 2019-I'!$D$3:$H$5594,2,FALSE) -> Bogota | M158: Bogota
A159: =+B159&COUNTIF($B$3:B159,B159) -> 11112 | B159: =VLOOKUP(C159,'GRUPOS VIGENTES'!$B$9:$C$115,2,FALSE) -> 1111 | C159: DUCTOS PVC - ELECTRICOS/TELEFONICOS TIPO TDP-DB-EB | D159: DURMAN COLOMBIA S.A. | E159: =VLOOKUP(D159,'LISTA TOTAL PROVEEDORES 2019-I'!$D$3:$H$5594,2,FALSE) -> Madrid - Cund. | F159: =VLOOKUP(D159,'LISTA TOTAL PROVEEDORES 2019-I'!$D$3:$H$5594,3,FALSE) -> Km 27 Vía Fontibon Facatativa Los Alpes | G159: =VLOOKUP(D159,'LISTA TOTAL PROVEEDORES 2019-I'!$D$3:$H$5594,4,FALSE) -> 8200200 | H159: =VLOOKUP(D159,'LISTA TOTAL PROVEEDORES 2019-I'!$D$3:$H$5594,5,FALSE) -> colombia@durman.com | I159: 157 | K159: =VLOOKUP(D159,'LISTA TOTAL PROVEEDORES 2019-I'!$D$3:$H$5594,2,FALSE) -> Madrid - Cund. | M159: Madrid - Cund.
A160: =+B160&COUNTIF($B$3:B160,B160) -> 11113 | B160: =VLOOKUP(C160,'GRUPOS VIGENTES'!$B$9:$C$115,2,FALSE) -> 1111 | C160: DUCTOS PVC - ELECTRICOS/TELEFONICOS TIPO TDP-DB-EB | D160: GERFOR | E160: =VLOOKUP(D160,'LISTA TOTAL PROVEEDORES 2019-I'!$D$3:$H$5594,2,FALSE) -> Bogota | F160: =VLOOKUP(D160,'LISTA TOTAL PROVEEDORES 2019-I'!$D$3:$H$5594,3,FALSE) -> Autopista Medellin Km 2 - 600 Entrada via Parcelas de Cota | G160: =VLOOKUP(D160,'LISTA TOTAL PROVEEDORES 2019-I'!$D$3:$H$5594,4,FALSE) -> 8776800 | H160: =VLOOKUP(D160,'LISTA TOTAL PROVEEDORES 2019-I'!$D$3:$H$5594,5,FALSE) -> contactenos@gerfor.com www.gerfor.com.co | I160: 158 | K160: =VLOOKUP(D160,'LISTA TOTAL PROVEEDORES 2019-I'!$D$3:$H$5594,2,FALSE) -> Bogota | M160: Bogota
A161: =+B161&COUNTIF($B$3:B161,B161) -> 11114 | B161: =VLOOKUP(C161,'GRUPOS VIGENTES'!$B$9:$C$115,2,FALSE) -> 1111 | C161: DUCTOS PVC - ELECTRICOS/TELEFONICOS TIPO TDP-DB-EB | D161: INETEL | E161: =VLOOKUP(D161,'LISTA TOTAL PROVEEDORES 2019-I'!$D$3:$H$5594,2,FALSE) -> Bogotá | F161: =VLOOKUP(D161,'LISTA TOTAL PROVEEDORES 2019-I'!$D$3:$H$5594,3,FALSE) -> Calle 37b Sur N°.68i-80 | G161: =VLOOKUP(D161,'LISTA TOTAL PROVEEDORES 2019-I'!$D$3:$H$5594,4,FALSE) -> 741 5856 741 5865 | H161: =VLOOKUP(D161,'LISTA TOTAL PROVEEDORES 2019-I'!$D$3:$H$5594,5,FALSE) -> comercial@inetelltda.com | I161: 159 | K161: =VLOOKUP(D161,'LISTA TOTAL PROVEEDORES 2019-I'!$D$3:$H$5594,2,FALSE) -> Bogotá | M161: Bogotá
A162: =+B162&COUNTIF($B$3:B162,B162) -> 11115 | B162: =VLOOKUP(C162,'GRUPOS VIGENTES'!$B$9:$C$115,2,FALSE) -> 1111 | C162: DUCTOS PVC - ELECTRICOS/TELEFONICOS TIPO TDP-DB-EB | D162: PAVCO S.A. | E162: =VLOOKUP(D162,'LISTA TOTAL PROVEEDORES 2019-I'!$D$3:$H$5594,2,FALSE) -> Bogota | F162: =VLOOKUP(D162,'LISTA TOTAL PROVEEDORES 2019-I'!$D$3:$H$5594,3,FALSE) -> Autopista Sur 71 75 | G162: =VLOOKUP(D162,'LISTA TOTAL PROVEEDORES 2019-I'!$D$3:$H$5594,4,FALSE) -> 7825000 | H162: =VLOOKUP(D162,'LISTA TOTAL PROVEEDORES 2019-I'!$D$3:$H$5594,5,FALSE) -> servicio@pavco.com.co orlando.polo@pavco.com.co www.pavco.com.co | I162: 160 | K162: =VLOOKUP(D162,'LISTA TOTAL PROVEEDORES 2019-I'!$D$3:$H$5594,2,FALSE) -> Bogota | M162: Bogota
A163: =+B163&COUNTIF($B$3:B163,B163) -> 11041 | B163: =VLOOKUP(C163,'GRUPOS VIGENTES'!$B$9:$C$115,2,FALSE) -> 1104 | C163: EMULSIONES Y MEZCLAS ASFÁLTICAS | D163: CONCRESCOL LTDA. | E163: Bogotá | F163: Carrera 7 # 155 C - 20 Torre E oficina 3307 | G163: 2557891 | H163: aacosta@concrescol.com | I163: 161 | K163: =VLOOKUP(D163,'LISTA TOTAL PROVEEDORES 2019-I'!$D$3:$H$5594,2,FALSE) ->  | M163: 1
A164: =+B164&COUNTIF($B$3:B164,B164) -> 11042 | B164: =VLOOKUP(C164,'GRUPOS VIGENTES'!$B$9:$C$115,2,FALSE) -> 1104 | C164: EMULSIONES Y MEZCLAS ASFÁLTICAS | D164: DOBLE A INGENIERIA S.A. | E164: =VLOOKUP(D164,'LISTA TOTAL PROVEEDORES 2019-I'!$D$3:$H$5594,2,FALSE) -> Bogota | F164: =VLOOKUP(D164,'LISTA TOTAL PROVEEDORES 2019-I'!$D$3:$H$5594,3,FALSE) -> Calle 79 B 8 11 Piso 3 | G164: =VLOOKUP(D164,'LISTA TOTAL PROVEEDORES 2019-I'!$D$3:$H$5594,4,FALSE) -> 2101700 | H164: =VLOOKUP(D164,'LISTA TOTAL PROVEEDORES 2019-I'!$D$3:$H$5594,5,FALSE) -> cpinilla@da-ing.com gerencia@dobleaingenieria.com | I164: 162 | K164: =VLOOKUP(D164,'LISTA TOTAL PROVEEDORES 2019-I'!$D$3:$H$5594,2,FALSE) -> Bogota | M164: Bogota
A165: =+B165&COUNTIF($B$3:B165,B165) -> 11043 | B165: =VLOOKUP(C165,'GRUPOS VIGENTES'!$B$9:$C$115,2,FALSE) -> 1104 | C165: EMULSIONES Y MEZCLAS ASFÁLTICAS | D165: EZ STREET ASFALTO | E165: =VLOOKUP(D165,'LISTA TOTAL PROVEEDORES 2019-I'!$D$3:$H$5594,2,FALSE) -> Gachancipa - Cund. | F165: =VLOOKUP(D165,'LISTA TOTAL PROVEEDORES 2019-I'!$D$3:$H$5594,3,FALSE) -> Autopista Norte km 28 | G165: =VLOOKUP(D165,'LISTA TOTAL PROVEEDORES 2019-I'!$D$3:$H$5594,4,FALSE) -> 3173000246 | H165: =VLOOKUP(D165,'LISTA TOTAL PROVEEDORES 2019-I'!$D$3:$H$5594,5,FALSE) -> ventas@itpasfaltos.com | I165: 163 | K165: =VLOOKUP(D165,'LISTA TOTAL PROVEEDORES 2019-I'!$D$3:$H$5594,2,FALSE) -> Gachancipa - Cund. | M165: Gachancipa - Cund.
A166: =+B166&COUNTIF($B$3:B166,B166) -> 11044 | B166: =VLOOKUP(C166,'GRUPOS VIGENTES'!$B$9:$C$115,2,FALSE) -> 1104 | C166: EMULSIONES Y MEZCLAS ASFÁLTICAS | D166: HOMECENTER | E166: =VLOOKUP(D166,'LISTA TOTAL PROVEEDORES 2019-I'!$D$3:$H$5594,2,FALSE) -> Bogota | F166: =VLOOKUP(D166,'LISTA TOTAL PROVEEDORES 2019-I'!$D$3:$H$5594,3,FALSE) -> Avda. 68 37 37 Sur | G166: =VLOOKUP(D166,'LISTA TOTAL PROVEEDORES 2019-I'!$D$3:$H$5594,4,FALSE) -> 3077115 | H166: =VLOOKUP(D166,'LISTA TOTAL PROVEEDORES 2019-I'!$D$3:$H$5594,5,FALSE) -> www.homecenter.com.co | I166: 164 | K166: =VLOOKUP(D166,'LISTA TOTAL PROVEEDORES 2019-I'!$D$3:$H$5594,2,FALSE) -> Bogota | M166: Bogota
A167: =+B167&COUNTIF($B$3:B167,B167) -> 11045 | B167: =VLOOKUP(C167,'GRUPOS VIGENTES'!$B$9:$C$115,2,FALSE) -> 1104 | C167: EMULSIONES Y MEZCLAS ASFÁLTICAS | D167: ICEIN INGENIEROS CONSTRUCTORES SAS | E167: Bogotá | F167: CALLE 100 No 8 A - 49, EDIFICIO WORLD TRADE CENTER PISO 9 | G167: 611 2922 | H167: -- | I167: 165 | K167: =VLOOKUP(D167,'LISTA TOTAL PROVEEDORES 2019-I'!$D$3:$H$5594,2,FALSE) ->  | M167: 1
A168: =+B168&COUNTIF($B$3:B168,B168) -> 11046 | B168: =VLOOKUP(C168,'GRUPOS VIGENTES'!$B$9:$C$115,2,FALSE) -> 1104 | C168: EMULSIONES Y MEZCLAS ASFÁLTICAS | D168: PAVIMENTOS COLOMBIA S.A.S. | E168: =VLOOKUP(D168,'LISTA TOTAL PROVEEDORES 2019-I'!$D$3:$H$5594,2,FALSE) -> Bogotá | F168: =VLOOKUP(D168,'LISTA TOTAL PROVEEDORES 2019-I'!$D$3:$H$5594,3,FALSE) -> AVENIDA 82 No. 10 - 50 | G168: =VLOOKUP(D168,'LISTA TOTAL PROVEEDORES 2019-I'!$D$3:$H$5594,4,FALSE) -> 3760030 | H168: =VLOOKUP(D168,'LISTA TOTAL PROVEEDORES 2019-I'!$D$3:$H$5594,5,FALSE) -> calidad@pavcol.com | I168: 166 | K168: =VLOOKUP(D168,'LISTA TOTAL PROVEEDORES 2019-I'!$D$3:$H$5594,2,FALSE) -> Bogotá | M168: Bogotá
A169: =+B169&COUNTIF($B$3:B169,B169) -> 11047 | B169: =VLOOKUP(C169,'GRUPOS VIGENTES'!$B$9:$C$115,2,FALSE) -> 1104 | C169: EMULSIONES Y MEZCLAS ASFÁLTICAS | D169: PAVIOBRAS SAS | E169: =VLOOKUP(D169,'LISTA TOTAL PROVEEDORES 2019-I'!$D$3:$H$5594,2,FALSE) -> Bogotá | F169: =VLOOKUP(D169,'LISTA TOTAL PROVEEDORES 2019-I'!$D$3:$H$5594,3,FALSE) -> Avenida 15 No. 119A-03 Of. 325 | G169: =VLOOKUP(D169,'LISTA TOTAL PROVEEDORES 2019-I'!$D$3:$H$5594,4,FALSE) -> 2 15 50 67 | H169: =VLOOKUP(D169,'LISTA TOTAL PROVEEDORES 2019-I'!$D$3:$H$5594,5,FALSE) -> ltdapaviobras@gmail.com | I169: 167 | K169: =VLOOKUP(D169,'LISTA TOTAL PROVEEDORES 2019-I'!$D$3:$H$5594,2,FALSE) -> Bogotá | M169: Bogotá
A170: =+B170&COUNTIF($B$3:B170,B170) -> 11048 | B170: =VLOOKUP(C170,'GRUPOS VIGENTES'!$B$9:$C$115,2,FALSE) -> 1104 | C170: EMULSIONES Y MEZCLAS ASFÁLTICAS | D170: ROKASFALTOS | E170: =VLOOKUP(D170,'LISTA TOTAL PROVEEDORES 2019-I'!$D$3:$H$5594,2,FALSE) -> Cali - Valle | F170: =VLOOKUP(D170,'LISTA TOTAL PROVEEDORES 2019-I'!$D$3:$H$5594,3,FALSE) -> Av. 3 norte # 54N – 67 Ofi. 301 Cali – Colombia | G170: =VLOOKUP(D170,'LISTA TOTAL PROVEEDORES 2019-I'!$D$3:$H$5594,4,FALSE) -> 300 600 0852 304 584 4063 | H170: =VLOOKUP(D170,'LISTA TOTAL PROVEEDORES 2019-I'!$D$3:$H$5594,5,FALSE) -> rokasfaltos@gmail.com gerencia@rokasfaltos.com info@rokasfaltos.com | I170: 168 | K170: =VLOOKUP(D170,'LISTA TOTAL PROVEEDORES 2019-I'!$D$3:$H$5594,2,FALSE) -> Cali - Valle | M170: Cali - Valle
A171: =+B171&COUNTIF($B$3:B171,B171) -> 11049 | B171: =VLOOKUP(C171,'GRUPOS VIGENTES'!$B$9:$C$115,2,FALSE) -> 1104 | C171: EMULSIONES Y MEZCLAS ASFÁLTICAS | D171: SIKA COLOMBIA SAS | E171: =VLOOKUP(D171,'LISTA TOTAL PROVEEDORES 2019-I'!$D$3:$H$5594,2,FALSE) -> Tocancipa - Cund. | F171: =VLOOKUP(D171,'LISTA TOTAL PROVEEDORES 2019-I'!$D$3:$H$5594,3,FALSE) -> Vereda Canavita, Km 20,5 Autopista Norte | G171: =VLOOKUP(D171,'LISTA TOTAL PROVEEDORES 2019-I'!$D$3:$H$5594,4,FALSE) -> 8786666 8786681 | H171: =VLOOKUP(D171,'LISTA TOTAL PROVEEDORES 2019-I'!$D$3:$H$5594,5,FALSE) -> ortiz.ricardo@co.sika.com chacon.jose@co.sika.com | I171: 169 | K171: =VLOOKUP(D171,'LISTA TOTAL PROVEEDORES 2019-I'!$D$3:$H$5594,2,FALSE) -> Tocancipa - Cund. | M171: Tocancipa - Cund.
A172: =+B172&COUNTIF($B$3:B172,B172) -> 11721 | B172: =VLOOKUP(C172,'GRUPOS VIGENTES'!$B$9:$C$115,2,FALSE) -> 1172 | C172: ENSAYO CAMPO - ELEMENTOS ESTRUCTURALES CONCRETO | D172: Concreservicios S.A.S. | E172: =VLOOKUP(D172,'LISTA TOTAL PROVEEDORES 2019-I'!$D$3:$H$5594,2,FALSE) -> Bogota | F172: =VLOOKUP(D172,'LISTA TOTAL PROVEEDORES 2019-I'!$D$3:$H$5594,3,FALSE) -> Calle 22 C 130 51 Bodega 6 | G172: =VLOOKUP(D172,'LISTA TOTAL PROVEEDORES 2019-I'!$D$3:$H$5594,4,FALSE) -> 4211444 3103232062 | H172: =VLOOKUP(D172,'LISTA TOTAL PROVEEDORES 2019-I'!$D$3:$H$5594,5,FALSE) -> comercial@concre-servicios.com | I172: 170 | K172: =VLOOKUP(D172,'LISTA TOTAL PROVEEDORES 2019-I'!$D$3:$H$5594,2,FALSE) -> Bogota | M172: Bogota
A173: =+B173&COUNTIF($B$3:B173,B173) -> 11722 | B173: =VLOOKUP(C173,'GRUPOS VIGENTES'!$B$9:$C$115,2,FALSE) -> 1172 | C173: ENSAYO CAMPO - ELEMENTOS ESTRUCTURALES CONCRETO | D173: ECHEVERRY INGENIERIA Y ENSAYOS SAS | E173: =VLOOKUP(D173,'LISTA TOTAL PROVEEDORES 2019-I'!$D$3:$H$5594,2,FALSE) -> Bogota | F173: =VLOOKUP(D173,'LISTA TOTAL PROVEEDORES 2019-I'!$D$3:$H$5594,3,FALSE) -> Cra. 29 C 71 A 30 | G173: =VLOOKUP(D173,'LISTA TOTAL PROVEEDORES 2019-I'!$D$3:$H$5594,4,FALSE) -> 3112088197 2255814 6304515 | H173: =VLOOKUP(D173,'LISTA TOTAL PROVEEDORES 2019-I'!$D$3:$H$5594,5,FALSE) -> comercial@echeverryingenieria.com info@echeverryingenieria.com | I173: 171 | K173: =VLOOKUP(D173,'LISTA TOTAL PROVEEDORES 2019-I'!$D$3:$H$5594,2,FALSE) -> Bogota | M173: Bogota
A174: =+B174&COUNTIF($B$3:B174,B174) -> 11723 | B174: =VLOOKUP(C174,'GRUPOS VIGENTES'!$B$9:$C$115,2,FALSE) -> 1172 | C174: ENSAYO CAMPO - ELEMENTOS ESTRUCTURALES CONCRETO | D174: ESCUELA COLOMBIANA DE INGENIERIA JULIO GARAVITO | E174: =VLOOKUP(D174,'LISTA TOTAL PROVEEDORES 2019-I'!$D$3:$H$5594,2,FALSE) -> Bogota | F174: =VLOOKUP(D174,'LISTA TOTAL PROVEEDORES 2019-I'!$D$3:$H$5594,3,FALSE) -> Autopista Norte 205 59 | G174: =VLOOKUP(D174,'LISTA TOTAL PROVEEDORES 2019-I'!$D$3:$H$5594,4,FALSE) -> 6683600 Ext. 584 6763888 Ext. 228 - 324 | H174: =VLOOKUP(D174,'LISTA TOTAL PROVEEDORES 2019-I'!$D$3:$H$5594,5,FALSE) -> laura.valderrama@escuelaing.edu.com | I174: 172 | K174: =VLOOKUP(D174,'LISTA TOTAL PROVEEDORES 2019-I'!$D$3:$H$5594,2,FALSE) -> Bogota | M174: Bogota
A175: =+B175&COUNTIF($B$3:B175,B175) -> 11724 | B175: =VLOOKUP(C175,'GRUPOS VIGENTES'!$B$9:$C$115,2,FALSE) -> 1172 | C175: ENSAYO CAMPO - ELEMENTOS ESTRUCTURALES CONCRETO | D175: LABORATORIO CONTECON URBAR | E175: =VLOOKUP(D175,'LISTA TOTAL PROVEEDORES 2019-I'!$D$3:$H$5594,2,FALSE) -> Bogotá | F175: =VLOOKUP(D175,'LISTA TOTAL PROVEEDORES 2019-I'!$D$3:$H$5594,3,FALSE) -> Cra. 69 Q 78 52 | G175: =VLOOKUP(D175,'LISTA TOTAL PROVEEDORES 2019-I'!$D$3:$H$5594,4,FALSE) -> 7562656 | H175: =VLOOKUP(D175,'LISTA TOTAL PROVEEDORES 2019-I'!$D$3:$H$5594,5,FALSE) -> comercial@contecon.com | I175: 173 | K175: =VLOOKUP(D175,'LISTA TOTAL PROVEEDORES 2019-I'!$D$3:$H$5594,2,FALSE) -> Bogotá | M175: Bogotá
A176: =+B176&COUNTIF($B$3:B176,B176) -> 11725 | B176: =VLOOKUP(C176,'GRUPOS VIGENTES'!$B$9:$C$115,2,FALSE) -> 1172 | C176: ENSAYO CAMPO - ELEMENTOS ESTRUCTURALES CONCRETO | D176: LABORATORIO DEL CONCRETO (ASOCRETO) | E176: =VLOOKUP(D176,'LISTA TOTAL PROVEEDORES 2019-I'!$D$3:$H$5594,2,FALSE) -> Bogota | F176: =VLOOKUP(D176,'LISTA TOTAL PROVEEDORES 2019-I'!$D$3:$H$5594,3,FALSE) -> Calle 103 15 80 | G176: =VLOOKUP(D176,'LISTA TOTAL PROVEEDORES 2019-I'!$D$3:$H$5594,4,FALSE) -> 6180018 | H176: =VLOOKUP(D176,'LISTA TOTAL PROVEEDORES 2019-I'!$D$3:$H$5594,5,FALSE) -> asocreto@asocreto.org.co | I176: 174 | K176: =VLOOKUP(D176,'LISTA TOTAL PROVEEDORES 2019-I'!$D$3:$H$5594,2,FALSE) -> Bogota | M176: Bogota
A177: =+B177&COUNTIF($B$3:B177,B177) -> 11726 | B177: =VLOOKUP(C177,'GRUPOS VIGENTES'!$B$9:$C$115,2,FALSE) -> 1172 | C177: ENSAYO CAMPO - ELEMENTOS ESTRUCTURALES CONCRETO | D177: MARIO HUERTAS CORTES LABORATORIO | E177: =VLOOKUP(D177,'LISTA TOTAL PROVEEDORES 2019-I'!$D$3:$H$5594,2,FALSE) -> Bogota | F177: =VLOOKUP(D177,'LISTA TOTAL PROVEEDORES 2019-I'!$D$3:$H$5594,3,FALSE) -> Cra. 22 A 85 20 | G177: =VLOOKUP(D177,'LISTA TOTAL PROVEEDORES 2019-I'!$D$3:$H$5594,4,FALSE) -> 8772093 3219459185 6226620 | H177: =VLOOKUP(D177,'LISTA TOTAL PROVEEDORES 2019-I'!$D$3:$H$5594,5,FALSE) -> mhcingenieros@mhc.com.co mhc.laboratorio@gmail.com. | I177: 175 | K177: =VLOOKUP(D177,'LISTA TOTAL PROVEEDORES 2019-I'!$D$3:$H$5594,2,FALSE) -> Bogota | M177: Bogota
A178: =+B178&COUNTIF($B$3:B178,B178) -> 11727 | B178: =VLOOKUP(C178,'GRUPOS VIGENTES'!$B$9:$C$115,2,FALSE) -> 1172 | C178: ENSAYO CAMPO - ELEMENTOS ESTRUCTURALES CONCRETO | D178: PONTIFICIA UNIVERSIDAD JAVERIANA | E178: =VLOOKUP(D178,'LISTA TOTAL PROVEEDORES 2019-I'!$D$3:$H$5594,2,FALSE) -> Bogota | F178: =VLOOKUP(D178,'LISTA TOTAL PROVEEDORES 2019-I'!$D$3:$H$5594,3,FALSE) -> Calle 40 5 50 Fac. de Ingenieria Ed. José Gabriel Maldonado S.J. | G178: =VLOOKUP(D178,'LISTA TOTAL PROVEEDORES 2019-I'!$D$3:$H$5594,4,FALSE) -> 3208320 Ext. 5373 | H178: =VLOOKUP(D178,'LISTA TOTAL PROVEEDORES 2019-I'!$D$3:$H$5594,5,FALSE) -> labcivil@javeriana.edu.co daniel.ruiz@javeriana.edu.co | I178: 176 | K178: =VLOOKUP(D178,'LISTA TOTAL PROVEEDORES 2019-I'!$D$3:$H$5594,2,FALSE) -> Bogota | M178: Bogota
A179: =+B179&COUNTIF($B$3:B179,B179) -> 11728 | B179: =VLOOKUP(C179,'GRUPOS VIGENTES'!$B$9:$C$115,2,FALSE) -> 1172 | C179: ENSAYO CAMPO - ELEMENTOS ESTRUCTURALES CONCRETO | D179: SERINCO COLOMBIA | E179: =VLOOKUP(D179,'LISTA TOTAL PROVEEDORES 2019-I'!$D$3:$H$5594,2,FALSE) -> Bogotá | F179: =VLOOKUP(D179,'LISTA TOTAL PROVEEDORES 2019-I'!$D$3:$H$5594,3,FALSE) -> CALLE 163 20 17 | G179: =VLOOKUP(D179,'LISTA TOTAL PROVEEDORES 2019-I'!$D$3:$H$5594,4,FALSE) -> 4673487 | H179: =VLOOKUP(D179,'LISTA TOTAL PROVEEDORES 2019-I'!$D$3:$H$5594,5,FALSE) -> -- | I179: 177 | K179: =VLOOKUP(D179,'LISTA TOTAL PROVEEDORES 2019-I'!$D$3:$H$5594,2,FALSE) -> Bogotá | M179: Bogotá
A180: =+B180&COUNTIF($B$3:B180,B180) -> 11729 | B180: =VLOOKUP(C180,'GRUPOS VIGENTES'!$B$9:$C$115,2,FALSE) -> 1172 | C180: ENSAYO CAMPO - ELEMENTOS ESTRUCTURALES CONCRETO | D180: Terratest Laboratorio de Suelos Rocas y Materiales S.A.S. | E180: =VLOOKUP(D180,'LISTA TOTAL PROVEEDORES 2019-I'!$D$3:$H$5594,2,FALSE) -> Bogotá | F180: =VLOOKUP(D180,'LISTA TOTAL PROVEEDORES 2019-I'!$D$3:$H$5594,3,FALSE) -> CARRERA 59 C No. 130 - 38 | G180: =VLOOKUP(D180,'LISTA TOTAL PROVEEDORES 2019-I'!$D$3:$H$5594,4,FALSE) -> 8032324 | H180: =VLOOKUP(D180,'LISTA TOTAL PROVEEDORES 2019-I'!$D$3:$H$5594,5,FALSE) -> comercial@terratest.com.co | I180: 178 | K180: =VLOOKUP(D180,'LISTA TOTAL PROVEEDORES 2019-I'!$D$3:$H$5594,2,FALSE) -> Bogotá | M180: Bogotá
A181: =+B181&COUNTIF($B$3:B181,B181) -> 117210 | B181: =VLOOKUP(C181,'GRUPOS VIGENTES'!$B$9:$C$115,2,FALSE) -> 1172 | C181: ENSAYO CAMPO - ELEMENTOS ESTRUCTURALES CONCRETO | D181: UNIVERSIDAD DE LOS ANDES | E181: =VLOOKUP(D181,'LISTA TOTAL PROVEEDORES 2019-I'!$D$3:$H$5594,2,FALSE) -> Bogota | F181: =VLOOKUP(D181,'LISTA TOTAL PROVEEDORES 2019-I'!$D$3:$H$5594,3,FALSE) -> Cra. 1 E 19 A 40 Ed. Mario Laserna | G181: =VLOOKUP(D181,'LISTA TOTAL PROVEEDORES 2019-I'!$D$3:$H$5594,4,FALSE) -> 3394949 Ext. 1719 - 1768 | H181: =VLOOKUP(D181,'LISTA TOTAL PROVEEDORES 2019-I'!$D$3:$H$5594,5,FALSE) -> labcivil@uniandes.edu.co | I181: 179 | K181: =VLOOKUP(D181,'LISTA TOTAL PROVEEDORES 2019-I'!$D$3:$H$5594,2,FALSE) -> Bogota | M181: Bogota
A182: =+B182&COUNTIF($B$3:B182,B182) -> 12101 | B182: =VLOOKUP(C182,'GRUPOS VIGENTES'!$B$9:$C$115,2,FALSE) -> 1210 | C182: ENSAYO CAMPO - SOLDADURAS | D182: CIMA | E182: =VLOOKUP(D182,'LISTA TOTAL PROVEEDORES 2019-I'!$D$3:$H$5594,2,FALSE) -> Bogotá | F182: =VLOOKUP(D182,'LISTA TOTAL PROVEEDORES 2019-I'!$D$3:$H$5594,3,FALSE) -> Carrera 96J #23A-55 | G182: =VLOOKUP(D182,'LISTA TOTAL PROVEEDORES 2019-I'!$D$3:$H$5594,4,FALSE) -> 486 58 51 301 3312055 | H182: =VLOOKUP(D182,'LISTA TOTAL PROVEEDORES 2019-I'!$D$3:$H$5594,5,FALSE) -> cimaltda@yahoo.es gerenciatecnica@cima-co.com info@cima-co.com | I182: 180 | K182: =VLOOKUP(D182,'LISTA TOTAL PROVEEDORES 2019-I'!$D$3:$H$5594,2,FALSE) -> Bogotá | M182: Bogotá
A183: =+B183&COUNTIF($B$3:B183,B183) -> 12102 | B183: =VLOOKUP(C183,'GRUPOS VIGENTES'!$B$9:$C$115,2,FALSE) -> 1210 | C183: ENSAYO CAMPO - SOLDADURAS | D183: I+D Gestion | E183: Bogotá | F183: KR 69 No 80 -70 INT 2 -303 | G183: 317 893 7692 317 4382873 | H183: sgi.gestisoluciones@gmail.com | I183: 181 | K183: =VLOOKUP(D183,'LISTA TOTAL PROVEEDORES 2019-I'!$D$3:$H$5594,2,FALSE) ->  | M183: 1
A184: =+B184&COUNTIF($B$3:B184,B184) -> 12103 | B184: =VLOOKUP(C184,'GRUPOS VIGENTES'!$B$9:$C$115,2,FALSE) -> 1210 | C184: ENSAYO CAMPO - SOLDADURAS | D184: INSERCOR SAS | E184: =VLOOKUP(D184,'LISTA TOTAL PROVEEDORES 2019-I'!$D$3:$H$5594,2,FALSE) -> Cota - Cund. | F184: =VLOOKUP(D184,'LISTA TOTAL PROVEEDORES 2019-I'!$D$3:$H$5594,3,FALSE) -> Calle 13 No, 3-46 oficina 301 – 302 | G184: =VLOOKUP(D184,'LISTA TOTAL PROVEEDORES 2019-I'!$D$3:$H$5594,4,FALSE) -> 8787530 | H184: =VLOOKUP(D184,'LISTA TOTAL PROVEEDORES 2019-I'!$D$3:$H$5594,5,FALSE) -> comercial@insercor.com marquez.mario@insercor.com insercor@insercor.com | I184: 182 | K184: =VLOOKUP(D184,'LISTA TOTAL PROVEEDORES 2019-I'!$D$3:$H$5594,2,FALSE) -> Cota - Cund. | M184: Cota - Cund.
A185: =+B185&COUNTIF($B$3:B185,B185) -> 12104 | B185: =VLOOKUP(C185,'GRUPOS VIGENTES'!$B$9:$C$115,2,FALSE) -> 1210 | C185: ENSAYO CAMPO - SOLDADURAS | D185: Inspeq Ingenieria LTDA | E185: =VLOOKUP(D185,'LISTA TOTAL PROVEEDORES 2019-I'!$D$3:$H$5594,2,FALSE) -> Bogotá | F185: =VLOOKUP(D185,'LISTA TOTAL PROVEEDORES 2019-I'!$D$3:$H$5594,3,FALSE) -> Carrera 27 No. 83-67 | G185: =VLOOKUP(D185,'LISTA TOTAL PROVEEDORES 2019-I'!$D$3:$H$5594,4,FALSE) -> 218 65 80 691 53 40 | H185: =VLOOKUP(D185,'LISTA TOTAL PROVEEDORES 2019-I'!$D$3:$H$5594,5,FALSE) -> inspeq@inspeqingenieria.com | I185: 183 | K185: =VLOOKUP(D185,'LISTA TOTAL PROVEEDORES 2019-I'!$D$3:$H$5594,2,FALSE) -> Bogotá | M185: Bogotá
A186: =+B186&COUNTIF($B$3:B186,B186) -> 12105 | B186: =VLOOKUP(C186,'GRUPOS VIGENTES'!$B$9:$C$115,2,FALSE) -> 1210 | C186: ENSAYO CAMPO - SOLDADURAS | D186: Isotec | E186: Bogotá | F186: Carrera 71B No. 55 - 18 | G186: 467 3767 467 4269 | H186: isotec@isotec.com.co | I186: 184 | K186: =VLOOKUP(D186,'LISTA TOTAL PROVEEDORES 2019-I'!$D$3:$H$5594,2,FALSE) ->  | M186: 1
A187: =+B187&COUNTIF($B$3:B187,B187) -> 12241 | B187: =VLOOKUP(C187,'GRUPOS VIGENTES'!$B$9:$C$115,2,FALSE) -> 1224 | C187: ENSAYO CAMPO -RECUBRIMIENTO ESTRUCTURA METÁLICA | D187: I+D Gestion | E187: Bogotá | F187: KR 69 No 80 -70 INT 2 -303 | G187: 317 893 7692 317 4382873 | H187: sgi.gestisoluciones@gmail.com | I187: 185 | K187: =VLOOKUP(D187,'LISTA TOTAL PROVEEDORES 2019-I'!$D$3:$H$5594,2,FALSE) ->  | M187: 1
A188: =+B188&COUNTIF($B$3:B188,B188) -> 12242 | B188: =VLOOKUP(C188,'GRUPOS VIGENTES'!$B$9:$C$115,2,FALSE) -> 1224 | C188: ENSAYO CAMPO -RECUBRIMIENTO ESTRUCTURA METÁLICA | D188: INSERCOR SAS | E188: =VLOOKUP(D188,'LISTA TOTAL PROVEEDORES 2019-I'!$D$3:$H$5594,2,FALSE) -> Cota - Cund. | F188: =VLOOKUP(D188,'LISTA TOTAL PROVEEDORES 2019-I'!$D$3:$H$5594,3,FALSE) -> Calle 13 No, 3-46 oficina 301 – 302 | G188: =VLOOKUP(D188,'LISTA TOTAL PROVEEDORES 2019-I'!$D$3:$H$5594,4,FALSE) -> 8787530 | H188: =VLOOKUP(D188,'LISTA TOTAL PROVEEDORES 2019-I'!$D$3:$H$5594,5,FALSE) -> comercial@insercor.com marquez.mario@insercor.com insercor@insercor.com | I188: 186 | K188: =VLOOKUP(D188,'LISTA TOTAL PROVEEDORES 2019-I'!$D$3:$H$5594,2,FALSE) -> Cota - Cund. | M188: Cota - Cund.
A189: =+B189&COUNTIF($B$3:B189,B189) -> 12243 | B189: =VLOOKUP(C189,'GRUPOS VIGENTES'!$B$9:$C$115,2,FALSE) -> 1224 | C189: ENSAYO CAMPO -RECUBRIMIENTO ESTRUCTURA METÁLICA | D189: Inspeq Ingenieria LTDA | E189: =VLOOKUP(D189,'LISTA TOTAL PROVEEDORES 2019-I'!$D$3:$H$5594,2,FALSE) -> Bogotá | F189: =VLOOKUP(D189,'LISTA TOTAL PROVEEDORES 2019-I'!$D$3:$H$5594,3,FALSE) -> Carrera 27 No. 83-67 | G189: =VLOOKUP(D189,'LISTA TOTAL PROVEEDORES 2019-I'!$D$3:$H$5594,4,FALSE) -> 218 65 80 691 53 40 | H189: =VLOOKUP(D189,'LISTA TOTAL PROVEEDORES 2019-I'!$D$3:$H$5594,5,FALSE) -> inspeq@inspeqingenieria.com | I189: 187 | K189: =VLOOKUP(D189,'LISTA TOTAL PROVEEDORES 2019-I'!$D$3:$H$5594,2,FALSE) -> Bogotá | M189: Bogotá
A190: =+B190&COUNTIF($B$3:B190,B190) -> 12244 | B190: =VLOOKUP(C190,'GRUPOS VIGENTES'!$B$9:$C$115,2,FALSE) -> 1224 | C190: ENSAYO CAMPO -RECUBRIMIENTO ESTRUCTURA METÁLICA | D190: TAESMET | E190: =VLOOKUP(D190,'LISTA TOTAL PROVEEDORES 2019-I'!$D$3:$H$5594,2,FALSE) -> Bogotá | F190: =VLOOKUP(D190,'LISTA TOTAL PROVEEDORES 2019-I'!$D$3:$H$5594,3,FALSE) -> Calle 14A No. 123 - 36 | G190: =VLOOKUP(D190,'LISTA TOTAL PROVEEDORES 2019-I'!$D$3:$H$5594,4,FALSE) -> 418 99 21 | H190: =VLOOKUP(D190,'LISTA TOTAL PROVEEDORES 2019-I'!$D$3:$H$5594,5,FALSE) -> comercial@taesmet.com info@taesmet.com | I190: 188 | K190: =VLOOKUP(D190,'LISTA TOTAL PROVEEDORES 2019-I'!$D$3:$H$5594,2,FALSE) -> Bogotá | M190: Bogotá
A191: =+B191&COUNTIF($B$3:B191,B191) -> 12231 | B191: =VLOOKUP(C191,'GRUPOS VIGENTES'!$B$9:$C$115,2,FALSE) -> 1223 | C191: ENSAYO CAMPO - DIAGNOSTICO DE PAVIMENTOS | D191: APSA SAS | E191: =VLOOKUP(D191,'LISTA TOTAL PROVEEDORES 2019-I'!$D$3:$H$5594,2,FALSE) -> Bogotá | F191: =VLOOKUP(D191,'LISTA TOTAL PROVEEDORES 2019-I'!$D$3:$H$5594,3,FALSE) -> Carrera 16 # 96-64 Oﬁcina 509 Chicó Norte, Bogotá. | G191: =VLOOKUP(D191,'LISTA TOTAL PROVEEDORES 2019-I'!$D$3:$H$5594,4,FALSE) -> 520 26 71 520 53 31 | H191: =VLOOKUP(D191,'LISTA TOTAL PROVEEDORES 2019-I'!$D$3:$H$5594,5,FALSE) -> apsa@apsacolombia.co | I191: 189 | K191: =VLOOKUP(D191,'LISTA TOTAL PROVEEDORES 2019-I'!$D$3:$H$5594,2,FALSE) -> Bogotá | M191: Bogotá
A192: =+B192&COUNTIF($B$3:B192,B192) -> 12232 | B192: =VLOOKUP(C192,'GRUPOS VIGENTES'!$B$9:$C$115,2,FALSE) -> 1223 | C192: ENSAYO CAMPO - DIAGNOSTICO DE PAVIMENTOS | D192: Concreservicios S.A.S. | E192: =VLOOKUP(D192,'LISTA TOTAL PROVEEDORES 2019-I'!$D$3:$H$5594,2,FALSE) -> Bogota | F192: =VLOOKUP(D192,'LISTA TOTAL PROVEEDORES 2019-I'!$D$3:$H$5594,3,FALSE) -> Calle 22 C 130 51 Bodega 6 | G192: =VLOOKUP(D192,'LISTA TOTAL PROVEEDORES 2019-I'!$D$3:$H$5594,4,FALSE) -> 4211444 3103232062 | H192: =VLOOKUP(D192,'LISTA TOTAL PROVEEDORES 2019-I'!$D$3:$H$5594,5,FALSE) -> comercial@concre-servicios.com | I192: 190 | K192: =VLOOKUP(D192,'LISTA TOTAL PROVEEDORES 2019-I'!$D$3:$H$5594,2,FALSE) -> Bogota | M192: Bogota
A193: =+B193&COUNTIF($B$3:B193,B193) -> 12233 | B193: =VLOOKUP(C193,'GRUPOS VIGENTES'!$B$9:$C$115,2,FALSE) -> 1223 | C193: ENSAYO CAMPO - DIAGNOSTICO DE PAVIMENTOS | D193: DYNATEST COLOMBIA S.A.S. | E193: =VLOOKUP(D193,'LISTA TOTAL PROVEEDORES 2019-I'!$D$3:$H$5594,2,FALSE) -> Bogotá | F193: =VLOOKUP(D193,'LISTA TOTAL PROVEEDORES 2019-I'!$D$3:$H$5594,3,FALSE) -> Calle 161 A No 16 C - 91 | G193: =VLOOKUP(D193,'LISTA TOTAL PROVEEDORES 2019-I'!$D$3:$H$5594,4,FALSE) -> 6721322 | H193: =VLOOKUP(D193,'LISTA TOTAL PROVEEDORES 2019-I'!$D$3:$H$5594,5,FALSE) -> www.dynatest.com | I193: 191 | K193: =VLOOKUP(D193,'LISTA TOTAL PROVEEDORES 2019-I'!$D$3:$H$5594,2,FALSE) -> Bogotá | M193: Bogotá
A194: =+B194&COUNTIF($B$3:B194,B194) -> 12234 | B194: =VLOOKUP(C194,'GRUPOS VIGENTES'!$B$9:$C$115,2,FALSE) -> 1223 | C194: ENSAYO CAMPO - DIAGNOSTICO DE PAVIMENTOS | D194: ECHEVERRY INGENIERIA Y ENSAYOS SAS | E194: =VLOOKUP(D194,'LISTA TOTAL PROVEEDORES 2019-I'!$D$3:$H$5594,2,FALSE) -> Bogota | F194: =VLOOKUP(D194,'LISTA TOTAL PROVEEDORES 2019-I'!$D$3:$H$5594,3,FALSE) -> Cra. 29 C 71 A 30 | G194: =VLOOKUP(D194,'LISTA TOTAL PROVEEDORES 2019-I'!$D$3:$H$5594,4,FALSE) -> 3112088197 2255814 6304515 | H194: =VLOOKUP(D194,'LISTA TOTAL PROVEEDORES 2019-I'!$D$3:$H$5594,5,FALSE) -> comercial@echeverryingenieria.com info@echeverryingenieria.com | I194: 192 | K194: =VLOOKUP(D194,'LISTA TOTAL PROVEEDORES 2019-I'!$D$3:$H$5594,2,FALSE) -> Bogota | M194: Bogota
A195: =+B195&COUNTIF($B$3:B195,B195) -> 12235 | B195: =VLOOKUP(C195,'GRUPOS VIGENTES'!$B$9:$C$115,2,FALSE) -> 1223 | C195: ENSAYO CAMPO - DIAGNOSTICO DE PAVIMENTOS | D195: ESCUELA COLOMBIANA DE INGENIERIA JULIO GARAVITO | E195: =VLOOKUP(D195,'LISTA TOTAL PROVEEDORES 2019-I'!$D$3:$H$5594,2,FALSE) -> Bogota | F195: =VLOOKUP(D195,'LISTA TOTAL PROVEEDORES 2019-I'!$D$3:$H$5594,3,FALSE) -> Autopista Norte 205 59 | G195: =VLOOKUP(D195,'LISTA TOTAL PROVEEDORES 2019-I'!$D$3:$H$5594,4,FALSE) -> 6683600 Ext. 584 6763888 Ext. 228 - 324 | H195: =VLOOKUP(D195,'LISTA TOTAL PROVEEDORES 2019-I'!$D$3:$H$5594,5,FALSE) -> laura.valderrama@escuelaing.edu.com | I195: 193 | K195: =VLOOKUP(D195,'LISTA TOTAL PROVEEDORES 2019-I'!$D$3:$H$5594,2,FALSE) -> Bogota | M195: Bogota
A196: =+B196&COUNTIF($B$3:B196,B196) -> 12236 | B196: =VLOOKUP(C196,'GRUPOS VIGENTES'!$B$9:$C$115,2,FALSE) -> 1223 | C196: ENSAYO CAMPO - DIAGNOSTICO DE PAVIMENTOS | D196: LABORATORIO BATEMAN INGENIERIA | E196: =VLOOKUP(D196,'LISTA TOTAL PROVEEDORES 2019-I'!$D$3:$H$5594,2,FALSE) -> Bogota | F196: =VLOOKUP(D196,'LISTA TOTAL PROVEEDORES 2019-I'!$D$3:$H$5594,3,FALSE) -> Cra. 20 39 65 | G196: =VLOOKUP(D196,'LISTA TOTAL PROVEEDORES 2019-I'!$D$3:$H$5594,4,FALSE) -> 3204318 2459654 2325960 | H196: =VLOOKUP(D196,'LISTA TOTAL PROVEEDORES 2019-I'!$D$3:$H$5594,5,FALSE) -> direcciongeneral@laboratoriobilsa.com direcciontecnica@laboratoriobilsa.com | I196: 194 | K196: =VLOOKUP(D196,'LISTA TOTAL PROVEEDORES 2019-I'!$D$3:$H$5594,2,FALSE) -> Bogota | M196: Bogota
A197: =+B197&COUNTIF($B$3:B197,B197) -> 12237 | B197: =VLOOKUP(C197,'GRUPOS VIGENTES'!$B$9:$C$115,2,FALSE) -> 1223 | C197: ENSAYO CAMPO - DIAGNOSTICO DE PAVIMENTOS | D197: LABORATORIO CONTECON URBAR | E197: =VLOOKUP(D197,'LISTA TOTAL PROVEEDORES 2019-I'!$D$3:$H$5594,2,FALSE) -> Bogotá | F197: =VLOOKUP(D197,'LISTA TOTAL PROVEEDORES 2019-I'!$D$3:$H$5594,3,FALSE) -> Cra. 69 Q 78 52 | G197: =VLOOKUP(D197,'LISTA TOTAL PROVEEDORES 2019-I'!$D$3:$H$5594,4,FALSE) -> 7562656 | H197: =VLOOKUP(D197,'LISTA TOTAL PROVEEDORES 2019-I'!$D$3:$H$5594,5,FALSE) -> comercial@contecon.com | I197: =+I196+1 -> 195 | K197: =VLOOKUP(D197,'LISTA TOTAL PROVEEDORES 2019-I'!$D$3:$H$5594,2,FALSE) -> Bogotá | M197: =IFERROR(K197,1) -> Bogotá
A198: =+B198&COUNTIF($B$3:B198,B198) -> 12238 | B198: =VLOOKUP(C198,'GRUPOS VIGENTES'!$B$9:$C$115,2,FALSE) -> 1223 | C198: ENSAYO CAMPO - DIAGNOSTICO DE PAVIMENTOS | D198: LABORATORIO DEL CONCRETO (ASOCRETO) | E198: =VLOOKUP(D198,'LISTA TOTAL PROVEEDORES 2019-I'!$D$3:$H$5594,2,FALSE) -> Bogota | F198: =VLOOKUP(D198,'LISTA TOTAL PROVEEDORES 2019-I'!$D$3:$H$5594,3,FALSE) -> Calle 103 15 80 | G198: =VLOOKUP(D198,'LISTA TOTAL PROVEEDORES 2019-I'!$D$3:$H$5594,4,FALSE) -> 6180018 | H198: =VLOOKUP(D198,'LISTA TOTAL PROVEEDORES 2019-I'!$D$3:$H$5594,5,FALSE) -> asocreto@asocreto.org.co | I198: 196 | K198: =VLOOKUP(D198,'LISTA TOTAL PROVEEDORES 2019-I'!$D$3:$H$5594,2,FALSE) -> Bogota | M198: Bogota
A199: =+B199&COUNTIF($B$3:B199,B199) -> 12239 | B199: =VLOOKUP(C199,'GRUPOS VIGENTES'!$B$9:$C$115,2,FALSE) -> 1223 | C199: ENSAYO CAMPO - DIAGNOSTICO DE PAVIMENTOS | D199: MARIO HUERTAS CORTES LABORATORIO | E199: =VLOOKUP(D199,'LISTA TOTAL PROVEEDORES 2019-I'!$D$3:$H$5594,2,FALSE) -> Bogota | F199: =VLOOKUP(D199,'LISTA TOTAL PROVEEDORES 2019-I'!$D$3:$H$5594,3,FALSE) -> Cra. 22 A 85 20 | G199: =VLOOKUP(D199,'LISTA TOTAL PROVEEDORES 2019-I'!$D$3:$H$5594,4,FALSE) -> 8772093 3219459185 6226620 | H199: =VLOOKUP(D199,'LISTA TOTAL PROVEEDORES 2019-I'!$D$3:$H$5594,5,FALSE) -> mhcingenieros@mhc.com.co mhc.laboratorio@gmail.com. | I199: 197 | K199: =VLOOKUP(D199,'LISTA TOTAL PROVEEDORES 2019-I'!$D$3:$H$5594,2,FALSE) -> Bogota | M199: Bogota
